Workbook

Sheet Menu_Inic
G24: Para un correcto funcionamiento por favor habilite las Macros

Sheet Desarrollo

Sheet Menu_Admin
G11: Modifica las bases de información de vehículos y factores de emisión sobre los que la herramienta opera.
G15: Manejo de supuestos para modificar los parámetros que influyen en los cálculos que la herramienta realiza.
G19: Modelación para realizar una simulación de sustitución vehicular sobre una flota institucional.

Sheet Menu_Usuario
G12: Modelación para realizar una simulación de sustitución vehicular sobre una flota institucional.
G16: Manual de uso de la Herramienta Modelación de Sustitución Vehicular
D21: Descargar Manual de Usuario

Sheet Menu_2

Sheet BD2 (Costos)
AC2: IN1.24 | AD2: IN1.25
AC3: =I_ESCENARIOS!E6 -> Alto | AD3: =I_ESCENARIOS!E7 -> Ref
B6: BD2.1 | C6: BD2.2 | D6: BD2.3 | E6: BD2.4 | F6: BD2.5 | G6: BD2.6 | H6: BD2.7 | I6: BD2.8 | J6: BD2.9 | K6: BD2.10 | L6: BD2.11 | M6: BD2.12 | N6: BD2.13 | O6: BD2.14 | P6: BD2.15 | Q6: BD2.16 | R6: BD2.17 | S6: BD2.18 | T6: BD2.19 | U6: BD2.20 | V6: BD2.21 | W6: BD2.22 | AB6: BASE PARA GRAFICO DE FORMS
B7: Mes/Año | C7: Gasolina (COP/gal) Ref | D7: Gasolina (COP/gal) Alto | E7: Gasolina (COP/gal) Bajo | F7: GN (USD/MMBTU) Ref - Guajira | G7: GN (USD/MMBTU) Alto - Guajira | H7: GN (USD/MMBTU) Bajo - Guajira | I7: GN (USD/MMBTU) Ref - C/gena | J7: GN (USD/MMBTU) Alto - C/gena | K7: GN (USD/MMBTU) Bajo - C/gena | L7: GNV Alto (COP/m3) | M7: GNV Ref (COP/m3) | N7: GNV Bajo (COP/m3) | O7: Diésel (COP/gal) Ref | P7: Diésel (COP/gal) Alto | Q7: Diésel (COP/gal) Bajo | R7: Electricidad Ref | S7: Electricidad Bajo | T7: Electricidad Alto | U7: Hidrogeno Ref | V7: Hidrogeno Alto | W7: Hidrogeno Bajo | X7: PORC_1 | Y7: PORC_2 | Z7: PORC_3 | AB7: AÑO | AC7: Gasolina (COP/gal) | AD7: GNV (COP/m3) | AE7: Diesel (COP/gal) | AF7: Electricidad (COP/Kwh)
B8: 2018-01-01 | C8: 9023 | D8: 9023 | E8: 9023 | F8: 5.674606028 | G8: 5.674606028 | H8: 5.674606028 | I8: 10.11440833 | J8: 10.3922698 | K8: 10.00326375 | L8: =+((AVERAGE(G8,J8)*(3000))/1000000)*1100*(1/0.0283)*1.63 -> 1526.920938 | M8: =+((AVERAGE(F8,I8)*(3000))/1000000)*1100*(1/0.0283)*1.63 -> 1500.51428 | N8: =+((AVERAGE(H8,K8)*(3000))/1000000)*1100*(1/0.0283)*1.63 -> 1489.951617 | O8: 7660 | P8: 7660 | Q8: 7660 | R8: 489.0530375 | S8: 489.0530375 | T8: 489.0530375 | U8: 9 | V8: 9 | W8: 9 | AB8: =YEAR(B8) -> 2018 | AC8: =AVERAGEIF($C$7:$E$7,"*"&$AC$3&"*",$C8:$E8) -> 9023 | AD8: =AVERAGEIF($L$7:$N$7,"*"&$AC$3&"*",$L8:$N8) -> 1526.920938 | AE8: =AVERAGEIF($O$7:$Q$7,"*"&$AC$3&"*",$O8:$Q8) -> 7660 | AF8: =AVERAGEIF($R$7:$T$7,"*"&$AD$3&"*",$R8:$T8) -> 489.0530375
B9: 2018-02-01 | C9: 9208.5 | D9: 9208.5 | E9: 9208.5 | F9: 5.650355763 | G9: 5.650355763 | H9: 5.650355763 | I9: 8.448629255 | J9: 8.67896079 | K9: 8.35649664 | L9: =+((AVERAGE(G9,J9)*(3000))/1000000)*1100*(1/0.0283)*1.63 -> 1361.791409 | M9: =+((AVERAGE(F9,I9)*(3000))/1000000)*1100*(1/0.0283)*1.63 -> 1339.901774 | N9: =+((AVERAGE(H9,K9)*(3000))/1000000)*1100*(1/0.0283)*1.63 -> 1331.14592 | O9: 7788.5 | P9: 7788.5 | Q9: 7788.5 | R9: 493.2691 | S9: 493.2691 | T9: 493.2691 | U9: =0.0000002697629*B9^2-0.02609448*B9+632.7749 -> 9.12643953 | V9: =0.000000177483*B9^2-0.01759367*B9+437.7077 -> 9.04147204 | W9: =0.0000003630577*B9^2-0.03467275*B9+829.3089 -> 9.225291228 | AB9: =YEAR(B9) -> 2018 | AC9: =AVERAGEIF($C$7:$E$7,"*"&$AC$3&"*",$C9:$E9) -> 9208.5 | AD9: =AVERAGEIF($L$7:$N$7,"*"&$AC$3&"*",$L9:$N9) -> 1361.791409 | AE9: =AVERAGEIF($O$7:$Q$7,"*"&$AC$3&"*",$O9:$Q9) -> 7788.5 | AF9: =AVERAGEIF($R$7:$T$7,"*"&$AD$3&"*",$R9:$T9) -> 493.2691
B10: 2018-03-01 | C10: 9173.3 | D10: 9173.3 | E10: 9173.3 | F10: 5.638291167 | G10: 5.638291167 | H10: 5.638291167 | I10: 7.516420852 | J10: 7.716125414 | K10: 7.436539027 | L10: =+((AVERAGE(G10,J10)*(3000))/1000000)*1100*(1/0.0283)*1.63 -> 1269.141463 | M10: 1250.162473 | N10: 1242.570877 | O10: 7791.1 | P10: 7791.1 | Q10: 7791.1 | R10: 513.1276302 | S10: 513.1276302 | T10: 513.1276302 | U10: 9.047588734 | V10: 8.977679445 | W10: 9.131665529 | AB10: 2018 | AC10: 9173.3 | AD10: 1269.141463 | AE10: 7791.1 | AF10: 513.1276302
B11: 2018-04-01 | C11: 9403.5 | D11: 9403.5 | E11: 9403.5 | F11: 5.617165413 | G11: 5.617165413 | H11: 5.617165413 | I11: 7.303517056 | J11: 7.481098278 | K11: 7.232484567 | L11: 1244.797887 | M11: 1227.921396 | N11: 1221.170799 | O11: 7897.7 | P11: 7897.7 | Q11: 7897.7 | R11: 507.5475013 | S11: 507.5475013 | T11: 507.5475013 | U11: 8.960783036 | V11: 8.907376545 | W11: 9.028672538 | AB11: 2018 | AC11: 9403.5 | AD11: 1244.797887 | AE11: 7897.7 | AF11: 507.5475013
B12: 2018-05-01 | C12: 9223.8 | D12: 9223.8 | E12: 9223.8 | F12: 5.305563457 | G12: 5.305563457 | H12: 5.305563457 | I12: 8.095059109 | J12: 8.282243181 | K12: 8.02018548 | L12: 1291.321765 | M12: 1273.532664 | N12: 1266.417023 | O12: 7858.5 | P12: 7858.5 | Q12: 7858.5 | R12: 504.0238722 | S12: 504.0238722 | T12: 504.0238722 | U12: 8.877271187 | V12: 8.839666275 | W12: 8.929666297 | AB12: 2018 | AC12: 9223.8 | AD12: 1291.321765 | AE12: 7858.5 | AF12: 504.0238722
B13: 2018-06-01 | C13: 9303.2 | D13: 9303.2 | E13: 9303.2 | F13: 5.377362086 | G13: 5.377362086 | H13: 5.377362086 | I13: 9.369197237 | J13: 9.613659553 | K13: 9.271412311 | L13: 1424.676774 | M13: 1401.444216 | N13: 1392.151192 | O13: 7965.9 | P13: 7965.9 | Q13: 7965.9 | R13: 512.4801397 | S13: 512.4801397 | T13: 512.4801397 | U13: 8.791485732 | V13: 8.770034616 | W13: 8.828046391 | AB13: 2018 | AC13: 9303.2 | AD13: 1424.676774 | AE13: 7965.9 | AF13: 512.4801397
B14: 2018-07-01 | C14: 9322.7 | D14: 9322.7 | E14: 9322.7 | F14: 5.486682339 | G14: 5.486682339 | H14: 5.486682339 | I14: 8.99927124 | J14: 9.243918082 | K14: 8.901412503 | L14: 1399.927556 | M14: 1376.677461 | N14: 1367.377423 | O14: 7977 | P14: 7977 | Q14: 7977 | R14: 518.95555 | S14: 518.95555 | T14: 518.95555 | U14: 8.708961216 | V14: 8.702973934 | W14: 8.730368941 | AB14: 2018 | AC14: 9322.7 | AD14: 1399.927556 | AE14: 7977 | AF14: 518.95555
B15: 2018-08-01 | C15: 9083.7 | D15: 9083.7 | E15: 9083.7 | F15: 5.493767769 | G15: 5.493767769 | H15: 5.493767769 | I15: 9.684401217 | J15: 9.934183547 | K15: 9.584488285 | L15: 1466.200532 | M15: 1442.462385 | N15: 1432.967126 | O15: 7849 | P15: 7849 | Q15: 7849 | R15: 517.519025 | S15: 517.519025 | T15: 517.519025 | U15: 8.624196004 | V15: 8.634013516 | W15: 8.630122118 | AB15: 2018 | AC15: 9083.7 | AD15: 1466.200532 | AE15: 7849 | AF15: 517.519025
B16: 2018-09-01 | C16: 9038.7 | D16: 9038.7 | E16: 9038.7 | F16: 5.577312576 | G16: 5.577312576 | H16: 5.577312576 | I16: 10.37547662 | J16: 10.64538895 | K16: 10.26751169 | L16: 1541.729886 | M16: 1516.078676 | N16: 1505.818193 | O16: 7832.5 | P16: 7832.5 | Q16: 7832.5 | R16: 523.5242 | S16: 523.5242 | T16: 523.5242 | U16: 8.539949276 | V16: 8.56539422 | W16: 8.530573093 | AB16: 2018 | AC16: 9038.7 | AD16: 1541.729886 | AE16: 7832.5 | AF16: 523.5242
B17: 2018-10-01 | C17: 8993.3 | D17: 8993.3 | E17: 8993.3 | F17: 5.458728488 | G17: 5.458728488 | H17: 5.458728488 | I17: 9.18910044 | J17: 9.529456374 | K17: 9.052958067 | L17: 1424.40718 | M17: 1392.061339 | N17: 1379.123003 | O17: 7893.2 | P17: 7893.2 | Q17: 7893.2 | R17: 527.4805875 | S17: 527.4805875 | T17: 527.4805875 | U17: 8.458913851 | V17: 8.499313244 | W17: 8.434899722 | AB17: 2018 | AC17: 8993.3 | AD17: 1424.40718 | AE17: 7893.2 | AF17: 527.4805875
B18: 2018-11-01 | C18: 8784.6 | D18: 8784.6 | E18: 8784.6 | F18: 5.466088025 | G18: 5.466088025 | H18: 5.466088025 | I18: 8.395735039 | J18: 8.789125232 | K18: 8.238378962 | L18: 1354.748977 | M18: 1317.363008 | N18: 1302.408621 | O18: 7839.5 | P18: 7839.5 | Q18: 7839.5 | R18: 533.7187125 | S18: 533.7187125 | T18: 533.7187125 | U18: 8.375687367 | V18: 8.431365189 | W18: 8.33672378 | AB18: 2018 | AC18: 8784.6 | AD18: 1354.748977 | AE18: 7839.5 | AF18: 533.7187125
B19: 2018-12-01 | C19: 8720.4 | D19: 8720.4 | E19: 8720.4 | F19: 5.022632752 | G19: 5.022632752 | H19: 5.022632752 | I19: 10.4314455 | J19: 10.75490139 | K19: 10.30206314 | L19: 1499.423253 | M19: 1468.683514 | N19: 1456.387618 | O19: 7809.2 | P19: 7809.2 | Q19: 7809.2 | R19: 530.7775313 | S19: 530.7775313 | T19: 530.7775313 | U19: 8.295639274 | V19: 8.365933801 | W19: 8.2423792 | AB19: 2018 | AC19: 8720.4 | AD19: 1499.423253 | AE19: 7809.2 | AF19: 530.7775313
B20: 2019-01-01 | C20: 8699.6 | D20: 8860.3 | E20: 8580.4 | F20: 7.599509249 | G20: 8.796342649 | H20: 4.627499994 | I20: 9.554219081 | J20: 10.75105248 | K20: 4.772188029 | L20: 1857.693258 | M20: 1630.21033 | N20: 893.3025067 | O20: 8638.6 | P20: 10113.9 | Q20: 8162.1 | R20: 528.1298125 | S20: 528.1298125 | T20: 528.1298125 | U20: 8.213433033 | V20: 8.298656986 | W20: 8.145576343 | AB20: 2019 | AC20: 8860.3 | AD20: 1857.693258 | AE20: 10113.9 | AF20: 528.1298125
B21: 2019-02-01 | C21: 8560.3 | D21: 9004.4 | E21: 8444.7 | F21: 7.277862019 | G21: 8.465710237 | H21: 4.363927823 | I21: 8.932571851 | J21: 10.12042007 | K21: 4.508615858 | L21: 1766.339133 | M21: 1540.564025 | N21: 843.2051671 | O21: 8967.2 | P21: 10536.3 | Q21: 8460.3 | R21: 528.2545975 | S21: 528.2545975 | T21: 528.2545975 | U21: 8.131745276 | V21: 8.231721294 | W21: 8.049471283 | AB21: 2019 | AC21: 9004.4 | AD21: 1766.339133 | AE21: 10536.3 | AF21: 528.2545975
B22: 2019-03-01 | C22: 8695.4 | D22: 9152.9 | E22: 8313 | F22: 7.097666468 | G22: 8.278574022 | H22: 4.16032974 | I22: 8.4523763 | J22: 9.633283854 | K22: 4.305017775 | L22: 1702.259426 | M22: 1477.803534 | N22: 804.5071428 | O22: 9200.7 | P22: 10836.5 | Q22: 8672.3 | R22: 531.2995212 | S22: 531.2995212 | T22: 531.2995212 | U22: 8.058408434 | V22: 8.171556452 | W22: 7.963266484 | AB22: 2019 | AC22: 9152.9 | AD22: 1702.259426 | AE22: 10836.5 | AF22: 531.2995212
B23: 2019-04-01 | C23: 8834.6 | D23: 9305.8 | E23: 8185.3 | F23: 7.011725182 | G23: 8.187054408 | H23: 3.996694517 | I23: 8.066435014 | J23: 9.241764239 | K23: 4.141382553 | L23: 1656.353631 | M23: 1432.958016 | N23: 773.4048862 | O23: 9403 | P23: 11096.7 | Q23: 8856 | R23: 533.1381097 | S23: 533.1381097 | T23: 533.1381097 | U23: 7.97770747 | V23: 8.105269993 | W23: 7.868489488 | AB23: 2019 | AC23: 9305.8 | AD23: 1656.353631 | AE23: 11096.7 | AF23: 533.1381097
B24: 2019-05-01 | C24: 8978 | D24: 9463.3 | E24: 8187.5 | F24: 6.994388451 | G24: 8.655759597 | H24: 3.862146936 | I24: 7.749098283 | J24: 9.410469429 | K24: 4.006834972 | L24: 1716.93014 | M24: 1401.152211 | N24: 747.8313371 | O24: 9380.4 | P24: 11067.5 | Q24: 8835.4 | R24: 531.8545 | S24: 531.8545 | T24: 531.8545 | U24: 7.900103429 | V24: 8.0414466 | W24: 7.777434211 | AB24: 2019 | AC24: 9463.3 | AD24: 1716.93014 | AE24: 11067.5 | AF24: 531.8545
B25: 2019-06-01 | C25: 8969.6 | D25: 9625.5 | E25: 8180.5 | F25: 7.029737522 | G25: 8.670093741 | H25: 3.749937604 | I25: 7.484447354 | J25: 9.124803573 | K25: 3.89462564 | L25: 1691.14404 | M25: 1379.360432 | N25: 726.5036341 | O25: 9322.9 | P25: 10993.7 | Q25: 8783.3 | R25: 531.4846553 | S25: 531.4846553 | T25: 531.4846553 | U25: 7.820422708 | V25: 7.975831382 | W25: 7.6840303 | AB25: 2019 | AC25: 9625.5 | AD25: 1691.14404 | AE25: 10993.7 | AF25: 531.4846553
B26: 2019-07-01 | C26: 8959.7 | D26: 9792.6 | E26: 8172.1 | F26: 7.117092176 | G26: 8.946552098 | H26: 3.655528976 | I26: 7.261780211 | J26: 9.091240134 | K26: 3.800217012 | L26: 1714.22764 | M26: 1366.500964 | N26: 708.5593228 | O26: 9384.2 | P26: 11072.4 | Q26: 8838.9 | R26: 532.560725 | S26: 532.560725 | T26: 532.560725 | U26: 7.743806 | V26: 7.912657577 | W26: 7.594303814 | AB26: 2019 | AC26: 9792.6 | AD26: 1714.22764 | AE26: 11072.4 | AF26: 532.560725
B27: 2019-08-01 | C27: 8888.9 | D27: 9964.8 | E27: 8112.7 | F27: 6.928816662 | G27: 8.939092062 | H27: 3.575702053 | I27: 7.073504698 | J27: 9.083780097 | K27: 3.720390088 | L27: 1712.809706 | M27: 1330.715311 | N27: 693.3865658 | O27: 9381.7 | P27: 11069.3 | Q27: 8836.7 | R27: 543.563925 | S27: 543.563925 | T27: 543.563925 | U27: 7.665145522 | V27: 7.847713599 | W27: 7.502272987 | AB27: 2019 | AC27: 9964.8 | AD27: 1712.809706 | AE27: 11069.3 | AF27: 543.563925
B28: 2019-09-01 | C28: 8750.1 | D28: 10142 | E28: 7996.2 | F28: 6.769334597 | G28: 8.954220494 | H28: 3.508083261 | I28: 6.914022632 | J28: 9.098908529 | K28: 3.652771297 | L28: 1715.685177 | M28: 1300.402448 | N28: 680.5342168 | O28: 9315.2 | P28: 10983.8 | Q28: 8776.3 | R28: 550.0802934 | S28: 550.0802934 | T28: 550.0802934 | U28: 7.587003529 | V28: 7.783110744 | W28: 7.410939957 | AB28: 2019 | AC28: 10142 | AD28: 1715.685177 | AE28: 10983.8 | AF28: 550.0802934
B29: 2019-10-01 | C29: 8609.3 | D29: 10324.6 | E29: 7878 | F29: 6.634396452 | G29: 8.989380782 | H29: 3.450870846 | I29: 6.779084488 | J29: 9.134068817 | K29: 3.595558881 | L29: 1722.368117 | M29: 1274.754664 | N29: 669.6598145 | O29: 9264.7 | P29: 10918.8 | Q29: 8730.4 | R29: 558.914289 | S29: 558.2805681 | T29: 558.8628885 | U29: 7.511875911 | V29: 7.720916645 | W29: 7.32321755 | X29: =+(R30-R29)/R29 -> -0.009311175559 | Y29: =+C29+F29+H29 -> 8619.385267 | Z29: =+(T30-T29)/T29 -> 0.01097057414 | AB29: 2019 | AC29: 10324.6 | AD29: 1722.368117 | AE29: 10918.8 | AF29: 558.914289
B30: 2019-11-01 | C30: 8472.7 | D30: 10512.7 | E30: 7763.3 | F30: 6.520703102 | G30: 9.042683822 | H30: 3.402666009 | I30: 6.665391137 | J30: 9.187371858 | K30: 3.547354044 | L30: 1732.499461 | M30: 1253.144892 | N30: 660.4974888 | O30: 9343.7 | P30: 11020.4 | Q30: 8802.1 | R30: 553.7101399 | S30: 538.8212003 | T30: 564.9939353 | U30: 7.434754161 | V30: 7.656985031 | W30: 7.233257604 | X30: =+(R31-R30)/R30 -> 0.0248810465 | Y30: 0.03481261321 | Z30: 0.01807743975 | AB30: 2019 | AC30: 10512.7 | AD30: 1732.499461 | AE30: 11020.4 | AF30: 553.7101399
B31: 2019-12-01 | C31: 8429.6 | D31: 10706.4 | E31: 7727.2 | F31: 6.425647426 | G31: 9.112722795 | H31: 3.362363358 | I31: 6.570335461 | J31: 9.25741083 | K31: 3.507051394 | L31: 1745.811816 | M31: 1235.077596 | N31: 652.837137 | O31: 9291.7 | P31: 10953.6 | Q31: 8754.9 | R31: 567.4870277 | S31: 557.5789743 | T31: 575.2075791 | U31: 7.360613876 | V31: 7.59544052 | W31: 7.146863988 | X31: -0.01122148131 | Y31: -0.00714525332 | Z31: -0.01322547135 | AB31: 2019 | AC31: 10706.4 | AD31: 1745.811816 | AE31: 10953.6 | AF31: 567.4870277
B32: 2020-01-01 | C32: 8298.4 | D32: 10905.9 | E32: 7617 | F32: 6.34713985 | G32: 9.198450367 | H32: 3.306723247 | I32: 6.491827886 | J32: 9.343138403 | K32: 3.451411283 | L32: 1762.106113 | M32: 1220.155609 | N32: 642.2615837 | O32: 9242.3 | P32: 11222 | Q32: 7790.1 | R32: 561.1189826 | S32: 553.5949313 | T32: 567.6001877 | U32: 7.284512369 | V32: 7.532180146 | W32: 7.058277127 | X32: -0.002610465471 | Y32: -0.01657345435 | Z32: 0.008876528317 | AB32: 2020 | AC32: 10905.9 | AD32: 1762.106113 | AE32: 11222 | AF32: 561.1189826
B33: 2020-02-01 | C33: 8321.6 | D33: 11111.4 | E33: 7510.2 | F33: 6.283486678 | G33: 9.241261528 | H33: 3.257833221 | I33: 6.428174713 | J33: 9.385949564 | K33: 3.402521257 | L33: 1770.243259 | M33: 1208.057007 | N33: 632.9690236 | O33: 9297.6 | P33: 11296.3 | Q33: 7831.4 | R33: 559.6542008 | S33: 544.419951 | T33: 572.6385069 | U33: 7.208929347 | V33: 7.469260894 | W33: 6.970388062 | X33: 0.02623675602 | Y33: 0.07192718335 | Z33: -0.007114223412 | AB33: 2020 | AC33: 11111.4 | AD33: 1770.243259 | AE33: 11296.3 | AF33: 559.6542008
B34: 2020-03-01 | C34: 8449.6 | D34: 11323.1 | E34: 7406.6 | F34: 6.233302914 | G34: 9.184630137 | H34: 3.214962597 | I34: 6.377990949 | J34: 9.329318172 | K34: 3.359650633 | L34: 1759.479292 | M34: 1198.518546 | N34: 624.8205753 | O34: 9426.8 | P34: 11469.8 | Q34: 7928.1 | R34: 574.3377116 | S34: 583.5785446 | T34: 568.5646286 | U34: 7.138692036 | V34: 7.41070977 | W34: 6.88880098 | X34: -0.02425866854 | Y34: -0.04246987689 | Z34: -0.01084611236 | AB34: 2020 | AC34: 11323.1 | AD34: 1759.479292 | AE34: 11469.8 | AF34: 574.3377116
B35: 2020-04-01 | C35: 8581.4 | D35: 11541.1 | E35: 7306 | F35: 6.195448386 | G35: 9.192221151 | H35: 3.177500687 | I35: 6.340136422 | J35: 9.336909187 | K35: 3.322188723 | L35: 1760.922122 | M35: 1191.32351 | N35: 617.7001649 | O35: 9445.5 | P35: 11495 | Q35: 7942.1 | R35: 560.4050434 | S35: 558.7940357 | T35: 562.3979127 | U35: 7.064112532 | V35: 7.348450755 | W35: 6.80226249 | X35: 0.007465997565 | Y35: 0.02570364397 | Z35: -0.007440338943 | AB35: 2020 | AC35: 11541.1 | AD35: 1760.922122 | AE35: 11495 | AF35: 560.4050434
B36: 2020-05-01 | C36: 8576.9 | D36: 11648.1 | E36: 7208.5 | F36: 6.168980019 | G36: 9.21418743 | H36: 3.144933062 | I36: 6.313668055 | J36: 9.358875466 | K36: 3.289621097 | L36: 1765.097267 | M36: 1186.29265 | N36: 611.5100145 | O36: 9442.1 | P36: 11490.4 | Q36: 7939.6 | R36: 564.5890261 | S36: 573.1570786 | T36: 558.2134817 | U36: 6.992432484 | V36: 7.288524889 | W36: 6.71917996 | X36: -0.01990612683 | Y36: -0.03709871988 | Z36: -0.006614136098 | AB36: 2020 | AC36: 11648.1 | AD36: 1765.097267 | AE36: 11490.4 | AF36: 564.5890261
B37: 2020-06-01 | C37: 8614.9 | D37: 11712 | E37: 7113.9 | F37: 6.153115576 | G37: 9.249802817 | H37: 3.116823453 | I37: 6.297803612 | J37: 9.394490852 | K37: 3.261511488 | L37: 1771.866708 | M37: 1183.277285 | N37: 606.1672023 | O37: 9357.7 | P37: 11377 | Q37: 7876.4 | R37: 553.3502453 | S37: 551.8936847 | T37: 554.5213817 | U37: 6.918873223 | V37: 7.226937115 | W37: 6.634014554 | X37: 0.03026645465 | Y37: 0.049190116 | Z37: 0.01605725341 | AB37: 2020 | AC37: 11712 | AD37: 1771.866708 | AE37: 11377 | AF37: 553.3502453
B38: 2020-07-01 | C38: 8641.9 | D38: 11757.4 | E38: 7022.2 | F38: 6.147205726 | G38: 9.47764053 | H38: 3.092799748 | I38: 6.291893761 | J38: 9.622328565 | K38: 3.237487784 | L38: 1815.171975 | M38: 1182.153995 | N38: 601.6010006 | O38: 9351.6 | P38: 11368.7 | Q38: 7871.8 | R38: 570.0981954 | S38: 579.0413991 | T38: 563.4254721 | U38: 6.848180508 | V38: 7.167660837 | W38: 6.552260816 | X38: 0.004554445159 | Y38: 0.0193154297 | Z38: -0.006234416676 | AB38: 2020 | AC38: 11757.4 | AD38: 1815.171975 | AE38: 11368.7 | AF38: 570.0981954
B39: 2020-08-01 | C39: 8621.6 | D39: 11723.2 | E39: 6933.2 | F39: 6.150712246 | G39: 9.494834065 | H39: 3.07254301 | I39: 6.295400282 | J39: 9.6395221 | K39: 3.217231046 | L39: 1818.439961 | M39: 1182.820482 | N39: 597.7507888 | O39: 9383.4 | P39: 11411.5 | Q39: 7895.6 | R39: 572.6946764 | S39: 590.2258325 | T39: 559.9128429 | U39: 6.77564149 | V39: 7.106744303 | W39: 6.468468494 | X39: -0.01498461659 | Y39: -0.03671223397 | Z39: 0.00156968009 | AB39: 2020 | AC39: 11723.2 | AD39: 1818.439961 | AE39: 11411.5 | AF39: 572.6946764
B40: 2020-09-01 | C40: 8484.6 | D40: 11493.2 | E40: 6846.9 | F40: 6.163190838 | G40: 9.524389394 | H40: 3.055778765 | I40: 6.307878873 | J40: 9.66907743 | K40: 3.2004668 | L40: 1824.057563 | M40: 1185.192296 | N40: 594.5643975 | O40: 9410.3 | P40: 11447.6 | Q40: 7915.7 | R40: 564.1130663 | S40: 568.5573236 | T40: 560.7917269 | U40: 6.703620956 | V40: 7.046168892 | W40: 6.38537397 | X40: 0.008390613429 | Y40: 0.01747506434 | Z40: 0.0005513178567 | AB40: 2020 | AC40: 11493.2 | AD40: 1824.057563 | AE40: 11447.6 | AF40: 564.1130663
B41: 2020-10-01 | C41: 8351.7 | D41: 11270 | E41: 6763.1 | F41: 6.184277442 | G41: 9.565859391 | H41: 3.042270022 | I41: 6.328965478 | J41: 9.710547426 | K41: 3.186958058 | L41: 1831.939793 | M41: 1189.200241 | N41: 591.9967817 | O41: 9398.9 | P41: 11432.3 | Q41: 7907.2 | R41: 568.8463209 | S41: 578.4928994 | T41: 561.1009014 | U41: 6.634417332 | V41: 6.98787232 | W41: 6.305624309 | X41: -0.01262422977 | Y41: -0.03859050722 | Z41: 0.00836278953 | AB41: 2020 | AC41: 11270 | AD41: 1831.939793 | AE41: 11432.3 | AF41: 568.8463209
B42: 2020-11-01 | C42: 8226.6 | D42: 11059.9 | E42: 6681.9 | F42: 6.213677271 | G42: 9.61888958 | H42: 3.031811625 | I42: 6.358365306 | J42: 9.763577616 | K42: 3.176499661 | L42: 1842.019276 | M42: 1194.788287 | N42: 590.0089471 | O42: 9402.6 | P42: 11437.3 | Q42: 7910 | R42: 561.6650743 | S42: 556.168565 | T42: 565.7932702 | U42: 6.563417042 | V42: 6.92796815 | W42: 6.223902869 | X42: 0.0286673898 | Y42: 0.03941096175 | Z42: 0.02118971353 | AB42: 2020 | AC42: 11059.9 | AD42: 1842.019276 | AE42: 11437.3 | AF42: 561.6650743
B43: 2020-12-01 | C43: 8101.5 | D43: 10849.8 | E43: 6603.1 | F43: 6.25115594 | G43: 9.683206597 | H43: 3.024225641 | I43: 6.395843975 | J43: 9.827894632 | K43: 3.168913677 | L43: 1854.244055 | M43: 1201.911882 | N43: 588.5670741 | O43: 9322.4 | P43: 11329.6 | Q43: 7850 | R43: 577.7665459 | S43: 578.0877031 | T43: 577.7822675 | U43: 6.49520075 | V43: 6.870321166 | W43: 6.145482 | X43: -0.02462174299 | Y43: 0.006456373912 | Z43: -0.0473457516 | AB43: 2020 | AC43: 10849.8 | AD43: 1854.244055 | AE43: 11329.6 | AF43: 577.7665459
B44: 2021-01-01 | C44: 8094.1 | D44: 11053.6 | E44: 6526.7 | F44: 6.297285953 | G44: 9.751040818 | H44: 3.028605713 | I44: 6.441973988 | J44: 9.895728854 | K44: 3.173293749 | L44: 1867.137351 | M44: 1210.679845 | N44: 589.3995972 | O44: 9334.1 | P44: 11951.9 | Q44: 7821.8 | R44: 563.5409265 | S44: 581.8200534 | T44: 550.4267318 | U44: 6.425220703 | V44: 6.811088236 | W44: 6.065133643 | X44: 0.007613011684 | Y44: -0.0431065793 | Z44: 0.04997878187 | AB44: 2021 | AC44: 11053.6 | AD44: 1867.137351 | AE44: 11951.9 | AF44: 563.5409265
B45: 2021-02-01 | C45: 8113.8 | D45: 11263.5 | E45: 6452.6 | F45: 6.343759165 | G45: 9.819409981 | H45: 3.032920067 | I45: 6.488447201 | J45: 9.964098017 | K45: 3.177608102 | L45: 1880.132324 | M45: 1219.51304 | N45: 590.2196294 | O45: 9345.8 | P45: 11968.8 | Q45: 7830.5 | R45: 567.8311701 | S45: 556.7397812 | T45: 577.9363893 | U45: 6.35575914 | V45: 6.752196428 | W45: 5.985483084 | X45: 0.03518931334 | Y45: 0.1048434984 | Z45: -0.01588804843 | AB45: 2021 | AC45: 11263.5 | AD45: 1880.132324 | AE45: 11968.8 | AF45: 567.8311701
B46: 2021-03-01 | C46: 8133.5 | D46: 11344.7 | E46: 6431.3 | F46: 6.39057813 | G46: 9.888318291 | H46: 3.037167483 | I46: 6.535266166 | J46: 10.03300633 | K46: 3.181855518 | L46: 1893.229772 | M46: 1228.411952 | N46: 591.0269385 | O46: 9357.5 | P46: 11985.8 | Q46: 7839.2 | R46: 587.8127591 | S46: 615.1103275 | T46: 568.754108 | U46: 6.293465313 | V46: 6.69929703 | W46: 5.914140415 | X46: -0.03249447179 | Y46: -0.05532642807 | Z46: -0.01480254476 | AB46: 2021 | AC46: 11344.7 | AD46: 1893.229772 | AE46: 11985.8 | AF46: 587.8127591
B47: 2021-04-01 | C47: 8153.4 | D47: 11380.2 | E47: 6442.9 | F47: 6.437745421 | G47: 9.957769986 | H47: 3.041346725 | I47: 6.582433456 | J47: 10.10245802 | K47: 3.186034761 | L47: 1906.430503 | M47: 1237.37707 | N47: 591.82129 | O47: 9369.3 | P47: 12002.8 | Q47: 7847.9 | R47: 568.712094 | S47: 581.0784702 | T47: 560.3350999 | U47: 6.224990543 | V47: 6.641054455 | W47: 5.835817921 | X47: 0.00924833401 | Y47: 0.02670882628 | Z47: -0.00574086876 | AB47: 2021 | AC47: 11380.2 | AD47: 1906.430503 | AE47: 12002.8 | AF47: 568.712094
B48: 2021-05-01 | C48: 8173.3 | D48: 11415.9 | E48: 6454.5 | F48: 6.485263628 | G48: 10.02776934 | H48: 3.045456546 | I48: 6.629951663 | J48: 10.17245737 | K48: 3.190144581 | L48: 1919.735326 | M48: 1246.408888 | N48: 592.6024463 | O48: 9381.1 | P48: 12019.8 | Q48: 7856.7 | R48: 573.9717334 | S48: 596.5983942 | T48: 557.1182896 | U48: 6.159218302 | V48: 6.585015467 | W48: 5.760686354 | X48: -0.01693314506 | Y48: -0.03404110996 | Z48: -0.003256060991 | AB48: 2021 | AC48: 11415.9 | AD48: 1919.735326 | AE48: 12019.8 | AF48: 573.9717334
B49: 2021-06-01 | C49: 8193.4 | D49: 11451.7 | E49: 6466.2 | F49: 6.533135362 | G49: 10.09832065 | H49: 3.049495679 | I49: 6.677823398 | J49: 10.24300868 | K49: 3.194183714 | L49: 1933.145061 | M49: 1255.507901 | N49: 593.3701671 | O49: 9392.9 | P49: 12036.9 | Q49: 7865.4 | R49: 564.2525868 | S49: 576.2895226 | T49: 555.3042785 | U49: 6.091763776 | V49: 6.527444133 | W49: 5.683736945 | X49: 0.007941295978 | Y49: 0.02609773909 | Z49: -0.007085163631 | AB49: 2021 | AC49: 11451.7 | AD49: 1933.145061 | AE49: 12036.9 | AF49: 564.2525868
B50: 2021-07-01 | C50: 8213.5 | D50: 11487.7 | E50: 6477.9 | F50: 6.581363254 | G50: 10.16942826 | H50: 3.053462846 | I50: 6.72605129 | J50: 10.31411629 | K50: 3.198150882 | L50: 1946.660533 | M50: 1264.674608 | N50: 594.1242093 | O50: 9404.7 | P50: 12054 | Q50: 7874.2 | R50: 568.7334836 | S50: 591.3293762 | T50: 551.3698568 | U50: 6.026978868 | V50: 6.472054733 | W50: 5.609934169 | X50: 0.0190922824 | Y50: 0.0377647887 | Z50: 0.005306993253 | AB50: 2021 | AC50: 11487.7 | AD50: 1946.660533 | AE50: 12054 | AF50: 568.7334836
B51: 2021-08-01 | C51: 8233.8 | D51: 11523.9 | E51: 6489.7 | F51: 6.629949953 | G51: 10.24109654 | H51: 3.057356753 | I51: 6.774637989 | J51: 10.38578458 | K51: 3.202044789 | L51: 1960.282571 | M51: 1273.909515 | N51: 594.8643268 | O51: 9416.5 | P51: 12071.2 | Q51: 7883 | R51: 579.5919039 | S51: 613.6608052 | T51: 554.2959729 | U51: 5.960544584 | V51: 6.41515464 | W51: 5.534357844 | X51: -0.01903820391 | Y51: -0.03423804399 | Z51: -0.006996186455 | AB51: 2021 | AC51: 11523.9 | AD51: 1960.282571 | AE51: 12071.2 | AF51: 579.5919039
B52: 2021-09-01 | C52: 8254.1 | D52: 11560.3 | E52: 6501.6 | F52: 6.678898129 | G52: 10.3133299 | H52: 3.06117609 | I52: 6.823586165 | J52: 10.45801794 | K52: 3.205864125 | L52: 1974.012014 | M52: 1283.213128 | N52: 595.5902707 | O52: 9428.4 | P52: 12088.3 | Q52: 7891.8 | R52: 568.557515 | S52: 592.6502595 | T52: 550.4180149 | U52: 5.894628785 | V52: 6.358595669 | W52: 5.459479315 | X52: 0.02632991798 | Y52: 0.001240858456 | Z52: 0.04607858903 | AB52: 2021 | AC52: 11560.3 | AD52: 1974.012014 | AE52: 12088.3 | AF52: 568.557515
B53: 2021-10-01 | C53: 8274.6 | D53: 11596.8 | E53: 6513.5 | F53: 6.728210471 | G53: 10.38613278 | H53: 3.064919531 | I53: 6.872898507 | J53: 10.53082082 | K53: 3.209607567 | L53: 1987.849706 | M53: 1292.585957 | N53: 596.3017891 | O53: 9440.3 | P53: 12105.5 | Q53: 7900.6 | R53: 583.5275877 | S53: 593.3856546 | T53: 575.7805004 | U53: 5.831332969 | V53: 6.304185975 | W53: 5.387680618 | X53: -0.002107658852 | Y53: -0.02338492325 | Z53: 0.01529652365 | AB53: 2021 | AC53: 11596.8 | AD53: 1987.849706 | AE53: 12105.5 | AF53: 583.5275877
B54: 2021-11-01 | C54: 8295.1 | D54: 11633.5 | E54: 6525.5 | F54: 6.777889689 | G54: 10.45950965 | H54: 3.068585737 | I54: 6.922577724 | J54: 10.60419769 | K54: 3.213273773 | L54: 2001.796498 | M54: 1302.02852 | N54: 596.9986272 | O54: 9452.2 | P54: 12122.8 | Q54: 7909.5 | R54: 582.2977107 | S54: 579.5093766 | T54: 584.5879405 | U54: 5.766437413 | V54: 6.248298244 | W54: 5.314175173 | X54: 0.03043737783 | Y54: 0.04360291851 | Z54: 0.02165665471 | AB54: 2021 | AC54: 11633.5 | AD54: 2001.796498 | AE54: 12122.8 | AF54: 582.2977107
B55: 2021-12-01 | C55: 8315.8 | D55: 11670.4 | E55: 6537.5 | F55: 6.827938511 | G55: 10.53346504 | H55: 3.07217335 | I55: 6.972626547 | J55: 10.67815307 | K55: 3.216861386 | L55: 2015.853248 | M55: 1311.541333 | N55: 597.6805273 | O55: 9464.2 | P55: 12140.1 | Q55: 7918.3 | R55: 600.0213261 | S55: 604.7776767 | T55: 597.2481596 | U55: 5.704128928 | V55: 6.194538138 | W55: 5.243705268 | X55: -0.01465806701 | Y55: -0.005370705748 | Z55: -0.0205561398 | AB55: 2021 | AC55: 11670.4 | AD55: 2015.853248 | AE55: 12140.1 | AF55: 600.0213261
B56: 2022-01-01 | C56: 8336.5 | D56: 11898.9 | E56: 6554.7 | F56: 6.882923903 | G56: 10.59541587 | H56: 3.086787183 | I56: 7.027611939 | J56: 10.74010391 | K56: 3.231475219 | L56: 2027.628284 | M56: 1321.992443 | N56: 600.4581884 | O56: 9476.1 | P56: 12674.7 | Q56: 7943.4 | R56: 591.2261733 | S56: 601.5295938 | T56: 584.971043 | U56: 5.640253616 | V56: 6.139321649 | W56: 5.171572907 | X56: 0.005299379671 | Y56: -0.04931245014 | Z56: 0.04939653252 | AB56: 2022 | AC56: 11898.9 | AD56: 2027.628284 | AE56: 12674.7 | AF56: 591.2261733
B57: 2022-02-01 | C57: 8351.1 | D57: 12134.2 | E57: 6563.2 | F57: 6.938355408 | G57: 10.65775181 | H57: 3.101479332 | I57: 7.083043443 | J57: 10.80243984 | K57: 3.246167367 | L57: 2039.476517 | M57: 1332.528347 | N57: 603.2507348 | O57: 9488.1 | P57: 12693.1 | Q57: 7952.3 | R57: 594.3593052 | S57: 571.8666957 | T57: 613.8665841 | U57: 5.576896788 | V57: 6.084446281 | W57: 5.100138344 | X57: 0.04626773008 | Y57: 0.1078501396 | Z57: 0.003382537494 | AB57: 2022 | AC57: 12134.2 | AD57: 2039.476517 | AE57: 12693.1 | AF57: 594.3593052
B58: 2022-03-01 | C58: 8365.7 | D58: 12329.4 | E58: 6571.8 | F58: 6.994236644 | G58: 10.72047501 | H58: 3.116250104 | I58: 7.13892468 | J58: 10.86516304 | K58: 3.260938139 | L58: 2051.398358 | M58: 1343.149731 | N58: 606.0582254 | O58: 9500.1 | P58: 12711.5 | Q58: 7961.3 | R58: 621.8589611 | S58: 633.5425987 | T58: 615.9430108 | U58: 5.520116914 | V58: 6.035174636 | W58: 5.036216574 | X58: -0.03890236595 | Y58: -0.06241467457 | Z58: -0.02225004998 | AB58: 2022 | AC58: 12329.4 | AD58: 2051.398358 | AE58: 12711.5 | AF58: 621.8589611
B59: 2022-04-01 | C59: 8380.3 | D59: 12357.6 | E59: 6580.3 | F59: 7.050571262 | G59: 10.78358766 | H59: 3.131099808 | I59: 7.195259298 | J59: 10.92827569 | K59: 3.275787844 | L59: 2063.394222 | M59: 1353.857289 | N59: 608.8807187 | O59: 9512.2 | P59: 12730 | Q59: 7970.2 | R59: 597.6671763 | S59: 594.0002435 | T59: 602.2382481 | U59: 5.457746878 | V59: 5.980948501 | W59: 4.966110076 | X59: 0.004033919546 | Y59: 0.03469738918 | Z59: -0.02012808352 | AB59: 2022 | AC59: 12357.6 | AD59: 2063.394222 | AE59: 12730 | AF59: 597.6671763
B60: 2022-05-01 | C60: 8395 | D60: 12385.8 | E60: 6588.9 | F60: 7.107362939 | G60: 10.84709195 | H60: 3.146028754 | I60: 7.252050975 | J60: 10.99177998 | K60: 3.290716789 | L60: 2075.464525 | M60: 1364.651722 | N60: 611.7182734 | O60: 9524.2 | P60: 12748.5 | Q60: 7979.2 | R60: 600.0781176 | S60: 614.6105012 | T60: 590.1163463 | U60: 5.397882445 | V60: 5.928796391 | W60: 4.898929473 | X60: -0.008557846554 | Y60: -0.03026881332 | Z60: 0.008818445576 | AB60: 2022 | AC60: 12385.8 | AD60: 2075.464525 | AE60: 12748.5 | AF60: 600.0781176
B61: 2022-06-01 | C61: 8409.8 | D61: 12414.2 | E61: 6597.5 | F61: 7.164615384 | G61: 10.91099008 | H61: 3.161037249 | I61: 7.30930342 | J61: 11.05567812 | K61: 3.305725284 | L61: 2087.609686 | M61: 1375.533732 | N61: 614.5709481 | O61: 9536.3 | P61: 12767 | Q61: 7988.2 | R61: 594.9427411 | S61: 596.0069706 | T61: 595.3202552 | U61: 5.336532653 | V61: 5.875241497 | W61: 4.830196059 | X61: 0.0160751007 | Y61: 0.02855252509 | Z61: 0.006740353151 | AB61: 2022 | AC61: 12414.2 | AD61: 2087.609686 | AE61: 12767 | AF61: 594.9427411
B62: 2022-07-01 | C62: 8424.6 | D62: 12442.6 | E62: 6606.2 | F62: 7.222332335 | G62: 10.97528426 | H62: 3.176125601 | I62: 7.367020371 | J62: 11.1199723 | K62: 3.320813636 | L62: 2099.830125 | M62: 1386.504032 | N62: 617.4388014 | O62: 9548.4 | P62: 12785.6 | Q62: 7997.2 | R62: 604.5065056 | S62: 613.0244746 | T62: 599.332924 | U62: 5.277655553 | V62: 5.823738975 | W62: 4.764344247 | X62: 0.03109273052 | Y62: 0.04560301235 | Z62: 0.02157527249 | AB62: 2022 | AC62: 12442.6 | AD62: 2099.830125 | AE62: 12785.6 | AF62: 604.5065056
B63: 2022-08-01 | C63: 8439.5 | D63: 12471.1 | E63: 6614.9 | F63: 7.280517561 | G63: 11.03997672 | H63: 3.191294119 | I63: 7.425205596 | J63: 11.18466475 | K63: 3.335982154 | L63: 2112.126263 | M63: 1397.563337 | N63: 620.3218917 | O63: 9560.6 | P63: 12804.2 | Q63: 8006.3 | R63: 623.3022635 | S63: 640.9802373 | T63: 612.2636951 | U63: 5.217326004 | V63: 5.770855322 | W63: 4.696983917 | X63: -0.02665820711 | Y63: -0.04973328784 | Z63: -0.01007976159 | AB63: 2022 | AC63: 12471.1 | AD63: 2112.126263 | AE63: 12804.2 | AF63: 623.3022635
B64: 2022-09-01 | C64: 8454.4 | D64: 12499.8 | E64: 6623.6 | F64: 7.33917486 | G64: 11.10506967 | H64: 3.206543109 | I64: 7.483862896 | J64: 11.24975771 | K64: 3.351231145 | L64: 2124.498525 | M64: 1408.712369 | N64: 623.2202776 | O64: 9572.7 | P64: 12822.8 | Q64: 8015.3 | R64: 606.6861426 | S64: 609.1021827 | T64: 606.092223 | U64: 5.157514939 | V64: 5.718312791 | W64: 4.630321384 | X64: 0.01409304104 | Y64: 0.01016562462 | Z64: 0.01630108783 | AB64: 2022 | AC64: 12499.8 | AD64: 2124.498525 | AE64: 12822.8 | AF64: 606.6861426
B65: 2022-10-01 | C65: 8469.4 | D65: 12528.5 | E65: 6632.3 | F65: 7.398308064 | G65: 11.17056537 | H65: 3.22187288 | I65: 7.5429961 | J65: 11.31525341 | K65: 3.366560915 | L65: 2136.947336 | M65: 1419.951857 | N65: 626.1340174 | O65: 9584.9 | P65: 12841.5 | Q65: 8024.4 | R65: 615.2361953 | S65: 615.2940868 | T65: 615.9721856 | U65: 5.10012693 | V65: 5.667789975 | W65: 4.566473651 | X65: -0.004507718596 | Y65: -0.02282997315 | Z65: 0.009760218775 | AB65: 2022 | AC65: 12528.5 | AD65: 2136.947336 | AE65: 12841.5 | AF65: 615.2361953
B66: 2022-11-01 | C66: 8484.4 | D66: 12557.3 | E66: 6641.1 | F66: 7.457921033 | G66: 11.23646606 | H66: 3.237283738 | I66: 7.602609069 | J66: 11.3811541 | K66: 3.381971774 | L66: 2149.473125 | M66: 1431.282534 | N66: 629.0631696 | O66: 9597.1 | P66: 12860.2 | Q66: 8033.5 | R66: 612.4628837 | S66: 601.2469393 | T66: 621.9842089 | U66: 5.041336109 | V66: 5.615918685 | W66: 4.501184202 | X66: 0.0268529779 | Y66: 0.03826633365 | Z66: 0.01961010409 | AB66: 2022 | AC66: 12557.3 | AD66: 2149.473125 | AE66: 12860.2 | AF66: 612.4628837
B67: 2022-12-01 | C67: 8499.4 | D67: 12586.2 | E67: 6649.9 | F67: 7.51801766 | G67: 11.30277401 | H67: 3.25277599 | I67: 7.662705695 | J67: 11.44746204 | K67: 3.397464026 | L67: 2162.07632 | M67: 1442.70514 | N67: 632.0077923 | O67: 9609.4 | P67: 12879 | Q67: 8042.6 | R67: 628.909336 | S67: 624.2544553 | T67: 634.181384 | U67: 4.984935432 | V67: 5.566045456 | W67: 4.43866526 | X67: =+(R68-R67)/R67 -> 0.004202556187 | Y67: 0.003767093311 | Z67: 0.005214209753 | AB67: 2022 | AC67: 12586.2 | AD67: 2162.07632 | AE67: 12879 | AF67: 628.909336
B68: 2023-01-01 | C68: 8514.6 | D68: 12842.1 | E68: 6604.7 | F68: 7.622831713 | G68: 11.432313 | H68: 3.299674774 | I68: 7.767519749 | J68: 11.57700104 | K68: 3.444362809 | L68: 2186.697884 | M68: 1462.627218 | N68: 640.9218756 | O68: 9621.6 | P68: 13148.6 | Q68: 7985.7 | R68: =+R67*(1+AVERAGE(X55:X66)) -> 631.5523628 | S68: =+S67*(1+AVERAGE(Y55:Y66)) -> 626.6060801 | T68: 637.4881387 | U68: 4.927164853 | V68: 5.514845407 | W68: 4.374748895 | X68: 0.005774274786 | Y68: 0.004528576566 | Z68: 0.007361738882 | AB68: 2023 | AC68: 12842.1 | AD68: 2186.697884 | AE68: 13148.6 | AF68: 631.5523628
B69: 2023-02-01 | C69: 8538.5 | D69: 12974 | E69: 6618.4 | F69: 7.729116985 | G69: 11.56348079 | H69: 3.347379204 | I69: 7.87380502 | J69: 11.70816882 | K69: 3.492067239 | L69: 2211.629033 | M69: 1482.828931 | N69: 649.9890886 | O69: 9633.9 | P69: 13167.9 | Q69: 7994.7 | R69: =+R68*(1+AVERAGE(X56:X67)) -> 635.1991197 | S69: 629.4437137 | T69: 642.1811599 | U69: 4.86991276 | V69: 5.46398648 | W69: 4.311530328 | X69: 0.005813849379 | Y69: 0.009015328791 | Z69: 0.003858839413 | AB69: 2023 | AC69: 12974 | AD69: 2211.629033 | AE69: 13167.9 | AF69: 635.1991197
B70: 2023-03-01 | C70: 8562.6 | D70: 13021.9 | E70: 6632.2 | F70: 7.836894125 | G70: 11.69629757 | H70: 3.395902657 | I70: 7.98158216 | J70: 11.8409856 | K70: 3.540590693 | L70: 2236.873607 | M70: 1503.314204 | N70: 659.211974 | O70: 9646.2 | P70: 13187.2 | Q70: 8003.8 | R70: 638.8920717 | S70: 635.1183557 | T70: 644.6592339 | U70: 4.81864684 | V70: 5.418342587 | W70: 4.255029457 | X70: 0.002442692654 | Y70: 0.0007790945552 | Z70: 0.003898531239 | AB70: 2023 | AC70: 13021.9 | AD70: 2236.873607 | AE70: 13187.2 | AF70: 638.8920717
B71: 2023-04-01 | C71: 8586.9 | D71: 13070.2 | E71: 6646 | F71: 7.946184074 | G71: 11.83078379 | H71: 3.445258727 | I71: 8.090872109 | J71: 11.97547182 | K71: 3.589946763 | L71: 2262.435493 | M71: 1524.087018 | N71: 668.5931153 | O71: 9658.5 | P71: 13206.7 | Q71: 8012.8 | R71: 640.4526887 | S71: 635.613173 | T71: 647.1724581 | U71: 4.762381538 | V71: 5.368132893 | W71: 4.193138955 | X71: 0.005888114205 | Y71: 0.006045241983 | Z71: 0.006077579674 | AB71: 2023 | AC71: 13070.2 | AD71: 2262.435493 | AE71: 13206.7 | AF71: 640.4526887
B72: 2023-05-01 | C72: 8611.3 | D72: 13118.6 | E72: 6660 | F72: 8.057008066 | G72: 11.96696014 | H72: 3.495461228 | I72: 8.201696101 | J72: 12.11164818 | K72: 3.640149263 | L72: 2288.318625 | M72: 1545.151408 | N72: 678.1351383 | O72: 9670.9 | P72: 13226.1 | Q72: 8021.9 | R72: 644.2237472 | S72: 639.4556084 | T72: 651.1057002 | U72: 4.708424913 | V72: 5.31986766 | W72: 4.133909315 | X72: 0.006042630426 | Y72: 0.00365756305 | Z72: 0.008261384941 | AB72: =YEAR(B72) -> 2023 | AC72: =AVERAGEIF($C$7:$E$7,"*"&$AC$3&"*",$C72:$E72) -> 13118.6 | AD72: =AVERAGEIF($L$7:$N$7,"*"&$AC$3&"*",$L72:$N72) -> 2288.318625 | AE72: =AVERAGEIF($O$7:$Q$7,"*"&$AC$3&"*",$O72:$Q72) -> 13226.1 | AF72: 644.2237472
B73: 2023-06-01 | C73: 8635.8 | D73: 13167.4 | E73: 6674 | F73: 8.169387634 | G73: 12.10484759 | H73: 3.546524196 | I73: 8.314075669 | J73: 12.24953563 | K73: 3.691212232 | L73: =+((AVERAGE(G73,J73)*(3000))/1000000)*1100*(1/0.0283)*1.63 -> 2314.526985 | M73: =+((AVERAGE(F73,I73)*(3000))/1000000)*1100*(1/0.0283)*1.63 -> 1566.511468 | N73: =+((AVERAGE(H73,K73)*(3000))/1000000)*1100*(1/0.0283)*1.63 -> 687.840711 | O73: 9683.3 | P73: 13245.6 | Q73: 8031 | R73: 648.1165533 | S73: 641.7944576 | T73: 656.4847351 | U73: =0.0000002697629*B73^2-0.02609448*B73+632.7749 -> 4.653179855 | V73: =0.000000177483*B73^2-0.01759367*B73+437.7077 -> 5.270329207 | W73: =0.0000003630577*B73^2-0.03467275*B73+829.3089 -> 4.073391897 | X73: 0.007259336841 | Y73: 0.00648476108 | Z73: 0.008214963221 | AB73: 2023 | AC73: 13167.4 | AD73: 2314.526985 | AE73: 13245.6 | AF73: =AVERAGEIF($R$7:$T$7,"*"&$AD$3&"*",$R73:$T73) -> 648.1165533
B74: 2023-07-01 | C74: 8660.4 | D74: 13216.4 | E74: 6688.1 | F74: 8.283344612 | G74: 12.24446734 | H74: 3.598461897 | I74: 8.428032648 | J74: 12.38915537 | K74: 3.743149933 | L74: 2341.064604 | M74: 1588.171348 | N74: 697.7125448 | O74: 9695.7 | P74: 13265.1 | Q74: 8040.1 | R74: 652.8214496 | S74: 645.9563414 | T74: 661.877733 | U74: 4.600210562 | V74: 5.222713562 | W74: 4.015491049 | X74: 0.006524689853 | Y74: 0.004645780746 | Z74: 0.008337847394 | AB74: 2023 | AC74: 13216.4 | AD74: 2341.064604 | AE74: 13265.1 | AF74: 652.8214496
B75: 2023-08-01 | C75: 8685.2 | D75: 13265.7 | E75: 6702.2 | F75: 8.398901143 | G75: 12.38584084 | H75: 3.651288827 | I75: 8.543589178 | J75: 12.53052888 | K75: 3.795976863 | L75: 2367.93556 | M75: 1610.135255 | N75: 707.7533948 | O75: 9708.1 | P75: 13284.7 | Q75: 8049.2 | R75: 657.0809071 | S75: 648.9573129 | T75: 667.3963686 | U75: 4.545985748 | V75: 5.173846349 | W75: 3.956346715 | X75: 0.004477353131 | Y75: 0.001232678113 | Z75: 0.007234728635 | AB75: 2023 | AC75: 13265.7 | AD75: 2367.93556 | AE75: 13284.7 | AF75: 657.0809071
B76: 2023-09-01 | C76: 8710.1 | D76: 13315.2 | E76: 6716.4 | F76: 8.516079677 | G76: 12.52898983 | H76: 3.705019716 | I76: 8.660767713 | J76: 12.67367787 | K76: 3.849707752 | L76: 2395.143985 | M76: 1632.407458 | N76: 717.966061 | O76: 9720.6 | P76: 13304.3 | Q76: 8058.3 | R76: 660.0228904 | S76: 649.7572684 | T76: 672.2248002 | U76: 4.492279418 | V76: 5.125320259 | W76: 3.897900178 | X76: 0.007071983151 | Y76: 0.005479841942 | Z76: 0.008677602821 | AB76: 2023 | AC76: 13315.2 | AD76: 2395.143985 | AE76: 13304.3 | AF76: 660.0228904
B77: 2023-10-01 | C77: 8735.1 | D77: 13365 | E77: 6730.8 | F77: 8.634902983 | G77: 12.275678 | H77: 3.759669533 | I77: 8.779591018 | J77: 12.42036604 | K77: 3.904357569 | L77: 2346.996835 | M77: 1654.992283 | N77: 728.3533883 | O77: 9733 | P77: 13323.9 | Q77: 8067.5 | R77: 664.6905611 | S77: 653.3178355 | T77: 678.0581 | U77: 4.440799216 | V77: 5.07868432 | W77: 3.842003408 | X77: 0.006486894994 | Y77: 0.005089360053 | Z77: 0.008042312403 | AB77: 2023 | AC77: 13365 | AD77: 2346.996835 | AE77: 13323.9 | AF77: 664.6905611
B78: 2023-11-01 | C78: 8760.3 | D78: 13415.1 | E78: 6745.1 | F78: 8.755394146 | G78: 12.41685406 | H78: 3.815253488 | I78: 8.900082182 | J78: 12.5615421 | K78: 3.959941524 | L78: 2373.830264 | M78: 1677.89412 | N78: 738.918268 | O78: 9745.5 | P78: 13343.6 | Q78: 8076.7 | R78: 669.002339 | S78: 656.6428052 | T78: 683.5112551 | U78: 4.388113129 | V78: 5.03082947 | W78: 3.784929955 | X78: 0.007403112793 | Y78: 0.007415971153 | Z78: 0.007899153539 | AB78: 2023 | AC78: 13415.1 | AD78: 2373.830264 | AE78: 13343.6 | AF78: 669.002339
B79: 2023-12-01 | C79: 8785.6 | D79: 13465.4 | E79: 6759.6 | F79: 8.877576579 | G79: 12.55979391 | H79: 3.871787039 | I79: 9.022264614 | J79: 12.70448195 | K79: 4.016475074 | L79: 2400.998937 | M79: 1701.117417 | N79: 749.6636379 | O79: 9758.1 | P79: 13363.3 | Q79: 8085.8 | R79: 673.9550388 | S79: 661.5124493 | T79: 688.9104154 | U79: 4.33762026 | V79: 4.984843119 | W79: 3.730361977 | X79: 0.0057822907 | Y79: 0.004845107612 | Z79: 0.006923240993 | AB79: 2023 | AC79: 13465.4 | AD79: 2400.998937 | AE79: 13363.3 | AF79: 673.9550388
B80: 2024-01-01 | C80: 8811 | D80: 13665.7 | E80: 6678.5 | F80: 8.90246071 | G80: 12.55715916 | H80: 3.903335798 | I80: 9.047148745 | J80: 12.70184719 | K80: 4.048023834 | L80: 2400.498148 | M80: 1705.84716 | N80: 755.6601318 | O80: 9744.8 | P80: 13273.5 | Q80: 7919.4 | R80: 677.8520427 | S80: 664.7175483 | T80: 693.6799082 | U80: 4.285954416 | V80: 4.937659511 | W80: 3.674661608 | X80: 0.005913935243 | Y80: 0.004934942137 | Z80: 0.007065660263 | AB80: 2024 | AC80: 13665.7 | AD80: 2400.498148 | AE80: 13273.5 | AF80: 677.8520427
B81: 2024-02-01 | C81: 8801 | D81: 13645.4 | E81: 6671.9 | F81: 8.927414993 | G81: 12.55441857 | H81: 3.935036908 | I81: 9.072103028 | J81: 12.69910661 | K81: 4.079724944 | L81: 2399.977243 | M81: 1710.590237 | N81: 761.6855831 | O81: 9731.6 | P81: 13252.8 | Q81: 7910 | R81: 681.8608158 | S81: 667.9978909 | T81: 698.5812148 | U81: 4.234807057 | V81: 4.890817024 | W81: 3.619659036 | X81: 0.005925573614 | Y81: 0.004968805935 | Z81: 0.007040987045 | AB81: 2024 | AC81: 13645.4 | AD81: 2399.977243 | AE81: 13252.8 | AF81: 681.8608158
B82: 2024-03-01 | C82: 8790.9 | D82: 13625.2 | E82: 6666.4 | F82: 8.952439625 | G82: 12.55157158 | H82: 3.966890978 | I82: 9.097127661 | J82: 12.69625961 | K82: 4.111579013 | L82: 2399.436113 | M82: 1715.346686 | N82: 767.7401074 | O82: 9718.4 | P82: 13232.2 | Q82: 7900.6 | R82: 685.9012323 | S82: 671.3170428 | T82: 703.4999161 | U82: 4.187428914 | V82: 4.847305454 | W82: 3.568836737 | X82: 0.005934883967 | Y82: 0.004631595697 | Z82: 0.007306166014 | AB82: 2024 | AC82: 13625.2 | AD82: 2399.436113 | AE82: 13232.2 | AF82: 685.9012323
B83: 2024-04-01 | C83: 8781 | D83: 13605 | E83: 6660.9 | F83: 8.977534806 | G83: 12.54861759 | H83: 3.998898617 | I83: 9.122222842 | J83: 12.69330563 | K83: 4.143586652 | L83: 2398.874646 | M83: 1720.116544 | N83: 773.8238209 | O83: 9705.2 | P83: 13211.6 | Q83: 7891.3 | R83: 689.9719765 | S83: 674.4263119 | T83: 708.6398033 | U83: 4.137285073 | V83: 4.801123204 | W83: 3.51518474 | X83: =+(R84-R83)/R83 -> 0.00622589991 | Y83: 0.004952637458 | Z83: 0.007590135579 | AB83: 2024 | AC83: 13605 | AD83: 2398.874646 | AE83: 13211.6 | AF83: 689.9719765
B84: 2024-05-01 | C84: 8771 | D84: 13584.9 | E84: 6655.4 | F84: 9.002700734 | G84: 12.54555603 | H84: 4.031060438 | I84: 9.147388769 | J84: 12.69024407 | K84: 4.175748474 | L84: 2398.292734 | M84: 1724.899849 | N84: 779.9368399 | O84: 9692.1 | P84: 13191.1 | Q84: 7882 | R84: 694.267673 | S84: 677.766501 | T84: 714.0184754 | U84: 4.089252441 | V84: 4.756755498 | W84: 3.463927848 | X84: 0.006254048719 | Y84: 0.004861587081 | Z84: 0.007716181904 | AB84: 2024 | AC84: 13584.9 | AD84: 2398.292734 | AE84: 13191.1 | AF84: 694.267673
B85: 2024-06-01 | C85: 8761 | D85: 13564.8 | E85: 6649.9 | F85: 9.027937608 | G85: 12.54238633 | H85: 4.063377057 | I85: 9.172625644 | J85: 12.68707436 | K85: 4.208065092 | L85: 2397.690266 | M85: 1729.696638 | N85: 786.0792813 | O85: 9678.9 | P85: 13170.6 | Q85: 7872.7 | R85: =+R84*(1+AVERAGE(X72:X83)) -> 698.6096568 | S85: 681.0615218 | T85: 719.5279719 | U85: 4.040128843 | V85: 4.711244489 | W85: 3.411648935 | X85: 0.00627166691 | Y85: 0.004961922417 | Z85: 0.007670748318 | AB85: 2024 | AC85: 13564.8 | AD85: 2397.690266 | AE85: 13170.6 | AF85: 698.6096568
B86: 2024-07-01 | C86: 8751.1 | D86: 13544.7 | E86: 6644.4 | F86: 9.053245629 | G86: 12.53910788 | H86: 4.09584909 | I86: 9.197933664 | J86: 12.68379591 | K86: 4.240537126 | L86: 2397.067129 | M86: 1734.506951 | N86: 792.2512625 | O86: 9665.9 | P86: 13150.1 | Q86: 7863.4 | R86: 702.9911039 | S86: 684.4408963 | T86: 725.0472899 | U86: 3.993083543 | V86: 4.667526371 | W86: 3.361720834 | X86: 0.006189361082 | Y86: 0.004835019195 | Z86: 0.007625397076 | AB86: 2024 | AC86: 13544.7 | AD86: 2397.067129 | AE86: 13150.1 | AF86: 702.9911039
B87: 2024-08-01 | C87: 8741.2 | D87: 13524.7 | E87: 6639 | F87: 9.078624997 | G87: 12.5357201 | H87: 4.128477157 | I87: 9.223313032 | J87: 12.68040814 | K87: 4.273165193 | L87: 2396.423212 | M87: 1739.330824 | N87: 798.4529011 | O87: 9652.8 | P87: 13129.7 | Q87: 7854.1 | R87: 707.3421697 | S87: 687.7501811 | T87: 730.5760633 | U87: 3.944980189 | V87: 4.622686602 | W87: 3.310815005 | X87: 0.006161417018 | Y87: 0.004850789066 | Z87: 0.007566026216 | AB87: 2024 | AC87: 13524.7 | AD87: 2396.423212 | AE87: 13129.7 | AF87: 707.3421697
B88: 2024-09-01 | C88: 8731.3 | D88: 13504.7 | E88: 6633.5 | F88: 9.104075912 | G88: 12.53222241 | H88: 4.16126188 | I88: 9.248763948 | J88: 12.67691045 | K88: 4.305949916 | L88: 2395.758404 | M88: 1744.168297 | N88: 804.6843154 | O88: 9639.8 | P88: 13109.3 | Q88: 7844.9 | R88: 711.7003998 | S88: 691.0863122 | T88: 736.103621 | U88: 3.897395318 | V88: 4.578187956 | W88: 3.260606973 | X88: 0.006301755675 | Y88: 0.005152298312 | Z88: 0.007593634347 | AB88: 2024 | AC88: 13504.7 | AD88: 2395.758404 | AE88: 13109.3 | AF88: 711.7003998
B89: 2024-10-01 | C89: 8721.5 | D89: 13484.8 | E89: 6628.1 | F89: 9.129598578 | G89: 12.52861421 | H89: 4.194203883 | I89: 9.274286613 | J89: 12.67330225 | K89: 4.338891918 | L89: 2395.072591 | M89: 1749.019407 | N89: 810.9456239 | O89: 9626.7 | P89: 13089 | Q89: 7835.7 | R89: 716.1853618 | S89: 694.646995 | T89: 741.6933227 | U89: 3.85183911 | V89: 4.535449544 | W89: 3.212682951 | X89: 0.006237570052 | Y89: 0.00512500301 | Z89: 0.007503303641 | AB89: 2024 | AC89: 13484.8 | AD89: 2395.072591 | AE89: 13089 | AF89: 716.1853618
B90: 2024-11-01 | C90: 8711.6 | D90: 13464.9 | E90: 6622.7 | F90: 9.155193196 | G90: 12.52489491 | H90: 4.227303791 | I90: 9.299881231 | J90: 12.66958294 | K90: 4.371991827 | L90: 2394.36566 | M90: 1753.884193 | N90: 817.2369457 | O90: 9613.8 | P90: 13068.7 | Q90: 7826.5 | R90: 720.6526182 | S90: 698.207063 | T90: 747.2584729 | U90: 3.805274482 | V90: 4.491622139 | W90: 3.163848003 | X90: 0.006216792973 | Y90: 0.005127973256 | Z90: 0.007458386245 | AB90: 2024 | AC90: 13464.9 | AD90: 2394.36566 | AE90: 13068.7 | AF90: 720.6526182
B91: 2024-12-01 | C91: 8701.8 | D91: 13445 | E91: 6617.2 | F91: 9.180859968 | G91: 12.5210639 | H91: 4.260562234 | I91: 9.325548004 | J91: 12.66575194 | K91: 4.405250269 | L91: 2393.637498 | M91: 1758.762694 | N91: 823.5584002 | O91: 9600.8 | P91: 13048.5 | Q91: 7817.3 | R91: 725.1327663 | S91: 701.7874501 | T91: 752.8318153 | U91: 3.760705606 | V91: 4.449533314 | W91: 3.117252772 | X91: 0.006117932988 | Y91: 0.004937306765 | Z91: 0.007421655637 | AB91: 2024 | AC91: 13445 | AD91: 2393.637498 | AE91: 13048.5 | AF91: 725.1327663
B92: 2025-01-01 | C92: 8692 | D92: 13632.9 | E92: 6544.1 | F92: 9.124797173 | G92: 12.4471023 | H92: 4.253763774 | I92: 9.269485208 | J92: 12.59179034 | K92: 4.398451809 | L92: 2379.579567 | M92: 1748.106801 | N92: 822.2662124 | O92: 9594.2 | P92: 13038.2 | Q92: 7725.2 | R92: 729.56908 | S92: 705.25239 | T92: 758.4190737 | U92: 3.715161222 | V92: 4.40637715 | W92: 3.069790908 | X92: 0.006145903179 | Y92: 0.004944990027 | Z92: 0.00746319019 | AB92: 2025 | AC92: 13632.9 | AD92: 2379.579567 | AE92: 13038.2 | AF92: 729.56908
B93: 2025-02-01 | C93: 8687 | D93: 13622.6 | E93: 6541.4 | F93: 9.069078626 | G93: 12.37361885 | H93: 4.246913026 | I93: 9.213766662 | J93: 12.51830688 | K93: 4.391601062 | L93: 2365.612518 | M93: 1737.516339 | N93: 820.9640862 | O93: 9587.7 | P93: 13027.9 | Q93: 7720.7 | R93: 734.0529409 | S93: 708.7398561 | T93: 764.0792995 | U93: 3.670135323 | V93: 4.363562107 | W93: 3.023026841 | X93: 0.006165233841 | Y93: 0.004945827352 | Z93: 0.007496317684 | AB93: 2025 | AC93: 13622.6 | AD93: 2365.612518 | AE93: 13027.9 | AF93: 734.0529409
B94: 2025-03-01 | C94: 8682 | D94: 13612.3 | E94: 6538.7 | F94: 9.013702215 | G94: 12.30061046 | H94: 4.240010889 | I94: 9.158390251 | J94: 12.44529849 | K94: 4.384698925 | L94: 2351.735764 | M94: 1726.990908 | N94: 819.6521924 | O94: 9581.1 | P94: 13017.6 | Q94: 7716.1 | R94: 738.5785489 | S94: 712.245161 | T94: 769.8070807 | U94: 3.629912416 | V94: 4.325183658 | W94: 2.981388101 | X94: 0.006185205526 | Y94: 0.00494391247 | Z94: 0.007534261904 | AB94: 2025 | AC94: 13612.3 | AD94: 2351.735764 | AE94: 13017.6 | AF94: 738.5785489
B95: 2025-04-01 | C95: 8677 | D95: 13602 | E95: 6536.1 | F95: 8.958665839 | G95: 12.22807407 | H95: 4.233058253 | I95: 9.103353874 | J95: 12.3727621 | K95: 4.377746288 | L95: 2337.948724 | M95: 1716.530107 | N95: 818.3307001 | O95: 9574.5 | P95: 13007.3 | Q95: 7711.5 | R95: 743.146809 | S95: 715.7664388 | T95: 775.6070089 | U95: 3.58587331 | V95: 4.283017848 | W95: 2.935952099 | X95: 0.006206065656 | Y95: 0.004969938867 | Z95: 0.007553269895 | AB95: 2025 | AC95: 13602 | AD95: 2337.948724 | AE95: 13007.3 | AF95: 743.146809
B96: 2025-05-01 | C96: 8672.1 | D96: 13591.8 | E96: 6533.4 | F96: 8.903967409 | G96: 12.15600663 | H96: 4.226055997 | I96: 9.048655445 | J96: 12.30069467 | K96: 4.370744032 | L96: 2324.250818 | M96: 1706.133539 | N96: 816.9997766 | O96: 9568 | P96: 12997.1 | Q96: 7707 | R96: 747.7588269 | S96: 719.3237542 | T96: 781.4653779 | U96: 3.543748485 | V96: 4.24253702 | W96: 2.892646171 | X96: 0.006204412802 | Y96: 0.004971380652 | Z96: 0.007550197755 | AB96: 2025 | AC96: 13591.8 | AD96: 2324.250818 | AE96: 12997.1 | AF96: 747.7588269
B97: 2025-06-01 | C97: 8667.1 | D97: 13581.5 | E97: 6530.7 | F97: 8.849604851 | G97: 12.08440513 | H97: 4.219004993 | I97: 8.994292887 | J97: 12.22909316 | K97: 4.363693028 | L97: 2310.641472 | M97: 1695.800812 | N97: 815.6595875 | O97: 9561.4 | P97: 12986.8 | Q97: 7702.4 | R97: 752.3982314 | S97: 722.8997864 | T97: 787.3655961 | U97: 3.500729622 | V97: 4.201042451 | W97: 2.848583254 | X97: 0.006200276475 | Y97: 0.004980530116 | Z97: 0.007536365742 | AB97: 2025 | AC97: 13581.5 | AD97: 2310.641472 | AE97: 12986.8 | AF97: 752.3982314
B98: 2025-07-01 | C98: 8662.2 | D98: 13571.3 | E98: 6528.1 | F98: 8.795576103 | G98: 12.00917228 | H98: 4.211906103 | I98: 8.940264138 | J98: 12.15386032 | K98: 4.356594139 | L98: 2296.341915 | M98: 1685.531531 | N98: 814.3102969 | O98: 9554.9 | P98: 12976.6 | Q98: 7697.9 | R98: 757.0633084 | S98: 726.5002106 | T98: 793.2994712 | U98: 3.459592129 | V98: 4.161211211 | W98: 2.806606116 | X98: 0.006194327272 | Y98: 0.004982080757 | Z98: 0.007525167194 | AB98: 2025 | AC98: 13571.3 | AD98: 2296.341915 | AE98: 12976.6 | AF98: 757.0633084
B99: 2025-08-01 | C99: 8657.2 | D99: 13561.1 | E99: 6525.4 | F99: 8.741879113 | G99: 11.93445529 | H99: 4.204760183 | I99: 8.886567149 | J99: 12.07914332 | K99: 4.349448218 | L99: 2282.140405 | M99: 1675.325308 | N99: 812.952067 | O99: 9548.3 | P99: 12966.4 | Q99: 7693.4 | R99: 761.7528063 | S99: 730.1196933 | T99: 799.2691823 | U99: 3.417593509 | V99: 4.120387883 | W99: 2.763916283 | X99: 0.006194741121 | Y99: 0.004994335887 | Z99: 0.007516814704 | AB99: 2025 | AC99: 13561.1 | AD99: 2282.140405 | AE99: 12966.4 | AF99: 761.7528063
B100: 2025-09-01 | C100: 8652.3 | D100: 13550.8 | E100: 6522.7 | F100: 8.688511846 | G100: 11.86025061 | H100: 4.197568076 | I100: 8.833199882 | J100: 12.00493865 | K100: 4.342256112 | L100: 2268.036272 | M100: 1665.181756 | N100: 811.5850584 | O100: 9541.8 | P100: 12956.2 | Q100: 7688.8 | R100: 766.4716678 | S100: 733.7661563 | T100: 805.2771407 | U100: 3.376113373 | V100: 4.079905677 | W100: 2.721924247 | X100: 0.00619751813 | Y100: 0.005006298123 | Z100: 0.007512713745 | AB100: 2025 | AC100: 13550.8 | AD100: 2268.036272 | AE100: 12956.2 | AF100: 766.4716678
B101: 2025-10-01 | C101: 8647.3 | D101: 13540.6 | E101: 6520.1 | F101: 8.635472277 | G101: 11.78655473 | H101: 4.19033062 | I101: 8.780160313 | J101: 11.93124277 | K101: 4.335018656 | L101: 2254.028848 | M101: 1655.100489 | N101: 810.2094303 | O101: 9535.3 | P101: 12946 | Q101: 7684.3 | R101: =+R100*(1+AVERAGE(X88:X99)) -> 771.2218898 | S101: 737.4396084 | T101: 811.3269573 | U101: 3.336464972 | V101: 4.041054143 | W101: 2.681951188 | X101: 0.006188831668 | Y101: 0.00499413144 | Z101: 0.007505970361 | AB101: 2025 | AC101: 13540.6 | AD101: 2254.028848 | AE101: 12946 | AF101: 771.2218898
B102: 2025-11-01 | C102: 8642.4 | D102: 13530.4 | E102: 6517.4 | F102: 8.582758393 | G102: 11.71336417 | H102: 4.183048643 | I102: 8.727446429 | J102: 11.85805221 | K102: 4.327736678 | L102: 2240.117468 | M102: 1645.081126 | N102: 808.82534 | O102: 9528.7 | P102: 12935.8 | Q102: 7679.8 | R102: 775.9948523 | S102: 741.1224787 | T102: 817.4167534 | U102: 3.296005079 | V102: 4.001243177 | W102: 2.641332236 | X102: 0.006184770136 | Y102: 0.004983225476 | Z102: 0.007506192588 | AB102: 2025 | AC102: 13530.4 | AD102: 2240.117468 | AE102: 12935.8 | AF102: 775.9948523
B103: 2025-12-01 | C103: 8637.4 | D103: 13520.2 | E103: 6514.8 | F103: 8.530368195 | G103: 11.64067546 | H103: 4.175722964 | I103: 8.675056231 | J103: 11.78536349 | K103: 4.320410999 | L103: 2226.301476 | M103: 1635.123286 | N103: 807.4329433 | O103: 9522.2 | P103: 12925.6 | Q103: 7675.2 | R103: 780.7942021 | S103: 744.8156592 | T103: 823.552441 | U103: 3.25734401 | V103: 3.963041231 | W103: 2.602687968 | X103: 0.006182101566 | Y103: 0.004971163161 | Z103: 0.00751017645 | AB103: 2025 | AC103: 13520.2 | AD103: 2226.301476 | AE103: 12925.6 | AF103: 780.7942021
B104: 2026-01-01 | C104: 8632.5 | D104: 13460.6 | E104: 6441 | F104: 8.514722496 | G104: 11.61367539 | H104: 4.169100758 | I104: 8.659410531 | J104: 11.75836343 | K104: 4.313788793 | L104: 2221.169555 | M104: 1632.149497 | N104: 806.1742561 | O104: 9515.6 | P104: 12932.3 | Q104: 7571.4 | R104: 785.6211511 | S104: 748.5182593 | T104: 829.7374651 | U104: 3.217904361 | V104: 3.923901507 | W104: 2.563442101 | X104: 0.006187448948 | Y104: 0.004973984527 | Z104: 0.007517553184 | AB104: 2026 | AC104: 13460.6 | AD104: 2221.169555 | AE104: 12932.3 | AF104: 785.6211511
B105: 2026-02-01 | C105: 8627.5 | D105: 13450.4 | E105: 6428.8 | F105: 8.499105664 | G105: 11.58674457 | H105: 4.162491018 | I105: 8.643793699 | J105: 11.73143261 | K105: 4.307179053 | L105: 2216.050796 | M105: 1629.181196 | N105: 804.9179384 | O105: 9509.1 | P105: 12922 | Q105: 7567 | R105: 790.4821419 | S105: 752.2413776 | T105: 835.9750607 | U105: 3.178983196 | V105: 3.885102904 | W105: 2.52489403 | X105: 0.006190911095 | Y105: 0.004976400736 | Z105: 0.007522083434 | AB105: 2026 | AC105: 13450.4 | AD105: 2216.050796 | AE105: 12922 | AF105: 790.4821419
B106: 2026-03-01 | C106: 8622.5 | D106: 13440.2 | E106: 6426.2 | F106: 8.483517646 | G106: 11.55988281 | H106: 4.155893721 | I106: 8.628205682 | J106: 11.70457085 | K106: 4.300581757 | L106: 2210.945163 | M106: 1626.218371 | N106: 803.6639858 | O106: 9502.5 | P106: 12911.7 | Q106: 7562.5 | R106: 795.3759465 | S106: 755.9848321 | T106: 842.2633348 | U106: 3.144274243 | V106: 3.850352208 | W106: 2.490676189 | X106: 0.006193050866 | Y106: 0.004978948518 | Z106: 0.00752423058 | AB106: 2026 | AC106: 13440.2 | AD106: 2210.945163 | AE106: 12911.7 | AF106: 795.3759465
B107: 2026-04-01 | C107: 8617.6 | D107: 13429.9 | E107: 6423.6 | F107: 8.46795839 | G107: 11.53308994 | H107: 4.149308844 | I107: 8.612646426 | J107: 11.67777798 | K107: 4.29399688 | L107: 2205.852624 | M107: 1623.261012 | N107: 802.4123938 | O107: 9495.9 | P107: 12901.4 | Q107: 7558.1 | R107: 800.3017502 | S107: 759.7488417 | T107: 848.6007184 | U107: 3.106339871 | V107: 3.812202838 | W107: 2.453456183 | X107: 0.006193704645 | Y107: 0.004981868188 | Z107: 0.007523394636 | AB107: 2026 | AC107: 13429.9 | AD107: 2205.852624 | AE107: 12901.4 | AF107: 800.3017502
B108: 2026-05-01 | C108: 8612.6 | D108: 13419.7 | E108: 6421.1 | F108: 8.452427842 | G108: 11.50636578 | H108: 4.142736364 | I108: 8.597115878 | J108: 11.65105382 | K108: 4.287424399 | L108: 2200.773145 | M108: 1620.309111 | N108: 801.163158 | O108: 9489.4 | P108: 12891.2 | Q108: 7553.6 | R108: 805.2585829 | S108: 763.5338103 | T108: 854.9850765 | U108: 3.070122854 | V108: 3.775608888 | W108: 2.418101218 | X108: 0.00619267456 | Y108: 0.004982862298 | Z108: 0.007520905031 | AB108: 2026 | AC108: 13419.7 | AD108: 2200.773145 | AE108: 12891.2 | AF108: 805.2585829
B109: 2026-06-01 | C109: 8607.6 | D109: 13409.5 | E109: 6418.5 | F109: 8.43692595 | G109: 11.47971016 | H109: 4.136176256 | I109: 8.581613986 | J109: 11.62439819 | K109: 4.280864291 | L109: 2195.706692 | M109: 1617.362656 | N109: 799.9162739 | O109: 9482.8 | P109: 12880.9 | Q109: 7549.2 | R109: 810.2452872 | S109: 767.3383941 | T109: 861.415338 | U109: 3.033208725 | V109: 3.738130759 | W109: 2.382254297 | X109: 0.006191696374 | Y109: 0.004983819102 | Z109: 0.007518463971 | AB109: 2026 | AC109: 13409.5 | AD109: 2195.706692 | AE109: 12880.9 | AF109: 810.2452872
B110: 2026-07-01 | C110: 8602.7 | D110: 13399.3 | E110: 6415.9 | F110: 8.42145266 | G110: 11.45312289 | H110: 4.129628498 | I110: 8.566140695 | J110: 11.59781092 | K110: 4.274316533 | L110: 2190.653233 | M110: 1614.421637 | N110: 798.6717372 | O110: 9476.3 | P110: 12870.7 | Q110: 7544.7 | R110: 815.2620801 | S110: 771.1626698 | T110: 867.8918582 | U110: 2.99797904 | V110: 3.702186397 | W110: 2.348228123 | X110: 0.006190981365 | Y110: 0.004984093184 | Z110: 0.007516972157 | AB110: 2026 | AC110: 13399.3 | AD110: 2190.653233 | AE110: 12870.7 | AF110: 815.2620801
B111: 2026-08-01 | C111: 8597.7 | D111: 13389.2 | E111: 6413.3 | F111: 8.40600792 | G111: 11.4266038 | H111: 4.123093066 | I111: 8.550695955 | J111: 11.57129184 | K111: 4.267781102 | L111: 2185.612732 | M111: 1611.486045 | N111: 797.4295433 | O111: 9469.7 | P111: 12860.4 | Q111: 7540.3 | R111: 820.3093524 | S111: 775.0062164 | T111: 874.4157771 | U111: 2.962085154 | V111: 3.665379509 | W111: 2.313754285 | X111: 0.00619070254 | Y111: 0.004984260887 | Z111: 0.007516289237 | AB111: 2026 | AC111: 13389.2 | AD111: 2185.612732 | AE111: 12860.4 | AF111: 820.3093524
B112: 2026-09-01 | C112: 8592.8 | D112: 13379 | E112: 6410.8 | F112: 8.390591676 | G112: 11.40015273 | H112: 4.116569938 | I112: 8.535279712 | J112: 11.54484076 | K112: 4.261257974 | L112: 2180.585159 | M112: 1608.555869 | N112: 796.1896879 | O112: 9463.2 | P112: 12850.2 | Q112: 7535.9 | R112: 825.3876436 | S112: 778.8690496 | T112: 880.988139 | U112: 2.926709753 | V112: 3.628913743 | W112: 2.279978245 | X112: 0.006190365991 | Y112: 0.004983421303 | Z112: 0.007516245448 | AB112: 2026 | AC112: 13379 | AD112: 2180.585159 | AE112: 12850.2 | AF112: 825.3876436
B113: 2026-10-01 | C113: 8587.8 | D113: 13368.8 | E113: 6408.2 | F113: 8.375203877 | G113: 11.37376948 | H113: 4.11005909 | I113: 8.519891913 | J113: 11.51845752 | K113: 4.254747125 | L113: 2175.570478 | M113: 1605.6311 | N113: 794.9521666 | O113: 9456.7 | P113: 12840 | Q113: 7531.4 | R113: 830.4970952 | S113: 782.7504822 | T113: 887.6098621 | U113: 2.892969159 | V113: 3.593949087 | W113: 2.24795615 | X113: 0.006189769979 | Y113: 0.004981514902 | Z113: 0.007516539756 | AB113: 2026 | AC113: 13368.8 | AD113: 2175.570478 | AE113: 12840 | AF113: 830.4970952
B114: 2026-11-01 | C114: 8582.9 | D114: 13358.7 | E114: 6405.7 | F114: 8.35984447 | G114: 11.3474539 | H114: 4.103560499 | I114: 8.504532506 | J114: 11.49214194 | K114: 4.248248534 | L114: 2170.568658 | M114: 1602.711727 | N114: 793.716975 | O114: 9450.2 | P114: 12829.8 | Q114: 7527 | R114: 835.6376812 | S114: 786.6497654 | T114: 894.2816169 | U114: 2.858614001 | V114: 3.558154562 | W114: 2.215553194 | X114: 0.006189848172 | Y114: 0.004980463524 | Z114: 0.007517420539 | AB114: 2026 | AC114: 13358.7 | AD114: 2170.568658 | AE114: 12829.8 | AF114: 835.6376812
B115: 2026-12-01 | C115: 8578 | D115: 13348.6 | E115: 6403.1 | F115: 8.344513403 | G115: 11.32120581 | H115: 4.097074141 | I115: 8.489201438 | J115: 11.46589384 | K115: 4.241762177 | L115: 2165.579664 | M115: 1599.797741 | N115: 792.4841088 | O115: 9443.7 | P115: 12819.6 | Q115: 7522.6 | R115: 840.8101515 | S115: 790.5676459 | T115: 901.0043079 | U115: 2.825860739 | V115: 3.523839493 | W115: 2.18485989 | X115: 0.006190271342 | Y115: 0.004980233361 | Z115: 0.007518356202 | AB115: 2026 | AC115: 13348.6 | AD115: 2165.579664 | AE115: 12819.6 | AF115: 840.8101515
B116: 2027-01-01 | C116: 8573 | D116: 13463 | E116: 6336.1 | F116: 8.384112533 | G116: 11.36255572 | H116: 4.280409147 | I116: 8.528800568 | J116: 11.50724376 | K116: 4.425097183 | L116: 2173.439071 | M116: 1607.324374 | N116: 827.3307164 | O116: 9455.6 | P116: 12578.2 | Q116: 7445.2 | R116: 846.0149945 | S116: 794.5048572 | T116: 907.7783793 | U116: 2.792525824 | V116: 3.488716209 | W116: 2.153830018 | X116: 0.006190952156 | Y116: 0.004980989211 | Z116: 0.007519037848 | AB116: 2027 | AC116: 13463 | AD116: 2173.439071 | AE116: 12578.2 | AF116: 846.0149945
B117: 2027-02-01 | C117: 8582.8 | D117: 13483.3 | E117: 6341.1 | F117: 8.423900731 | G117: 11.40407313 | H117: 4.297697559 | I117: 8.568588766 | J117: 11.54876116 | K117: 4.442385595 | L117: 2181.330311 | M117: 1614.886944 | N117: 830.6167365 | O117: 9467.5 | P117: 12596.4 | Q117: 7453.1 | R117: =+R116*(1+AVERAGE(X104:X115)) -> 851.2526329 | S117: 798.4622774 | T117: 914.6039992 | U117: 2.759709394 | V117: 3.453934047 | W117: 2.123497942 | X117: 0.00619124409 | Y117: 0.004981572934 | Z117: 0.00751916157 | AB117: 2027 | AC117: 13483.3 | AD117: 2181.330311 | AE117: 12596.4 | AF117: 851.2526329
B118: 2027-03-01 | C118: 8592.6 | D118: 13503.7 | E118: 6346 | F118: 8.463878901 | G118: 11.44575869 | H118: 4.315068516 | I118: 8.608566936 | J118: 11.59044672 | K118: 4.459756551 | L118: 2189.253514 | M118: 1622.485621 | N118: 833.9184458 | O118: 9479.5 | P118: 12614.6 | Q118: 7461.1 | R118: 856.5229457 | S118: 802.4398754 | T118: 921.4810545 | U118: 2.730514395 | V118: 3.422811103 | W118: 2.096701001 | X118: 0.00619127184 | Y118: 0.004982003951 | Z118: 0.007518918081 | AB118: 2027 | AC118: 13503.7 | AD118: 2189.253514 | AE118: 12614.6 | AF118: 856.5229457
B119: 2027-04-01 | C119: 8602.4 | D119: 13524.2 | E119: 6351 | F119: 8.504047948 | G119: 11.48761309 | H119: 4.332522411 | I119: 8.648735984 | J119: 11.63230113 | K119: 4.477210446 | L119: 2197.208809 | M119: 1630.120579 | N119: 837.2359194 | O119: 9491.5 | P119: 12632.9 | Q119: 7469.1 | R119: 861.8259121 | S119: 806.4376341 | T119: 928.4095951 | U119: 2.698684757 | V119: 3.388678174 | W119: 2.067696991 | X119: 0.006191123588 | Y119: 0.004982258571 | Z119: 0.007518475373 | AB119: 2027 | AC119: 13524.2 | AD119: 2197.208809 | AE119: 12632.9 | AF119: 861.8259121
B120: 2027-05-01 | C120: 8612.3 | D120: 13544.7 | E120: 6355.9 | F120: 8.544408786 | G120: 11.52963702 | H120: 4.350059641 | I120: 8.689096822 | J120: 11.67432506 | K120: 4.494747676 | L120: 2205.196326 | M120: 1637.791991 | N120: 840.5692324 | O120: 9503.5 | P120: 12651.2 | Q120: 7477 | R120: 867.1615828 | S120: 810.4555149 | T120: 935.3898197 | U120: 2.668375547 | V120: 3.355971101 | W120: 2.040292989 | X120: 0.0061909085 | Y120: 0.004982291102 | Z120: 0.007518065434 | AB120: 2027 | AC120: 13544.7 | AD120: 2205.196326 | AE120: 12651.2 | AF120: 867.1615828
B121: 2027-06-01 | C121: 8622.1 | D121: 13565.2 | E121: 6360.9 | F121: 8.584962329 | G121: 11.57183117 | H121: 4.367680603 | I121: 8.729650365 | J121: 11.7165192 | K121: 4.512368639 | L121: 2213.216195 | M121: 1645.50003 | N121: 843.9184606 | O121: 9515.6 | P121: 12669.5 | Q121: 7485 | R121: 872.5301009 | S121: 814.4934402 | T121: 942.4221416 | U121: 2.637566153 | V121: 3.322509413 | W121: 2.012662064 | X121: 0.006190761328 | Y121: 0.004982243503 | Z121: 0.007517828801 | AB121: 2027 | AC121: 13565.2 | AD121: 2213.216195 | AE121: 12669.5 | AF121: 872.5301009
B122: 2027-07-01 | C122: 8632 | D122: 13585.8 | E122: 6365.9 | F122: 8.625709497 | G122: 11.61419622 | H122: 4.385385698 | I122: 8.770397533 | J122: 11.75888425 | K122: 4.530073733 | L122: 2221.268548 | M122: 1653.244871 | N122: 847.2836799 | O122: 9527.6 | P122: 12687.9 | Q122: 7493 | R122: 877.9317265 | S122: 818.5514448 | T122: 949.5071099 | U122: 2.608244275 | V122: 3.290451928 | W122: 1.986586854 | X122: 0.006190683408 | Y122: 0.004982112203 | Z122: 0.007517775871 | AB122: 2027 | AC122: 13585.8 | AD122: 2221.268548 | AE122: 12687.9 | AF122: 877.9317265
B123: 2027-08-01 | C123: 8641.9 | D123: 13606.4 | E123: 6370.9 | F123: 8.666651216 | G123: 11.65673286 | H123: 4.403175327 | I123: 8.811339251 | J123: 11.80142089 | K123: 4.547863362 | L123: 2229.353516 | M123: 1661.026691 | N123: 850.6649666 | O123: 9539.7 | P123: 12706.3 | Q123: 7501.1 | R123: 883.3667238 | S123: 822.62956 | T123: 956.6452916 | U123: 2.578455124 | V123: 3.25766148 | W123: 1.960329012 | X123: 0.006190658578 | Y123: 0.004981947121 | Z123: 0.007517842847 | AB123: 2027 | AC123: 13606.4 | AD123: 2229.353516 | AE123: 12706.3 | AF123: 883.3667238
B124: 2027-09-01 | C124: 8651.9 | D124: 13627.1 | E124: 6375.9 | F124: 8.707788413 | G124: 11.69944179 | H124: 4.421049894 | I124: 8.852476448 | J124: 11.84412982 | K124: 4.565737929 | L124: 2237.471231 | M124: 1668.845666 | N124: 854.0623975 | O124: 9551.8 | P124: 12724.7 | Q124: 7509.1 | R124: 888.8353456 | S124: 826.7278569 | T124: 963.8372005 | U124: 2.549184457 | V124: 3.225212155 | W124: 1.934768967 | X124: 0.006190654914 | Y124: 0.004981754307 | Z124: 0.007517972314 | AB124: 2027 | AC124: 13627.1 | AD124: 2237.471231 | AE124: 12724.7 | AF124: 888.8353456
B125: 2027-10-01 | C125: 8661.8 | D125: 13647.8 | E125: 6380.9 | F125: 8.749122022 | G125: 11.7423237 | H125: 4.439009803 | I125: 8.893810058 | J125: 11.88701174 | K125: 4.583697839 | L125: 2245.621826 | M125: 1676.701973 | N125: 857.4760496 | O125: 9564 | P125: 12743.2 | Q125: 7517.2 | R125: 894.3378185 | S125: 830.846412 | T125: 971.0833019 | U125: 2.521351671 | V125: 3.194134376 | W125: 1.910697836 | X125: 0.006190678991 | Y125: 0.004981615391 | Z125: 0.00751811622 | AB125: 2027 | AC125: 13647.8 | AD125: 2245.621826 | AE125: 12743.2 | AF125: 894.3378185
B126: 2027-11-01 | C126: 8671.8 | D126: 13668.6 | E126: 6386 | F126: 8.790652981 | G126: 11.78537931 | H126: 4.457055464 | I126: 8.935341017 | J126: 11.93006735 | K126: 4.6017435 | L126: 2253.805434 | M126: 1684.59579 | N126: 860.9060005 | O126: 9576.2 | P126: 12761.7 | Q126: 7525.3 | R126: 899.8743769 | S126: 834.9853693 | T126: 978.384019 | U126: 2.493101247 | V126: 3.162356291 | W126: 1.886510875 | X126: 0.006190754742 | Y126: 0.004981623765 | Z126: 0.007518247592 | AB126: 2027 | AC126: 13668.6 | AD126: 2253.805434 | AE126: 12761.7 | AF126: 899.8743769
B127: 2027-12-01 | C127: 8681.8 | D127: 13689.4 | E127: 6391 | F127: 8.832382233 | G127: 11.82860931 | H127: 4.475187285 | I127: 8.977070268 | J127: 11.97329734 | K127: 4.61987532 | L127: 2262.022189 | M127: 1692.527297 | N127: 864.3523278 | O127: 9588.3 | P127: 12780.3 | Q127: 7533.3 | R127: 905.4452784 | S127: 839.1449522 | T127: 985.7397523 | U127: 2.466255793 | V127: 3.1319281 | W127: 1.863768535 | X127: 0.00619083029 | Y127: 0.004981720452 | Z127: 0.007518316513 | AB127: 2027 | AC127: 13689.4 | AD127: 2262.022189 | AE127: 12780.3 | AF127: 905.4452784
B128: 2028-01-01 | C128: 8691.8 | D128: 13786.8 | E128: 6397.9 | F128: 8.855282753 | G128: 11.84881116 | H128: 4.501123777 | I128: 8.999970789 | J128: 11.99349919 | K128: 4.645811812 | L128: 2265.861968 | M128: 1696.880014 | N128: 869.2820942 | O128: 9594.8 | P128: 12718.9 | Q128: 7546.3 | R128: 911.0507365 | S128: 843.3253378 | T128: 993.1508558 | U128: 2.439025613 | V128: 3.100821256 | W128: 1.840954659 | X128: 0.006190876869 | Y128: 0.004981844376 | Z128: 0.007518313205 | AB128: 2028 | AC128: 13786.8 | AD128: 2265.861968 | AE128: 12718.9 | AF128: 911.0507365
B129: 2028-02-01 | C129: 8696.7 | D129: 13797.1 | E129: 6400.4 | F129: 8.878242993 | G129: 11.86905109 | H129: 4.511141942 | I129: 9.022931029 | J129: 12.01373913 | K129: 4.655829978 | L129: 2269.708986 | M129: 1701.244082 | N129: 871.1862537 | O129: 9601.3 | P129: 12728.7 | Q129: 7550.6 | R129: 916.6909394 | S129: 847.5266534 | T129: 1000.617675 | U129: 2.412313916 | V129: 3.070055535 | W129: 1.818838579 | X129: 0.006190870595 | Y129: 0.00498191564 | Z129: 0.007518252818 | AB129: 2028 | AC129: 13797.1 | AD129: 2269.708986 | AE129: 12728.7 | AF129: 916.6909394
B130: 2028-03-01 | C130: 8701.6 | D130: 13807.5 | E130: 6402.9 | F130: 8.901263108 | G130: 11.88932918 | H130: 4.521186233 | I130: 9.045951144 | J130: 12.03401722 | K130: 4.665874269 | L130: 2273.563256 | M130: 1705.619531 | N130: 873.0953788 | O130: 9607.8 | P130: 12738.6 | Q130: 7555 | R130: 922.3660544 | S130: 851.7489597 | T130: 1008.140572 | U130: 2.387794943 | V130: 3.041583519 | W130: 1.798781064 | X130: 0.00619083947 | Y130: 0.004981944198 | Z130: 0.007518177089 | AB130: 2028 | AC130: 13807.5 | AD130: 2273.563256 | AE130: 12738.6 | AF130: 922.3660544
B131: 2028-04-01 | C131: 8706.6 | D131: 13817.8 | E131: 6405.4 | F131: 8.924343255 | G131: 11.9096455 | H131: 4.531256717 | I131: 9.06903129 | J131: 12.05433353 | K131: 4.675944753 | L131: 2277.424791 | M131: 1710.00639 | N131: 875.0094825 | O131: 9614.4 | P131: 12748.4 | Q131: 7559.3 | R131: 928.0762746 | S131: 855.9923255 | T131: 1015.719951 | U131: 2.362086764 | V131: 3.011478034 | W131: 1.8 | X131: 0.006190803439 | Y131: 0.004981939219 | Z131: 0.00751811534 | AB131: 2028 | AC131: 13817.8 | AD131: 2277.424791 | AE131: 12748.4 | AF131: 928.0762746
B132: 2028-05-01 | C132: 8711.5 | D132: 13828.2 | E132: 6407.9 | F132: 8.947483589 | G132: 11.93000011 | H132: 4.541353463 | I132: 9.092171624 | J132: 12.07468815 | K132: 4.686041498 | L132: 2281.293607 | M132: 1714.404689 | N132: 876.9285777 | O132: 9620.9 | P132: 12758.2 | Q132: 7563.6 | R132: 933.8218124 | S132: 860.2568272 | T132: 1023.356251 | U132: 2.337701548 | V132: 2.982668488 | W132: 1.8 | X132: 0.00619077676 | Y132: 0.004981912606 | Z132: 0.007518085337 | AB132: 2028 | AC132: 13828.2 | AD132: 2281.293607 | AE132: 12758.2 | AF132: 933.8218124
B133: 2028-06-01 | C133: 8716.5 | D133: 13838.5 | E133: 6410.4 | F133: 8.970684268 | G133: 11.9503931 | H133: 4.551476538 | I133: 9.115372303 | J133: 12.09508113 | K133: 4.696164574 | L133: 2285.169716 | M133: 1718.814458 | N133: 878.8526774 | O133: 9627.4 | P133: 12768.1 | Q133: 7568 | R133: =+R132*(1+AVERAGE(X120:X131)) -> 939.6028947 | S133: 864.5425515 | T133: 1031.04993 | U133: 2.313013613 | V133: 2.953234244 | W133: 1.8 | X133: 0.006190765782 | Y133: 0.004981881065 | Z133: 0.007518086996 | AB133: 2028 | AC133: 13838.5 | AD133: 2285.169716 | AE133: 12768.1 | AF133: 939.6028947
B134: 2028-07-01 | C134: 8721.4 | D134: 13848.9 | E134: 6412.9 | F134: 8.993945449 | G134: 11.97082453 | H134: 4.561626013 | I134: 9.138633484 | J134: 12.11551257 | K134: 4.706314048 | L134: 2289.053131 | M134: 1723.235726 | N134: 880.7817948 | O134: 9633.9 | P134: 12778 | Q134: 7572.3 | R134: 945.4197562 | S134: 868.8495997 | T134: 1038.801453 | U134: 2.289615729 | V134: 2.925074286 | W134: 1.8 | X134: 0.006190766153 | Y134: 0.004981850862 | Z134: 0.007518108512 | AB134: 2028 | AC134: 13848.9 | AD134: 2289.053131 | AE134: 12778 | AF134: 945.4197562
B135: 2028-08-01 | C135: 8726.4 | D135: 13859.3 | E135: 6415.4 | F135: 9.017267289 | G135: 11.99129448 | H135: 4.571801954 | I135: 9.161955325 | J135: 12.13598251 | K135: 4.71648999 | L135: 2292.943868 | M135: 1727.668524 | N135: 882.7159429 | O135: 9640.5 | P135: 12787.8 | Q135: 7576.7 | R135: 951.2726288 | S135: 873.1780788 | T135: 1046.611275 | U135: 2.265948038 | V135: 2.896311282 | W135: 1.8 | X135: 0.006190773049 | Y135: 0.004981829083 | Z135: 0.007518136232 | AB135: 2028 | AC135: 13859.3 | AD135: 2292.943868 | AE135: 12787.8 | AF135: 951.2726288
B136: 2028-09-01 | C136: 8731.3 | D136: 13869.7 | E136: 6417.9 | F136: 9.040649948 | G136: 12.01180301 | H136: 4.582004433 | I136: 9.185337984 | J136: 12.15649105 | K136: 4.726692468 | L136: 2296.841939 | M136: 1732.112881 | N136: 884.6551348 | O136: 9647 | P136: 12797.7 | Q136: 7581 | R136: 957.1617418 | S136: 877.5281028 | T136: 1054.479842 | U136: 2.24279883 | V136: 2.867889401 | W136: 1.8 | X136: 0.006190782588 | Y136: 0.004981819247 | Z136: 0.007518160681 | AB136: =YEAR(B136) -> 2028 | AC136: =AVERAGEIF($C$7:$E$7,"*"&$AC$3&"*",$C136:$E136) -> 13869.7 | AD136: =AVERAGEIF($L$7:$N$7,"*"&$AC$3&"*",$L136:$N136) -> 2296.841939 | AE136: =AVERAGEIF($O$7:$Q$7,"*"&$AC$3&"*",$O136:$Q136) -> 12797.7 | AF136: 957.1617418
B137: 2028-10-01 | C137: 8736.3 | D137: 13880.1 | E137: 6420.4 | F137: 9.064093584 | G137: 12.03235021 | H137: 4.592233517 | I137: 9.208781619 | J137: 12.17703825 | K137: 4.736921552 | L137: =+((AVERAGE(G137,J137)*(3000))/1000000)*1100*(1/0.0283)*1.63 -> 2300.747359 | M137: =+((AVERAGE(F137,I137)*(3000))/1000000)*1100*(1/0.0283)*1.63 -> 1736.568829 | N137: =+((AVERAGE(H137,K137)*(3000))/1000000)*1100*(1/0.0283)*1.63 -> 886.5993837 | O137: 9653.6 | P137: 12807.6 | Q137: 7585.4 | R137: 963.087322 | S137: 881.8997892 | T137: 1062.407591 | U137: =0.0000002697629*B137^2-0.02609448*B137+632.7749 -> 2.220890037 | V137: =0.000000177483*B137^2-0.01759367*B137+437.7077 -> 2.840709149 | W137: 1.8 | X137: 0.006190793227 | Y137: 0.004981824659 | Z137: 0.007518176378 | AB137: 2028 | AC137: 13880.1 | AD137: 2300.747359 | AE137: 12807.6 | AF137: =AVERAGEIF($R$7:$T$7,"*"&$AD$3&"*",$R137:$T137) -> 963.087322
B138: 2028-11-01 | C138: 8741.2 | D138: 13890.6 | E138: 6422.9 | F138: 9.087598355 | G138: 12.05293614 | H138: 4.602489276 | I138: 9.232286391 | J138: 12.19762418 | K138: 4.747177312 | L138: 2304.660141 | M138: 1741.036397 | N138: 888.5487028 | O138: 9660.1 | P138: 12817.5 | Q138: 7589.7 | R138: 969.0495965 | S138: 886.2932593 | T138: 1070.394958 | U138: 2.198761073 | V138: 2.812958509 | W138: 1.8 | X138: 0.006190802747 | Y138: 0.004981842098 | Z138: 0.007518181391 | AB138: 2028 | AC138: 13890.6 | AD138: 2304.660141 | AE138: 12817.5 | AF138: 969.0495965
B139: 2028-12-01 | C139: 8746.2 | D139: 13901 | E139: 6425.4 | F139: 9.111164421 | G139: 12.07356088 | H139: 4.61277178 | I139: 9.255852457 | J139: 12.21824892 | K139: 4.757459816 | L139: 2308.580299 | M139: 1745.515615 | N139: 890.5031052 | O139: 9666.7 | P139: 12827.5 | Q139: 7594.1 | R139: 975.0487914 | S139: 890.7086324 | T139: 1078.442382 | U139: 2.177839613 | V139: 2.786427844 | W139: 1.8 | X139: 0.006190806748 | Y139: 0.004981860292 | Z139: 0.007518175874 | AB139: 2028 | AC139: 13901 | AD139: 2308.580299 | AE139: 12827.5 | AF139: 975.0487914
B140: 2029-01-01 | C140: 8751.2 | D140: 13929.8 | E140: 6381.1 | F140: 9.130300435 | G140: 12.08879462 | H140: 4.583895654 | I140: 9.27498847 | J140: 12.23348265 | K140: 4.72858369 | L140: 2311.475785 | M140: 1749.152809 | N140: 885.0146006 | O140: 9679.1 | P140: 12775.6 | Q140: 7535.7 | R140: 981.08513 | S140: 895.1460183 | T140: 1086.550301 | U140: 2.156730892 | V140: 2.759348445 | W140: 1.8 | X140: 0.006190804786 | Y140: 0.004981871945 | Z140: 0.007518164154 | AB140: 2029 | AC140: 13929.8 | AD140: 2311.475785 | AE140: 12775.6 | AF140: 981.08513
B141: 2029-02-01 | C141: 8761 | D141: 13950.3 | E141: 6385.9 | F141: 9.149476864 | G141: 12.10404952 | H141: 4.59218422 | I141: 9.294164899 | J141: 12.24873756 | K141: 4.736872256 | L141: 2314.375295 | M141: 1752.797686 | N141: 886.5900138 | O141: 9691.5 | P141: 12794.2 | Q141: 7543.8 | R141: 987.1588366 | S141: 899.6055212 | T141: 1094.719165 | U141: 2.136140655 | V141: 2.732610168 | W141: 1.8 | X141: 0.006190798779 | Y141: 0.004981874243 | Z141: 0.007518151733 | AB141: 2029 | AC141: 13950.3 | AD141: 2314.375295 | AE141: 12794.2 | AF141: 987.1588366
B142: 2029-03-01 | C142: 8770.8 | D142: 13971 | E142: 6390.8 | F142: 9.168693795 | G142: 12.11932562 | H142: 4.600490292 | I142: 9.31338183 | J142: 12.26401366 | K142: 4.745178327 | L142: 2317.278834 | M142: 1756.450261 | N142: 888.1687544 | O142: 9703.9 | P142: 12812.8 | Q142: 7551.9 | R142: 993.2701383 | S142: 904.0872427 | T142: 1102.949429 | U142: 2.117988671 | V142: 2.708752667 | W142: 1.8 | X142: 0.006190792794 | Y142: 0.004981870793 | Z142: 0.00751814331 | AB142: 2029 | AC142: 13971 | AD142: 2317.278834 | AE142: 12812.8 | AF142: 993.2701383
B143: 2029-04-01 | C143: 8780.6 | D143: 13991.6 | E143: 6395.7 | F143: 9.187951312 | G143: 12.13462296 | H143: 4.608813906 | I143: 9.332639348 | J143: 12.279311 | K143: 4.753501942 | L143: 2320.186409 | M143: 1760.110551 | N143: 889.7508294 | O143: 9716.3 | P143: 12831.5 | Q143: 7560.1 | R143: 999.4192679 | S143: 908.5912886 | T143: 1111.241561 | U143: 2.098385227 | V143: 2.682663623 | W143: 1.8 | X143: 0.006190788904 | Y143: 0.004981864676 | Z143: 0.007518140495 | AB143: 2029 | AC143: 13991.6 | AD143: 2320.186409 | AE143: 12831.5 | AF143: 999.4192679
B144: 2029-05-01 | C144: 8790.4 | D144: 14012.3 | E144: 6400.5 | F144: 9.207249503 | G144: 12.14994155 | H144: 4.6171551 | I144: 9.351937538 | J144: 12.29462959 | K144: 4.761843136 | L144: 2323.098025 | M144: 1763.778571 | N144: 891.3362458 | O144: 9728.8 | P144: 12850.2 | Q144: 7568.2 | R144: 1005.606462 | S144: 913.1177674 | T144: 1119.596031 | U144: 2.079907818 | V144: 2.657740954 | W144: 1.8 | X144: 0.006190787693 | Y144: 0.004981858464 | Z144: 0.007518142591 | AB144: 2029 | AC144: 14012.3 | AD144: 2323.098025 | AE144: 12850.2 | AF144: 1005.606462
B145: 2029-06-01 | C145: 8800.3 | D145: 14033.1 | E145: 6405.4 | F145: 9.226588452 | G145: 12.16528144 | H145: 4.625513912 | I145: 9.371276488 | J145: 12.30996947 | K145: 4.770201947 | L145: 2326.013687 | M145: 1767.454338 | N145: 892.9250107 | O145: 9741.3 | P145: 12868.9 | Q145: 7576.4 | R145: 1011.831958 | S145: 917.6667909 | T145: 1128.013314 | U145: 2.061324617 | V145: 2.632323151 | W145: 1.8 | X145: 0.006190788604 | Y145: 0.004981853952 | Z145: 0.007518147362 | AB145: 2029 | AC145: 14033.1 | AD145: 2326.013687 | AE145: 12868.9 | AF145: 1011.831958
B146: 2029-07-01 | C146: 8810.2 | D146: 14053.9 | E146: 6410.3 | F146: 9.245968246 | G146: 12.18064264 | H146: 4.633890377 | I146: 9.390656281 | J146: 12.32533068 | K146: 4.778578413 | L146: 2328.933401 | M146: 1771.137868 | N146: 894.5171311 | O146: 9753.8 | P146: 12887.7 | Q146: 7584.6 | R146: 1018.095995 | S146: 922.2384728 | T146: 1136.493884 | U146: 2.043834541 | V146: 2.60805007 | W146: 1.8 | X146: 0.006190790506 | Y146: 0.004981851693 | Z146: 0.007518152393 | AB146: 2029 | AC146: 14053.9 | AD146: 2328.933401 | AE146: 12887.7 | AF146: 1018.095995
B147: 2029-08-01 | C147: 8820.1 | D147: 14074.7 | E147: 6415.2 | F147: 9.265388971 | G147: 12.19602519 | H147: 4.642284534 | I147: 9.410077006 | J147: 12.34071323 | K147: 4.786972569 | L147: 2331.857173 | M147: 1774.829178 | N147: 896.1126141 | O147: 9766.4 | P147: 12906.5 | Q147: 7592.8 | R147: 1024.398814 | S147: 926.8329281 | T147: 1145.038219 | U147: 2.026271584 | V147: 2.583303507 | W147: 1.8 | X147: =+(R148-R147)/R147 -> 0.006190792535 | Y147: 0.004981851762 | Z147: 0.007518156049 | AB147: 2029 | AC147: 14074.7 | AD147: 2331.857173 | AE147: 12906.5 | AF147: 1024.398814
B148: 2029-09-01 | C148: 8830 | D148: 14095.6 | E148: 6420.1 | F148: 9.284850713 | G148: 12.21142913 | H148: 4.65069642 | I148: 9.429538749 | J148: 12.35611716 | K148: 4.795384455 | L148: 2334.785008 | M148: 1778.528285 | N148: 897.7114669 | O148: 9778.9 | P148: 12925.3 | Q148: 7601.1 | R148: 1030.740655 | S148: 931.4502724 | T148: 1153.646795 | U148: 2.009227111 | V148: 2.558898066 | W148: 1.8 | X148: 0.006190794159 | Y148: 0.004981853652 | Z148: 0.007518157701 | AB148: 2029 | AC148: 14095.6 | AD148: 2334.785008 | AE148: 12925.3 | AF148: 1030.740655
B149: 2029-10-01 | C149: 8840 | D149: 14116.5 | E149: 6425.1 | F149: 9.304353559 | G149: 12.22685446 | H149: 4.659126072 | I149: 9.449041595 | J149: 12.3715425 | K149: 4.803814107 | L149: 2337.716913 | M149: 1782.235204 | N149: 899.3136965 | O149: 9791.5 | P149: 12944.2 | Q149: 7609.3 | R149: =+R148*(1+AVERAGE(X136:X147)) -> 1037.121758 | S149: 936.0906213 | T149: 1162.320093 | U149: 2 | V149: 2.535604692 | W149: 1.8 | X149: 0.006190795124 | Y149: 0.004981856519 | Z149: 0.007518157453 | AB149: 2029 | AC149: 14116.5 | AD149: 2337.716913 | AE149: 12944.2 | AF149: 1037.121758
B150: 2029-11-01 | C150: 8849.9 | D150: 14137.4 | E150: 6430 | F150: 9.323897597 | G150: 12.24230124 | H150: 4.667573527 | I150: 9.468585632 | J150: 12.38698928 | K150: 4.812261563 | L150: 2340.652892 | M150: 1785.949952 | N150: 900.9193101 | O150: 9804.1 | P150: 12963.1 | Q150: 7617.6 | R150: 1043.542367 | S150: 940.7540905 | T150: 1171.058599 | U150: 2 | V150: 2.511870492 | W150: 1.8 | X150: 0.006190795282 | Y150: 0.004981859174 | Z150: 0.007518155876 | AB150: 2029 | AC150: 14137.4 | AD150: 2340.652892 | AE150: 12963.1 | AF150: 1043.542367
B151: 2029-12-01 | C151: 8859.9 | D151: 14158.4 | E151: 6434.9 | F151: 9.343482912 | G151: 12.25776948 | H151: 4.676038825 | I151: 9.488170947 | J151: 12.40245752 | K151: 4.82072686 | L151: 2343.592952 | M151: 1789.672546 | N151: 902.5283148 | O151: 9816.8 | P151: 12982.1 | Q151: 7625.8 | R151: 1050.002724 | S151: 945.4407949 | T151: 1179.8628 | U151: 2 | V151: 2.5 | W151: 1.8 | X151: 0.006190794659 | Y151: 0.004981860597 | Z151: 0.007518153749 | AB151: 2029 | AC151: 14158.4 | AD151: 2343.592952 | AE151: 12982.1 | AF151: 1050.002724
B152: 2030-01-01 | C152: 8869.9 | D152: 14273.4 | E152: 6402.5 | F152: 9.349271004 | G152: 12.25667356 | H152: 4.552979003 | I152: 9.49395904 | J152: 12.40136159 | K152: 4.697667039 | L152: 2343.384648 | M152: 1790.772693 | N152: 879.138252 | O152: 9829.5 | P152: 13060.4 | Q152: 7600.6 | R152: 1056.503075 | S152: 950.1508491 | T152: 1188.73319 | U152: 2 | V152: 2.5 | W152: 1.8 | X152: 0.006190793652 | Y152: 0.004981860623 | Z152: 0.007518151906 | AB152: 2030 | AC152: 14273.4 | AD152: 2343.384648 | AE152: 13060.4 | AF152: 1056.503075
B153: 2030-02-01 | C153: 8884.5 | D153: 14304.3 | E153: 6409.6 | F153: 9.355062702 | G153: 12.25557774 | H153: 4.555404123 | I153: 9.499750738 | J153: 12.40026577 | K153: 4.700092158 | L153: 2343.176365 | M153: 1791.873525 | N153: 879.599196 | O153: 9842.2 | P153: 13079.6 | Q153: 7608.8 | R153: 1063.043668 | S153: 954.8843682 | T153: 1197.670266 | U153: 2 | V153: 2.5 | W153: 1.8 | X153: 0.006190792724 | Y153: 0.004981859679 | Z153: 0.007518150885 | AB153: 2030 | AC153: 14304.3 | AD153: 2343.176365 | AE153: 13079.6 | AF153: 1063.043668
B154: 2030-03-01 | C154: 8899.2 | D154: 14335.4 | E154: 6416.8 | F154: 9.360858007 | G154: 12.25448203 | H154: 4.557830752 | I154: 9.505546043 | J154: 12.39917006 | K154: 4.702518788 | L154: 2342.968102 | M154: 1792.975042 | N154: 880.0604272 | O154: 9854.9 | P154: 13098.8 | Q154: 7617.1 | R154: 1069.624751 | S154: 959.6414682 | T154: 1206.674532 | U154: 2 | V154: 2.5 | W154: 1.8 | X154: 0.00619079222 | Y154: 0.004981858465 | Z154: 0.007518150814 | AB154: 2030 | AC154: 14335.4 | AD154: 2342.968102 | AE154: 13098.8 | AF154: 1069.624751
B155: 2030-04-01 | C155: 8913.8 | D155: 14366.6 | E155: 6423.9 | F155: 9.366656922 | G155: 12.25338642 | H155: 4.560258894 | I155: 9.511344958 | J155: 12.39807446 | K155: 4.704946929 | L155: 2342.75986 | M155: 1794.077246 | N155: 880.5219456 | O155: 9867.6 | P155: 13118 | Q155: 7625.3 | R155: 1076.246575 | S155: 964.4222661 | T155: 1215.746493 | U155: 2 | V155: 2.5 | W155: 1.8 | X155: 0.006190792172 | Y155: 0.004981857438 | Z155: 0.007518151439 | AB155: 2030 | AC155: 14366.6 | AD155: 2342.75986 | AE155: 13118 | AF155: 1076.246575
B156: 2030-05-01 | C156: 8928.6 | D156: 14397.8 | E156: 6431.1 | F156: 9.372459449 | G156: 12.25229092 | H156: 4.562688547 | I156: 9.517147484 | J156: 12.39697896 | K156: 4.707376583 | L156: 2342.551638 | M156: 1795.180136 | N156: 880.9837515 | O156: 9880.4 | P156: 13137.3 | Q156: 7633.6 | R156: 1082.909394 | S156: 969.2268804 | T156: 1224.886659 | U156: 2 | V156: 2.5 | W156: 1.8 | X156: 0.006190792444 | Y156: 0.004981856835 | Z156: 0.007518152351 | AB156: 2030 | AC156: 14397.8 | AD156: 2342.551638 | AE156: 13137.3 | AF156: 1082.909394
B157: 2030-06-01 | C157: 8943.3 | D157: 14429.2 | E157: 6438.3 | F157: 9.37826559 | G157: 12.25119554 | H157: 4.565119714 | I157: 9.522953625 | J157: 12.39588357 | K157: 4.709807749 | L157: 2342.343437 | M157: 1796.283713 | N157: 881.445845 | O157: 9893.2 | P157: 13156.6 | Q157: 7641.9 | R157: 1089.613461 | S157: 974.0554299 | T157: 1234.095544 | U157: 2 | V157: 2.5 | W157: 1.8 | X157: 0.00619079284 | Y157: 0.004981856699 | Z157: 0.007518153165 | AB157: 2030 | AC157: 14429.2 | AD157: 2342.343437 | AE157: 13156.6 | AF157: 1089.613461
B158: 2030-07-01 | C158: 8958.2 | D158: 14460.6 | E158: 6445.5 | F158: 9.384075347 | G158: 12.25010026 | H158: 4.567552395 | I158: 9.528763383 | J158: 12.39478829 | K158: 4.712240431 | L158: 2342.135256 | M158: 1797.387977 | N158: 881.9082263 | O158: 9906 | P158: 13175.9 | Q158: 7650.3 | R158: 1096.359032 | S158: 978.9080345 | T158: 1243.373663 | U158: 2 | V158: 2.5 | W158: 1.8 | X158: 0.006190793193 | Y158: 0.004981856928 | Z158: 0.007518153648 | AB158: 2030 | AC158: 14460.6 | AD158: 2342.135256 | AE158: 13175.9 | AF158: 1096.359032
B159: 2030-08-01 | C159: 8973 | D159: 14492.1 | E159: 6452.7 | F159: 9.389888723 | G159: 12.24900508 | H159: 4.569986592 | I159: 9.534576759 | J159: 12.39369312 | K159: 4.714674627 | L159: 2341.927096 | M159: 1798.49293 | N159: 882.3708957 | O159: 9918.9 | P159: 13195.3 | Q159: 7658.6 | R159: 1103.146365 | S159: 983.7848143 | T159: 1252.721538 | U159: 2 | V159: 2.5 | W159: 1.8 | X159: 0.006190793417 | Y159: 0.004981857364 | Z159: 0.007518153753 | AB159: 2030 | AC159: 14492.1 | AD159: 2341.927096 | AE159: 13195.3 | AF159: 1103.146365
B160: 2030-09-01 | C160: 8987.9 | D160: 14523.8 | E160: 6460 | F160: 9.39570572 | G160: 12.24791002 | H160: 4.572422304 | I160: 9.540393755 | J160: 12.39259805 | K160: 4.71711034 | L160: 2341.718956 | M160: 1799.59857 | N160: 882.8338532 | O160: 9931.7 | P160: 13214.7 | Q160: 7667 | R160: 1109.975716 | S160: 988.6858899 | T160: 1262.139691 | U160: 2 | V160: 2.5 | W160: 1.8 | X160: 0.006190793491 | Y160: 0.004981857831 | Z160: 0.007518153562 | AB160: 2030 | AC160: 14523.8 | AD160: 2341.718956 | AE160: 13214.7 | AF160: 1109.975716
B161: 2030-10-01 | C161: 9002.9 | D161: 14555.5 | E161: 6467.3 | F161: 9.40152634 | G161: 12.24681506 | H161: 4.574859534 | I161: 9.546214376 | J161: 12.39150309 | K161: 4.719547569 | L161: 2341.510836 | M161: 1800.704899 | N161: 883.2970991 | O161: 9944.6 | P161: 13234.2 | Q161: 7675.3 | R161: 1116.847346 | S161: 993.6113824 | T161: 1271.628651 | U161: 2 | V161: 2.5 | W161: 1.8 | X161: 0.006190793435 | Y161: 0.004981858179 | Z161: 0.007518153217 | AB161: 2030 | AC161: 14555.5 | AD161: 2341.510836 | AE161: 13234.2 | AF161: 1116.847346
B162: 2030-11-01 | C162: 9017.9 | D162: 14587.3 | E162: 6474.6 | F162: 9.407350586 | G162: 12.24572021 | H162: 4.577298282 | I162: 9.552038621 | J162: 12.39040824 | K162: 4.721986317 | L162: 2341.302737 | M162: 1801.811918 | N162: 883.7606335 | O162: 9957.6 | P162: 13253.7 | Q162: 7683.7 | R162: 1123.761517 | S162: 998.5614134 | T162: 1281.18895 | U162: 2 | V162: 2.5 | W162: 1.8 | X162: 0.006190793294 | Y162: 0.004981858318 | Z162: 0.007518152864 | AB162: 2030 | AC162: 14587.3 | AD162: 2341.302737 | AE162: 13253.7 | AF162: 1123.761517
B163: 2030-12-01 | C163: 9032.9 | D163: 14619.2 | E163: 6481.9 | F163: 9.413178459 | G163: 12.24462547 | H163: 4.579738548 | I163: 9.557866494 | J163: 12.3893135 | K163: 4.724426584 | L163: 2341.094659 | M163: 1802.919626 | N163: 884.2244566 | O163: 9970.5 | P163: 13273.2 | Q163: 7692.2 | R163: 1130.718493 | S163: 1003.536105 | T163: 1290.821124 | U163: 2 | V163: 2.5 | W163: 1.8 | X163: 0.006190793128 | Y163: 0.004981858246 | Z163: 0.007518152613 | AB163: 2030 | AC163: 14619.2 | AD163: 2341.094659 | AE163: 13273.2 | AF163: 1130.718493
B164: 2031-01-01 | C164: 9048 | D164: 14581.4 | E164: 6450.4 | F164: 9.437040937 | G164: 12.26495495 | H164: 4.482281088 | I164: 9.581728972 | J164: 12.40964298 | K164: 4.626969124 | L164: 2344.958697 | M164: 1807.455183 | N164: 865.7006518 | O164: 9983.3 | P164: 13246.8 | Q164: 7655 | R164: 1137.718537 | S164: 1008.53558 | T164: 1300.525714 | U164: 2 | V164: 2.5 | W164: 1.8 | X164: 0.006190793001 | Y164: 0.00498185805 | Z164: 0.007518152518 | AB164: 2031 | AC164: 14581.4 | AD164: 2344.958697 | AE164: 13246.8 | AF164: 1137.718537
B165: 2031-02-01 | C165: 9057.8 | D165: 14602.1 | E165: 6455.1 | F165: 9.460964234 | G165: 12.28532155 | H165: 4.492024471 | I165: 9.605652269 | J165: 12.43000959 | K165: 4.636712506 | L165: 2348.829791 | M165: 1812.0023 | N165: 867.5525831 | O165: 9996 | P165: 13266 | Q165: 7663.2 | R165: =+R164*(1+AVERAGE(X152:X163)) -> 1144.761917 | S165: 1013.559961 | T165: 1310.303265 | U165: 2 | V165: 2.5 | W165: 1.8 | X165: 0.006190792947 | Y165: 0.004981857836 | Z165: 0.007518152569 | AB165: 2031 | AC165: 14602.1 | AD165: 2348.829791 | AE165: 13266 | AF165: 1144.761917
B166: 2031-03-01 | C166: 9067.6 | D166: 14622.7 | E166: 6459.8 | F166: 9.484948505 | G166: 12.30572535 | H166: 4.501792687 | I166: 9.629636541 | J166: 12.45041338 | K166: 4.646480723 | L166: 2352.707955 | M166: 1816.561006 | N166: 869.4092344 | O166: 10008.8 | P166: 13285.2 | Q166: 7671.4 | R166: 1151.848901 | S166: 1018.609372 | T166: 1320.154325 | U166: 2 | V166: 2.5 | W166: 1.8 | X166: 0.006190792965 | Y166: 0.004981857683 | Z166: 0.007518152709 | AB166: 2031 | AC166: 14622.7 | AD166: 2352.707955 | AE166: 13285.2 | AF166: 1151.848901
B167: 2031-04-01 | C167: 9077.4 | D167: 14643.5 | E167: 6464.5 | F167: 9.508993907 | G167: 12.32616641 | H167: 4.5115858 | I167: 9.653681942 | J167: 12.47085444 | K167: 4.656273835 | L167: 2356.593201 | M167: 1821.131332 | N167: 871.270618 | O167: 10021.6 | P167: 13304.4 | Q167: 7679.7 | R167: 1158.979759 | S167: 1023.683939 | T167: 1330.079447 | U167: 2 | V167: 2.5 | W167: 1.8 | X167: 0.006190793027 | Y167: 0.004981857617 | Z167: 0.007518152867 | AB167: 2031 | AC167: 14643.5 | AD167: 2356.593201 | AE167: 13304.4 | AF167: 1158.979759
B168: 2031-05-01 | C168: 9087.2 | D168: 14664.2 | E168: 6469.2 | F168: 9.533100594 | G168: 12.3466448 | H168: 4.521403873 | I168: 9.677788629 | J168: 12.49133283 | K168: 4.666091908 | L168: 2360.485542 | M168: 1825.713306 | N168: 873.1367457 | O168: 10034.5 | P168: 13323.7 | Q168: 7687.9 | R168: 1166.154763 | S168: 1028.783787 | T168: 1340.079187 | U168: 2 | V168: 2.5 | W168: 1.8 | X168: 0.006190793099 | Y168: 0.004981857632 | Z168: 0.007518152986 | AB168: 2031 | AC168: 14664.2 | AD168: 2360.485542 | AE168: 13323.7 | AF168: 1166.154763
B169: 2031-06-01 | C169: 9097.1 | D169: 14685 | E169: 6474 | F169: 9.557268723 | G169: 12.36716058 | H169: 4.53124697 | I169: 9.701956758 | J169: 12.51184862 | K169: 4.675935005 | L169: 2364.38499 | M169: 1830.306959 | N169: 875.0076297 | O169: 10047.3 | P169: 13343 | Q169: 7696.2 | R169: 1173.374186 | S169: 1033.909041 | T169: 1350.154108 | U169: 2 | V169: 2.5 | W169: 1.8 | X169: 0.006190793153 | Y169: 0.004981857699 | Z169: 0.007518153039 | AB169: 2031 | AC169: 14685 | AD169: 2364.38499 | AE169: 13343 | AF169: 1173.374186
B170: 2031-07-01 | C170: 9107 | D170: 14705.9 | E170: 6478.7 | F170: 9.58149845 | G170: 12.38771383 | H170: 4.541115154 | I170: 9.726186485 | J170: 12.53240187 | K170: 4.685803189 | L170: 2368.29156 | M170: 1834.912319 | N170: 876.8832821 | O170: 10060.2 | P170: 13362.4 | Q170: 7704.5 | R170: 1180.638303 | S170: 1039.059829 | T170: 1360.304773 | U170: 2 | V170: 2.5 | W170: 1.8 | X170: 0.006190793179 | Y170: 0.004981857782 | Z170: 0.007518153029 | AB170: 2031 | AC170: 14705.9 | AD170: 2368.29156 | AE170: 13362.4 | AF170: 1180.638303
B171: 2031-08-01 | C171: 9116.9 | D171: 14726.7 | E171: 6483.5 | F171: 9.605789933 | G171: 12.40830461 | H171: 4.55100849 | I171: 9.750477968 | J171: 12.55299265 | K171: 4.695696525 | L171: 2372.205265 | M171: 1839.529418 | N171: 878.7637151 | O171: 10073.1 | P171: 13381.7 | Q171: 7712.7 | R171: 1187.94739 | S171: 1044.236277 | T171: 1370.531752 | U171: 2 | V171: 2.5 | W171: 1.8 | X171: 0.006190793178 | Y171: 0.004981857853 | Z171: 0.007518152977 | AB171: 2031 | AC171: 14726.7 | AD171: 2372.205265 | AE171: 13381.7 | AF171: 1187.94739
B172: 2031-09-01 | C172: 9126.8 | D172: 14747.7 | E172: 6488.2 | F172: 9.630143328 | G172: 12.428933 | H172: 4.560927041 | I172: 9.774831364 | J172: 12.57362103 | K172: 4.705615077 | L172: 2376.126116 | M172: 1844.158284 | N172: 880.6489408 | O172: 10086.1 | P172: 13401.2 | Q172: 7721.1 | R172: 1195.301727 | S172: 1049.438514 | T172: 1380.83562 | U172: 2 | V172: 2.5 | W172: 1.8 | X172: 0.006190793158 | Y172: 0.004981857894 | Z172: 0.007518152913 | AB172: 2031 | AC172: 14747.7 | AD172: 2376.126116 | AE172: 13401.2 | AF172: 1195.301727
B173: 2031-10-01 | C173: 9136.8 | D173: 14768.6 | E173: 6493 | F173: 9.654558794 | G173: 12.44959906 | H173: 4.570870872 | I173: 9.79924683 | J173: 12.59428709 | K173: 4.715558908 | L173: 2380.054127 | M173: 1848.798948 | N173: 882.5389715 | O173: 10099 | P173: 13420.6 | Q173: 7729.4 | R173: 1202.701592 | S173: 1054.666667 | T173: 1391.216953 | U173: 2 | V173: 2.5 | W173: 1.8 | X173: 0.00619079313 | Y173: 0.004981857899 | Z173: 0.007518152858 | AB173: 2031 | AC173: 14768.6 | AD173: 2380.054127 | AE173: 13420.6 | AF173: 1202.701592
B174: 2031-11-01 | C174: 9146.7 | D174: 14789.6 | E174: 6497.8 | F174: 9.679036489 | G174: 12.47030285 | H174: 4.580840048 | I174: 9.823724525 | J174: 12.61499089 | K174: 4.725528084 | L174: 2383.989311 | M174: 1853.45144 | N174: 884.4338194 | O174: 10112 | P174: 13440.1 | Q174: 7737.7 | R174: 1210.147269 | S174: 1059.920867 | T174: 1401.676335 | U174: 2 | V174: 2.5 | W174: 1.8 | X174: 0.006190793105 | Y174: 0.004981857876 | Z174: 0.007518152829 | AB174: 2031 | AC174: 14789.6 | AD174: 2383.989311 | AE174: 13440.1 | AF174: 1210.147269
B175: 2031-12-01 | C175: 9156.7 | D175: 14810.7 | E175: 6502.6 | F175: 9.703576572 | G175: 12.49104446 | H175: 4.590834633 | I175: 9.848264608 | J175: 12.63573249 | K175: 4.735522668 | L175: 2387.931682 | M175: 1858.11579 | N175: 886.3334968 | O175: 10125 | P175: 13459.7 | Q175: 7746.1 | R175: 1217.639041 | S175: 1065.201242 | T175: 1412.214352 | U175: 2 | V175: 2.5 | W175: 1.8 | X175: 0.006190793089 | Y175: 0.004981857839 | Z175: 0.007518152826 | AB175: 2031 | AC175: 14810.7 | AD175: 2387.931682 | AE175: 13459.7 | AF175: 1217.639041
B176: 2032-01-01 | C176: 9166.7 | D176: 14796 | E176: 6520.6 | F176: 9.735886846 | G176: 12.52090315 | H176: 4.621554602 | I176: 9.880574882 | J176: 12.66559118 | K176: 4.766242638 | L176: 2393.606943 | M176: 1864.257025 | N176: 892.1724621 | O176: 10137.8 | P176: 13474 | Q176: 7740.4 | R176: 1225.177192 | S176: 1070.507923 | T176: 1422.831595 | U176: 2 | V176: 2.5 | W176: 1.8 | X176: 0.006190793086 | Y176: 0.004981857805 | Z176: 0.007518152843 | AB176: 2032 | AC176: 14796 | AD176: 2393.606943 | AE176: 13474 | AF176: 1225.177192
B177: 2032-02-01 | C177: 9176.5 | D177: 14816.5 | E177: 6525.3 | F177: 9.76830527 | G177: 12.55084019 | H177: 4.634816626 | I177: 9.912993306 | J177: 12.69552822 | K177: 4.779504661 | L177: 2399.297097 | M177: 1870.418817 | N177: 894.6931838 | O177: 10150.5 | P177: 13493.1 | Q177: 7748.5 | R177: 1232.76201 | S177: 1075.841041 | T177: 1433.52866 | U177: 2 | V177: 2.5 | W177: 1.8 | X177: 0.006190793093 | Y177: 0.004981857785 | Z177: 0.007518152871 | AB177: 2032 | AC177: 14816.5 | AD177: 2399.297097 | AE177: 13493.1 | AF177: 1232.76201
B178: 2032-03-01 | C178: 9186.3 | D178: 14837.2 | E178: 6530 | F178: 9.800832207 | G178: 12.58085578 | H178: 4.64812304 | I178: 9.945520242 | J178: 12.72554382 | K178: 4.792811075 | L178: 2405.002181 | M178: 1876.601234 | N178: 897.2223429 | O178: 10163.3 | P178: 13512.3 | Q178: 7756.7 | R178: 1240.393785 | S178: 1081.200728 | T178: 1444.306148 | U178: 2 | V178: 2.5 | W178: 1.8 | X178: 0.006190793105 | Y178: 0.00498185778 | Z178: 0.007518152896 | AB178: 2032 | AC178: 14837.2 | AD178: 2405.002181 | AE178: 13512.3 | AF178: 1240.393785
B179: 2032-04-01 | C179: 9196.2 | D179: 14857.8 | E179: 6534.8 | F179: 9.833468018 | G179: 12.61095014 | H179: 4.661473994 | I179: 9.978156054 | J179: 12.75563818 | K179: 4.80616203 | L179: 2410.722237 | M179: 1882.804344 | N179: 899.7599677 | O179: 10176.1 | P179: 13531.5 | Q179: 7764.9 | R179: 1248.072806 | S179: 1086.587117 | T179: 1455.164662 | U179: 2 | V179: 2.5 | W179: 1.8 | X179: 0.006190793117 | Y179: 0.004981857788 | Z179: 0.007518152911 | AB179: 2032 | AC179: 14857.8 | AD179: 2410.722237 | AE179: 13531.5 | AF179: 1248.072806
B180: 2032-05-01 | C180: 9206 | D180: 14878.5 | E180: 6539.5 | F180: 9.866213069 | G180: 12.64112347 | H180: 4.674869637 | I180: 10.0109011 | J180: 12.78581151 | K180: 4.819557672 | L180: 2416.457302 | M180: 1889.028218 | N180: 902.3060865 | O180: 10189 | P180: 13550.8 | Q180: 7773.1 | R180: 1255.799367 | S180: 1092.000339 | T180: 1466.104813 | U180: 2 | V180: 2.5 | W180: 1.8 | X180: 0.006190793124 | Y180: 0.004981857803 | Z180: 0.007518152915 | AB180: 2032 | AC180: 14878.5 | AD180: 2416.457302 | AE180: 13550.8 | AF180: 1255.799367
B181: 2032-06-01 | C181: 9215.9 | D181: 14899.2 | E181: 6544.3 | F181: 9.899067725 | G181: 12.67137598 | H181: 4.688310118 | I181: 10.04375576 | J181: 12.81606402 | K181: 4.832998153 | L181: 2422.207416 | M181: 1895.272925 | N181: 904.8607278 | O181: 10201.8 | P181: 13570.1 | Q181: 7781.4 | R181: =+R180*(1+AVERAGE(X168:X179)) -> 1263.573761 | S181: 1097.44053 | T181: 1477.127213 | U181: 2 | V181: 2.5 | W181: 1.8 | X181: 0.006190793127 | Y181: 0.004981857817 | Z181: 0.007518152909 | AB181: 2032 | AC181: 14899.2 | AD181: 2422.207416 | AE181: 13570.1 | AF181: 1263.573761
B182: 2032-07-01 | C182: 9225.8 | D182: 14920 | E182: 6549.1 | F182: 9.932032354 | G182: 12.70170788 | H182: 4.701795587 | I182: 10.07672039 | J182: 12.84639591 | K182: 4.846483623 | L182: 2427.97262 | M182: 1901.538534 | N182: 907.42392 | O182: 10214.7 | P182: 13589.5 | Q182: 7789.6 | R182: 1271.396285 | S182: 1102.907822 | T182: 1488.232481 | U182: 2 | V182: 2.5 | W182: 1.8 | X182: 0.006190793124 | Y182: 0.004981857827 | Z182: 0.007518152898 | AB182: 2032 | AC182: 14920 | AD182: 2427.97262 | AE182: 13589.5 | AF182: 1271.396285
B183: 2032-08-01 | C183: 9235.7 | D183: 14940.8 | E183: 6553.8 | F183: 9.965107323 | G183: 12.73211936 | H183: 4.715326196 | I183: 10.10979536 | J183: 12.8768074 | K183: 4.860014231 | L183: 2433.752951 | M183: 1907.825115 | N183: 909.9956919 | O183: 10227.6 | P183: 13608.8 | Q183: 7797.9 | R183: 1279.267236 | S183: 1108.402352 | T183: 1499.421241 | U183: 2 | V183: 2.5 | W183: 1.8 | X183: 0.00619079312 | Y183: 0.00498185783 | Z183: 0.007518152887 | AB183: 2032 | AC183: 14940.8 | AD183: 2433.752951 | AE183: 13608.8 | AF183: 1279.267236
B184: 2032-09-01 | C184: 9245.6 | D184: 14961.7 | E184: 6558.6 | F184: 9.998293001 | G184: 12.76261065 | H184: 4.728902095 | I184: 10.14298104 | J184: 12.90729868 | K184: 4.87359013 | L184: 2439.548451 | M184: 1914.132739 | N184: 912.576072 | O184: 10240.6 | P184: 13628.2 | Q184: 7806.2 | R184: 1287.186915 | S184: 1113.924255 | T184: 1510.694119 | U184: 2 | V184: 2.5 | W184: 1.8 | X184: 0.006190793115 | Y184: 0.004981857829 | Z184: 0.00751815288 | AB184: 2032 | AC184: 14961.7 | AD184: 2439.548451 | AE184: 13628.2 | AF184: 1287.186915
B185: 2032-10-01 | C185: 9255.5 | D185: 14982.6 | E185: 6563.4 | F185: 10.03158976 | G185: 12.79318195 | H185: 4.742523435 | I185: 10.1762778 | J185: 12.93786998 | K185: 4.88721147 | L185: 2445.359158 | M185: 1920.461477 | N185: 915.1650893 | O185: 10253.5 | P185: 13647.7 | Q185: 7814.5 | R185: 1295.155623 | S185: 1119.473668 | T185: 1522.051748 | U185: 2 | V185: 2.5 | W185: 1.8 | X185: 0.006190793111 | Y185: 0.004981857823 | Z185: 0.007518152877 | AB185: 2032 | AC185: 14982.6 | AD185: 2445.359158 | AE185: 13647.7 | AF185: 1295.155623
B186: 2032-11-01 | C186: 9265.5 | D186: 15003.5 | E186: 6568.2 | F186: 10.06499797 | G186: 12.82383347 | H186: 4.756190369 | I186: 10.20968601 | J186: 12.96852151 | K186: 4.900878405 | L186: 2451.185113 | M186: 1926.811398 | N186: 917.7627727 | O186: 10266.5 | P186: 13667.2 | Q186: 7822.8 | R186: 1303.173663 | S186: 1125.050726 | T186: 1533.494766 | U186: 2 | V186: 2.5 | W186: 1.8 | X186: 0.00619079311 | Y186: 0.004981857817 | Z186: 0.007518152878 | AB186: 2032 | AC186: 15003.5 | AD186: 2451.185113 | AE186: 13667.2 | AF186: 1303.173663
B187: 2032-12-01 | C187: 9275.5 | D187: 15024.5 | E187: 6573 | F187: 10.09851801 | G187: 12.85456542 | H187: 4.76990305 | I187: 10.24320604 | J187: 12.99925346 | K187: 4.914591085 | L187: 2457.026356 | M187: 1933.182573 | N187: 920.3691511 | O187: 10279.5 | P187: 13686.7 | Q187: 7831.1 | R187: 1311.241342 | S187: 1130.655569 | T187: 1545.023814 | U187: 2 | V187: 2.5 | W187: 1.8 | X187: 0.00619079311 | Y187: 0.004981857812 | Z187: 0.007518152882 | AB187: 2032 | AC187: 15024.5 | AD187: 2457.026356 | AE187: 13686.7 | AF187: 1311.241342
B188: 2033-01-01 | C188: 9285.5 | D188: 15131.4 | E188: 6559.8 | F188: 10.13644056 | G188: 12.89038826 | H188: 4.68662376 | I188: 10.2811286 | J188: 13.03507629 | K188: 4.831311795 | L188: 2463.835226 | M188: 1940.390539 | N188: 904.5402005 | O188: 10293.1 | P188: 13703.1 | Q188: 7804.6 | R188: 1319.358966 | S188: 1136.288334 | T188: 1556.639539 | U188: 2 | V188: 2.5 | W188: 1.8 | X188: 0.006190793112 | Y188: 0.00498185781 | Z188: 0.007518152887 | AB188: 2033 | AC188: 15131.4 | AD188: 2463.835226 | AE188: 13703.1 | AF188: 1319.358966
B189: 2033-02-01 | C189: 9304.8 | D189: 15172.5 | E189: 6569.1 | F189: 10.17450624 | G189: 12.92632038 | H189: 4.701823148 | I189: 10.31919428 | J189: 13.07100841 | K189: 4.846511184 | L189: 2470.664869 | M189: 1947.625709 | N189: 907.4291585 | O189: 10306.8 | P189: 13723.5 | Q189: 7813.2 | R189: 1327.526844 | S189: 1141.949161 | T189: 1568.342593 | U189: 2 | V189: 2.5 | W189: 1.8 | X189: 0.006190793114 | Y189: 0.00498185781 | Z189: 0.007518152891 | AB189: 2033 | AC189: 15172.5 | AD189: 2470.664869 | AE189: 13723.5 | AF189: 1327.526844
B190: 2033-03-01 | C190: 9324.3 | D190: 15213.6 | E190: 6578.4 | F190: 10.2127156 | G190: 12.96236212 | H190: 4.717079902 | I190: 10.35740363 | J190: 13.10705015 | K190: 4.861767938 | L190: 2477.515346 | M190: 1954.888186 | N190: 910.32902 | O190: 10320.4 | P190: 13744 | Q190: 7821.9 | R190: 1335.745288 | S190: 1147.638189 | T190: 1580.133633 | U190: 2 | V190: 2.5 | W190: 1.8 | X190: 0.006190793116 | Y190: 0.004981857812 | Z190: 0.007518152893 | AB190: 2033 | AC190: 15213.6 | AD190: 2477.515346 | AE190: 13744 | AF190: 1335.745288
B191: 2033-04-01 | C191: 9343.8 | D191: 15255 | E191: 6587.7 | F191: 10.25106916 | G191: 12.99851381 | H191: 4.732394239 | I191: 10.39575719 | J191: 13.14320185 | K191: 4.877082275 | L191: 2484.386724 | M191: 1962.178073 | N191: 913.2398263 | O191: 10334.1 | P191: 13764.5 | Q191: 7830.6 | R191: 1344.014611 | S191: 1153.35556 | T191: 1592.013319 | U191: 2 | V191: 2.5 | W191: 1.8 | X191: 0.006190793117 | Y191: 0.004981857815 | Z191: 0.007518152892 | AB191: 2033 | AC191: 15255 | AD191: 2484.386724 | AE191: 13764.5 | AF191: 1344.014611
B192: 2033-05-01 | C192: 9363.4 | D192: 15296.5 | E192: 6597.1 | F192: 10.28956747 | G192: 13.0347758 | H192: 4.747766375 | I192: 10.43425551 | J192: 13.17946384 | K192: 4.892454411 | L192: 2491.279064 | M192: 1969.495474 | N192: 916.1616185 | O192: 10347.8 | P192: 13785.1 | Q192: 7839.3 | R192: 1352.335127 | S192: 1159.101413 | T192: 1603.982318 | U192: 2 | V192: 2.5 | W192: 1.8 | X192: 0.006190793117 | Y192: 0.004981857817 | Z192: 0.007518152891 | AB192: 2033 | AC192: 15296.5 | AD192: 2491.279064 | AE192: 13785.1 | AF192: 1352.335127
B193: 2033-06-01 | C193: 9383.1 | D193: 15338.1 | E193: 6606.5 | F193: 10.32821109 | G193: 13.07114841 | H193: 4.76319653 | I193: 10.47289913 | J193: 13.21583645 | K193: 4.907884565 | L193: 2498.19243 | M193: 1976.840493 | N193: 919.0944383 | O193: 10361.5 | P193: 13805.7 | Q193: 7848 | R193: 1360.707154 | S193: 1164.875892 | T193: 1616.041303 | U193: 2 | V193: 2.5 | W193: 1.8 | X193: 0.006190793116 | Y193: 0.004981857818 | Z193: 0.007518152889 | AB193: 2033 | AC193: 15338.1 | AD193: 2498.19243 | AE193: 13805.7 | AF193: 1360.707154
B194: 2033-07-01 | C194: 9402.8 | D194: 15379.9 | E194: 6616 | F194: 10.36700056 | G194: 13.10763199 | H194: 4.778684921 | I194: 10.5116886 | J194: 13.25232002 | K194: 4.923372956 | L194: 2505.126888 | M194: 1984.213233 | N194: 922.0383272 | O194: 10375.3 | P194: 13826.3 | Q194: 7856.8 | R194: 1369.131011 | S194: 1170.679138 | T194: 1628.190948 | U194: 2 | V194: 2.5 | W194: 1.8 | X194: 0.006190793115 | Y194: 0.004981857818 | Z194: 0.007518152887 | AB194: 2033 | AC194: 15379.9 | AD194: 2505.126888 | AE194: 13826.3 | AF194: 1369.131011
B195: 2033-08-01 | C195: 9422.6 | D195: 15421.8 | E195: 6625.4 | F195: 10.40593643 | G195: 13.14422687 | H195: 4.794231769 | I195: 10.55062447 | J195: 13.2889149 | K195: 4.938919804 | L195: 2512.082502 | M195: 1991.6138 | N195: 924.9933271 | O195: 10389.1 | P195: 13847 | Q195: 7865.5 | R195: 1377.607017 | S195: 1176.511295 | T195: 1640.431937 | U195: 2 | V195: 2.5 | W195: 1.8 | X195: 0.006190793114 | Y195: 0.004981857818 | Z195: 0.007518152886 | AB195: 2033 | AC195: 15421.8 | AD195: 2512.082502 | AE195: 13847 | AF195: 1377.607017
B196: 2033-09-01 | C196: 9442.5 | D196: 15463.9 | E196: 6635 | F196: 10.44501925 | G196: 13.18093339 | H196: 4.809837294 | I196: 10.58970729 | J196: 13.32562143 | K196: 4.954525329 | L196: 2519.059335 | M196: 1999.042298 | N196: 927.9594797 | O196: 10402.9 | P196: 13867.7 | Q196: 7874.3 | R196: 1386.135498 | S196: 1182.372507 | T196: 1652.764955 | U196: 2 | V196: 2.5 | W196: 1.8 | X196: 0.006190793114 | Y196: 0.004981857817 | Z196: 0.007518152886 | AB196: 2033 | AC196: 15463.9 | AD196: 2519.059335 | AE196: 13867.7 | AF196: 1386.135498
B197: 2033-10-01 | C197: 9462.4 | D197: 15506.2 | E197: 6644.5 | F197: 10.48424958 | G197: 13.21775189 | H197: 4.825501718 | I197: 10.62893761 | J197: 13.36243993 | K197: 4.970189753 | L197: 2526.057453 | M197: 2006.498832 | N197: 930.9368273 | O197: 10416.7 | P197: 13888.5 | Q197: 7883.1 | R197: =+R196*(1+AVERAGE(X184:X195)) -> 1394.716776 | S197: 1188.262918 | T197: 1665.190694 | U197: 2 | V197: 2.5 | W197: 1.8 | X197: 0.006190793114 | Y197: 0.004981857816 | Z197: 0.007518152887 | AB197: 2033 | AC197: 15506.2 | AD197: 2526.057453 | AE197: 13888.5 | AF197: 1394.716776
B198: 2033-11-01 | C198: 9482.5 | D198: 15548.6 | E198: 6654.1 | F198: 10.52362797 | G198: 13.25468272 | H198: 4.841225263 | I198: 10.66831601 | J198: 13.39937076 | K198: 4.985913298 | L198: 2533.07692 | M198: 2013.98351 | N198: 933.925412 | O198: 10430.6 | P198: 13909.3 | Q198: 7891.9 | R198: 1403.351179 | S198: 1194.182675 | T198: 1677.709853 | U198: 2 | V198: 2.5 | W198: 1.8 | X198: 0.006190793114 | Y198: 0.004981857815 | Z198: 0.007518152887 | AB198: 2033 | AC198: 15548.6 | AD198: 2533.07692 | AE198: 13909.3 | AF198: 1403.351179
B199: 2033-12-01 | C199: 9502.6 | D199: 15591.2 | E199: 6663.7 | F199: 10.56315499 | G199: 13.29172622 | H199: 4.857008152 | I199: 10.70784302 | J199: 13.43641426 | K199: 5.001696187 | L199: 2540.117802 | M199: 2021.496436 | N199: 936.9252763 | O199: 10444.5 | P199: 13930.1 | Q199: 7900.7 | R199: 1412.039035 | S199: 1200.131924 | T199: 1690.323132 | U199: 2 | V199: 2.5 | W199: 1.8 | X199: 0.006190793114 | Y199: 0.004981857815 | Z199: 0.007518152888 | AB199: 2033 | AC199: 15591.2 | AD199: 2540.117802 | AE199: 13930.1 | AF199: 1412.039035
B200: 2034-01-01 | C200: 9522.7 | D200: 15761.7 | E200: 6639 | F200: 10.60389887 | G200: 13.33011882 | H200: 4.734971226 | I200: 10.7485869 | J200: 13.47480686 | K200: 4.879659261 | L200: 2547.41511 | M200: 2029.240653 | N200: 913.7296359 | O200: 10458.4 | P200: 14034.6 | Q200: 7888.6 | R200: 1420.780677 | S200: 1206.11081 | T200: 1703.03124 | U200: 2 | V200: 2.5 | W200: 1.8 | X200: 0.006190793115 | Y200: 0.004981857815 | Z200: 0.007518152889 | AB200: =YEAR(B200) -> 2034 | AC200: =AVERAGEIF($C$7:$E$7,"*"&$AC$3&"*",$C200:$E200) -> 15761.7 | AD200: =AVERAGEIF($L$7:$N$7,"*"&$AC$3&"*",$L200:$N200) -> 2547.41511 | AE200: =AVERAGEIF($O$7:$Q$7,"*"&$AC$3&"*",$O200:$Q200) -> 14034.6 | AF200: 1420.780677
B201: 2034-02-01 | C201: 9542.1 | D201: 15803.3 | E201: 6648.1 | F201: 10.64480066 | G201: 13.36863245 | H201: 4.750767012 | I201: 10.7894887 | J201: 13.51332049 | K201: 4.895455048 | L201: =+((AVERAGE(G201,J201)*(3000))/1000000)*1100*(1/0.0283)*1.63 -> 2554.735421 | M201: =+((AVERAGE(F201,I201)*(3000))/1000000)*1100*(1/0.0283)*1.63 -> 2037.014884 | N201: =+((AVERAGE(H201,K201)*(3000))/1000000)*1100*(1/0.0283)*1.63 -> 916.7319516 | O201: 10472.4 | P201: 14055.7 | Q201: 7897.4 | R201: 1429.576436 | S201: 1212.119483 | T201: 1715.834889 | U201: 2 | V201: 2.5 | W201: 1.8 | X201: 0.006190793115 | Y201: 0.004981857815 | Z201: 0.007518152889 | AB201: 2034 | AC201: 15803.3 | AD201: 2554.735421 | AE201: 14055.7 | AF201: =AVERAGEIF($R$7:$T$7,"*"&$AD$3&"*",$R201:$T201) -> 1429.576436
B202: 2034-03-01 | C202: 9561.6 | D202: 15844.9 | E202: 6657.3 | F202: 10.68586098 | G202: 13.40726748 | H202: 4.766624019 | I202: 10.83054902 | J202: 13.55195552 | K202: 4.911312055 | L202: 2562.078808 | M202: 2044.819247 | N202: 919.7459036 | O202: 10486.4 | P202: 14076.8 | Q202: 7906.3 | R202: 1438.426648 | S202: 1218.15809 | T202: 1728.734798 | U202: 2 | V202: 2.5 | W202: 1.8 | X202: 0.006190793115 | Y202: 0.004981857816 | Z202: 0.007518152889 | AB202: 2034 | AC202: 15844.9 | AD202: 2562.078808 | AE202: 14076.8 | AF202: 1438.426648
B203: 2034-04-01 | C203: 9581.1 | D203: 15886.7 | E203: 6666.6 | F203: 10.72708044 | G203: 13.4460243 | H203: 4.782542485 | I203: 10.87176848 | J203: 13.59071234 | K203: 4.927230521 | L203: 2569.445342 | M203: 2052.653858 | N203: 922.7715371 | O203: 10500.4 | P203: 14098 | Q203: 7915.1 | R203: 1447.33165 | S203: 1224.22678 | T203: 1741.73169 | U203: 2 | V203: 2.5 | W203: 1.8 | X203: 0.006190793115 | Y203: 0.004981857816 | Z203: 0.007518152888 | AB203: 2034 | AC203: 15886.7 | AD203: 2569.445342 | AE203: 14098 | AF203: 1447.33165
... 68 more rows

Sheet BD3(GEI & Cont)
B6: Categoría | C6: Parámetro | D6: Valor | E6: Unidad | F6: Fuente
B7: Global Warming Potential | C7: BC | D7: 900 | E7: - | F7: Bond, 2013
C8: CH4 | D8: 28 | E8: - | F8: IPCC, Fifth Assessmet
C9: N2O | D9: 265 | E9: - | F9: IPCC, Fifth Assessmet
B10: Gasolina | C10: NCV | D10: 44.3 | E10: MJ/kg | F10: IPCC, 2006, table 1.2
C11: CO2 emissions | D11: 69.3 | E11: gCO2/MJ | F11: IPCC, 2006, table 1.4
C12: Density | D12: 0.741 | E12: kg/L | F12: IEA, 2005
C13: Sulphur content | D13: 0.0001 | E13: g/g fuel | F13: CONPES 3943
C14: EF - upstream emissions | D14: 13.5 | E14: gCO2eq/MJ | F14: UNFCCC,2014, Table 3
C15: Well-to-tank mark-up factor | D15: =D14/D11 -> 0.1948051948 | E15: %
B16: Diesel | C16: NCV | D16: 43 | E16: MJ/kg | F16: IPCC, 2006, table 1.2
C17: CO2 emissions | D17: 74.1 | E17: gCO2/MJ | F17: IPCC, 2006, table 1.4
C18: Density | D18: 0.844 | E18: kg/L | F18: IEA, 2005
C19: Sulphur content | D19: 2e-05 | E19: g/g fuel | F19: CONPES 3943
C20: EF - upstream emissions | D20: 16.7 | E20: gCO2eq/MJ | F20: UNFCCC,2014, Table 3
C21: Well-to-tank mark-up factor | D21: =D20/D17 -> 0.2253711201 | E21: %
B22: CNG | C22: NCV | D22: 48 | E22: MJ/kg | F22: IPCC, 2006, table 1.2
C23: CO2 emissions | D23: 56.1 | E23: gCO2/MJ | F23: IPCC, 2006, table 1.4
C24: Density | D24: 0.714 | E24: kg/m3 | F24: IEA, 2005
C25: EF - upstream emissions | D25: 10 | E25: gCO2eq/MJ | F25: UNFCCC,2014, Table 3
C26: Well-to-tank mark-up factor | D26: =D25/D23 -> 0.1782531194 | E26: %
C27: methane slip as % of NG consumption TTW | D27: 0.011 | E27: - | F27: Average low and high value of ICCT, 2015, table 4 crankcase and tailpipe
C28: methane slip as % of NG consumption WTW | D28: 0.034 | E28: - | F28: Average low and high value of ICCT, 2015, table 4 for well-to-pump and Combustibleling station plus TTC slip
B29: Black Carbon fraction | C29: Euro 2 - Gasolina Automóvil and LCV | D29: 0.25 | E29: - | F29: COPERT, 2020, Table 3-91
C30: Euro 4 - Gasolina Automóvil and LCV | D30: 0.15 | E30: -
C31: Euro 2 - Diesel Automóvil and LCV | D31: 0.8 | E31: -
C32: Euro 4 - Diesel Automóvil and LCV | D32: 0.87 | E32: -
C33: Euro 2 - HDV | D33: 0.65 | E33: -
C34: Euro 4 - HDV | D34: 0.75 | E34: -
C35: Euro 1 - Motocicleta | D35: 0.25 | E35: -
C36: Euro 2 - Motocicleta | D36: 0.25 | E36: -
B37: Conversion | C37: kWh to MJ | D37: 3.6 | E37: MJ per KWh
B38: Costo de contaminates(ground level) - Colombia | C38: NOx | D38: =D273*TRM -> 7862514.365 | E38: COP 2019/ton | F38: IMF 2014 actualizado a 2019USD bajo la aproximación PPP (datos del PIB tomados de WB 2019)
C39: PM | D39: =D274*TRM -> 1021071431 | E39: COP 2019/ton
C40: SO2 | D40: =D275*TRM -> 38394011.02 | E40: COP 2019/ton
C41: CO2 eq | D41: =D270*TRM -> 148304.8096 | E41: COP 2019/ton | F41: ADB, 2017 actualizado a 2019USD
B42: Factores LCA - Camiónes | C42: % dif por tonelaje Producción | D42: -0.4051400891 | E42: % | F42: Basado en la diferencia entre una van y un camión rígido
C43: % dif por tonelaje O&M | D43: -0.11 | E43: %
B44: Factor emisión SIN | C44: Emisión CO2 SIN | D44: =(0.11/1000)*1000000 -> 110 | E44: g CO2/KWh | F44: UPME 2019
B45: Factor LCA - Motos | C45: % emisiones LCA en comparación con un automóvil | D45: =F67/F49 -> 0.3571428571 | E45: % | F45: Basado en la diferencia en eficiencia entre un automovil y una motocicleta
B47: Categoría | C47: Tipo de de Vehículo | D47: Combustible | E47: Capacidad de Carga | F47: Consumo de combustible | G47: Consumo de combustible | H47: Uso de energía | I47: SO2 | J47: CO2 | K47: CO2e WTT | L47: CO2e Producción | M47: CO2e O&M
F48: g/km | G48: L/km (m3/km CNG) | H48: MJ/km | I48: g/km | J48: g CO2/km | K48: g CO2 eq/km | L48: g CO2 eq/km | M48: g CO2 eq/km
B49: Automóvil | C49: ICE | D49: Gasolina | E49: 0 | F49: 56 | G49: =F49/($D$12*1000) -> 0.07557354926 | H49: =F49/1000*$D$10 -> 2.4808 | I49: =$D$13/$D$10*1000*H49 -> 0.0056 | J49: =H49*$D$11 -> 171.91944 | K49: =H49*$D$14 -> 33.4908 | L49: 39.52903605 | M49: 5.052864181
B50: Automóvil | C50: ICE | D50: Diesel | E50: 0 | F50: 38 | G50: =F50/($D$18*1000) -> 0.04502369668 | H50: =F50/1000*$D$16 -> 1.634 | I50: =$D$19/$D$16*1000*H50 -> 0.00076 | J50: =H50*$D$17 -> 121.0794 | K50: =H50*$D$20 -> 27.2878 | L50: 39.72714262 | M50: 6.629475691
B51: Automóvil | C51: GNC | D51: GNC | E51: 0 | F51: 63 | G51: =F51/($D$24*1000) -> 0.08823529412 | H51: =F51/1000*$D$22 -> 3.024 | J51: =H51*$D$23+F51*$D$27*$D$8 -> 189.0504 | K51: =H51*$D$25 -> 30.24 | L51: 41.57051239 | M51: 8.203530423
B52: Automóvil | C52: GNL | D52: GNL | E52: 0 | F52: 63 | G52: =F52/($D$24*1000) -> 0.08823529412 | H52: =F52/1000*$D$22 -> 3.024 | J52: =H52*$D$23+F52*$D$27*$D$8 -> 189.0504 | K52: =H52*$D$25 -> 30.24 | L52: 41.57051239 | M52: 3.85453256
B53: Automóvil | C53: HEV | D53: Gasolina | E53: 0 | F53: 35 | G53: =F53/($D$12*1000) -> 0.04723346829 | H53: =F53/1000*$D$10 -> 1.5505 | I53: =$D$13/$D$10*1000*H53 -> 0.0035 | J53: =H53*$D$11 -> 107.44965 | K53: =H53*$D$14 -> 20.93175 | L53: 41.87071626 | M53: 4.813197857
B54: Automóvil | C54: PHEV | D54: Gasolina | E54: 0 | F54: 34 | G54: =F54/($D$12*1000) -> 0.04588394062 | H54: =F54/1000*$D$10 -> 1.5062 | I54: =$D$13/$D$10*1000*H54 -> 0.0034 | J54: =H54*$D$11 -> 104.37966 | K54: =H54*$D$14 -> 20.3337 | L54: 50.2960269 | M54: 4.716421236
B55: Campero | C55: ICE | D55: Gasolina | E55: 0 | F55: 86 | G55: 0.1160593792 | H55: =F55/1000*$D$10 -> 3.8098 | I55: =$D$13/$D$10*1000*H55 -> 0.0086 | J55: =H55*$D$11 -> 264.01914 | K55: =H55*$D$14 -> 51.4323 | L55: 57.51549715 | M55: 6.379099722
B56: Campero | C56: ICE | D56: Diesel | E56: 0 | F56: 73 | G56: =F56/($D$18*1000) -> 0.086492891 | H56: =F56/1000*$D$16 -> 3.139 | I56: =$D$19/$D$16*1000*H56 -> 0.00146 | J56: =H56*$D$17 -> 232.5999 | K56: =H56*$D$20 -> 52.4213 | L56: 57.68561843 | M56: 9.383342009
B57: Campero | C57: GNC | D57: GNC | E57: 0 | F57: 63 | G57: =F57/($D$24*1000) -> 0.08823529412 | H57: =F57/1000*$D$22 -> 3.024 | J57: =H57*$D$23+F57*$D$27*$D$8 -> 189.0504 | K57: =H57*$D$25 -> 30.24 | L57: 60.49463069 | M57: 10.78860441
B58: Campero | C58: GNL | D58: GNL | E58: 0 | F58: 63 | G58: =F58/($D$24*1000) -> 0.08823529412 | H58: =F58/1000*$D$22 -> 3.024 | J58: =H58*$D$23+F58*$D$27*$D$8 -> 189.0504 | K58: =H58*$D$25 -> 30.24 | L58: 60.49463069 | M58: 4.701978598
B59: Campero | C59: HEV | D59: Gasolina | E59: 0 | F59: 38.5 | G59: 0.05195681511 | H59: =F59/1000*$D$10 -> 1.70555 | I59: =$D$13/$D$10*1000*H59 -> 0.00385 | J59: =H59*$D$11 -> 118.194615 | K59: =H59*$D$14 -> 23.024925 | L59: 60.40214514 | M59: 6.043675497
B60: Campero | C60: PHEV | D60: Gasolina | E60: 0 | F60: 34 | G60: 0.04588394062 | H60: =F60/1000*$D$10 -> 1.5062 | I60: =$D$13/$D$10*1000*H60 -> 0.0034 | J60: =H60*$D$11 -> 104.37966 | K60: =H60*$D$20 -> 25.15354 | L60: 68.82360379 | M60: 6.215872139
B61: Camioneta | C61: ICE | D61: Gasolina | E61: 0 | F61: 86 | G61: =F61/($D$12*1000) -> 0.1160593792 | H61: =F61/1000*$D$10 -> 3.8098 | I61: =$D$13/$D$10*1000*H61 -> 0.0086 | J61: =H61*$D$11 -> 264.01914 | K61: =H61*$D$14 -> 51.4323 | L61: 57.51549715 | M61: 6.379099722
B62: Camioneta | C62: ICE | D62: Diesel | E62: 0 | F62: 73 | G62: =F62/($D$18*1000) -> 0.086492891 | H62: =F62/1000*$D$16 -> 3.139 | I62: =$D$19/$D$16*1000*H62 -> 0.00146 | J62: =H62*$D$17 -> 232.5999 | K62: =H62*$D$20 -> 52.4213 | L62: 57.68561843 | M62: 9.383342009
B63: Camioneta | C63: GNC | D63: GNC | E63: 0 | F63: 63 | G63: =F63/($D$24*1000) -> 0.08823529412 | H63: =F63/1000*$D$22 -> 3.024 | J63: =H63*$D$23+F63*$D$27*$D$8 -> 189.0504 | K63: =H63*$D$25 -> 30.24 | L63: 60.49463069 | M63: 10.78860441
B64: Camioneta | C64: GNL | D64: GNL | E64: 0 | F64: 63 | G64: =F64/($D$24*1000) -> 0.08823529412 | H64: =F64/1000*$D$22 -> 3.024 | J64: =H64*$D$23+F64*$D$27*$D$8 -> 189.0504 | K64: =H64*$D$25 -> 30.24 | L64: 60.49463069 | M64: 4.701978598
B65: Camioneta | C65: HEV | D65: Gasolina | E65: 0 | F65: 38.5 | G65: =F65/($D$12*1000) -> 0.05195681511 | H65: =F65/1000*$D$10 -> 1.70555 | I65: =$D$13/$D$10*1000*H65 -> 0.00385 | J65: =H65*$D$11 -> 118.194615 | K65: =H65*$D$14 -> 23.024925 | L65: 60.40214514 | M65: 6.043675497
B66: Camioneta | C66: PHEV | D66: Gasolina | E66: 0 | F66: 34 | G66: 0.04588394062 | H66: =F66/1000*$D$10 -> 1.5062 | I66: =$D$13/$D$10*1000*H66 -> 0.0034 | J66: =H66*$D$11 -> 104.37966 | K66: =H66*$D$20 -> 25.15354 | L66: 68.82360379 | M66: 6.215872139
B67: Motocicleta | C67: ICE | D67: Gasolina | E67: 0 | F67: 20 | G67: 0.02699055331 | H67: =F67/1000*$D$10 -> 0.886 | I67: =$D$13/$D$10*1000*H67 -> 0.002 | J67: =H67*$D$11 -> 61.3998 | K67: =H67*$D$14 -> 11.961 | L67: =L49*$D$45 -> 14.11751288 | M67: 1.80459435
B68: Microbús | C68: ICE | D68: Gasolina | E68: 0 | F68: 148 | G68: 0.1997300945 | H68: =F68/1000*$D$10 -> 6.5564 | I68: =$D$13/$D$10*1000*H68 -> 0.0148 | J68: =H68*$D$11 -> 454.35852 | K68: =H68*$D$14 -> 88.5114 | L68: 50.69180379 | M68: 13.05090627
B69: Microbús | C69: ICE | D69: Diesel | E69: 0 | F69: 152 | G69: =F69/($D$18*1000) -> 0.1800947867 | H69: =F69/1000*$D$16 -> 6.536 | I69: =$D$19/$D$16*1000*H69 -> 0.00304 | J69: =H69*$D$17 -> 484.3176 | K69: =H69*$D$20 -> 109.1512 | L69: 50.99299525 | M69: 15.90455125
B70: Bus | C70: ICE | D70: Diesel | E70: 0 | F70: 301 | G70: =F70/($D$18*1000) -> 0.3566350711 | H70: =F70/1000*$D$16 -> 12.943 | I70: =$D$19/$D$16*1000*H70 -> 0.00602 | J70: =H70*$D$17 -> 959.0763 | K70: =H70*$D$20 -> 216.1481 | L70: 151.6613308 | M70: 50.16534724
B71: Bus | C71: GNC | D71: GNC | E71: 0 | F71: 455 | G71: =F71/($D$24*1000) -> 0.637254902 | H71: =F71/1000*$D$22 -> 21.84 | J71: =H71*$D$23+F71*$D$27*$D$8 -> 1365.364 | K71: =H71*$D$25 -> 218.4 | L71: 157.2214959 | M71: 41.44190849
B72: Bus | C72: GNL | D72: GNL | E72: 0 | F72: 455 | G72: 0.637254902 | H72: 21.84 | J72: 1365.364 | K72: 218.4 | L72: 156.7622705 | M72: 41.44190849
B73: Bus | C73: HEV | D73: Diesel | E73: 0 | F73: 301 | G73: =F73/($D$18*1000) -> 0.3566350711 | H73: =F73/1000*$D$16 -> 12.943 | I73: =$D$19/$D$16*1000*H73 -> 0.00602 | J73: =H73*$D$17 -> 959.0763 | K73: =H73*$D$20 -> 216.1481 | L73: 162.3173779 | M73: 44.52263977
B74: Camión | C74: GNC | D74: GNC | E74: 32 | F74: 330 | G74: =F74/($D$24*1000) -> 0.4621848739 | H74: =F74/1000*$D$22 -> 15.84 | J74: =H74*$D$23+F74*$D$27*$D$8 -> 990.264 | K74: =H74*$D$25 -> 158.4 | L74: 34.88201994 | M74: 9.883632503
B75: Camión | C75: GNL | D75: GNL | E75: 32 | F75: 330 | G75: =F75/($D$24*1000) -> 0.4621848739 | H75: 15.84 | J75: =H75*$D$23+F75*$D$27*$D$8 -> 990.264 | K75: 158.4 | L75: 34.21691502 | M75: 9.777360248
B76: Camión | C76: HEV | D76: Diesel | E76: 32 | F76: 101 | G76: =F76/($D$18*1000) -> 0.1196682464 | H76: =F76/1000*$D$16 -> 4.343 | I76: =$D$19/$D$16*1000*H76 -> 0.00202 | J76: =H76*$D$17 -> 321.8163 | K76: =H76*$D$20 -> 72.5281 | L76: 32.7874459 | M76: 10.5097144
B77: Camión | C77: ICE | D77: Diesel | E77: 0 | F77: 101 | G77: =F77/($D$18*1000) -> 0.1196682464 | H77: 4.343 | I77: =$D$19/$D$16*1000*H77 -> 0.00202 | J77: =H77*$D$17 -> 321.8163 | K77: =H77*$D$20 -> 72.5281 | L77: 50.99299525 | M77: 15.90455125
B78: Camión | C78: ICE | D78: Diesel | E78: 7.5 | F78: 155 | G78: 0.1836492891 | H78: 6.665 | I78: =$D$19/$D$16*1000*H78 -> 0.0031 | J78: =H78*$D$17 -> 493.8765 | K78: =H78*$D$20 -> 111.3055 | L78: 30.15452189 | M78: 10.85018217
B79: Camión | C79: ICE | D79: Diesel | E79: 16 | F79: 210 | G79: 0.2488151659 | H79: 9.03 | I79: =$D$19/$D$16*1000*H79 -> 0.0042 | J79: =H79*$D$17 -> 669.123 | K79: =H79*$D$20 -> 150.801 | L79: =L78*(1+$D$42) -> 17.9377162 | M79: 9.656662129
B80: Tractomula | C80: ICE | D80: Diesel | E80: 32 | F80: 251 | G80: 0.2973933649 | H80: 10.793 | I80: =$D$19/$D$16*1000*H80 -> 0.00502 | J80: =H80*$D$17 -> 799.7613 | K80: =H80*$D$20 -> 180.2431 | L80: =L79*(1+$D$42) -> 10.67042826 | M80: 3.481857122
B81: Tractomula | C81: GNC | D81: GNC | E81: 32 | F81: 330 | G81: =F81/($D$24*1000) -> 0.4621848739 | H81: =F81/1000*$D$22 -> 15.84 | J81: =H81*$D$23+F81*$D$27*$D$8 -> 990.264 | K81: =H81*$D$25 -> 158.4 | L81: 10.92547698 | M81: 2.835813735
B82: Tractomula | C82: GNL | D82: GNL | E82: 32 | F82: 330 | G82: =F82/($D$24*1000) -> 0.4621848739 | H82: 15.84 | J82: =H82*$D$23+F82*$D$27*$D$8 -> 990.264 | K82: 158.4 | L82: 10.92547698 | M82: 2.835813735
B86: Euro 2
B87: Categoría | C87: Tipo de Vehículo | D87: Combustible | E87: Capacidad de Carga | F87: NOx | G87: PM2.5 | H87: CO | I87: NMVOC | J87: N2O | K87: CH4 | L87: BC | M87: CO2e TTW
F88: g/km | G88: g/km | H88: g/km | I88: g/km | J88: mg/km | K88: mg/km | L88: CO2eq/km | M88: g CO2eq/km
A89: Euro_2 | B89: Automóvil | C89: ICE | D89: Gasolina | E89: 0 | F89: 0.229 | G89: 0.0022 | H89: 2.42 | I89: 0.206 | J89: 6 | K89: 17 | L89: =G89*$D$29*$D$7 -> 0.495 | M89: =J49+J89/1000*$D$9+K89/1000*$D$8 -> 173.98544
A90: Euro_2 | B90: Automóvil | C90: ICE | D90: Diesel | E90: 0 | F90: 0.58 | G90: 0.0314 | H90: 0.092 | I90: 0.014 | J90: 10 | K90: 7 | L90: =G90*$D$31*$D$7 -> 22.608 | M90: 123.9254
A91: Euro_2 | B91: Automóvil | C91: GNC | D91: GNC | E91: 0 | F91: 0.056 | G91: 0.0011 | H91: 0.616 | I91: 0.035 | J91: 1 | K91: 57.3 | L91: 0 | M91: 190.9198
A92: Euro_2 | B92: Automóvil | C92: GNL | D92: GNL | E92: 0 | F92: 0.056 | G92: 0.0011 | H92: 0.616 | I92: 0.035 | J92: 1 | K92: 57.3 | L92: 0 | M92: 190.9198
A93: Euro_2 | B93: Automóvil | C93: HEV | D93: Gasolina | E93: 0 | F93: 0.013 | G93: 0 | H93: 0.042 | I93: 0.001 | J93: 0.2 | K93: 17 | L93: =G93*$D$29*$D$7 -> 0 | M93: 107.97865
A94: Euro_2 | B94: Automóvil | C94: PHEV | D94: Gasolina | E94: 0 | F94: 0.013 | G94: 0 | H94: 0.042 | I94: 0.001 | J94: 0.2 | K94: 17 | L94: =G94*$D$29*$D$7 -> 0 | M94: 104.90866
A95: Euro_2 | B95: Campero | C95: ICE | D95: Gasolina | E95: 0 | F95: 0.242 | G95: 0.0022 | H95: 1.67 | I95: 0.196 | J95: 6 | K95: 17 | L95: =G95*$D$29*$D$7 -> 0.495 | M95: 266.08514
A96: Euro_2 | B96: Campero | C96: ICE | D96: Diesel | E96: 0 | F96: 0.716 | G96: 0.0548 | H96: 0.296 | I96: 0.1 | J96: 5 | K96: 7 | L96: =G96*$D$31*$D$7 -> 39.456 | M96: 234.1209
A97: Euro_2 | B97: Campero | C97: GNC | D97: GNC | E97: 0 | F97: 0.056 | G97: 0.0011 | H97: 0.616 | I97: 0.035 | J97: 1 | K97: 57.3 | L97: 0 | M97: 190.9198
A98: Euro_2 | B98: Campero | C98: GNL | D98: GNL | E98: 0 | F98: 0.056 | G98: 0.0011 | H98: 0.616 | I98: 0.035 | J98: 1 | K98: 57.3 | L98: 0 | M98: 190.9198
A99: Euro_2 | B99: Campero | C99: HEV | D99: Gasolina | E99: 0 | F99: 0.013 | G99: 0 | H99: 0.043 | I99: 0.001 | J99: 0.2 | K99: 17 | L99: =G99*$D$31*$D$7 -> 0 | M99: 118.723615
A100: Euro_2 | B100: Campero | C100: PHEV | D100: Gasolina | E100: 0 | F100: 0.013 | G100: 0 | H100: 0.043 | I100: 0.001 | J100: 0.2 | K100: 17 | L100: =G100*$D$31*$D$7 -> 0 | M100: 104.90866
A101: Euro_2 | B101: Camioneta | C101: ICE | D101: Gasolina | E101: 0 | F101: 0.242 | G101: 0.0022 | H101: 1.67 | I101: 0.196 | J101: 6 | K101: 17 | L101: =G101*$D$29*$D$7 -> 0.495 | M101: 266.08514
A102: Euro_2 | B102: Camioneta | C102: ICE | D102: Diesel | E102: 0 | F102: 0.716 | G102: 0.0548 | H102: 0.296 | I102: 0.1 | J102: 5 | K102: 7 | L102: =G102*$D$31*$D$7 -> 39.456 | M102: 234.1209
A103: Euro_2 | B103: Camioneta | C103: GNC | D103: GNC | E103: 0 | F103: 0.056 | G103: 0.0011 | H103: 0.616 | I103: 0.035 | J103: 1 | K103: 57.3 | L103: 0 | M103: 190.9198
A104: Euro_2 | B104: Camioneta | C104: GNL | D104: GNL | E104: 0 | F104: 0.056 | G104: 0.0011 | H104: 0.616 | I104: 0.035 | J104: 1 | K104: 57.3 | L104: 0 | M104: 190.9198
A105: Euro_2 | B105: Camioneta | C105: HE | D105: Gasolina | E105: 0 | F105: 0.013 | G105: 0 | H105: 0.043 | I105: 0.001 | J105: 0.2 | K105: 17 | L105: =G105*$D$31*$D$7 -> 0 | M105: 118.723615
A106: Euro_2 | B106: Camioneta | C106: PHEV | D106: Gasolina | E106: 0 | F106: 0.013 | G106: 0 | H106: 0.043 | I106: 0.001 | J106: 0.2 | K106: 17 | L106: =G106*$D$31*$D$7 -> 0 | M106: 104.90866
A107: Euro_2 | B107: Motocicleta | C107: ICE | D107: Gasolina | E107: 0 | F107: 0.317 | G107: 0.0035 | H107: 7.17 | I107: 0.918 | J107: 2 | K107: 200 | L107: =G107*$D$35*$D$7 -> 0.7875 | M107: 67.5298
A108: Euro_2 | B108: Microbús | C108: ICE | D108: Gasolina | E108: 0 | F108: 6.6 | G108: 0 | H108: 59.5 | I108: 5.25 | J108: 6 | K108: 140 | L108: =G108*$D$33*$D$7 -> 0 | M108: 459.86852
A109: Euro_2 | B109: Microbús | C109: ICE | D109: Diesel | E109: 0 | F109: 3.49 | G109: 0.061 | H109: 0.537 | I109: 0.123 | J109: 4 | K109: 175 | L109: =G109*$D$33*$D$7 -> 35.685 | M109: 490.2776
A110: Euro_2 | B110: Bus | C110: ICE | D110: Diesel | E110: 0 | F110: 10.7 | G110: 0.22 | H110: 2.44 | I110: 0.463 | J110: 12 | K110: 175 | L110: =G110*$D$33*$D$7 -> 128.7 | M110: 967.1563
A111: Euro_2 | B111: Bus | C111: GNC | D111: GNC | E111: 0 | F111: 15 | G111: 0.01 | H111: 2.7 | I111: 0.313 | J111: 0 | K111: 4500 | L111: 0 | M111: 1491.364
A112: Euro_2 | B112: Bus | C112: GNL | D112: GNL | E112: 0 | F112: 15 | G112: 0.01 | H112: 2.7 | I112: 0.313 | J112: 0 | K112: 4500 | L112: 0 | M112: 1491.364
A113: Euro_2 | B113: Bus | C113: HEV | D113: Diesel | E113: 0 | F113: 0.597 | G113: 0.0023 | H113: 0.223 | I113: 0.22 | J113: 0.04 | K113: 80 | L113: =G113*$D$33*$D$7 -> 1.3455 | M113: 961.3269
A114: Euro_2 | B114: Camión | C114: GNC | D114: GNC | E114: 32 | F114: 15 | G114: 0.01 | H114: 2.7 | I114: 0.313 | J114: 0 | K114: 4500 | L114: 0 | M114: 1116.264
A115: Euro_2 | B115: Camión | C115: GNL | D115: GNL | E115: 32 | F115: 15 | G115: 0.01 | H115: 2.7 | I115: 0.313 | J115: 0 | K115: 4500 | L115: 0 | M115: 1116.264
A116: Euro_2 | B116: Camión | C116: HEV | D116: Diesel | E116: 32 | F116: 0.597 | G116: 0.0023 | H116: 0.223 | I116: 0.22 | J116: 0.04 | K116: 80 | L116: =G116*$D$33*$D$7 -> 1.3455 | M116: 324.0669
A117: Euro_2 | B117: Camión | C117: ICE | D117: Diesel | E117: 0 | F117: 3.49 | G117: 0.061 | H117: 0.537 | I117: 0.123 | J117: 4 | K117: 85 | L117: =G117*$D$33*$D$7 -> 35.685 | M117: 325.2563
A118: Euro_2 | B118: Camión | C118: ICE | D118: Diesel | E118: 7.5 | F118: 5.5 | G118: 0.104 | H118: 0.902 | I118: 0.207 | J118: 8 | K118: 85 | L118: =G118*$D$33*$D$7 -> 60.84 | M118: 498.3765
A119: Euro_2 | B119: Camión | C119: ICE | D119: Diesel | E119: 16 | F119: 7.91 | G119: 0.155 | H119: 1.38 | I119: 0.29 | J119: 7 | K119: 175 | L119: =G119*$D$33*$D$7 -> 90.675 | M119: 675.878
A120: Euro_2 | B120: Tractomula | C120: ICE | D120: Diesel | E120: 32 | F120: 9.36 | G120: 0.194 | H120: 1.69 | I120: 0.326 | J120: 12 | K120: 175 | L120: =G120*$D$33*$D$7 -> 113.49 | M120: 807.8413
A121: Euro_2 | B121: Tractomula | C121: GNC | D121: GNC | E121: 32 | F121: 15 | G121: 0.01 | H121: 2.7 | I121: 0.313 | J121: 0 | K121: 4500 | L121: 0 | M121: 1116.264
A122: Euro_2 | B122: Tractomula | C122: GNL | D122: GNL | E122: 32 | F122: 15 | G122: 0.01 | H122: 2.7 | I122: 0.313 | J122: 0 | K122: 4500 | L122: 0 | M122: 1116.264
B124: Euro 3
B125: Categoría | C125: Tipo de Vehículo | D125: Combustible | E125: Capacidad de Carga | F125: NOx | G125: PM2.5 | H125: CO | I125: NMVOC | J125: N2O | K125: CH4 | L125: BC | M125: CO2e TTW
F126: g/km | G126: g/km | H126: g/km | I126: g/km | J126: mg/km | K126: mg/km | L126: CO2eq/km | M126: g CO2eq/km
A127: Euro_3 | B127: Automóvil | C127: ICE | D127: Gasolina | E127: 0 | F127: 0.09 | G127: 0.0011 | H127: 2.07 | I127: 0.089 | J127: 2 | K127: 3 | L127: =G127*$D$29*$D$7 -> 0.2475 | M127: =J49+J127/1000*$D$9+K127/1000*$D$8 -> 172.53344
A128: Euro_3 | B128: Automóvil | C128: ICE | D128: Diesel | E128: 0 | F128: 0.58 | G128: 0.0314 | H128: 0.092 | I128: 0.014 | J128: 10 | K128: 3 | L128: =G128*$D$31*$D$7 -> 22.608 | M128: 123.8134
A129: Euro_3 | B129: Automóvil | C129: GNC | D129: GNC | E129: 0 | F129: 0.056 | G129: 0.0011 | H129: 0.616 | I129: 0.035 | J129: 1 | K129: 57.3 | L129: 0 | M129: 190.9198
A130: Euro_3 | B130: Automóvil | C130: GNL | D130: GNL | E130: 0 | F130: 0.056 | G130: 0.0011 | H130: 0.616 | I130: 0.035 | J130: 1 | K130: 57.3 | L130: 0 | M130: 190.9198
A131: Euro_3 | B131: Automóvil | C131: HEV | D131: Gasolina | E131: 0 | F131: 0.013 | G131: 0 | H131: 0.042 | I131: 0.001 | J131: 0.2 | K131: 3 | L131: =G131*$D$29*$D$7 -> 0 | M131: 107.58665
A132: Euro_3 | B132: Automóvil | C132: PHEV | D132: Gasolina | E132: 0 | F132: 0.013 | G132: 0 | H132: 0.042 | I132: 0.001 | J132: 0.2 | K132: 3 | L132: =G132*$D$29*$D$7 -> 0 | M132: =J54+J132/1000*$D$9+K132/1000*$D$8 -> 104.51666
A133: Euro_3 | B133: Campero | C133: ICE | D133: Gasolina | E133: 0 | F133: 0.091 | G133: 0.0011 | H133: 1.5 | I133: 0.088 | J133: 2 | K133: 3 | L133: =G133*$D$29*$D$7 -> 0.2475 | M133: 264.63314
A134: Euro_3 | B134: Campero | C134: ICE | D134: Diesel | E134: 0 | F134: 0.77 | G134: 0.0391 | H134: 0.089 | I134: 0.037 | J134: 10 | K134: 3 | L134: =G134*$D$31*$D$7 -> 28.152 | M134: 235.3339
A135: Euro_3 | B135: Campero | C135: GNC | D135: GNC | E135: 0 | F135: 0.056 | G135: 0.0011 | H135: 0.616 | I135: 0.035 | J135: 1 | K135: 57.3 | L135: 0 | M135: 190.9198
A136: Euro_3 | B136: Campero | C136: GNL | D136: GNL | E136: 0 | F136: 0.056 | G136: 0.0011 | H136: 0.616 | I136: 0.035 | J136: 1 | K136: 57.3 | L136: 0 | M136: 190.9198
A137: Euro_3 | B137: Campero | C137: HEV | D137: Gasolina | E137: 0 | F137: 0.013 | G137: 0 | H137: 0.043 | I137: 0.001 | J137: 0.2 | K137: 17 | L137: =G137*$D$31*$D$7 -> 0 | M137: 118.723615
A138: Euro_3 | B138: Campero | C138: PHEV | D138: Gasolina | E138: 0 | F138: 0.013 | G138: 0 | H138: 0.043 | I138: 0.001 | J138: 0.2 | K138: 17 | L138: =G138*$D$31*$D$7 -> 0 | M138: 104.90866
A139: Euro_3 | B139: Camioneta | C139: ICE | D139: Gasolina | E139: 0 | F139: 0.091 | G139: 0.0011 | H139: 1.5 | I139: 0.088 | J139: 2 | K139: 3 | L139: =G139*$D$29*$D$7 -> 0.2475 | M139: 264.63314
A140: Euro_3 | B140: Camioneta | C140: ICE | D140: Diesel | E140: 0 | F140: 0.77 | G140: 0.0391 | H140: 0.089 | I140: 0.037 | J140: 10 | K140: 3 | L140: =G140*$D$31*$D$7 -> 28.152 | M140: 235.3339
A141: Euro_3 | B141: Camioneta | C141: GNC | D141: GNC | E141: 0 | F141: 0.056 | G141: 0.0011 | H141: 0.616 | I141: 0.035 | J141: 1 | K141: 57.3 | L141: 0 | M141: 190.9198
A142: Euro_3 | B142: Camioneta | C142: GNL | D142: GNL | E142: 0 | F142: 0.056 | G142: 0.0011 | H142: 0.616 | I142: 0.035 | J142: 1 | K142: 57.3 | L142: 0 | M142: 190.9198
A143: Euro_3 | B143: Camioneta | C143: HEV | D143: Gasolina | E143: 0 | F143: 0.013 | G143: 0 | H143: 0.043 | I143: 0.001 | J143: 0.2 | K143: 17 | L143: =G143*$D$31*$D$7 -> 0 | M143: 118.723615
A144: Euro_3 | B144: Camioneta | C144: PHEV | D144: Gasolina | E144: 0 | F144: 0.013 | G144: 0 | H144: 0.043 | I144: 0.001 | J144: 0.2 | K144: 17 | L144: =G144*$D$31*$D$7 -> 0 | M144: 104.90866
A145: Euro_3 | B145: Motocicleta | C145: ICE | D145: Gasolina | E145: 0 | F145: 0.194 | G145: 0.0035 | H145: 3.03 | I145: 0.541 | J145: 2 | K145: 200 | L145: =G145*$D$35*$D$7 -> 0.7875 | M145: 67.5298
A146: Euro_3 | B146: Microbús | C146: ICE | D146: Gasolina | E146: 0 | F146: 6.6 | G146: 0 | H146: 59.5 | I146: 5.25 | J146: 6 | K146: 140 | L146: =G146*$D$33*$D$7 -> 0 | M146: 459.86852
A147: Euro_3 | B147: Microbús | C147: ICE | D147: Diesel | E147: 0 | F147: 2.63 | G147: 0.0566 | H147: 0.584 | I147: 0.115 | J147: 3 | K147: 175 | L147: =G147*$D$33*$D$7 -> 33.111 | M147: 490.0126
A148: Euro_3 | B148: Bus | C148: ICE | D148: Diesel | E148: 0 | F148: 9.38 | G148: 0.207 | H148: 2.67 | I148: 0.409 | J148: 1 | K148: 175 | L148: =G148*$D$33*$D$7 -> 121.095 | M148: 964.2413
A149: Euro_3 | B149: Bus | C149: GNC | D149: GNC | E149: 0 | F149: 10 | G149: 0.01 | H149: 1 | I149: 0.052 | J149: 0 | K149: 1280 | L149: 0 | M149: 1401.204
A150: Euro_3 | B150: Bus | C150: GNL | D150: GNL | E150: 0 | F150: 10 | G150: 0.01 | H150: 1 | I150: 0.052 | J150: 0 | K150: 1280 | L150: 0 | M150: 1401.204
A151: Euro_3 | B151: Bus | C151: HEV | D151: Diesel | E151: 0 | F151: 0.597 | G151: 0.0023 | H151: 0.223 | I151: 0.22 | J151: 0.04 | K151: 80 | L151: =G151*$D$33*$D$7 -> 1.3455 | M151: 961.3269
A152: Euro_3 | B152: Camión | C152: GNC | D152: GNC | E152: 32 | F152: 10 | G152: 0.01 | H152: 1 | I152: 0.052 | J152: 0 | K152: 1280 | L152: 0 | M152: 1026.104
A153: Euro_3 | B153: Camión | C153: GNL | D153: GNL | E153: 32 | F153: 10 | G153: 0.01 | H153: 1 | I153: 0.052 | J153: 0 | K153: 1280 | L153: 0 | M153: 1026.104
A154: Euro_3 | B154: Camión | C154: HEV | D154: Diesel | E154: 32 | F154: 0.597 | G154: 0.0023 | H154: 0.223 | I154: 0.22 | J154: 0.04 | K154: 80 | L154: =G154*$D$33*$D$7 -> 1.3455 | M154: 324.0669
A155: Euro_3 | B155: Camión | C155: ICE | D155: Diesel | E155: 0 | F155: 2.63 | G155: 0.0566 | H155: 0.584 | I155: 0.115 | J155: 3 | K155: 85 | L155: =G155*$D$33*$D$7 -> 33.111 | M155: 324.9913
A156: Euro_3 | B156: Camión | C156: ICE | D156: Diesel | E156: 7.5 | F156: 4.3 | G156: 0.0881 | H156: 0.972 | I156: 0.189 | J156: 4 | K156: 85 | L156: =G156*$D$33*$D$7 -> 51.5385 | M156: 497.3165
A157: Euro_3 | B157: Camión | C157: ICE | D157: Diesel | E157: 16 | F157: 6.27 | G157: 0.13 | H157: 1.49 | I157: 0.278 | J157: 4 | K157: 175 | L157: =G157*$D$33*$D$7 -> 76.05 | M157: 675.083
A158: Euro_3 | B158: Tractomula | C158: ICE | D158: Diesel | E158: 32 | F158: 7.43 | G158: 0.151 | H158: 1.79 | I158: 0.308 | J158: 7 | K158: 175 | L158: =G158*$D$33*$D$7 -> 88.335 | M158: 806.5163
A159: Euro_3 | B159: Tractomula | C159: GNC | D159: GNC | E159: 32 | F159: 10 | G159: 0.01 | H159: 1 | I159: 0.052 | J159: 0 | K159: 1280 | L159: 0 | M159: 1026.104
A160: Euro_3 | B160: Tractomula | C160: GNL | D160: GNL | E160: 32 | F160: 10 | G160: 0.01 | H160: 1 | I160: 0.052 | J160: 0 | K160: 1280 | L160: 0 | M160: 1026.104
B162: Euro 4
B163: Categoría | C163: Tipo de Vehículo | D163: Combustible | E163: Capacidad de Carga | F163: NOx | G163: PM2.5 | H163: CO | I163: NMVOC | J163: N2O | K163: CH4 | L163: BC | M163: CO2e TTW
F164: g/km | G164: g/km | H164: g/km | I164: g/km | J164: mg/km | K164: mg/km | L164: CO2eq/km | M164: g CO2eq/km
A165: Euro_4 | B165: Automóvil | C165: ICE | D165: Gasolina | E165: 0 | F165: 0.056 | G165: 0.0011 | H165: 0.69 | I165: 0.048 | J165: 2 | K165: 2.87 | L165: =G165*$D$29*$D$7 -> 0.2475 | M165: =J49+J165/1000*$D$9+K165/1000*$D$8 -> 172.5298
A166: Euro_4 | B166: Automóvil | C166: ICE | D166: Diesel | E166: 0 | F166: 0.58 | G166: 0.0314 | H166: 0.092 | I166: 0.014 | J166: 10 | K166: 1.1 | L166: =G166*$D$31*$D$7 -> 22.608 | M166: 123.7602
A167: Euro_4 | B167: Automóvil | C167: GNC | D167: GNC | E167: 0 | F167: 0.056 | G167: 0.0011 | H167: 0.616 | I167: 0.035 | J167: 1 | K167: 57.3 | L167: 0 | M167: 190.9198
A168: Euro_4 | B168: Automóvil | C168: GNL | D168: GNL | E168: 0 | F168: 0.056 | G168: 0.0011 | H168: 0.616 | I168: 0.035 | J168: 1 | K168: 57.3 | L168: 0 | M168: 190.9198
A169: Euro_4 | B169: Automóvil | C169: HEV | D169: Gasolina | E169: 0 | F169: 0.013 | G169: 0 | H169: 0.042 | I169: 0.001 | J169: 0.2 | K169: 17 | L169: =G169*$D$29*$D$7 -> 0 | M169: 107.97865
A170: Euro_4 | B170: Automóvil | C170: PHEV | D170: Gasolina | E170: 0 | F170: 0.013 | G170: 0 | H170: 0.042 | I170: 0.001 | J170: 0.2 | K170: 17 | L170: =G170*$D$29*$D$7 -> 0 | M170: 104.90866
A171: Euro_4 | B171: Campero | C171: ICE | D171: Gasolina | E171: 0 | F171: 0.059 | G171: 0.0011 | H171: 0.53 | I171: 0.048 | J171: 2 | K171: 2.87 | L171: =G171*$D$29*$D$7 -> 0.2475 | M171: 264.6295
A172: Euro_4 | B172: Campero | C172: ICE | D172: Diesel | E172: 0 | F172: 0.58 | G172: 0.031 | H172: 0.092 | I172: 0.014 | J172: 10 | K172: 1.1 | L172: =G172*$D$31*$D$7 -> 22.32 | M172: 235.2807
A173: Euro_4 | B173: Campero | C173: GNC | D173: GNC | E173: 0 | F173: 0.056 | G173: 0.0011 | H173: 0.616 | I173: 0.035 | J173: 1 | K173: 57.3 | L173: 0 | M173: 190.9198
A174: Euro_4 | B174: Campero | C174: GNL | D174: GNL | E174: 0 | F174: 0.056 | G174: 0.0011 | H174: 0.616 | I174: 0.035 | J174: 1 | K174: 57.3 | L174: 0 | M174: 190.9198
A175: Euro_4 | B175: Campero | C175: HEV | D175: Gasolina | E175: 0 | F175: 0.013 | G175: 0 | H175: 0.043 | I175: 0.001 | J175: 0.2 | K175: 17 | L175: =G175*$D$31*$D$7 -> 0 | M175: 118.723615
A176: Euro_4 | B176: Campero | C176: PHEV | D176: Gasolina | E176: 0 | F176: 0.013 | G176: 0 | H176: 0.043 | I176: 0.001 | J176: 0.2 | K176: 17 | L176: =G176*$D$31*$D$7 -> 0 | M176: 104.90866
A177: Euro_4 | B177: Camioneta | C177: ICE | D177: Gasolina | E177: 0 | F177: 0.059 | G177: 0.0011 | H177: 0.53 | I177: 0.048 | J177: 2 | K177: 2.87 | L177: =G177*$D$29*$D$7 -> 0.2475 | M177: 264.6295
A178: Euro_4 | B178: Camioneta | C178: ICE | D178: Diesel | E178: 0 | F178: 0.58 | G178: 0.031 | H178: 0.092 | I178: 0.014 | J178: 10 | K178: 1.1 | L178: =G178*$D$31*$D$7 -> 22.32 | M178: 235.2807
A179: Euro_4 | B179: Camioneta | C179: GNC | D179: GNC | E179: 0 | F179: 0.056 | G179: 0.0011 | H179: 0.616 | I179: 0.035 | J179: 1 | K179: 57.3 | L179: 0 | M179: 190.9198
A180: Euro_4 | B180: Camioneta | C180: GNL | D180: GNL | E180: 0 | F180: 0.056 | G180: 0.0011 | H180: 0.616 | I180: 0.035 | J180: 1 | K180: 57.3 | L180: 0 | M180: 190.9198
A181: Euro_4 | B181: Camioneta | C181: HEV | D181: Gasolina | E181: 0 | F181: 0.013 | G181: 0 | H181: 0.043 | I181: 0.001 | J181: 0.2 | K181: 17 | L181: =G181*$D$31*$D$7 -> 0 | M181: 118.723615
A182: Euro_4 | B182: Camioneta | C182: PHEV | D182: Gasolina | E182: 0 | F182: 0.013 | G182: 0 | H182: 0.043 | I182: 0.001 | J182: 0.2 | K182: 17 | L182: =G182*$D$31*$D$7 -> 0 | M182: 104.90866
A183: Euro_4 | B183: Motocicleta | C183: ICE | D183: Gasolina | E183: 0 | F183: 0.194 | G183: 0.0035 | H183: 3.03 | I183: 0.541 | J183: 2 | K183: 200 | L183: =G183*$D$35*$D$7 -> 0.7875 | M183: 67.5298
A184: Euro_4 | B184: Microbús | C184: ICE | D184: Gasolina | E184: 0 | F184: 6.6 | G184: 0 | H184: 59.5 | I184: 5.25 | J184: 6 | K184: 140 | L184: =G184*$D$33*$D$7 -> 0 | M184: 459.86852
A185: Euro_4 | B185: Microbús | C185: ICE | D185: Diesel | E185: 0 | F185: 1.64 | G185: 0.0061 | H185: 0.047 | I185: 0.005 | J185: 6 | K185: 175 | L185: =G185*$D$33*$D$7 -> 3.5685 | M185: 490.8076
A186: Euro_4 | B186: Bus | C186: ICE | D186: Diesel | E186: 0 | F186: 5.42 | G186: 0.0462 | H186: 0.223 | I186: 0.022 | J186: 12 | K186: 175 | L186: =G186*$D$33*$D$7 -> 27.027 | M186: 967.1563
A187: Euro_4 | B187: Bus | C187: GNC | D187: GNC | E187: 0 | F187: 2.5 | G187: 0.005 | H187: 1 | I187: 0.042 | J187: 0 | K187: 980 | L187: 0 | M187: 1392.804
A188: Euro_4 | B188: Bus | C188: GNL | D188: GNL | E188: 0 | F188: 2.5 | G188: 0.005 | H188: 1 | I188: 0.042 | J188: 0 | K188: 980 | L188: 0 | M188: 1392.804
A189: Euro_4 | B189: Bus | C189: HEV | D189: Diesel | E189: 0 | F189: 0.597 | G189: 0.0023 | H189: 0.223 | I189: 0.22 | J189: 0.04 | K189: 80 | L189: =G189*$D$33*$D$7 -> 1.3455 | M189: 961.3269
A190: Euro_4 | B190: Camión | C190: GNC | D190: GNC | E190: 32 | F190: 2.5 | G190: 0.005 | H190: 1 | I190: 0.042 | J190: 0 | K190: 980 | L190: 0 | M190: 1017.704
A191: Euro_4 | B191: Camión | C191: GNL | D191: GNL | E191: 32 | F191: 2.5 | G191: 0.005 | H191: 1 | I191: 0.042 | J191: 0 | K191: 980 | L191: 0 | M191: 1017.704
A192: Euro_4 | B192: Camión | C192: HEV | D192: Diesel | E192: 32 | F192: 0.597 | G192: 0.0023 | H192: 0.223 | I192: 0.22 | J192: 0.04 | K192: 80 | L192: =G192*$D$33*$D$7 -> 1.3455 | M192: 324.0669
A193: Euro_4 | B193: Camión | C193: ICE | D193: Diesel | E193: 0 | F193: 1.64 | G193: 0.0061 | H193: 0.047 | I193: 0.005 | J193: 6 | K193: 85 | L193: =G193*$D$33*$D$7 -> 3.5685 | M193: 325.7863
A194: Euro_4 | B194: Camión | C194: ICE | D194: Diesel | E194: 7.5 | F194: 2.65 | G194: 0.0161 | H194: 0.071 | I194: 0.008 | J194: 12 | K194: 85 | L194: =G194*$D$33*$D$7 -> 9.4185 | M194: 499.4365
A195: Euro_4 | B195: Camión | C195: ICE | D195: Diesel | E195: 16 | F195: 3.83 | G195: 0.0239 | H195: 0.105 | I195: 0.01 | J195: 12 | K195: 175 | L195: =G195*$D$33*$D$7 -> 13.9815 | M195: 677.203
A196: Euro_4 | B196: Tractomula | C196: ICE | D196: Diesel | E196: 32 | F196: 4.61 | G196: 0.0268 | H196: 0.121 | I196: 0.012 | J196: 18 | K196: 175 | L196: =G196*$D$33*$D$7 -> 15.678 | M196: 809.4313
A197: Euro_4 | B197: Tractomula | C197: GNC | D197: GNC | E197: 32 | F197: 2.5 | G197: 0.005 | H197: 1 | I197: 0.042 | J197: 0 | K197: 980 | L197: 0 | M197: 1017.704
A198: Euro_4 | B198: Tractomula | C198: GNL | D198: GNL | E198: 32 | F198: 2.5 | G198: 0.005 | H198: 1 | I198: 0.042 | J198: 0 | K198: 980 | L198: 0 | M198: 1017.704
B200: Euro 5
B201: Categoría | C201: Tipo de Vehículo | D201: Combustible | E201: Capacidad de Carga | F201: NOx | G201: PM2.5 | H201: CO | I201: NMVOC | J201: N2O | K201: CH4 | L201: BC | M201: CO2e TTW
F202: g/km | G202: g/km | H202: g/km | I202: g/km | J202: mg/km | K202: mg/km | L202: CO2eq/km | M202: g CO2eq/km
A203: Euro_5 | B203: Automóvil | C203: ICE | D203: Gasolina | E203: 0 | F203: 0.056 | G203: 0.0014 | H203: 0.69 | I203: 0.048 | J203: 1.3 | K203: 2.87 | L203: =G203*$D$29*$D$7 -> 0.315 | M203: =J49+J203/1000*$D$9+K203/1000*$D$8 -> 172.3443
A204: Euro_5 | B204: Automóvil | C204: ICE | D204: Diesel | E204: 0 | F204: 0.55 | G204: 0.0021 | H204: 0.049 | I204: 0.01 | J204: 4 | K204: 0.075 | L204: =G204*$D$31*$D$7 -> 1.512 | M204: 122.1415
A205: Euro_5 | B205: Automóvil | C205: GNC | D205: GNC | E205: 0 | F205: 0.056 | G205: 0.0011 | H205: 0.616 | I205: 0.035 | J205: 1 | K205: 57.3 | L205: 0 | M205: 190.9198
A206: Euro_5 | B206: Automóvil | C206: GNL | D206: GNL | E206: 0 | F206: 0.056 | G206: 0.0011 | H206: 0.616 | I206: 0.035 | J206: 1 | K206: 57.3 | L206: 0 | M206: 190.9198
A207: Euro_5 | B207: Automóvil | C207: HEV | D207: Gasolina | E207: 0 | F207: 0.013 | G207: 0 | H207: 0.042 | I207: 0.001 | J207: 0.2 | K207: 17 | L207: =G207*$D$29*$D$7 -> 0 | M207: 107.97865
A208: Euro_5 | B208: Automóvil | C208: PHEV | D208: Gasolina | E208: 0 | F208: 0.013 | G208: 0 | H208: 0.042 | I208: 0.001 | J208: 0.2 | K208: 17 | L208: =G208*$D$29*$D$7 -> 0 | M208: 104.90866
A209: Euro_5 | B209: Campero | C209: ICE | D209: Gasolina | E209: 0 | F209: 0.059 | G209: 0.0014 | H209: 0.53 | I209: 0.048 | J209: 1.3 | K209: 2.87 | L209: =G209*$D$29*$D$7 -> 0.315 | M209: 264.444
A210: Euro_5 | B210: Campero | C210: ICE | D210: Diesel | E210: 0 | F210: 0.55 | G210: 0.0021 | H210: 0.04 | I210: 0.008 | J210: 4 | K210: 0.075 | L210: =G210*$D$31*$D$7 -> 1.512 | M210: 233.662
A211: Euro_5 | B211: Campero | C211: GNC | D211: GNC | E211: 0 | F211: 0.056 | G211: 0.0011 | H211: 0.616 | I211: 0.035 | J211: 1 | K211: 57.3 | L211: 0 | M211: 190.9198
A212: Euro_5 | B212: Campero | C212: GNL | D212: GNL | E212: 0 | F212: 0.056 | G212: 0.0011 | H212: 0.616 | I212: 0.035 | J212: 1 | K212: 57.3 | L212: 0 | M212: 190.9198
... 78 more rows

Sheet BD5 (Factores)
B5: Cod. | D5: Condiciones impositivas sobre el CAPEX de los vehículos | E5: Valor | G5: Definición | H5: Fuente
B7: IN1.1 | D7: IVA vehículos convencional Actual | E7: 0.19 | G7: % de IVA aplicable para vehículos ICE actual | H7: De acuerdo al Estatuto Tributario
B8: IN1.2 | D8: Arancel vehículos ICE | E8: 0.35 | G8: % de arancel para vehículos ICE actual | H8: De acuerdo al Estatuto Tributario
B9: IN1.3 | D9: IVA vehículos a gas Actual | E9: 0.19 | G9: % de IVA aplicable para vehículos GNC/GNL actual | H9: De acuerdo al Estatuto Tributario
B10: IN1.4 | D10: Arancel vehículos a gas Actual | E10: 0.2 | G10: % de arancel para vehículos GNC/GNL actual | H10: De acuerdo al Estatuto Tributario
B11: IN1.5 | D11: IVA HEV/PHEV Actual | E11: 0.05 | G11: % de IVA aplicable para vehículos HEV/PHEV actual | H11: De acuerdo al Estatuto Tributario
B12: IN1.6 | D12: Arancel HEV/PHEV Actual | E12: 0.05 | G12: % de arancel para vehículos HEV/PHEV actual | H12: De acuerdo al Estatuto Tributario
B13: IN1.7 | D13: IVA BEV/FCEV Actual | E13: 0.05 | G13: % de IVA aplicable para vehículos BEV/FCEV actual | H13: De acuerdo al Estatuto Tributario
B14: IN1.8 | D14: Arancel BEV/FCEV Actual | E14: 0 | G14: % de arancel para vehículos BEV/FCEV actual | H14: De acuerdo al Estatuto Tributario
B15: IN1.9 | D15: % inflación nacional (promedio) | E15: 0.035 | G15: % inflación nacional (promedio)
B18: Cod. | D18: Supuestos sobre CAPEX futuros de vehículos de cero y baja emisión | E18: Valor | G18: Definición
B20: IN1.10 | D20: % de cambio anual sobre CAPEX vehículos GNC/GNL | E20: -0.01 | G20: % de incremento o reducción por año de CAPEX de vehículos a gas | H20: Supuesto de Hinicio con base en trayectorias de costo de adquisición de vehículos en Europa
B21: IN1.11 | D21: % de cambio anual sobre CAPEX vehículos HEV/PHEV | E21: -0.005 | G21: % de incremento o reducción por año de CAPEX de vehículos híbridos | H21: Supuesto de Hinicio con base en trayectorias de costo de adquisición de vehículos en Europa
B22: IN1.12 | D22: % de cambio anual sobre CAPEX vehículos BEV | E22: -0.01 | G22: % de incremento o reducción por año de CAPEX de vehículos eléctricos a batería | H22: Supuesto de Hinicio con base en trayectorias de costo de adquisición de vehículos en Europa
B23: IN1.13 | D23: % de cambio anual sobre CAPEX vehículos FCEV | E23: -0.005 | G23: % de incremento o reducción por año de CAPEX de vehículos eléctricos a hidrógeno | H23: Supuesto de Hinicio con base en trayectorias de costo de adquisición de vehículos en Europa
B25: Cod.
B27: IN1.14
B28: IN1.15
B29: IN1.16
B31: Cod | D31: Vida útil de vehículos y componentes | E31: Valor | G31: Definición
B33: IN1.17 | D33: Vida útil vehículo ICE | E33: 8 | G33: Número de años de vida útil de los vehículos convencionales | H33: Supuesto de Hinicio, ajustado con base en recomendaciones de UPME
B34: IN1.18 | D34: Vida útil vehículo GNC/GNL | E34: 8 | G34: Número de años de vida útil de los vehículos a gas | H34: Supuesto de Hinicio, ajustado con base en recomendaciones de UPME
B35: IN1.19 | D35: Vida útil vehículo HEV/PHEV | E35: 8 | G35: Número de años de vida útil de los vehículos híbridos | H35: Supuesto de Hinicio, ajustado con base en recomendaciones de UPME
B36: IN1.20 | D36: Vida útil vehículo BEV/FCEV | E36: 8 | G36: Número de años de vida útil de los vehículos eléctricos | H36: Supuesto de Hinicio, ajustado con base en recomendaciones de UPME
B37: IN1.21 | D37: Vida útil de baterías en HEV/PHEV | E37: 8 | G37: Número de años de vida útil de baterías en híbridos antes de sustitución | H37: Con base en cifras de garantía de fabricantes, que ofrecen 8 años o 100.000 millas
B38: IN1.22 | D38: Vida útil de baterías en BEV | E38: 8 | G38: Número de años de vida útil de baterías en eléctricos a batería antes de sustitución | H38: Con base en cifras de garantía de fabricantes, que ofrecen 8 años o 100.000 millas
B39: IN1.23 | D39: Vida útil de baterías en FCEV | E39: 8 | G39: Número de años de vida útil de celda de combustible en FCEV antes de sustitución | H39: Con base en cifras de garantía de fabricantes, que ofrecen 8 años o 100.000 millas
B41: Cod | D41: Impuesto de rodamiento de vehículos | E41: Valor | G41: Definición
B43: IN1.24 | D43: Impuesto de rodamiento vehículo particulares avaluados hasta $48.029.000 | E43: 0.015 | H43: Según el Decreto 1679 del 17 de diciembre de 2020
B44: IN1.25 | D44: Impuesto de rodamiento vehículo particulares avaluados de $48.029.000 hasta $108.063.000 | E44: 0.025 | H44: Según el Decreto 1679 del 17 de diciembre de 2020
B45: IN1.26 | D45: Impuesto de rodamiento vehículo particulares avaluados en más de $108.063.000 | E45: 0.035 | H45: Según el Decreto 1679 del 17 de diciembre de 2020
B46: IN1.27 | D46: Impuesto de rodamiento motocicletas | E46: 0.015 | H46: Según el Decreto 1679 del 17 de diciembre de 2020
B47: IN1.28 | D47: Impuesto de rodamiento vehículo de servicio publico | E47: 0.005 | H47: Según el Decreto 1679 del 17 de diciembre de 2020
B48: IN1.29 | D48: Impuesto de rodamiento vehículos eléctricos BEV/FCEV | E48: 0.01 | G48: Vehículos particulares | H48: Según el Decreto 1679 del 17 de diciembre de 2020
B49: IN1.30
B51: Cod | D51: Otros supuestos de CAPEX | E51: Valor | G51: Definición
B53: IN1.31 | D53: Costo de batería en HEV/PHEV | E53: 0.3 | G53: % del CAPEX de un HEV/PHEV que corresponde a batería | H53: Supuesto de Hinicio con base a "Update on electric vehicle costs in the United States through 2030", ICCT, 2019
B54: IN1.32 | D54: Costo de batería en BEV | E54: 0.3 | G54: % del CAPEX de un BEV que corresponde a batería | H54: Supuesto de Hinicio con base a "Update on electric vehicle costs in the United States through 2030", ICCT, 2019
B55: IN1.33 | D55: Costo de celda de combustible en FCEV | E55: 0.25 | G55: % del CAPEX de un FCEV que corresponde a la celda de combustible | H55: Con base en bases de datos internas de Hinicio de FCEV's disponibles en Europa
B56: IN1.34 | D56: Costo de estación de carga eléctrica Nivel 2 7kW (Wallbox) e Instalación | E56: =1700*TRM -> 5950000 | G56: Costo en pesos colombianos de una estación de recarga para PHEV/BEV en Nivel 1 | H56: Electric charging for fleets: A COMPENDIUM FOR BUILDING AN ELECTRIC CHARGING INFASTRUCTURESWITHIN THE COMPANYVERSION 1.0, DECEMBER 2018. Volkswagen AG
B57: IN1.35 | D57: Costo de estación de carga eléctrica Nivel 2 44kW (Estación de carga) e Instalación | E57: =11000*TRM -> 38500000 | G57: Costo en pesos colombianos de una estación de recarga para PHEV/BEV en Nivel 2 | H57: Electric charging for fleets: A COMPENDIUM FOR BUILDING AN ELECTRIC CHARGING INFASTRUCTURESWITHIN THE COMPANYVERSION 1.0, DECEMBER 2018. Volkswagen AG
B58: IN1.36 | D58: Costo de estación de carga eléctrica Nivel 3 DC de 50kW (DC Carga Rápida) e Instalación | E58: =75500*TRM -> 264250000 | G58: Costo en pesos colombianos de una estación de recarga para PHEV/BEV en Nivel 3 | H58: Electric charging for fleets: A COMPENDIUM FOR BUILDING AN ELECTRIC CHARGING INFASTRUCTURESWITHIN THE COMPANYVERSION 1.0, DECEMBER 2018. Volkswagen AG
B59: IN1.37 | D59: % de valor de salvamento delvehìculo al fin de vida útil | E59: 0.05 | H59: Supuesto de Hinicio
B60: IN1.38 | D60: Costo de HRS de 1 a 1.5MW | E60: =1600000*TRM -> 5600000000 | G60: Costo en pesos colombianos de una estación de recarga de hidrógeno on-site de 1 a 1.5MW | H60: Supuesto de Hinicio partiendo de una figura de CAPEX de 1 MMUSD/MW de electrolizador PEM, y 600.000 USD de BOP
B62: Cod. | D62: Costo de O&M de vehículos | E62: Valor | G62: Definición
B64: IN1.39 | D64: Reducción anual en costos de O&M en vehículos cero y baja emisión | E64: 0.005 | G64: % de reducción anual para nuevos vehículos en sus costos O&M | H64: Supuesto conservador de Hinicio sin fuente específica
B65: IN1.40 | D65: Costo de mantenimiento actual vehículos ICE - automóviles, camperos, camionetas | E65: 0,00 | G65: En pesos colombianos por kilómetro recorrido | H65: Con base en datos para un Toyota Yaris reportados por Purdy Motor, Costa Rica
B66: IN1.41 | D66: Costo de mantenimiento actual vehículos ICE - motos | E66: 46.66666667 | G66: En pesos colombianos por kilómetro recorrido | H66: Con base en datos para una Motocicleta Honda de 125cc
B67: IN1.42 | D67: Costo de mantenimiento actual vehículos ICE - Buses y Microbús | E67: 595 | G67: En pesos colombianos por kilómetro recorrido | H67: Con base en datos reportados para un bus 12m Solaris Urbino
B68: IN1.43 | D68: Costo de mantenimiento actual vehículos ICE - Camiones y tractomulas | E68: 595 | G68: En pesos colombianos por kilómetro recorrido | H68: Con base en datos reportados para una Kenworth W900
B69: IN1.44 | D69: Costo de mantenimiento actual vehículos GNC/GNL - automóviles, camperos, camionetas | E69: 108.5 | G69: En pesos colombianos por kilómetro recorrido | H69: Supuesto: el costo es igual que para un vehículo ICE
B70: IN1.45 | D70: Costo de mantenimiento actual vehículos GNC/GNL - motos | E70: 0 | G70: En pesos colombianos por kilómetro recorrido | H70: No hay datos para esta categoría de vehículos reportados
B71: IN1.46 | D71: Costo de mantenimiento actual vehículos GNC/GNL - Buses y Microbuses | E71: 595 | G71: En pesos colombianos por kilómetro recorrido | H71: Supuesto: el costo es igual que para un vehículo ICE
B72: IN1.47 | D72: Costo de mantenimiento actual vehículos GNC/GNL - Camiones y tractomulas | E72: 595 | G72: En pesos colombianos por kilómetro recorrido | H72: Supuesto: el costo es igual que para un vehículo ICE
B73: IN1.48 | D73: Costo de mantenimiento actual vehículos HEV/PHEV - automóviles, camperos, camionetas | E73: 83.475 | G73: En pesos colombianos por kilómetro recorrido | H73: Estimado con base a promedio entre costo de mantenimiento ICE y BEV
B74: IN1.49 | D74: Costo de mantenimiento actual vehículos HEV/PHEV - motos | E74: 0 | G74: En pesos colombianos por kilómetro recorrido | H74: No hay datos para esta categoría de vehículos reportados
B75: IN1.50 | D75: Costo de mantenimiento actual vehículos HEV/PHEV - Buses y Microbuses | E75: 472.5 | G75: En pesos colombianos por kilómetro recorrido | H75: Estimado con base a promedio entre costo de mantenimiento ICE y BEV
B76: IN1.51 | D76: Costo de mantenimiento actual vehículos HEV/PHEV - Camiones y tractomulas | E76: 472.5 | G76: En pesos colombianos por kilómetro recorrido | H76: Estimado con base a promedio entre costo de mantenimiento ICE y BEV
B77: IN1.52 | D77: Costo de mantenimiento actual vehículos BEV - automóviles, camperos, camionetas | E77: 58.45 | G77: En pesos colombianos por kilómetro recorrido | H77: Con base en datos para un Hyundai Ioniq reportados por Purdy Motor, Costa Rica
B78: IN1.53 | D78: Costo de mantenimiento actual vehículos BEV - motos | E78: 30 | G78: En pesos colombianos por kilómetro recorrido | H78: Estimado de Hinicio con base a costos de mantenimiento de otros eléctricos de dos ruedas
B79: IN1.54 | D79: Costo de mantenimiento actual vehículos BEV - Buses | E79: 350 | G79: En pesos colombianos por kilómetro recorrido | H79: Con base en datos reportados para un bus 12m Solaris Urbino eléctrico
B80: IN1.55 | D80: Costo de mantenimiento actual vehículos BEV - Camiones y tractomulas | E80: 350 | G80: En pesos colombianos por kilómetro recorrido | H80: Con base en datos reportados para un XoS ET One
B81: IN1.56 | D81: Costo de mantenimiento actual vehículos FCEV - - automóviles, camperos, camionetas | E81: 136.5 | G81: En pesos colombianos por kilómetro recorrido | H81: Con base en datos para un Toyota Mirai reportados por Purdy Motor, Costa Rica
B82: IN1.57 | D82: Costo de mantenimiento actual vehículos FCEV- motos | E82: 0 | G82: En pesos colombianos por kilómetro recorrido | H82: No hay datos para esta categoría de vehículos reportados
B83: IN1.58 | D83: Costo de mantenimiento actual vehículos FCEV - Buses | E83: 350 | G83: En pesos colombianos por kilómetro recorrido | H83: Con base en datos reportados para un bus Van Hool A330
B84: IN1.59 | D84: Costo de mantenimiento actual vehículos FCEV - Camiones y tractomulas | E84: 350 | G84: En pesos colombianos por kilómetro recorrido | H84: Con base en datos reportados para una Kenworth T680s FCEV
B86: Cod. | D86: Supuestos para dimesnioanmiento de infraestructura N1 | E86: Valor | G86: Definición | H86: Fuente
B87: IN1.60 | D87: Tiempo de carga medio para BEV liviano - cargador 7kW (horas) | E87: 6 | G87: Horas de carga de vacío a lleno de un BEV liviano tipo | H87: Basasdo en cálcuos de entrega de potencia entre 7kW y batería de 35 kWh
B88: IN1.61 | D88: Tiempo de carga medio para PHEV liviano - cargador 7kW (horas) | E88: 2.5 | G88: Horas de carga de vacío a lleno de un PHEV liviano tipo | H88: Basado en cálculos de entrega de potencia entre 7kW y batería de 18 kWh
B89: IN1.62 | D89: Número de cargas diarias por conector por día laboral | E89: 2 | G89: Por cada conector, se podrían lograr dos cargas diarias, considerando que un día laboral consta de 8 horas | H89: Supuesto Hinicio
B90: IN1.63 | D90: Conectores por cargador | E90: 1 | G90: Wallbox de 1 manguera | H90: Supuesto Hinicio
B91: IN1.64 | D91: Factor de seguridad | E91: 1.5 | G91: Factor de seguridad para sobredimensionar cargadores y permitir redundancia | H91: Supuesto Hinicio
B93: Cod. | D93: Supuestos para dimensionamiento de infraestructura N2 | E93: Valor | G93: Definición | H93: Fuente
B94: IN1.65 | D94: Tiempo de carga medio para BEV pesado - cargador 44 kW (horas) | E94: 8 | G94: Horas de carga de vacío a lleno de un BEV tipo bus/camión | H94: Basado en cálculos de entrega de potencia entre 44kW y batería de 350 kWh
B95: IN1.66 | D95: Número de cargas diarias por conector por día laboral | E95: 1 | G95: Por cada conector, se podrían lograr dos cargas diarias, considerando que un día laboral consta de 8 horas | H95: Supuesto Hinicio
B96: IN1.67 | D96: Conectores por cargador | E96: 2 | G96: Estación de carga con dos conectores | H96: Supuesto Hinicio
B97: IN1.68 | D97: Factor de seguridad | E97: 1.5 | G97: Factor de seguridad para sobredimensionar cargadores y permitir redundancia | H97: Supuesto Hinicio
B98: IN1.69 | D98: TRM | E98: 3500 | G98: TRM
B100: IN1.70 | D100: Estándar de emisión | E100: EURO_3 | G100: estándar de emisión

Sheet SOAT
B2: TARIFAS SOAT EN VIGENCIA
B4: Vehículo | C4: Desde CC | D4: Hasta CC | E4: Valor
B5: Motos | C5: 0 | D5: 100 | E5: 360750
B6: Motos | C6: 100 | D6: 200 | E6: 484050
B7: Motos | C7: 200 | D7: En adelante | E7: 545550
B8: Camperos y Camionetas 0-9 años | C8: 0 | D8: 1500 | E8: 568350
B9: Camperos y Camionetas 0-9 años | C9: 1500 | D9: 2500 | E9: 678450
B10: Camperos y Camionetas 0-9 años | C10: 2500 | D10: En adelante | E10: 795750
B11: Camperos y Camionetas más de 10 años | C11: 0 | D11: 1500 | E11: 682950
B12: Camperos y Camionetas más de 10 años | C12: 1500 | D12: 2500 | E12: 803550
B13: Camperos y Camionetas más de 10 años | C13: 2500 | D13: En adelante | E13: 912900
B14: Carga o Mixto | C14: 0 | D14: 5 | E14: 636750
B15: Carga o Mixto | C15: 5 | D15: 15 | E15: 919500
B16: Carga o Mixto | C16: 15 | D16: En adelante | E16: 1162500
B17: Oficiales Especiales | C17: 0 | D17: 1500 | E17: 716250
B18: Oficiales Especiales | C18: 1500 | D18: 2500 | E18: 902850
B19: Oficiales Especiales | C19: 2500 | D19: En adelante | E19: 1082250
B20: Automóviles Familiares 0-9 años | C20: 0 | D20: 1500 | E20: 320850
B21: Automóviles Familiares 0-9 años | C21: 1500 | D21: 2500 | E21: 390150
B22: Automóviles Familiares 0-9 años | C22: 2500 | D22: En adelante | E22: 456000
B23: Automóviles Familiares + de 10 años | C23: 0 | D23: 1500 | E23: 424800
B24: Automóviles Familiares + de 10 años | C24: 1500 | D24: 2500 | E24: 485400
B25: Automóviles Familiares + de 10 años | C25: 2500 | D25: En adelante | E25: 540750
B26: Vehículo 6 ó + pasajeros de 0 a 9 años | C26: 0 | D26: 2500 | E26: 571350
B27: Vehículo 6 ó + pasajeros de 0 a 9 años | C27: 2500 | D27: En adelante | E27: 765000
B28: Vehículo 6 ó + pasajeros más de 10 años | C28: 0 | D28: 2500 | E28: 729450
B29: Vehículo 6 ó + pasajeros más de 10 años | C29: 2500 | D29: En adelante | E29: 918600

Sheet I_ESCENARIOS
B4: Cod. | D4: Escenarios de costos Energéticos | E4: Valor | G4: Definición
B6: IN1.24 | D6: Selección de escenario UPME para combustibles fósiles | E6: Alto | G6: Lista desplegable donde el usuario selecciona si quiere usar el escenario “Referencia”, “Alto” o “Bajo” del DB2
B7: IN1.25 | D7: Selección de escenario UPME para electricidad | E7: Ref | G7: Lista desplegable donde el usuario selecciona si quiere usar el escenario “Referencia”, “Alto” o “Bajo” del DB2

Sheet FINANCIAMIENTO
B4: Cod | D4: Financiamiento, Seguros e Impuestos de Rodamiento | E4: Valor | G4: Definición
B6: IN1.26 | D6: Método de adquisición flota | E6: Lease | G6: Lista desplegable donde el usuario selecciona “Compra directa sin financiamiento”, “Compra con financiamiento”, o “Lease”
B7: IN1.27 | D7: Meses a diferir el préstamo | E7: 60 | G7: # de meses a los que se difiere el préstamo si el usuario seleccionó “Compra con financiamiento” en la IN1.33. Si IN1.33 es “Compra directa sin financiamiento”, o “Lease”, esta variable no aplica
B8: IN1.28 | D8: % de los vehículos a financiar | E8: 0.99
B9: IN1.29 | D9: Tasa de interés mes vencido (%) | E9: 30,0 % | G9: Tasa (en % M.V) del créditos el usuario seleccionó “Compra con financiamiento” en la IN1.33. Si IN1.33 es “Compra directa sin financiamiento”, o “Lease”, esta variable no aplica
B10: IN1.30 | D10: Cuota Inicial de los vehículos a financiar (%) | E10: 0.01 | G10: # de meses a los que se aplica el lease si el usuario seleccionó “Lease” en la IN1.33. Si IN1.33 es “Compra directa sin financiamiento”, o “Compra con financiamiento”, esta variable no aplica
B11: IN1.31 | D11: Tasa de interés mes vencido (%) | E11: 1,02% | G11: % del CAPEX del vehículo equivalente al lease mensual si el usuario seleccionó “Lease” en la IN1.33. Si IN1.33 es “Compra directa sin financiamiento”, o “Compra con financiamiento”, esta variable no aplica
B12: IN1.32 | D12: Póliza SOAT | E12: 0 | G12: % del CAPEX del vehículo equivalente al SOAT anual si el usuario seleccionó “Compra directa sin financiamiento”, o “Compra con financiamiento” en la IN1.33. Si IN1.33 es “Lease”, esta variable no aplica
B13: IN1.33 | D13: Impuesto al rodamiento | E13: No aplica para Lease | G13: % del CAPEX del vehículo equivalente al impuesto anual si el usuario seleccionó “Compra directa sin financiamiento”, o “Compra con financiamiento” en la IN1.33. Si IN1.33 es “Lease”, esta variable no aplica

Sheet LEASE
B2: Cálculo Lease
B4: % cuota inicial | C4: 0.05 | E4: CUOTA_INICIAL_LEASE_ | I4: 0.01
B5: Factor de arrendamiento ò tarifa | C5: 0.0102 | E5: TASA_INTERES_LEASE_ | I5: 0.02
B6: Plazo del Leasing o arrendamiento | C6: 60 | E6: PLAZO_FINANC_LEASE | I6: 0.03
B7: Valor residual o % salvamento | I7: 0.04
B8: Opción de compra | C8: 0.01 | E8: OPCION_COMPRA_LEASE | I8: 0.05
I9: 0.06
I10: 0.07
I11: 0.08
I12: 0.09
I13: 0.1
I14: 0.11
I15: 0.12
I16: 0.13
I17: 0.14
I18: 0.15
I19: 0.16
I20: 0.17
I21: 0.18
I22: 0.19
I23: 0.2

Sheet OPTIMIZACION
B3: Financiamiento, Seguros e Impuestos de Rodamiento | C3: Valor
B5: Año Objetivo | C5: 2020
B7: Función Objetivo | C7: Minimizar CTP
B9: % Reducción de Emisiones Objetivo | C9: ='%_TECNO'!D17 -> 0
B11: Presupuesto Disponible | C11: ='%_TECNO'!C20 -> 0
B13: Uso de base de datos Acuerdo Marco para la compra | C13: SI

Sheet %_TECNO
C5: Composición deseada por tecnología:
B6: 1 | C6: Tecnología | D6: % Mínimo
B7: 1
B8: 1 | C8: GNC | D8: 0
B9: 2 | C9: GNL | D9: 0
B10: 3 | C10: HEV | D10: 0 | F10: =IF(SUM(D8:D14)>100%,"El % mìnimo de tecnologìa no puede superar el 100%","") -> 
B11: 4 | C11: PHEV | D11: 0
B12: 5 | C12: BEV | D12: 1
B13: 6 | C13: FCEV | D13: 0
B14: 7 | C14: HPV | D14: 0
C16: Minimizar Emisiones
C17: PORCENTAJE | D17: 0
C18: Presupuesto máximo (COP) disponible para la adquisición de nuevos vehículos:
C19: Valor

Sheet Portada
A33: =IF(A34="","","Preparado para:") -> Preparado para:
A34: =IF(OR(A42<>""),TRIM(UPPER(A42)),"") -> SAHLEY THPMSON
A42: SAHLEY THPMSON

Sheet Parametros
B1: Parámetros de Modelación
B3: Esta sección contiene todos los parámetros de entrada definidos por el usuario para la modelación realizada.
B5: =FINANCIAMIENTO!D6 -> Método de adquisición flota | C5: =+MET_ADQUIS -> Lease
B7: =FINANCIAMIENTO!D7 -> Meses a diferir el préstamo | C7: =FINANCIAMIENTO!E7 -> 60
B8: =FINANCIAMIENTO!D8 -> % de los vehículos a financiar | C8: =FINANCIAMIENTO!E8 -> 0.99
B9: =FINANCIAMIENTO!D9 -> Tasa de interés mes vencido (%) | C9: =FINANCIAMIENTO!E9 -> 30,0 %
B12: =FINANCIAMIENTO!D10 -> Cuota Inicial de los vehículos a financiar (%) | C12: =FINANCIAMIENTO!E10 -> 0.01
B13: =FINANCIAMIENTO!D11 -> Tasa de interés mes vencido (%) | C13: =FINANCIAMIENTO!E11 -> 1,02%
B16: =OPTIMIZACION!B5 -> Año Objetivo | C16: =OPTIMIZACION!C5 -> 2020
B17: =OPTIMIZACION!B7 -> Función Objetivo | C17: =OPTIMIZACION!C7 -> Minimizar CTP
B18: =OPTIMIZACION!B9 -> % Reducción de Emisiones Objetivo | C18: =OPTIMIZACION!C9 -> 0
B19: =OPTIMIZACION!B11 -> Presupuesto Disponible | C19: =OPTIMIZACION!C11 -> 0
B20: =OPTIMIZACION!B13 -> Uso de base de datos Acuerdo Marco para la compra | C20: =OPTIMIZACION!C13 -> SI
B22: Escenarios de costos Energéticos | C22: Valor
B23: =I_ESCENARIOS!D6 -> Selección de escenario UPME para combustibles fósiles | C23: =I_ESCENARIOS!E6 -> Alto
B24: =I_ESCENARIOS!D7 -> Selección de escenario UPME para electricidad | C24: =I_ESCENARIOS!E7 -> Ref
B26: ='%_TECNO'!C5 -> Composición deseada por tecnología:
B27: ='%_TECNO'!C6 -> Tecnología | C27: ='%_TECNO'!D6 -> % Mínimo
B28: ='%_TECNO'!C8 -> GNC | C28: ='%_TECNO'!D8 -> 0
B29: ='%_TECNO'!C9 -> GNL | C29: ='%_TECNO'!D9 -> 0
B30: ='%_TECNO'!C10 -> HEV | C30: ='%_TECNO'!D10 -> 0
B31: ='%_TECNO'!C11 -> PHEV | C31: ='%_TECNO'!D11 -> 0
B32: ='%_TECNO'!C12 -> BEV | C32: ='%_TECNO'!D12 -> 1

Sheet BD1 (Vehículos)
B6: BD1.1 | C6: BD1.2 | D6: BD1.3 | E6: BD1.4 | F6: BD1.5 | G6: BD1.6 | H6: BD1.7 | I6: BD1.8 | J6: BD1.9 | K6: BD1.10 | L6: BD1.11 | M6: BD1.12 | N6: BD1.13 | O6: BD1.14 | P6: BD1.15 | Q6: BD1.16 | R6: BD1.17 | S6: BD1.18 | T6: BD1.19 | U6: BD1.20 | V6: BD1.21 | W6: BD1.22 | X6: BD1.23 | Y6: BD1.24 | Z6: BD1.25 | AA6: BD1.26 | AB6: BD1.27 | AC6: BD1.28 | AD6: BD1.29 | AE6: BD1.30 | AF6: BD1.31 | CJ6: CICLO DE VIDA | CL6: CONTAMINANTES | CQ6: GEI
B7: Marca | C7: Modelo | D7: Año Modelo | E7: Tipo | F7: Categoría | G7: Capacidad Pasajeros | H7: Capacidad de carga (Ton) | I7: Tipo de combustible | J7: Potencia (hp) | K7: Torque (Nm) | L7: Unidad de Eficiencia 1 | M7: Eficiencia 1 | N7: Cilindraje | O7: Autonomía Total (km) | P7: Autonomía Eléctrica (km) | Q7: Precio (COP) | R7: Perteneces al Acuerdo Marco de Vehículos III de Colombia Compra Eficiente? | S7: CAPEX EN AÑO OBJETIVO | T7: CAPEX SIN IVA Y SIN ARANCEL | U7: IVA | V7: ARANCEL | W7: VIDA UTIL | X7: DEPRECIACION | Y7: % IMP. RODAMIENTO | Z7: IMP. RODAMIENTO | AA7: SOAT | AB7: C. FINANC | AC7: O&M | AD7: ENERGÍA | AE7: COSTO BATERIA | AF7: CTP | AG7: OPCION | AH7: 01 | AI7: 02 | AJ7: 03 | AK7: 04 | AL7: 05 | AM7: 06 | AN7: 07 | AO7: 08 | AP7: 09 | AQ7: 10 | AR7: 11 | AS7: 12 | AT7: 13 | AU7: 14 | AV7: 15 | AW7: 16 | AX7: 17 | AY7: 18 | AZ7: 19 | BA7: 20 | BB7: 21 | BC7: 22 | BD7: 23 | BE7: 24 | BF7: 25 | BG7: 26 | BH7: 27 | BI7: 28 | BJ7: 29 | BK7: 30 | BL7: 31 | BM7: 32 | BN7: 33 | BO7: 34 | BP7: 35 | BQ7: 36 | BR7: 37 | BS7: 38 | BT7: 39 | BU7: 40 | BV7: 41 | BW7: 42 | BX7: 43 | BY7: 44 | BZ7: 45 | CA7: 46 | CB7: 47 | CC7: 48 | CD7: 49 | CE7: 50 | CG7: UNIDAD INGRESADA | CH7: UNIDAD EN COSTOS | CJ7: CO2e Producción | CK7: CO2e O&M | CL7: SO2 g/km | CM7: NOx | CN7: PM2.5 | CO7: CO | CP7: NMVOC | CQ7: CO2e TTW | CR7: CO2e WTT | CS7: TOTAL EMISIONES DE G DE GEI | CT7: VARIABLE DE OPTIMIZACION | CV7: CTP (COP) | CW7: CANTIDAD DE COMBUSTIBLE USADO | CX7: CAPACIDAD DE CARGA | CY7: CAPACIDAD DE PASAJEROS | DA7: % RESIDUAL O SALVAMENTO | DB7: VALOR RESIDUAL | DC7: COSTO CAPITALIZADO AJUSTADO | DD7: MONTO DE DEPRECIACION | DE7: PAGO BASE | DF7: CARGO ALQUILER | DG7: CUOTA | DH7: PAGO TOTAL | DI7: GANANCIA BANCO
A8: 1 | B8: Starker | C8: Stuky | D8: 2020 | E8: BEV | F8: Motocicleta | G8: 2 | H8: 0 | I8: Electricidad | J8: 2 | K8: 70 | L8: kWh/km | M8: 0.02133333333 | O8: 45 | P8: 45 | Q8: 3500000 | R8: NO | S8: =IFERROR($Q8*(1-(-INDIRECT("CAPEX_"&E8)))^(AÑO_OBJETIVO-$D8),0) -> 3500000 | T8: =+IFERROR(S8/(1+INDIRECT("I_"&E8)+INDIRECT("A_"&E8)),0) -> 3333333.333 | U8: =IFERROR(T8*INDIRECT("I_"&E8),0) -> 166666.6667 | V8: =IFERROR(T8*INDIRECT("A_"&E8),0) -> 0 | W8: =IFERROR(INDIRECT("V_"&E8),0) -> 8 | X8: =+S8-(S8*SALVAMENTO) -> 3325000 | Y8: =IF(VLOOKUP(VALORES!$R$5,VALORES!$Q$1:$R$4,2,0)<>"PARTICULAR",R_OFIC_PUBL,INDIRECT("R_"&VLOOKUP(F8,VALORES!$G:$H,2,0)&"_"&VLOOKUP(Q8,AUTO_VALOR,3,1))) -> 0.005 | Z8: =+IFERROR((W8*S8-((W8^2+W8)/2*(X8/W8)))*Y8,0) -> 65187.5 | AA8: =IFERROR(IF(VLOOKUP(VALORES!$R$5,VALORES!$Q$1:$R$4,2,0)<>"PARTICULAR",VLOOKUP(N8,INDIRECT("SOAT_OFICIALES"),3,1)*W8,(VLOOKUP(IF(OR(F8="Camión",F8="TRACTOMULA"),H8,N8),INDIRECT("SOAT_"&VLOOKUP(F8,VALORES!$G$1:$H$9,2,0)&"_1"),3,1)*IF(W8>9,9,W8))+VLOOKUP(IF(OR(F8="Camión",F8="TRACTOMULA"),H8,N8),INDIRECT("SOAT_"&VLOOKUP(F8,VALORES!$G$1:$H$9,2,0)&"_2"),3,1)*IF((W8-9)<0,0,(W8-9))),0) -> 5730000 | AB8: =IF(MET_ADQUIS="",0, IF(MET_ADQUIS="COMPRA DIRECTA SIN FINANCIAMIENTO",0, IFERROR( IF(MET_ADQUIS="Lease",DI8,(IF(MET_ADQUIS="Compra con financiamiento",(PMT(TASA_MES_VENC,PLAZO_FINANC,-(S8*PORC_A_FINANC))))*PLAZO_FINANC)-(S8*PORC_A_FINANC)),0))) -> 1461792.5 | AC8: =IF(E8="ICE",INDIRECT("CM_"&E8&"_"&LEFT(F8,4))*IFERROR(VLOOKUP(F8,A_FLOTA!$F:$BS,64,0),0)*IFERROR(VLOOKUP(F8,A_FLOTA!$F:$BS,65,0),0)*W8,IFERROR((INDIRECT("CM_"&E8&"_"&LEFT(F8,4)))*IFERROR(VLOOKUP(F8,A_FLOTA!$F:$BS,64,0),0)*IFERROR(VLOOKUP(F8,A_FLOTA!$F:$BS,65,0),0)*(1-(1-INDIRECT("REDUC_CM_"&E8))^(W8))/(1-(1-INDIRECT("REDUC_CM_"&E8))),0)) -> 0 | AD8: =IFERROR((IFERROR(M8*IFERROR(VLOOKUP(F8,A_FLOTA!$F:$BS,64,0),0)*IFERROR(VLOOKUP(F8,A_FLOTA!$F:$BS,65,0),0)*W8*AVERAGEIFS( INDIRECT(E8&"_"&LEFT(I8,3)&"_"&I_ESCENARIOS!$E$7), 'BD2 (Costos)'!B:B,">="&DATE(AÑO_OBJETIVO,1,1), 'BD2 (Costos)'!B:B,"<="&DATE(AÑO_OBJETIVO+W8,12,31))/AVERAGEIFS(VALORES!$E$1:$E$10,VALORES!$C$1:$C$10,CG8,VALORES!$D$1:$D$10,CH8),0))*(O8/(O8+P8))+(IFERROR(M8*IFERROR(VLOOKUP(F8,A_FLOTA!$F:$BS,64,0),0)*IFERROR(VLOOKUP(F8,A_FLOTA!$F:$BS,65,0),0)*W8*AVERAGEIFS( INDIRECT("BEV_ELE_"&I_ESCENARIOS!$E$7), 'BD2 (Costos)'!B:B,">="&DATE(AÑO_OBJETIVO,1,1), 'BD2 (Costos)'!B:B,"<="&DATE(AÑO_OBJETIVO+W8,12,31)),0))*(P8/(O8+P8)),0) -> 0 | AE8: =IF(E8="BEV",IF(INDIRECT("VB_"&E8)<W8,IFERROR(INT(W8/INDIRECT("VB_"&E8))*(Q8*(1-(-INDIRECT("CAPEX_"&E8)))^(INDIRECT("VB_"&E8))*INDIRECT("CB_"&E8)),0),0),0) -> 0 | AF8: =IFERROR(SUM(T8:AE8)/(VLOOKUP(F8,A_FLOTA!$F:$BS,64,0)*(VLOOKUP(F8,A_FLOTA!$F:$BS,65,0)*W8)),"N/A") -> N/A | AG8: =_xlfn.TEXTJOIN("-",1,$AH8:$CE8) ->  | AH8: =IF( $AF8=( _xlfn.MINIFS($AF:$AF, $F:$F,$F8, $J:$J,">="&VLOOKUP($F8&AH$7,B_FLOTA!$A:$V,15,0), $K:$K,">="&VLOOKUP($F8&AH$7,B_FLOTA!$A:$V,16,0), $AF:$AF,"<="&VLOOKUP($F8&AH$7,A_FLOTA!$A:$AH,32,0), $O:$O,">="&VLOOKUP($F8&AH$7,B_FLOTA!$A:$AB,21,0), $G:$G,">="&VLOOKUP($F8&AH$7,B_FLOTA!$A:$V,9,0), $CX:$CX,">="&VLOOKUP($F8&AH$7,B_FLOTA!$A:$V,10,0), $R:$R,IF(MARCO="SI","SI","<>"&""))), $F8&AH$7,"") ->  | AI8: =IF( $AF8=( _xlfn.MINIFS($AF:$AF, $F:$F,$F8, $J:$J,">="&VLOOKUP($F8&AI$7,B_FLOTA!$A:$V,15,0), $K:$K,">="&VLOOKUP($F8&AI$7,B_FLOTA!$A:$V,16,0), $AF:$AF,"<="&VLOOKUP($F8&AI$7,A_FLOTA!$A:$AH,32,0), $O:$O,">="&VLOOKUP($F8&AI$7,B_FLOTA!$A:$AB,21,0), $G:$G,">="&VLOOKUP($F8&AI$7,B_FLOTA!$A:$V,9,0), $CX:$CX,">="&VLOOKUP($F8&AI$7,B_FLOTA!$A:$V,10,0), $R:$R,IF(MARCO="SI","SI","<>"&""))), $F8&AI$7,"") ->  | AJ8: =IF( $AF8=( _xlfn.MINIFS($AF:$AF, $F:$F,$F8, $J:$J,">="&VLOOKUP($F8&AJ$7,B_FLOTA!$A:$V,15,0), $K:$K,">="&VLOOKUP($F8&AJ$7,B_FLOTA!$A:$V,16,0), $AF:$AF,"<="&VLOOKUP($F8&AJ$7,A_FLOTA!$A:$AH,32,0), $O:$O,">="&VLOOKUP($F8&AJ$7,B_FLOTA!$A:$AB,21,0), $G:$G,">="&VLOOKUP($F8&AJ$7,B_FLOTA!$A:$V,9,0), $CX:$CX,">="&VLOOKUP($F8&AJ$7,B_FLOTA!$A:$V,10,0), $R:$R,IF(MARCO="SI","SI","<>"&""))), $F8&AJ$7,"") ->  | AK8: =IF( $AF8=( _xlfn.MINIFS($AF:$AF, $F:$F,$F8, $J:$J,">="&VLOOKUP($F8&AK$7,B_FLOTA!$A:$V,15,0), $K:$K,">="&VLOOKUP($F8&AK$7,B_FLOTA!$A:$V,16,0), $AF:$AF,"<="&VLOOKUP($F8&AK$7,A_FLOTA!$A:$AH,32,0), $O:$O,">="&VLOOKUP($F8&AK$7,B_FLOTA!$A:$AB,21,0), $G:$G,">="&VLOOKUP($F8&AK$7,B_FLOTA!$A:$V,9,0), $CX:$CX,">="&VLOOKUP($F8&AK$7,B_FLOTA!$A:$V,10,0), $R:$R,IF(MARCO="SI","SI","<>"&""))), $F8&AK$7,"") ->  | AL8: =IF( $AF8=( _xlfn.MINIFS($AF:$AF, $F:$F,$F8, $J:$J,">="&VLOOKUP($F8&AL$7,B_FLOTA!$A:$V,15,0), $K:$K,">="&VLOOKUP($F8&AL$7,B_FLOTA!$A:$V,16,0), $AF:$AF,"<="&VLOOKUP($F8&AL$7,A_FLOTA!$A:$AH,32,0), $O:$O,">="&VLOOKUP($F8&AL$7,B_FLOTA!$A:$AB,21,0), $G:$G,">="&VLOOKUP($F8&AL$7,B_FLOTA!$A:$V,9,0), $CX:$CX,">="&VLOOKUP($F8&AL$7,B_FLOTA!$A:$V,10,0), $R:$R,IF(MARCO="SI","SI","<>"&""))), $F8&AL$7,"") ->  | AM8: =IF( $AF8=( _xlfn.MINIFS($AF:$AF, $F:$F,$F8, $J:$J,">="&VLOOKUP($F8&AM$7,B_FLOTA!$A:$V,15,0), $K:$K,">="&VLOOKUP($F8&AM$7,B_FLOTA!$A:$V,16,0), $AF:$AF,"<="&VLOOKUP($F8&AM$7,A_FLOTA!$A:$AH,32,0), $O:$O,">="&VLOOKUP($F8&AM$7,B_FLOTA!$A:$AB,21,0), $G:$G,">="&VLOOKUP($F8&AM$7,B_FLOTA!$A:$V,9,0), $CX:$CX,">="&VLOOKUP($F8&AM$7,B_FLOTA!$A:$V,10,0), $R:$R,IF(MARCO="SI","SI","<>"&""))), $F8&AM$7,"") ->  | AN8: =IF( $AF8=( _xlfn.MINIFS($AF:$AF, $F:$F,$F8, $J:$J,">="&VLOOKUP($F8&AN$7,B_FLOTA!$A:$V,15,0), $K:$K,">="&VLOOKUP($F8&AN$7,B_FLOTA!$A:$V,16,0), $AF:$AF,"<="&VLOOKUP($F8&AN$7,A_FLOTA!$A:$AH,32,0), $O:$O,">="&VLOOKUP($F8&AN$7,B_FLOTA!$A:$AB,21,0), $G:$G,">="&VLOOKUP($F8&AN$7,B_FLOTA!$A:$V,9,0), $CX:$CX,">="&VLOOKUP($F8&AN$7,B_FLOTA!$A:$V,10,0), $R:$R,IF(MARCO="SI","SI","<>"&""))), $F8&AN$7,"") ->  | AO8: =IF( $AF8=( _xlfn.MINIFS($AF:$AF, $F:$F,$F8, $J:$J,">="&VLOOKUP($F8&AO$7,B_FLOTA!$A:$V,15,0), $K:$K,">="&VLOOKUP($F8&AO$7,B_FLOTA!$A:$V,16,0), $AF:$AF,"<="&VLOOKUP($F8&AO$7,A_FLOTA!$A:$AH,32,0), $O:$O,">="&VLOOKUP($F8&AO$7,B_FLOTA!$A:$AB,21,0), $G:$G,">="&VLOOKUP($F8&AO$7,B_FLOTA!$A:$V,9,0), $CX:$CX,">="&VLOOKUP($F8&AO$7,B_FLOTA!$A:$V,10,0), $R:$R,IF(MARCO="SI","SI","<>"&""))), $F8&AO$7,"") ->  | AP8: =IF( $AF8=( _xlfn.MINIFS($AF:$AF, $F:$F,$F8, $J:$J,">="&VLOOKUP($F8&AP$7,B_FLOTA!$A:$V,15,0), $K:$K,">="&VLOOKUP($F8&AP$7,B_FLOTA!$A:$V,16,0), $AF:$AF,"<="&VLOOKUP($F8&AP$7,A_FLOTA!$A:$AH,32,0), $O:$O,">="&VLOOKUP($F8&AP$7,B_FLOTA!$A:$AB,21,0), $G:$G,">="&VLOOKUP($F8&AP$7,B_FLOTA!$A:$V,9,0), $CX:$CX,">="&VLOOKUP($F8&AP$7,B_FLOTA!$A:$V,10,0), $R:$R,IF(MARCO="SI","SI","<>"&""))), $F8&AP$7,"") ->  | AQ8: =IF( $AF8=( _xlfn.MINIFS($AF:$AF, $F:$F,$F8, $J:$J,">="&VLOOKUP($F8&AQ$7,B_FLOTA!$A:$V,15,0), $K:$K,">="&VLOOKUP($F8&AQ$7,B_FLOTA!$A:$V,16,0), $AF:$AF,"<="&VLOOKUP($F8&AQ$7,A_FLOTA!$A:$AH,32,0), $O:$O,">="&VLOOKUP($F8&AQ$7,B_FLOTA!$A:$AB,21,0), $G:$G,">="&VLOOKUP($F8&AQ$7,B_FLOTA!$A:$V,9,0), $CX:$CX,">="&VLOOKUP($F8&AQ$7,B_FLOTA!$A:$V,10,0), $R:$R,IF(MARCO="SI","SI","<>"&""))), $F8&AQ$7,"") ->  | AR8: =IF( $AF8=( _xlfn.MINIFS($AF:$AF, $F:$F,$F8, $J:$J,">="&VLOOKUP($F8&AR$7,B_FLOTA!$A:$V,15,0), $K:$K,">="&VLOOKUP($F8&AR$7,B_FLOTA!$A:$V,16,0), $AF:$AF,"<="&VLOOKUP($F8&AR$7,A_FLOTA!$A:$AH,32,0), $O:$O,">="&VLOOKUP($F8&AR$7,B_FLOTA!$A:$AB,21,0), $G:$G,">="&VLOOKUP($F8&AR$7,B_FLOTA!$A:$V,9,0), $CX:$CX,">="&VLOOKUP($F8&AR$7,B_FLOTA!$A:$V,10,0), $R:$R,IF(MARCO="SI","SI","<>"&""))), $F8&AR$7,"") ->  | AS8: =IF( $AF8=( _xlfn.MINIFS($AF:$AF, $F:$F,$F8, $J:$J,">="&VLOOKUP($F8&AS$7,B_FLOTA!$A:$V,15,0), $K:$K,">="&VLOOKUP($F8&AS$7,B_FLOTA!$A:$V,16,0), $AF:$AF,"<="&VLOOKUP($F8&AS$7,A_FLOTA!$A:$AH,32,0), $O:$O,">="&VLOOKUP($F8&AS$7,B_FLOTA!$A:$AB,21,0), $G:$G,">="&VLOOKUP($F8&AS$7,B_FLOTA!$A:$V,9,0), $CX:$CX,">="&VLOOKUP($F8&AS$7,B_FLOTA!$A:$V,10,0), $R:$R,IF(MARCO="SI","SI","<>"&""))), $F8&AS$7,"") ->  | AT8: =IF( $AF8=( _xlfn.MINIFS($AF:$AF, $F:$F,$F8, $J:$J,">="&VLOOKUP($F8&AT$7,B_FLOTA!$A:$V,15,0), $K:$K,">="&VLOOKUP($F8&AT$7,B_FLOTA!$A:$V,16,0), $AF:$AF,"<="&VLOOKUP($F8&AT$7,A_FLOTA!$A:$AH,32,0), $O:$O,">="&VLOOKUP($F8&AT$7,B_FLOTA!$A:$AB,21,0), $G:$G,">="&VLOOKUP($F8&AT$7,B_FLOTA!$A:$V,9,0), $CX:$CX,">="&VLOOKUP($F8&AT$7,B_FLOTA!$A:$V,10,0), $R:$R,IF(MARCO="SI","SI","<>"&""))), $F8&AT$7,"") ->  | AU8: =IF( $AF8=( _xlfn.MINIFS($AF:$AF, $F:$F,$F8, $J:$J,">="&VLOOKUP($F8&AU$7,B_FLOTA!$A:$V,15,0), $K:$K,">="&VLOOKUP($F8&AU$7,B_FLOTA!$A:$V,16,0), $AF:$AF,"<="&VLOOKUP($F8&AU$7,A_FLOTA!$A:$AH,32,0), $O:$O,">="&VLOOKUP($F8&AU$7,B_FLOTA!$A:$AB,21,0), $G:$G,">="&VLOOKUP($F8&AU$7,B_FLOTA!$A:$V,9,0), $CX:$CX,">="&VLOOKUP($F8&AU$7,B_FLOTA!$A:$V,10,0), $R:$R,IF(MARCO="SI","SI","<>"&""))), $F8&AU$7,"") ->  | AV8: =IF( $AF8=( _xlfn.MINIFS($AF:$AF, $F:$F,$F8, $J:$J,">="&VLOOKUP($F8&AV$7,B_FLOTA!$A:$V,15,0), $K:$K,">="&VLOOKUP($F8&AV$7,B_FLOTA!$A:$V,16,0), $AF:$AF,"<="&VLOOKUP($F8&AV$7,A_FLOTA!$A:$AH,32,0), $O:$O,">="&VLOOKUP($F8&AV$7,B_FLOTA!$A:$AB,21,0), $G:$G,">="&VLOOKUP($F8&AV$7,B_FLOTA!$A:$V,9,0), $CX:$CX,">="&VLOOKUP($F8&AV$7,B_FLOTA!$A:$V,10,0), $R:$R,IF(MARCO="SI","SI","<>"&""))), $F8&AV$7,"") ->  | AW8: =IF( $AF8=( _xlfn.MINIFS($AF:$AF, $F:$F,$F8, $J:$J,">="&VLOOKUP($F8&AW$7,B_FLOTA!$A:$V,15,0), $K:$K,">="&VLOOKUP($F8&AW$7,B_FLOTA!$A:$V,16,0), $AF:$AF,"<="&VLOOKUP($F8&AW$7,A_FLOTA!$A:$AH,32,0), $O:$O,">="&VLOOKUP($F8&AW$7,B_FLOTA!$A:$AB,21,0), $G:$G,">="&VLOOKUP($F8&AW$7,B_FLOTA!$A:$V,9,0), $CX:$CX,">="&VLOOKUP($F8&AW$7,B_FLOTA!$A:$V,10,0), $R:$R,IF(MARCO="SI","SI","<>"&""))), $F8&AW$7,"") ->  | AX8: =IF( $AF8=( _xlfn.MINIFS($AF:$AF, $F:$F,$F8, $J:$J,">="&VLOOKUP($F8&AX$7,B_FLOTA!$A:$V,15,0), $K:$K,">="&VLOOKUP($F8&AX$7,B_FLOTA!$A:$V,16,0), $AF:$AF,"<="&VLOOKUP($F8&AX$7,A_FLOTA!$A:$AH,32,0), $O:$O,">="&VLOOKUP($F8&AX$7,B_FLOTA!$A:$AB,21,0), $G:$G,">="&VLOOKUP($F8&AX$7,B_FLOTA!$A:$V,9,0), $CX:$CX,">="&VLOOKUP($F8&AX$7,B_FLOTA!$A:$V,10,0), $R:$R,IF(MARCO="SI","SI","<>"&""))), $F8&AX$7,"") ->  | AY8: =IF( $AF8=( _xlfn.MINIFS($AF:$AF, $F:$F,$F8, $J:$J,">="&VLOOKUP($F8&AY$7,B_FLOTA!$A:$V,15,0), $K:$K,">="&VLOOKUP($F8&AY$7,B_FLOTA!$A:$V,16,0), $AF:$AF,"<="&VLOOKUP($F8&AY$7,A_FLOTA!$A:$AH,32,0), $O:$O,">="&VLOOKUP($F8&AY$7,B_FLOTA!$A:$AB,21,0), $G:$G,">="&VLOOKUP($F8&AY$7,B_FLOTA!$A:$V,9,0), $CX:$CX,">="&VLOOKUP($F8&AY$7,B_FLOTA!$A:$V,10,0), $R:$R,IF(MARCO="SI","SI","<>"&""))), $F8&AY$7,"") ->  | AZ8: =IF( $AF8=( _xlfn.MINIFS($AF:$AF, $F:$F,$F8, $J:$J,">="&VLOOKUP($F8&AZ$7,B_FLOTA!$A:$V,15,0), $K:$K,">="&VLOOKUP($F8&AZ$7,B_FLOTA!$A:$V,16,0), $AF:$AF,"<="&VLOOKUP($F8&AZ$7,A_FLOTA!$A:$AH,32,0), $O:$O,">="&VLOOKUP($F8&AZ$7,B_FLOTA!$A:$AB,21,0), $G:$G,">="&VLOOKUP($F8&AZ$7,B_FLOTA!$A:$V,9,0), $CX:$CX,">="&VLOOKUP($F8&AZ$7,B_FLOTA!$A:$V,10,0), $R:$R,IF(MARCO="SI","SI","<>"&""))), $F8&AZ$7,"") ->  | BA8: =IF( $AF8=( _xlfn.MINIFS($AF:$AF, $F:$F,$F8, $J:$J,">="&VLOOKUP($F8&BA$7,B_FLOTA!$A:$V,15,0), $K:$K,">="&VLOOKUP($F8&BA$7,B_FLOTA!$A:$V,16,0), $AF:$AF,"<="&VLOOKUP($F8&BA$7,A_FLOTA!$A:$AH,32,0), $O:$O,">="&VLOOKUP($F8&BA$7,B_FLOTA!$A:$AB,21,0), $G:$G,">="&VLOOKUP($F8&BA$7,B_FLOTA!$A:$V,9,0), $CX:$CX,">="&VLOOKUP($F8&BA$7,B_FLOTA!$A:$V,10,0), $R:$R,IF(MARCO="SI","SI","<>"&""))), $F8&BA$7,"") ->  | BB8: =IF( $AF8=( _xlfn.MINIFS($AF:$AF, $F:$F,$F8, $J:$J,">="&VLOOKUP($F8&BB$7,B_FLOTA!$A:$V,15,0), $K:$K,">="&VLOOKUP($F8&BB$7,B_FLOTA!$A:$V,16,0), $AF:$AF,"<="&VLOOKUP($F8&BB$7,A_FLOTA!$A:$AH,32,0), $O:$O,">="&VLOOKUP($F8&BB$7,B_FLOTA!$A:$AB,21,0), $G:$G,">="&VLOOKUP($F8&BB$7,B_FLOTA!$A:$V,9,0), $CX:$CX,">="&VLOOKUP($F8&BB$7,B_FLOTA!$A:$V,10,0), $R:$R,IF(MARCO="SI","SI","<>"&""))), $F8&BB$7,"") ->  | BC8: =IF( $AF8=( _xlfn.MINIFS($AF:$AF, $F:$F,$F8, $J:$J,">="&VLOOKUP($F8&BC$7,B_FLOTA!$A:$V,15,0), $K:$K,">="&VLOOKUP($F8&BC$7,B_FLOTA!$A:$V,16,0), $AF:$AF,"<="&VLOOKUP($F8&BC$7,A_FLOTA!$A:$AH,32,0), $O:$O,">="&VLOOKUP($F8&BC$7,B_FLOTA!$A:$AB,21,0), $G:$G,">="&VLOOKUP($F8&BC$7,B_FLOTA!$A:$V,9,0), $CX:$CX,">="&VLOOKUP($F8&BC$7,B_FLOTA!$A:$V,10,0), $R:$R,IF(MARCO="SI","SI","<>"&""))), $F8&BC$7,"") ->  | BD8: =IF( $AF8=( _xlfn.MINIFS($AF:$AF, $F:$F,$F8, $J:$J,">="&VLOOKUP($F8&BD$7,B_FLOTA!$A:$V,15,0), $K:$K,">="&VLOOKUP($F8&BD$7,B_FLOTA!$A:$V,16,0), $AF:$AF,"<="&VLOOKUP($F8&BD$7,A_FLOTA!$A:$AH,32,0), $O:$O,">="&VLOOKUP($F8&BD$7,B_FLOTA!$A:$AB,21,0), $G:$G,">="&VLOOKUP($F8&BD$7,B_FLOTA!$A:$V,9,0), $CX:$CX,">="&VLOOKUP($F8&BD$7,B_FLOTA!$A:$V,10,0), $R:$R,IF(MARCO="SI","SI","<>"&""))), $F8&BD$7,"") ->  | BE8: =IF( $AF8=( _xlfn.MINIFS($AF:$AF, $F:$F,$F8, $J:$J,">="&VLOOKUP($F8&BE$7,B_FLOTA!$A:$V,15,0), $K:$K,">="&VLOOKUP($F8&BE$7,B_FLOTA!$A:$V,16,0), $AF:$AF,"<="&VLOOKUP($F8&BE$7,A_FLOTA!$A:$AH,32,0), $O:$O,">="&VLOOKUP($F8&BE$7,B_FLOTA!$A:$AB,21,0), $G:$G,">="&VLOOKUP($F8&BE$7,B_FLOTA!$A:$V,9,0), $CX:$CX,">="&VLOOKUP($F8&BE$7,B_FLOTA!$A:$V,10,0), $R:$R,IF(MARCO="SI","SI","<>"&""))), $F8&BE$7,"") ->  | BF8: =IF( $AF8=( _xlfn.MINIFS($AF:$AF, $F:$F,$F8, $J:$J,">="&VLOOKUP($F8&BF$7,B_FLOTA!$A:$V,15,0), $K:$K,">="&VLOOKUP($F8&BF$7,B_FLOTA!$A:$V,16,0), $AF:$AF,"<="&VLOOKUP($F8&BF$7,A_FLOTA!$A:$AH,32,0), $O:$O,">="&VLOOKUP($F8&BF$7,B_FLOTA!$A:$AB,21,0), $G:$G,">="&VLOOKUP($F8&BF$7,B_FLOTA!$A:$V,9,0), $CX:$CX,">="&VLOOKUP($F8&BF$7,B_FLOTA!$A:$V,10,0), $R:$R,IF(MARCO="SI","SI","<>"&""))), $F8&BF$7,"") ->  | BG8: =IF( $AF8=( _xlfn.MINIFS($AF:$AF, $F:$F,$F8, $J:$J,">="&VLOOKUP($F8&BG$7,B_FLOTA!$A:$V,15,0), $K:$K,">="&VLOOKUP($F8&BG$7,B_FLOTA!$A:$V,16,0), $AF:$AF,"<="&VLOOKUP($F8&BG$7,A_FLOTA!$A:$AH,32,0), $O:$O,">="&VLOOKUP($F8&BG$7,B_FLOTA!$A:$AB,21,0), $G:$G,">="&VLOOKUP($F8&BG$7,B_FLOTA!$A:$V,9,0), $CX:$CX,">="&VLOOKUP($F8&BG$7,B_FLOTA!$A:$V,10,0), $R:$R,IF(MARCO="SI","SI","<>"&""))), $F8&BG$7,"") ->  | BH8: =IF( $AF8=( _xlfn.MINIFS($AF:$AF, $F:$F,$F8, $J:$J,">="&VLOOKUP($F8&BH$7,B_FLOTA!$A:$V,15,0), $K:$K,">="&VLOOKUP($F8&BH$7,B_FLOTA!$A:$V,16,0), $AF:$AF,"<="&VLOOKUP($F8&BH$7,A_FLOTA!$A:$AH,32,0), $O:$O,">="&VLOOKUP($F8&BH$7,B_FLOTA!$A:$AB,21,0), $G:$G,">="&VLOOKUP($F8&BH$7,B_FLOTA!$A:$V,9,0), $CX:$CX,">="&VLOOKUP($F8&BH$7,B_FLOTA!$A:$V,10,0), $R:$R,IF(MARCO="SI","SI","<>"&""))), $F8&BH$7,"") ->  | BI8: =IF( $AF8=( _xlfn.MINIFS($AF:$AF, $F:$F,$F8, $J:$J,">="&VLOOKUP($F8&BI$7,B_FLOTA!$A:$V,15,0), $K:$K,">="&VLOOKUP($F8&BI$7,B_FLOTA!$A:$V,16,0), $AF:$AF,"<="&VLOOKUP($F8&BI$7,A_FLOTA!$A:$AH,32,0), $O:$O,">="&VLOOKUP($F8&BI$7,B_FLOTA!$A:$AB,21,0), $G:$G,">="&VLOOKUP($F8&BI$7,B_FLOTA!$A:$V,9,0), $CX:$CX,">="&VLOOKUP($F8&BI$7,B_FLOTA!$A:$V,10,0), $R:$R,IF(MARCO="SI","SI","<>"&""))), $F8&BI$7,"") ->  | BJ8: =IF( $AF8=( _xlfn.MINIFS($AF:$AF, $F:$F,$F8, $J:$J,">="&VLOOKUP($F8&BJ$7,B_FLOTA!$A:$V,15,0), $K:$K,">="&VLOOKUP($F8&BJ$7,B_FLOTA!$A:$V,16,0), $AF:$AF,"<="&VLOOKUP($F8&BJ$7,A_FLOTA!$A:$AH,32,0), $O:$O,">="&VLOOKUP($F8&BJ$7,B_FLOTA!$A:$AB,21,0), $G:$G,">="&VLOOKUP($F8&BJ$7,B_FLOTA!$A:$V,9,0), $CX:$CX,">="&VLOOKUP($F8&BJ$7,B_FLOTA!$A:$V,10,0), $R:$R,IF(MARCO="SI","SI","<>"&""))), $F8&BJ$7,"") ->  | BK8: =IF( $AF8=( _xlfn.MINIFS($AF:$AF, $F:$F,$F8, $J:$J,">="&VLOOKUP($F8&BK$7,B_FLOTA!$A:$V,15,0), $K:$K,">="&VLOOKUP($F8&BK$7,B_FLOTA!$A:$V,16,0), $AF:$AF,"<="&VLOOKUP($F8&BK$7,A_FLOTA!$A:$AH,32,0), $O:$O,">="&VLOOKUP($F8&BK$7,B_FLOTA!$A:$AB,21,0), $G:$G,">="&VLOOKUP($F8&BK$7,B_FLOTA!$A:$V,9,0), $CX:$CX,">="&VLOOKUP($F8&BK$7,B_FLOTA!$A:$V,10,0), $R:$R,IF(MARCO="SI","SI","<>"&""))), $F8&BK$7,"") ->  | BL8: =IF( $AF8=( _xlfn.MINIFS($AF:$AF, $F:$F,$F8, $J:$J,">="&VLOOKUP($F8&BL$7,B_FLOTA!$A:$V,15,0), $K:$K,">="&VLOOKUP($F8&BL$7,B_FLOTA!$A:$V,16,0), $AF:$AF,"<="&VLOOKUP($F8&BL$7,A_FLOTA!$A:$AH,32,0), $O:$O,">="&VLOOKUP($F8&BL$7,B_FLOTA!$A:$AB,21,0), $G:$G,">="&VLOOKUP($F8&BL$7,B_FLOTA!$A:$V,9,0), $CX:$CX,">="&VLOOKUP($F8&BL$7,B_FLOTA!$A:$V,10,0), $R:$R,IF(MARCO="SI","SI","<>"&""))), $F8&BL$7,"") ->  | BM8: =IF( $AF8=( _xlfn.MINIFS($AF:$AF, $F:$F,$F8, $J:$J,">="&VLOOKUP($F8&BM$7,B_FLOTA!$A:$V,15,0), $K:$K,">="&VLOOKUP($F8&BM$7,B_FLOTA!$A:$V,16,0), $AF:$AF,"<="&VLOOKUP($F8&BM$7,A_FLOTA!$A:$AH,32,0), $O:$O,">="&VLOOKUP($F8&BM$7,B_FLOTA!$A:$AB,21,0), $G:$G,">="&VLOOKUP($F8&BM$7,B_FLOTA!$A:$V,9,0), $CX:$CX,">="&VLOOKUP($F8&BM$7,B_FLOTA!$A:$V,10,0), $R:$R,IF(MARCO="SI","SI","<>"&""))), $F8&BM$7,"") ->  | BN8: =IF( $AF8=( _xlfn.MINIFS($AF:$AF, $F:$F,$F8, $J:$J,">="&VLOOKUP($F8&BN$7,B_FLOTA!$A:$V,15,0), $K:$K,">="&VLOOKUP($F8&BN$7,B_FLOTA!$A:$V,16,0), $AF:$AF,"<="&VLOOKUP($F8&BN$7,A_FLOTA!$A:$AH,32,0), $O:$O,">="&VLOOKUP($F8&BN$7,B_FLOTA!$A:$AB,21,0), $G:$G,">="&VLOOKUP($F8&BN$7,B_FLOTA!$A:$V,9,0), $CX:$CX,">="&VLOOKUP($F8&BN$7,B_FLOTA!$A:$V,10,0), $R:$R,IF(MARCO="SI","SI","<>"&""))), $F8&BN$7,"") ->  | BO8: =IF( $AF8=( _xlfn.MINIFS($AF:$AF, $F:$F,$F8, $J:$J,">="&VLOOKUP($F8&BO$7,B_FLOTA!$A:$V,15,0), $K:$K,">="&VLOOKUP($F8&BO$7,B_FLOTA!$A:$V,16,0), $AF:$AF,"<="&VLOOKUP($F8&BO$7,A_FLOTA!$A:$AH,32,0), $O:$O,">="&VLOOKUP($F8&BO$7,B_FLOTA!$A:$AB,21,0), $G:$G,">="&VLOOKUP($F8&BO$7,B_FLOTA!$A:$V,9,0), $CX:$CX,">="&VLOOKUP($F8&BO$7,B_FLOTA!$A:$V,10,0), $R:$R,IF(MARCO="SI","SI","<>"&""))), $F8&BO$7,"") ->  | BP8: =IF( $AF8=( _xlfn.MINIFS($AF:$AF, $F:$F,$F8, $J:$J,">="&VLOOKUP($F8&BP$7,B_FLOTA!$A:$V,15,0), $K:$K,">="&VLOOKUP($F8&BP$7,B_FLOTA!$A:$V,16,0), $AF:$AF,"<="&VLOOKUP($F8&BP$7,A_FLOTA!$A:$AH,32,0), $O:$O,">="&VLOOKUP($F8&BP$7,B_FLOTA!$A:$AB,21,0), $G:$G,">="&VLOOKUP($F8&BP$7,B_FLOTA!$A:$V,9,0), $CX:$CX,">="&VLOOKUP($F8&BP$7,B_FLOTA!$A:$V,10,0), $R:$R,IF(MARCO="SI","SI","<>"&""))), $F8&BP$7,"") ->  | BQ8: =IF( $AF8=( _xlfn.MINIFS($AF:$AF, $F:$F,$F8, $J:$J,">="&VLOOKUP($F8&BQ$7,B_FLOTA!$A:$V,15,0), $K:$K,">="&VLOOKUP($F8&BQ$7,B_FLOTA!$A:$V,16,0), $AF:$AF,"<="&VLOOKUP($F8&BQ$7,A_FLOTA!$A:$AH,32,0), $O:$O,">="&VLOOKUP($F8&BQ$7,B_FLOTA!$A:$AB,21,0), $G:$G,">="&VLOOKUP($F8&BQ$7,B_FLOTA!$A:$V,9,0), $CX:$CX,">="&VLOOKUP($F8&BQ$7,B_FLOTA!$A:$V,10,0), $R:$R,IF(MARCO="SI","SI","<>"&""))), $F8&BQ$7,"") ->  | BR8: =IF( $AF8=( _xlfn.MINIFS($AF:$AF, $F:$F,$F8, $J:$J,">="&VLOOKUP($F8&BR$7,B_FLOTA!$A:$V,15,0), $K:$K,">="&VLOOKUP($F8&BR$7,B_FLOTA!$A:$V,16,0), $AF:$AF,"<="&VLOOKUP($F8&BR$7,A_FLOTA!$A:$AH,32,0), $O:$O,">="&VLOOKUP($F8&BR$7,B_FLOTA!$A:$AB,21,0), $G:$G,">="&VLOOKUP($F8&BR$7,B_FLOTA!$A:$V,9,0), $CX:$CX,">="&VLOOKUP($F8&BR$7,B_FLOTA!$A:$V,10,0), $R:$R,IF(MARCO="SI","SI","<>"&""))), $F8&BR$7,"") ->  | BS8: =IF( $AF8=( _xlfn.MINIFS($AF:$AF, $F:$F,$F8, $J:$J,">="&VLOOKUP($F8&BS$7,B_FLOTA!$A:$V,15,0), $K:$K,">="&VLOOKUP($F8&BS$7,B_FLOTA!$A:$V,16,0), $AF:$AF,"<="&VLOOKUP($F8&BS$7,A_FLOTA!$A:$AH,32,0), $O:$O,">="&VLOOKUP($F8&BS$7,B_FLOTA!$A:$AB,21,0), $G:$G,">="&VLOOKUP($F8&BS$7,B_FLOTA!$A:$V,9,0), $CX:$CX,">="&VLOOKUP($F8&BS$7,B_FLOTA!$A:$V,10,0), $R:$R,IF(MARCO="SI","SI","<>"&""))), $F8&BS$7,"") ->  | BT8: =IF( $AF8=( _xlfn.MINIFS($AF:$AF, $F:$F,$F8, $J:$J,">="&VLOOKUP($F8&BT$7,B_FLOTA!$A:$V,15,0), $K:$K,">="&VLOOKUP($F8&BT$7,B_FLOTA!$A:$V,16,0), $AF:$AF,"<="&VLOOKUP($F8&BT$7,A_FLOTA!$A:$AH,32,0), $O:$O,">="&VLOOKUP($F8&BT$7,B_FLOTA!$A:$AB,21,0), $G:$G,">="&VLOOKUP($F8&BT$7,B_FLOTA!$A:$V,9,0), $CX:$CX,">="&VLOOKUP($F8&BT$7,B_FLOTA!$A:$V,10,0), $R:$R,IF(MARCO="SI","SI","<>"&""))), $F8&BT$7,"") ->  | BU8: =IF( $AF8=( _xlfn.MINIFS($AF:$AF, $F:$F,$F8, $J:$J,">="&VLOOKUP($F8&BU$7,B_FLOTA!$A:$V,15,0), $K:$K,">="&VLOOKUP($F8&BU$7,B_FLOTA!$A:$V,16,0), $AF:$AF,"<="&VLOOKUP($F8&BU$7,A_FLOTA!$A:$AH,32,0), $O:$O,">="&VLOOKUP($F8&BU$7,B_FLOTA!$A:$AB,21,0), $G:$G,">="&VLOOKUP($F8&BU$7,B_FLOTA!$A:$V,9,0), $CX:$CX,">="&VLOOKUP($F8&BU$7,B_FLOTA!$A:$V,10,0), $R:$R,IF(MARCO="SI","SI","<>"&""))), $F8&BU$7,"") ->  | BV8: =IF( $AF8=( _xlfn.MINIFS($AF:$AF, $F:$F,$F8, $J:$J,">="&VLOOKUP($F8&BV$7,B_FLOTA!$A:$V,15,0), $K:$K,">="&VLOOKUP($F8&BV$7,B_FLOTA!$A:$V,16,0), $AF:$AF,"<="&VLOOKUP($F8&BV$7,A_FLOTA!$A:$AH,32,0), $O:$O,">="&VLOOKUP($F8&BV$7,B_FLOTA!$A:$AB,21,0), $G:$G,">="&VLOOKUP($F8&BV$7,B_FLOTA!$A:$V,9,0), $CX:$CX,">="&VLOOKUP($F8&BV$7,B_FLOTA!$A:$V,10,0), $R:$R,IF(MARCO="SI","SI","<>"&""))), $F8&BV$7,"") ->  | BW8: =IF( $AF8=( _xlfn.MINIFS($AF:$AF, $F:$F,$F8, $J:$J,">="&VLOOKUP($F8&BW$7,B_FLOTA!$A:$V,15,0), $K:$K,">="&VLOOKUP($F8&BW$7,B_FLOTA!$A:$V,16,0), $AF:$AF,"<="&VLOOKUP($F8&BW$7,A_FLOTA!$A:$AH,32,0), $O:$O,">="&VLOOKUP($F8&BW$7,B_FLOTA!$A:$AB,21,0), $G:$G,">="&VLOOKUP($F8&BW$7,B_FLOTA!$A:$V,9,0), $CX:$CX,">="&VLOOKUP($F8&BW$7,B_FLOTA!$A:$V,10,0), $R:$R,IF(MARCO="SI","SI","<>"&""))), $F8&BW$7,"") ->  | BX8: =IF( $AF8=( _xlfn.MINIFS($AF:$AF, $F:$F,$F8, $J:$J,">="&VLOOKUP($F8&BX$7,B_FLOTA!$A:$V,15,0), $K:$K,">="&VLOOKUP($F8&BX$7,B_FLOTA!$A:$V,16,0), $AF:$AF,"<="&VLOOKUP($F8&BX$7,A_FLOTA!$A:$AH,32,0), $O:$O,">="&VLOOKUP($F8&BX$7,B_FLOTA!$A:$AB,21,0), $G:$G,">="&VLOOKUP($F8&BX$7,B_FLOTA!$A:$V,9,0), $CX:$CX,">="&VLOOKUP($F8&BX$7,B_FLOTA!$A:$V,10,0), $R:$R,IF(MARCO="SI","SI","<>"&""))), $F8&BX$7,"") ->  | BY8: =IF( $AF8=( _xlfn.MINIFS($AF:$AF, $F:$F,$F8, $J:$J,">="&VLOOKUP($F8&BY$7,B_FLOTA!$A:$V,15,0), $K:$K,">="&VLOOKUP($F8&BY$7,B_FLOTA!$A:$V,16,0), $AF:$AF,"<="&VLOOKUP($F8&BY$7,A_FLOTA!$A:$AH,32,0), $O:$O,">="&VLOOKUP($F8&BY$7,B_FLOTA!$A:$AB,21,0), $G:$G,">="&VLOOKUP($F8&BY$7,B_FLOTA!$A:$V,9,0), $CX:$CX,">="&VLOOKUP($F8&BY$7,B_FLOTA!$A:$V,10,0), $R:$R,IF(MARCO="SI","SI","<>"&""))), $F8&BY$7,"") ->  | BZ8: =IF( $AF8=( _xlfn.MINIFS($AF:$AF, $F:$F,$F8, $J:$J,">="&VLOOKUP($F8&BZ$7,B_FLOTA!$A:$V,15,0), $K:$K,">="&VLOOKUP($F8&BZ$7,B_FLOTA!$A:$V,16,0), $AF:$AF,"<="&VLOOKUP($F8&BZ$7,A_FLOTA!$A:$AH,32,0), $O:$O,">="&VLOOKUP($F8&BZ$7,B_FLOTA!$A:$AB,21,0), $G:$G,">="&VLOOKUP($F8&BZ$7,B_FLOTA!$A:$V,9,0), $CX:$CX,">="&VLOOKUP($F8&BZ$7,B_FLOTA!$A:$V,10,0), $R:$R,IF(MARCO="SI","SI","<>"&""))), $F8&BZ$7,"") ->  | CA8: =IF( $AF8=( _xlfn.MINIFS($AF:$AF, $F:$F,$F8, $J:$J,">="&VLOOKUP($F8&CA$7,B_FLOTA!$A:$V,15,0), $K:$K,">="&VLOOKUP($F8&CA$7,B_FLOTA!$A:$V,16,0), $AF:$AF,"<="&VLOOKUP($F8&CA$7,A_FLOTA!$A:$AH,32,0), $O:$O,">="&VLOOKUP($F8&CA$7,B_FLOTA!$A:$AB,21,0), $G:$G,">="&VLOOKUP($F8&CA$7,B_FLOTA!$A:$V,9,0), $CX:$CX,">="&VLOOKUP($F8&CA$7,B_FLOTA!$A:$V,10,0), $R:$R,IF(MARCO="SI","SI","<>"&""))), $F8&CA$7,"") ->  | CB8: =IF( $AF8=( _xlfn.MINIFS($AF:$AF, $F:$F,$F8, $J:$J,">="&VLOOKUP($F8&CB$7,B_FLOTA!$A:$V,15,0), $K:$K,">="&VLOOKUP($F8&CB$7,B_FLOTA!$A:$V,16,0), $AF:$AF,"<="&VLOOKUP($F8&CB$7,A_FLOTA!$A:$AH,32,0), $O:$O,">="&VLOOKUP($F8&CB$7,B_FLOTA!$A:$AB,21,0), $G:$G,">="&VLOOKUP($F8&CB$7,B_FLOTA!$A:$V,9,0), $CX:$CX,">="&VLOOKUP($F8&CB$7,B_FLOTA!$A:$V,10,0), $R:$R,IF(MARCO="SI","SI","<>"&""))), $F8&CB$7,"") ->  | CC8: =IF( $AF8=( _xlfn.MINIFS($AF:$AF, $F:$F,$F8, $J:$J,">="&VLOOKUP($F8&CC$7,B_FLOTA!$A:$V,15,0), $K:$K,">="&VLOOKUP($F8&CC$7,B_FLOTA!$A:$V,16,0), $AF:$AF,"<="&VLOOKUP($F8&CC$7,A_FLOTA!$A:$AH,32,0), $O:$O,">="&VLOOKUP($F8&CC$7,B_FLOTA!$A:$AB,21,0), $G:$G,">="&VLOOKUP($F8&CC$7,B_FLOTA!$A:$V,9,0), $CX:$CX,">="&VLOOKUP($F8&CC$7,B_FLOTA!$A:$V,10,0), $R:$R,IF(MARCO="SI","SI","<>"&""))), $F8&CC$7,"") ->  | CD8: =IF( $AF8=( _xlfn.MINIFS($AF:$AF, $F:$F,$F8, $J:$J,">="&VLOOKUP($F8&CD$7,B_FLOTA!$A:$V,15,0), $K:$K,">="&VLOOKUP($F8&CD$7,B_FLOTA!$A:$V,16,0), $AF:$AF,"<="&VLOOKUP($F8&CD$7,A_FLOTA!$A:$AH,32,0), $O:$O,">="&VLOOKUP($F8&CD$7,B_FLOTA!$A:$AB,21,0), $G:$G,">="&VLOOKUP($F8&CD$7,B_FLOTA!$A:$V,9,0), $CX:$CX,">="&VLOOKUP($F8&CD$7,B_FLOTA!$A:$V,10,0), $R:$R,IF(MARCO="SI","SI","<>"&""))), $F8&CD$7,"") ->  | CE8: =IF( $AF8=( _xlfn.MINIFS($AF:$AF, $F:$F,$F8, $J:$J,">="&VLOOKUP($F8&CE$7,B_FLOTA!$A:$V,15,0), $K:$K,">="&VLOOKUP($F8&CE$7,B_FLOTA!$A:$V,16,0), $AF:$AF,"<="&VLOOKUP($F8&CE$7,A_FLOTA!$A:$AH,32,0), $O:$O,">="&VLOOKUP($F8&CE$7,B_FLOTA!$A:$AB,21,0), $G:$G,">="&VLOOKUP($F8&CE$7,B_FLOTA!$A:$V,9,0), $CX:$CX,">="&VLOOKUP($F8&CE$7,B_FLOTA!$A:$V,10,0), $R:$R,IF(MARCO="SI","SI","<>"&""))), $F8&CE$7,"") ->  | CG8: =L8 -> kWh/km | CH8: =IFERROR(VLOOKUP(E8,VALORES!$B$1:$E$8,3,0),"") -> KWH | CJ8: =IF(OR($E8="BEV",$E8="FCEV"),_xlfn.MINIFS('BD3(GEI & Cont)'!$E:$E,'BD3(GEI & Cont)'!$B:$B,$F8,'BD3(GEI & Cont)'!$C:$C,$E8,'BD3(GEI & Cont)'!$E:$E,">="&VALUE($H8))*IFERROR(VLOOKUP($F8,A_FLOTA!$F:$BS,64,0),0)*IFERROR(VLOOKUP($F8,A_FLOTA!$F:$BS,65,0),0)*W8,_xlfn.MINIFS('BD3(GEI & Cont)'!$L:$L,'BD3(GEI & Cont)'!A:A,"",'BD3(GEI & Cont)'!$B:$B,$F8,'BD3(GEI & Cont)'!$C:$C,$E8,'BD3(GEI & Cont)'!$E:$E,">="&VALUE($H8),'BD3(GEI & Cont)'!$D:$D,$I8)*IFERROR(VLOOKUP($F8,A_FLOTA!$F:$BS,64,0),0)*IFERROR(VLOOKUP($F8,A_FLOTA!$F:$BS,65,0),0)*W8) -> 0 | CK8: =IF(OR($E8="BEV",$E8="FCEV"),_xlfn.MINIFS('BD3(GEI & Cont)'!$F:$F,'BD3(GEI & Cont)'!$B:$B,$F8,'BD3(GEI & Cont)'!$C:$C,$E8,'BD3(GEI & Cont)'!$E:$E,">="&VALUE($H8))*IFERROR(VLOOKUP($F8,A_FLOTA!$F:$BS,64,0),0)*IFERROR(VLOOKUP($F8,A_FLOTA!$F:$BS,65,0),0)*W8,_xlfn.MINIFS('BD3(GEI & Cont)'!$M:$M,'BD3(GEI & Cont)'!A:A,"",'BD3(GEI & Cont)'!$B:$B,$F8,'BD3(GEI & Cont)'!$C:$C,$E8,'BD3(GEI & Cont)'!$E:$E,">="&VALUE($H8),'BD3(GEI & Cont)'!$D:$D,$I8)*IFERROR(VLOOKUP($F8,A_FLOTA!$F:$BS,64,0),0)*IFERROR(VLOOKUP($F8,A_FLOTA!$F:$BS,65,0),0)*W8) -> 0 | CL8: =IF(OR($E8="BEV",$E8="FCEV"),0,_xlfn.MINIFS('BD3(GEI & Cont)'!$I:$I,'BD3(GEI & Cont)'!A:A,"",'BD3(GEI & Cont)'!$B:$B,$F8,'BD3(GEI & Cont)'!$C:$C,$E8,'BD3(GEI & Cont)'!$E:$E,">="&VALUE($H8),'BD3(GEI & Cont)'!$D:$D,$I8)*IFERROR(VLOOKUP($F8,A_FLOTA!$F:$BS,64,0),0)*IFERROR(VLOOKUP($F8,A_FLOTA!$F:$BS,65,0),0)*W8) -> 0 | CM8: =IF(OR($E8="BEV",$E8="FCEV"),0,_xlfn.MINIFS('BD3(GEI & Cont)'!F:F,'BD3(GEI & Cont)'!$A:$A,EURO,'BD3(GEI & Cont)'!$B:$B,$F8,'BD3(GEI & Cont)'!$C:$C,$E8,'BD3(GEI & Cont)'!$E:$E,">="&VALUE($H8),'BD3(GEI & Cont)'!$D:$D,$I8)*IFERROR(VLOOKUP($F8,A_FLOTA!$F:$BS,64,0),0)*IFERROR(VLOOKUP($F8,A_FLOTA!$F:$BS,65,0),0)*W8) -> 0 | CN8: =IF(OR($E8="BEV",$E8="FCEV"),0,_xlfn.MINIFS('BD3(GEI & Cont)'!G:G,'BD3(GEI & Cont)'!$A:$A,EURO,'BD3(GEI & Cont)'!$B:$B,$F8,'BD3(GEI & Cont)'!$C:$C,$E8,'BD3(GEI & Cont)'!$E:$E,">="&VALUE($H8),'BD3(GEI & Cont)'!$D:$D,$I8)*IFERROR(VLOOKUP($F8,A_FLOTA!$F:$BS,64,0),0)*IFERROR(VLOOKUP($F8,A_FLOTA!$F:$BS,65,0),0)*W8) -> 0 | CO8: =IF(OR($E8="BEV",$E8="FCEV"),0,_xlfn.MINIFS('BD3(GEI & Cont)'!H:H,'BD3(GEI & Cont)'!$A:$A,EURO,'BD3(GEI & Cont)'!$B:$B,$F8,'BD3(GEI & Cont)'!$C:$C,$E8,'BD3(GEI & Cont)'!$E:$E,">="&VALUE($H8),'BD3(GEI & Cont)'!$D:$D,$I8)*IFERROR(VLOOKUP($F8,A_FLOTA!$F:$BS,64,0),0)*IFERROR(VLOOKUP($F8,A_FLOTA!$F:$BS,65,0),0)*W8) -> 0 | CP8: =IF(OR($E8="BEV",$E8="FCEV"),0,_xlfn.MINIFS('BD3(GEI & Cont)'!I:I,'BD3(GEI & Cont)'!$A:$A,EURO,'BD3(GEI & Cont)'!$B:$B,$F8,'BD3(GEI & Cont)'!$C:$C,$E8,'BD3(GEI & Cont)'!$E:$E,">="&VALUE($H8),'BD3(GEI & Cont)'!$D:$D,$I8)*IFERROR(VLOOKUP($F8,A_FLOTA!$F:$BS,64,0),0)*IFERROR(VLOOKUP($F8,A_FLOTA!$F:$BS,65,0),0)*W8) -> 0 | CQ8: =IF(OR($E8="BEV",$E8="FCEV"),0,_xlfn.MINIFS('BD3(GEI & Cont)'!M:M,'BD3(GEI & Cont)'!$A:$A,EURO,'BD3(GEI & Cont)'!$B:$B,$F8,'BD3(GEI & Cont)'!$C:$C,$E8,'BD3(GEI & Cont)'!$E:$E,">="&VALUE($H8),'BD3(GEI & Cont)'!$D:$D,$I8)*IFERROR(VLOOKUP($F8,A_FLOTA!$F:$BS,64,0),0)*IFERROR(VLOOKUP($F8,A_FLOTA!$F:$BS,65,0),0)*W8) -> 0 | CR8: =IF(OR($E8="BEV",$E8="FCEV"),'BD3(GEI & Cont)'!$D$44*IFERROR(VLOOKUP($F8,A_FLOTA!$F:$BS,64,0),0)*IFERROR(VLOOKUP($F8,A_FLOTA!$F:$BS,65,0),0)*W8*IF($E8="BEV",$M8,1),_xlfn.MINIFS('BD3(GEI & Cont)'!$K:$K,'BD3(GEI & Cont)'!A:A,"",'BD3(GEI & Cont)'!$B:$B,$F8,'BD3(GEI & Cont)'!$C:$C,$E8,'BD3(GEI & Cont)'!$E:$E,">="&VALUE($H8),'BD3(GEI & Cont)'!$D:$D,$I8)*IFERROR(VLOOKUP($F8,A_FLOTA!$F:$BS,64,0),0)*IFERROR(VLOOKUP($F8,A_FLOTA!$F:$BS,65,0),0)*W8*IF($E8="BEV",$M8,1)) -> 0 | CS8: =+CQ8+CR8 -> 0 | CT8: =+CQ8+CR8+CJ8+CK8 -> 0 | CV8: =IFERROR(W8*IFERROR(VLOOKUP(F8,A_FLOTA!$F:$BS,64,0),0)*IFERROR(VLOOKUP(F8,A_FLOTA!$F:$BS,65,0),"")*AF8,"") ->  | CW8: =+IFERROR(VLOOKUP(F8,A_FLOTA!$F:$BS,64,0),0)*IFERROR(VLOOKUP(F8,A_FLOTA!$F:$BS,65,0),0)*W8*M8 -> 0 | CX8: =VALUE(H8) -> 0 | CY8: =VALUE(G8) -> 2 | DA8: =+IFERROR(((S8*95%)*((8-PLAZO_FINANC_LEASE/12)/8)+S8*5%)/S8,0) -> 0.40625 | DB8: =+IFERROR(S8*DA8,0) -> 1421875 | DC8: =+IFERROR(S8-(S8*CUOTA_INICIAL_LEASE_)-(S8*OPCION_COMPRA_LEASE),0) -> 3290000 | DD8: =+IFERROR(DC8-DB8,0) -> 1868125 | DE8: =+IFERROR(DD8/PLAZO_FINANC_LEASE,0) -> 31135.41667 | DF8: =+IFERROR((DB8+DC8)*TASA_INTERES_LEASE_,0) -> 48061.125 | DG8: =+IFERROR(DE8+DF8,0) -> 79196.54167 | DH8: =+IFERROR(DG8*PLAZO_FINANC_LEASE,0) -> 4751792.5 | DI8: =+IFERROR(DH8-DC8,0) -> 1461792.5
A9: 2 | B9: Starker | C9: Reactor | D9: 2020 | E9: BEV | F9: Motocicleta | G9: 2 | H9: 0 | I9: Electricidad | J9: 2 | K9: 75 | L9: kWh/km | M9: 0.04311111111 | O9: 45 | P9: 45 | Q9: 4500000 | R9: NO | S9: =IFERROR($Q9*(1-(-INDIRECT("CAPEX_"&E9)))^(AÑO_OBJETIVO-$D9),0) -> 4500000 | T9: =+IFERROR(S9/(1+INDIRECT("I_"&E9)+INDIRECT("A_"&E9)),0) -> 4285714.286 | U9: =IFERROR(T9*INDIRECT("I_"&E9),0) -> 214285.7143 | V9: =IFERROR(T9*INDIRECT("A_"&E9),0) -> 0 | W9: =IFERROR(INDIRECT("V_"&E9),0) -> 8 | X9: =+S9-(S9*SALVAMENTO) -> 4275000 | Y9: =IF(VLOOKUP(VALORES!$R$5,VALORES!$Q$1:$R$4,2,0)<>"PARTICULAR",R_OFIC_PUBL,INDIRECT("R_"&VLOOKUP(F9,VALORES!$G:$H,2,0)&"_"&VLOOKUP(Q9,AUTO_VALOR,3,1))) -> 0.005 | Z9: =+IFERROR((W9*S9-((W9^2+W9)/2*(X9/W9)))*Y9,0) -> 83812.5 | AA9: =IFERROR(IF(VLOOKUP(VALORES!$R$5,VALORES!$Q$1:$R$4,2,0)<>"PARTICULAR",VLOOKUP(N9,INDIRECT("SOAT_OFICIALES"),3,1)*W9,(VLOOKUP(IF(OR(F9="Camión",F9="TRACTOMULA"),H9,N9),INDIRECT("SOAT_"&VLOOKUP(F9,VALORES!$G$1:$H$9,2,0)&"_1"),3,1)*IF(W9>9,9,W9))+VLOOKUP(IF(OR(F9="Camión",F9="TRACTOMULA"),H9,N9),INDIRECT("SOAT_"&VLOOKUP(F9,VALORES!$G$1:$H$9,2,0)&"_2"),3,1)*IF((W9-9)<0,0,(W9-9))),0) -> 5730000 | AB9: 1879447.5 | AC9: =IF(E9="ICE",INDIRECT("CM_"&E9&"_"&LEFT(F9,4))*IFERROR(VLOOKUP(F9,A_FLOTA!$F:$BS,64,0),0)*IFERROR(VLOOKUP(F9,A_FLOTA!$F:$BS,65,0),0)*W9,IFERROR((INDIRECT("CM_"&E9&"_"&LEFT(F9,4)))*IFERROR(VLOOKUP(F9,A_FLOTA!$F:$BS,64,0),0)*IFERROR(VLOOKUP(F9,A_FLOTA!$F:$BS,65,0),0)*(1-(1-INDIRECT("REDUC_CM_"&E9))^(W9))/(1-(1-INDIRECT("REDUC_CM_"&E9))),0)) -> 0 | AD9: =IFERROR((IFERROR(M9*IFERROR(VLOOKUP(F9,A_FLOTA!$F:$BS,64,0),0)*IFERROR(VLOOKUP(F9,A_FLOTA!$F:$BS,65,0),0)*W9*AVERAGEIFS( INDIRECT(E9&"_"&LEFT(I9,3)&"_"&I_ESCENARIOS!$E$7), 'BD2 (Costos)'!B:B,">="&DATE(AÑO_OBJETIVO,1,1), 'BD2 (Costos)'!B:B,"<="&DATE(AÑO_OBJETIVO+W9,12,31))/AVERAGEIFS(VALORES!$E$1:$E$10,VALORES!$C$1:$C$10,CG9,VALORES!$D$1:$D$10,CH9),0))*(O9/(O9+P9))+(IFERROR(M9*IFERROR(VLOOKUP(F9,A_FLOTA!$F:$BS,64,0),0)*IFERROR(VLOOKUP(F9,A_FLOTA!$F:$BS,65,0),0)*W9*AVERAGEIFS( INDIRECT("BEV_ELE_"&I_ESCENARIOS!$E$7), 'BD2 (Costos)'!B:B,">="&DATE(AÑO_OBJETIVO,1,1), 'BD2 (Costos)'!B:B,"<="&DATE(AÑO_OBJETIVO+W9,12,31)),0))*(P9/(O9+P9)),0) -> 0 | AE9: =IF(E9="BEV",IF(INDIRECT("VB_"&E9)<W9,IFERROR(INT(W9/INDIRECT("VB_"&E9))*(Q9*(1-(-INDIRECT("CAPEX_"&E9)))^(INDIRECT("VB_"&E9))*INDIRECT("CB_"&E9)),0),0),0) -> 0 | AF9: =IFERROR(SUM(T9:AE9)/(VLOOKUP(F9,A_FLOTA!$F:$BS,64,0)*(VLOOKUP(F9,A_FLOTA!$F:$BS,65,0)*W9)),"N/A") -> N/A | AH9: =IF( $AF9=( _xlfn.MINIFS($AF:$AF, $F:$F,$F9, $J:$J,">="&VLOOKUP($F9&AH$7,B_FLOTA!$A:$V,15,0), $K:$K,">="&VLOOKUP($F9&AH$7,B_FLOTA!$A:$V,16,0), $AF:$AF,"<="&VLOOKUP($F9&AH$7,A_FLOTA!$A:$AH,32,0), $O:$O,">="&VLOOKUP($F9&AH$7,B_FLOTA!$A:$AB,21,0), $G:$G,">="&VLOOKUP($F9&AH$7,B_FLOTA!$A:$V,9,0), $CX:$CX,">="&VLOOKUP($F9&AH$7,B_FLOTA!$A:$V,10,0), $R:$R,IF(MARCO="SI","SI","<>"&""))), $F9&AH$7,"") ->  | AI9: =IF( $AF9=( _xlfn.MINIFS($AF:$AF, $F:$F,$F9, $J:$J,">="&VLOOKUP($F9&AI$7,B_FLOTA!$A:$V,15,0), $K:$K,">="&VLOOKUP($F9&AI$7,B_FLOTA!$A:$V,16,0), $AF:$AF,"<="&VLOOKUP($F9&AI$7,A_FLOTA!$A:$AH,32,0), $O:$O,">="&VLOOKUP($F9&AI$7,B_FLOTA!$A:$AB,21,0), $G:$G,">="&VLOOKUP($F9&AI$7,B_FLOTA!$A:$V,9,0), $CX:$CX,">="&VLOOKUP($F9&AI$7,B_FLOTA!$A:$V,10,0), $R:$R,IF(MARCO="SI","SI","<>"&""))), $F9&AI$7,"") ->  | AJ9: =IF( $AF9=( _xlfn.MINIFS($AF:$AF, $F:$F,$F9, $J:$J,">="&VLOOKUP($F9&AJ$7,B_FLOTA!$A:$V,15,0), $K:$K,">="&VLOOKUP($F9&AJ$7,B_FLOTA!$A:$V,16,0), $AF:$AF,"<="&VLOOKUP($F9&AJ$7,A_FLOTA!$A:$AH,32,0), $O:$O,">="&VLOOKUP($F9&AJ$7,B_FLOTA!$A:$AB,21,0), $G:$G,">="&VLOOKUP($F9&AJ$7,B_FLOTA!$A:$V,9,0), $CX:$CX,">="&VLOOKUP($F9&AJ$7,B_FLOTA!$A:$V,10,0), $R:$R,IF(MARCO="SI","SI","<>"&""))), $F9&AJ$7,"") ->  | AK9: =IF( $AF9=( _xlfn.MINIFS($AF:$AF, $F:$F,$F9, $J:$J,">="&VLOOKUP($F9&AK$7,B_FLOTA!$A:$V,15,0), $K:$K,">="&VLOOKUP($F9&AK$7,B_FLOTA!$A:$V,16,0), $AF:$AF,"<="&VLOOKUP($F9&AK$7,A_FLOTA!$A:$AH,32,0), $O:$O,">="&VLOOKUP($F9&AK$7,B_FLOTA!$A:$AB,21,0), $G:$G,">="&VLOOKUP($F9&AK$7,B_FLOTA!$A:$V,9,0), $CX:$CX,">="&VLOOKUP($F9&AK$7,B_FLOTA!$A:$V,10,0), $R:$R,IF(MARCO="SI","SI","<>"&""))), $F9&AK$7,"") ->  | AL9: =IF( $AF9=( _xlfn.MINIFS($AF:$AF, $F:$F,$F9, $J:$J,">="&VLOOKUP($F9&AL$7,B_FLOTA!$A:$V,15,0), $K:$K,">="&VLOOKUP($F9&AL$7,B_FLOTA!$A:$V,16,0), $AF:$AF,"<="&VLOOKUP($F9&AL$7,A_FLOTA!$A:$AH,32,0), $O:$O,">="&VLOOKUP($F9&AL$7,B_FLOTA!$A:$AB,21,0), $G:$G,">="&VLOOKUP($F9&AL$7,B_FLOTA!$A:$V,9,0), $CX:$CX,">="&VLOOKUP($F9&AL$7,B_FLOTA!$A:$V,10,0), $R:$R,IF(MARCO="SI","SI","<>"&""))), $F9&AL$7,"") ->  | AM9: =IF( $AF9=( _xlfn.MINIFS($AF:$AF, $F:$F,$F9, $J:$J,">="&VLOOKUP($F9&AM$7,B_FLOTA!$A:$V,15,0), $K:$K,">="&VLOOKUP($F9&AM$7,B_FLOTA!$A:$V,16,0), $AF:$AF,"<="&VLOOKUP($F9&AM$7,A_FLOTA!$A:$AH,32,0), $O:$O,">="&VLOOKUP($F9&AM$7,B_FLOTA!$A:$AB,21,0), $G:$G,">="&VLOOKUP($F9&AM$7,B_FLOTA!$A:$V,9,0), $CX:$CX,">="&VLOOKUP($F9&AM$7,B_FLOTA!$A:$V,10,0), $R:$R,IF(MARCO="SI","SI","<>"&""))), $F9&AM$7,"") ->  | AN9: =IF( $AF9=( _xlfn.MINIFS($AF:$AF, $F:$F,$F9, $J:$J,">="&VLOOKUP($F9&AN$7,B_FLOTA!$A:$V,15,0), $K:$K,">="&VLOOKUP($F9&AN$7,B_FLOTA!$A:$V,16,0), $AF:$AF,"<="&VLOOKUP($F9&AN$7,A_FLOTA!$A:$AH,32,0), $O:$O,">="&VLOOKUP($F9&AN$7,B_FLOTA!$A:$AB,21,0), $G:$G,">="&VLOOKUP($F9&AN$7,B_FLOTA!$A:$V,9,0), $CX:$CX,">="&VLOOKUP($F9&AN$7,B_FLOTA!$A:$V,10,0), $R:$R,IF(MARCO="SI","SI","<>"&""))), $F9&AN$7,"") ->  | AO9: =IF( $AF9=( _xlfn.MINIFS($AF:$AF, $F:$F,$F9, $J:$J,">="&VLOOKUP($F9&AO$7,B_FLOTA!$A:$V,15,0), $K:$K,">="&VLOOKUP($F9&AO$7,B_FLOTA!$A:$V,16,0), $AF:$AF,"<="&VLOOKUP($F9&AO$7,A_FLOTA!$A:$AH,32,0), $O:$O,">="&VLOOKUP($F9&AO$7,B_FLOTA!$A:$AB,21,0), $G:$G,">="&VLOOKUP($F9&AO$7,B_FLOTA!$A:$V,9,0), $CX:$CX,">="&VLOOKUP($F9&AO$7,B_FLOTA!$A:$V,10,0), $R:$R,IF(MARCO="SI","SI","<>"&""))), $F9&AO$7,"") ->  | AP9: =IF( $AF9=( _xlfn.MINIFS($AF:$AF, $F:$F,$F9, $J:$J,">="&VLOOKUP($F9&AP$7,B_FLOTA!$A:$V,15,0), $K:$K,">="&VLOOKUP($F9&AP$7,B_FLOTA!$A:$V,16,0), $AF:$AF,"<="&VLOOKUP($F9&AP$7,A_FLOTA!$A:$AH,32,0), $O:$O,">="&VLOOKUP($F9&AP$7,B_FLOTA!$A:$AB,21,0), $G:$G,">="&VLOOKUP($F9&AP$7,B_FLOTA!$A:$V,9,0), $CX:$CX,">="&VLOOKUP($F9&AP$7,B_FLOTA!$A:$V,10,0), $R:$R,IF(MARCO="SI","SI","<>"&""))), $F9&AP$7,"") ->  | AQ9: =IF( $AF9=( _xlfn.MINIFS($AF:$AF, $F:$F,$F9, $J:$J,">="&VLOOKUP($F9&AQ$7,B_FLOTA!$A:$V,15,0), $K:$K,">="&VLOOKUP($F9&AQ$7,B_FLOTA!$A:$V,16,0), $AF:$AF,"<="&VLOOKUP($F9&AQ$7,A_FLOTA!$A:$AH,32,0), $O:$O,">="&VLOOKUP($F9&AQ$7,B_FLOTA!$A:$AB,21,0), $G:$G,">="&VLOOKUP($F9&AQ$7,B_FLOTA!$A:$V,9,0), $CX:$CX,">="&VLOOKUP($F9&AQ$7,B_FLOTA!$A:$V,10,0), $R:$R,IF(MARCO="SI","SI","<>"&""))), $F9&AQ$7,"") ->  | AR9: =IF( $AF9=( _xlfn.MINIFS($AF:$AF, $F:$F,$F9, $J:$J,">="&VLOOKUP($F9&AR$7,B_FLOTA!$A:$V,15,0), $K:$K,">="&VLOOKUP($F9&AR$7,B_FLOTA!$A:$V,16,0), $AF:$AF,"<="&VLOOKUP($F9&AR$7,A_FLOTA!$A:$AH,32,0), $O:$O,">="&VLOOKUP($F9&AR$7,B_FLOTA!$A:$AB,21,0), $G:$G,">="&VLOOKUP($F9&AR$7,B_FLOTA!$A:$V,9,0), $CX:$CX,">="&VLOOKUP($F9&AR$7,B_FLOTA!$A:$V,10,0), $R:$R,IF(MARCO="SI","SI","<>"&""))), $F9&AR$7,"") ->  | AS9: =IF( $AF9=( _xlfn.MINIFS($AF:$AF, $F:$F,$F9, $J:$J,">="&VLOOKUP($F9&AS$7,B_FLOTA!$A:$V,15,0), $K:$K,">="&VLOOKUP($F9&AS$7,B_FLOTA!$A:$V,16,0), $AF:$AF,"<="&VLOOKUP($F9&AS$7,A_FLOTA!$A:$AH,32,0), $O:$O,">="&VLOOKUP($F9&AS$7,B_FLOTA!$A:$AB,21,0), $G:$G,">="&VLOOKUP($F9&AS$7,B_FLOTA!$A:$V,9,0), $CX:$CX,">="&VLOOKUP($F9&AS$7,B_FLOTA!$A:$V,10,0), $R:$R,IF(MARCO="SI","SI","<>"&""))), $F9&AS$7,"") ->  | AT9: =IF( $AF9=( _xlfn.MINIFS($AF:$AF, $F:$F,$F9, $J:$J,">="&VLOOKUP($F9&AT$7,B_FLOTA!$A:$V,15,0), $K:$K,">="&VLOOKUP($F9&AT$7,B_FLOTA!$A:$V,16,0), $AF:$AF,"<="&VLOOKUP($F9&AT$7,A_FLOTA!$A:$AH,32,0), $O:$O,">="&VLOOKUP($F9&AT$7,B_FLOTA!$A:$AB,21,0), $G:$G,">="&VLOOKUP($F9&AT$7,B_FLOTA!$A:$V,9,0), $CX:$CX,">="&VLOOKUP($F9&AT$7,B_FLOTA!$A:$V,10,0), $R:$R,IF(MARCO="SI","SI","<>"&""))), $F9&AT$7,"") ->  | AU9: =IF( $AF9=( _xlfn.MINIFS($AF:$AF, $F:$F,$F9, $J:$J,">="&VLOOKUP($F9&AU$7,B_FLOTA!$A:$V,15,0), $K:$K,">="&VLOOKUP($F9&AU$7,B_FLOTA!$A:$V,16,0), $AF:$AF,"<="&VLOOKUP($F9&AU$7,A_FLOTA!$A:$AH,32,0), $O:$O,">="&VLOOKUP($F9&AU$7,B_FLOTA!$A:$AB,21,0), $G:$G,">="&VLOOKUP($F9&AU$7,B_FLOTA!$A:$V,9,0), $CX:$CX,">="&VLOOKUP($F9&AU$7,B_FLOTA!$A:$V,10,0), $R:$R,IF(MARCO="SI","SI","<>"&""))), $F9&AU$7,"") ->  | AV9: =IF( $AF9=( _xlfn.MINIFS($AF:$AF, $F:$F,$F9, $J:$J,">="&VLOOKUP($F9&AV$7,B_FLOTA!$A:$V,15,0), $K:$K,">="&VLOOKUP($F9&AV$7,B_FLOTA!$A:$V,16,0), $AF:$AF,"<="&VLOOKUP($F9&AV$7,A_FLOTA!$A:$AH,32,0), $O:$O,">="&VLOOKUP($F9&AV$7,B_FLOTA!$A:$AB,21,0), $G:$G,">="&VLOOKUP($F9&AV$7,B_FLOTA!$A:$V,9,0), $CX:$CX,">="&VLOOKUP($F9&AV$7,B_FLOTA!$A:$V,10,0), $R:$R,IF(MARCO="SI","SI","<>"&""))), $F9&AV$7,"") ->  | AW9: =IF( $AF9=( _xlfn.MINIFS($AF:$AF, $F:$F,$F9, $J:$J,">="&VLOOKUP($F9&AW$7,B_FLOTA!$A:$V,15,0), $K:$K,">="&VLOOKUP($F9&AW$7,B_FLOTA!$A:$V,16,0), $AF:$AF,"<="&VLOOKUP($F9&AW$7,A_FLOTA!$A:$AH,32,0), $O:$O,">="&VLOOKUP($F9&AW$7,B_FLOTA!$A:$AB,21,0), $G:$G,">="&VLOOKUP($F9&AW$7,B_FLOTA!$A:$V,9,0), $CX:$CX,">="&VLOOKUP($F9&AW$7,B_FLOTA!$A:$V,10,0), $R:$R,IF(MARCO="SI","SI","<>"&""))), $F9&AW$7,"") ->  | AX9: =IF( $AF9=( _xlfn.MINIFS($AF:$AF, $F:$F,$F9, $J:$J,">="&VLOOKUP($F9&AX$7,B_FLOTA!$A:$V,15,0), $K:$K,">="&VLOOKUP($F9&AX$7,B_FLOTA!$A:$V,16,0), $AF:$AF,"<="&VLOOKUP($F9&AX$7,A_FLOTA!$A:$AH,32,0), $O:$O,">="&VLOOKUP($F9&AX$7,B_FLOTA!$A:$AB,21,0), $G:$G,">="&VLOOKUP($F9&AX$7,B_FLOTA!$A:$V,9,0), $CX:$CX,">="&VLOOKUP($F9&AX$7,B_FLOTA!$A:$V,10,0), $R:$R,IF(MARCO="SI","SI","<>"&""))), $F9&AX$7,"") ->  | AY9: =IF( $AF9=( _xlfn.MINIFS($AF:$AF, $F:$F,$F9, $J:$J,">="&VLOOKUP($F9&AY$7,B_FLOTA!$A:$V,15,0), $K:$K,">="&VLOOKUP($F9&AY$7,B_FLOTA!$A:$V,16,0), $AF:$AF,"<="&VLOOKUP($F9&AY$7,A_FLOTA!$A:$AH,32,0), $O:$O,">="&VLOOKUP($F9&AY$7,B_FLOTA!$A:$AB,21,0), $G:$G,">="&VLOOKUP($F9&AY$7,B_FLOTA!$A:$V,9,0), $CX:$CX,">="&VLOOKUP($F9&AY$7,B_FLOTA!$A:$V,10,0), $R:$R,IF(MARCO="SI","SI","<>"&""))), $F9&AY$7,"") ->  | AZ9: =IF( $AF9=( _xlfn.MINIFS($AF:$AF, $F:$F,$F9, $J:$J,">="&VLOOKUP($F9&AZ$7,B_FLOTA!$A:$V,15,0), $K:$K,">="&VLOOKUP($F9&AZ$7,B_FLOTA!$A:$V,16,0), $AF:$AF,"<="&VLOOKUP($F9&AZ$7,A_FLOTA!$A:$AH,32,0), $O:$O,">="&VLOOKUP($F9&AZ$7,B_FLOTA!$A:$AB,21,0), $G:$G,">="&VLOOKUP($F9&AZ$7,B_FLOTA!$A:$V,9,0), $CX:$CX,">="&VLOOKUP($F9&AZ$7,B_FLOTA!$A:$V,10,0), $R:$R,IF(MARCO="SI","SI","<>"&""))), $F9&AZ$7,"") ->  | BA9: =IF( $AF9=( _xlfn.MINIFS($AF:$AF, $F:$F,$F9, $J:$J,">="&VLOOKUP($F9&BA$7,B_FLOTA!$A:$V,15,0), $K:$K,">="&VLOOKUP($F9&BA$7,B_FLOTA!$A:$V,16,0), $AF:$AF,"<="&VLOOKUP($F9&BA$7,A_FLOTA!$A:$AH,32,0), $O:$O,">="&VLOOKUP($F9&BA$7,B_FLOTA!$A:$AB,21,0), $G:$G,">="&VLOOKUP($F9&BA$7,B_FLOTA!$A:$V,9,0), $CX:$CX,">="&VLOOKUP($F9&BA$7,B_FLOTA!$A:$V,10,0), $R:$R,IF(MARCO="SI","SI","<>"&""))), $F9&BA$7,"") ->  | BB9: =IF( $AF9=( _xlfn.MINIFS($AF:$AF, $F:$F,$F9, $J:$J,">="&VLOOKUP($F9&BB$7,B_FLOTA!$A:$V,15,0), $K:$K,">="&VLOOKUP($F9&BB$7,B_FLOTA!$A:$V,16,0), $AF:$AF,"<="&VLOOKUP($F9&BB$7,A_FLOTA!$A:$AH,32,0), $O:$O,">="&VLOOKUP($F9&BB$7,B_FLOTA!$A:$AB,21,0), $G:$G,">="&VLOOKUP($F9&BB$7,B_FLOTA!$A:$V,9,0), $CX:$CX,">="&VLOOKUP($F9&BB$7,B_FLOTA!$A:$V,10,0), $R:$R,IF(MARCO="SI","SI","<>"&""))), $F9&BB$7,"") ->  | BC9: =IF( $AF9=( _xlfn.MINIFS($AF:$AF, $F:$F,$F9, $J:$J,">="&VLOOKUP($F9&BC$7,B_FLOTA!$A:$V,15,0), $K:$K,">="&VLOOKUP($F9&BC$7,B_FLOTA!$A:$V,16,0), $AF:$AF,"<="&VLOOKUP($F9&BC$7,A_FLOTA!$A:$AH,32,0), $O:$O,">="&VLOOKUP($F9&BC$7,B_FLOTA!$A:$AB,21,0), $G:$G,">="&VLOOKUP($F9&BC$7,B_FLOTA!$A:$V,9,0), $CX:$CX,">="&VLOOKUP($F9&BC$7,B_FLOTA!$A:$V,10,0), $R:$R,IF(MARCO="SI","SI","<>"&""))), $F9&BC$7,"") ->  | BD9: =IF( $AF9=( _xlfn.MINIFS($AF:$AF, $F:$F,$F9, $J:$J,">="&VLOOKUP($F9&BD$7,B_FLOTA!$A:$V,15,0), $K:$K,">="&VLOOKUP($F9&BD$7,B_FLOTA!$A:$V,16,0), $AF:$AF,"<="&VLOOKUP($F9&BD$7,A_FLOTA!$A:$AH,32,0), $O:$O,">="&VLOOKUP($F9&BD$7,B_FLOTA!$A:$AB,21,0), $G:$G,">="&VLOOKUP($F9&BD$7,B_FLOTA!$A:$V,9,0), $CX:$CX,">="&VLOOKUP($F9&BD$7,B_FLOTA!$A:$V,10,0), $R:$R,IF(MARCO="SI","SI","<>"&""))), $F9&BD$7,"") ->  | BE9: =IF( $AF9=( _xlfn.MINIFS($AF:$AF, $F:$F,$F9, $J:$J,">="&VLOOKUP($F9&BE$7,B_FLOTA!$A:$V,15,0), $K:$K,">="&VLOOKUP($F9&BE$7,B_FLOTA!$A:$V,16,0), $AF:$AF,"<="&VLOOKUP($F9&BE$7,A_FLOTA!$A:$AH,32,0), $O:$O,">="&VLOOKUP($F9&BE$7,B_FLOTA!$A:$AB,21,0), $G:$G,">="&VLOOKUP($F9&BE$7,B_FLOTA!$A:$V,9,0), $CX:$CX,">="&VLOOKUP($F9&BE$7,B_FLOTA!$A:$V,10,0), $R:$R,IF(MARCO="SI","SI","<>"&""))), $F9&BE$7,"") ->  | BF9: =IF( $AF9=( _xlfn.MINIFS($AF:$AF, $F:$F,$F9, $J:$J,">="&VLOOKUP($F9&BF$7,B_FLOTA!$A:$V,15,0), $K:$K,">="&VLOOKUP($F9&BF$7,B_FLOTA!$A:$V,16,0), $AF:$AF,"<="&VLOOKUP($F9&BF$7,A_FLOTA!$A:$AH,32,0), $O:$O,">="&VLOOKUP($F9&BF$7,B_FLOTA!$A:$AB,21,0), $G:$G,">="&VLOOKUP($F9&BF$7,B_FLOTA!$A:$V,9,0), $CX:$CX,">="&VLOOKUP($F9&BF$7,B_FLOTA!$A:$V,10,0), $R:$R,IF(MARCO="SI","SI","<>"&""))), $F9&BF$7,"") ->  | BG9: =IF( $AF9=( _xlfn.MINIFS($AF:$AF, $F:$F,$F9, $J:$J,">="&VLOOKUP($F9&BG$7,B_FLOTA!$A:$V,15,0), $K:$K,">="&VLOOKUP($F9&BG$7,B_FLOTA!$A:$V,16,0), $AF:$AF,"<="&VLOOKUP($F9&BG$7,A_FLOTA!$A:$AH,32,0), $O:$O,">="&VLOOKUP($F9&BG$7,B_FLOTA!$A:$AB,21,0), $G:$G,">="&VLOOKUP($F9&BG$7,B_FLOTA!$A:$V,9,0), $CX:$CX,">="&VLOOKUP($F9&BG$7,B_FLOTA!$A:$V,10,0), $R:$R,IF(MARCO="SI","SI","<>"&""))), $F9&BG$7,"") ->  | BH9: =IF( $AF9=( _xlfn.MINIFS($AF:$AF, $F:$F,$F9, $J:$J,">="&VLOOKUP($F9&BH$7,B_FLOTA!$A:$V,15,0), $K:$K,">="&VLOOKUP($F9&BH$7,B_FLOTA!$A:$V,16,0), $AF:$AF,"<="&VLOOKUP($F9&BH$7,A_FLOTA!$A:$AH,32,0), $O:$O,">="&VLOOKUP($F9&BH$7,B_FLOTA!$A:$AB,21,0), $G:$G,">="&VLOOKUP($F9&BH$7,B_FLOTA!$A:$V,9,0), $CX:$CX,">="&VLOOKUP($F9&BH$7,B_FLOTA!$A:$V,10,0), $R:$R,IF(MARCO="SI","SI","<>"&""))), $F9&BH$7,"") ->  | BI9: =IF( $AF9=( _xlfn.MINIFS($AF:$AF, $F:$F,$F9, $J:$J,">="&VLOOKUP($F9&BI$7,B_FLOTA!$A:$V,15,0), $K:$K,">="&VLOOKUP($F9&BI$7,B_FLOTA!$A:$V,16,0), $AF:$AF,"<="&VLOOKUP($F9&BI$7,A_FLOTA!$A:$AH,32,0), $O:$O,">="&VLOOKUP($F9&BI$7,B_FLOTA!$A:$AB,21,0), $G:$G,">="&VLOOKUP($F9&BI$7,B_FLOTA!$A:$V,9,0), $CX:$CX,">="&VLOOKUP($F9&BI$7,B_FLOTA!$A:$V,10,0), $R:$R,IF(MARCO="SI","SI","<>"&""))), $F9&BI$7,"") ->  | BJ9: =IF( $AF9=( _xlfn.MINIFS($AF:$AF, $F:$F,$F9, $J:$J,">="&VLOOKUP($F9&BJ$7,B_FLOTA!$A:$V,15,0), $K:$K,">="&VLOOKUP($F9&BJ$7,B_FLOTA!$A:$V,16,0), $AF:$AF,"<="&VLOOKUP($F9&BJ$7,A_FLOTA!$A:$AH,32,0), $O:$O,">="&VLOOKUP($F9&BJ$7,B_FLOTA!$A:$AB,21,0), $G:$G,">="&VLOOKUP($F9&BJ$7,B_FLOTA!$A:$V,9,0), $CX:$CX,">="&VLOOKUP($F9&BJ$7,B_FLOTA!$A:$V,10,0), $R:$R,IF(MARCO="SI","SI","<>"&""))), $F9&BJ$7,"") ->  | BK9: =IF( $AF9=( _xlfn.MINIFS($AF:$AF, $F:$F,$F9, $J:$J,">="&VLOOKUP($F9&BK$7,B_FLOTA!$A:$V,15,0), $K:$K,">="&VLOOKUP($F9&BK$7,B_FLOTA!$A:$V,16,0), $AF:$AF,"<="&VLOOKUP($F9&BK$7,A_FLOTA!$A:$AH,32,0), $O:$O,">="&VLOOKUP($F9&BK$7,B_FLOTA!$A:$AB,21,0), $G:$G,">="&VLOOKUP($F9&BK$7,B_FLOTA!$A:$V,9,0), $CX:$CX,">="&VLOOKUP($F9&BK$7,B_FLOTA!$A:$V,10,0), $R:$R,IF(MARCO="SI","SI","<>"&""))), $F9&BK$7,"") ->  | BL9: =IF( $AF9=( _xlfn.MINIFS($AF:$AF, $F:$F,$F9, $J:$J,">="&VLOOKUP($F9&BL$7,B_FLOTA!$A:$V,15,0), $K:$K,">="&VLOOKUP($F9&BL$7,B_FLOTA!$A:$V,16,0), $AF:$AF,"<="&VLOOKUP($F9&BL$7,A_FLOTA!$A:$AH,32,0), $O:$O,">="&VLOOKUP($F9&BL$7,B_FLOTA!$A:$AB,21,0), $G:$G,">="&VLOOKUP($F9&BL$7,B_FLOTA!$A:$V,9,0), $CX:$CX,">="&VLOOKUP($F9&BL$7,B_FLOTA!$A:$V,10,0), $R:$R,IF(MARCO="SI","SI","<>"&""))), $F9&BL$7,"") ->  | BM9: =IF( $AF9=( _xlfn.MINIFS($AF:$AF, $F:$F,$F9, $J:$J,">="&VLOOKUP($F9&BM$7,B_FLOTA!$A:$V,15,0), $K:$K,">="&VLOOKUP($F9&BM$7,B_FLOTA!$A:$V,16,0), $AF:$AF,"<="&VLOOKUP($F9&BM$7,A_FLOTA!$A:$AH,32,0), $O:$O,">="&VLOOKUP($F9&BM$7,B_FLOTA!$A:$AB,21,0), $G:$G,">="&VLOOKUP($F9&BM$7,B_FLOTA!$A:$V,9,0), $CX:$CX,">="&VLOOKUP($F9&BM$7,B_FLOTA!$A:$V,10,0), $R:$R,IF(MARCO="SI","SI","<>"&""))), $F9&BM$7,"") ->  | BN9: =IF( $AF9=( _xlfn.MINIFS($AF:$AF, $F:$F,$F9, $J:$J,">="&VLOOKUP($F9&BN$7,B_FLOTA!$A:$V,15,0), $K:$K,">="&VLOOKUP($F9&BN$7,B_FLOTA!$A:$V,16,0), $AF:$AF,"<="&VLOOKUP($F9&BN$7,A_FLOTA!$A:$AH,32,0), $O:$O,">="&VLOOKUP($F9&BN$7,B_FLOTA!$A:$AB,21,0), $G:$G,">="&VLOOKUP($F9&BN$7,B_FLOTA!$A:$V,9,0), $CX:$CX,">="&VLOOKUP($F9&BN$7,B_FLOTA!$A:$V,10,0), $R:$R,IF(MARCO="SI","SI","<>"&""))), $F9&BN$7,"") ->  | BO9: =IF( $AF9=( _xlfn.MINIFS($AF:$AF, $F:$F,$F9, $J:$J,">="&VLOOKUP($F9&BO$7,B_FLOTA!$A:$V,15,0), $K:$K,">="&VLOOKUP($F9&BO$7,B_FLOTA!$A:$V,16,0), $AF:$AF,"<="&VLOOKUP($F9&BO$7,A_FLOTA!$A:$AH,32,0), $O:$O,">="&VLOOKUP($F9&BO$7,B_FLOTA!$A:$AB,21,0), $G:$G,">="&VLOOKUP($F9&BO$7,B_FLOTA!$A:$V,9,0), $CX:$CX,">="&VLOOKUP($F9&BO$7,B_FLOTA!$A:$V,10,0), $R:$R,IF(MARCO="SI","SI","<>"&""))), $F9&BO$7,"") ->  | BP9: =IF( $AF9=( _xlfn.MINIFS($AF:$AF, $F:$F,$F9, $J:$J,">="&VLOOKUP($F9&BP$7,B_FLOTA!$A:$V,15,0), $K:$K,">="&VLOOKUP($F9&BP$7,B_FLOTA!$A:$V,16,0), $AF:$AF,"<="&VLOOKUP($F9&BP$7,A_FLOTA!$A:$AH,32,0), $O:$O,">="&VLOOKUP($F9&BP$7,B_FLOTA!$A:$AB,21,0), $G:$G,">="&VLOOKUP($F9&BP$7,B_FLOTA!$A:$V,9,0), $CX:$CX,">="&VLOOKUP($F9&BP$7,B_FLOTA!$A:$V,10,0), $R:$R,IF(MARCO="SI","SI","<>"&""))), $F9&BP$7,"") ->  | BQ9: =IF( $AF9=( _xlfn.MINIFS($AF:$AF, $F:$F,$F9, $J:$J,">="&VLOOKUP($F9&BQ$7,B_FLOTA!$A:$V,15,0), $K:$K,">="&VLOOKUP($F9&BQ$7,B_FLOTA!$A:$V,16,0), $AF:$AF,"<="&VLOOKUP($F9&BQ$7,A_FLOTA!$A:$AH,32,0), $O:$O,">="&VLOOKUP($F9&BQ$7,B_FLOTA!$A:$AB,21,0), $G:$G,">="&VLOOKUP($F9&BQ$7,B_FLOTA!$A:$V,9,0), $CX:$CX,">="&VLOOKUP($F9&BQ$7,B_FLOTA!$A:$V,10,0), $R:$R,IF(MARCO="SI","SI","<>"&""))), $F9&BQ$7,"") ->  | BR9: =IF( $AF9=( _xlfn.MINIFS($AF:$AF, $F:$F,$F9, $J:$J,">="&VLOOKUP($F9&BR$7,B_FLOTA!$A:$V,15,0), $K:$K,">="&VLOOKUP($F9&BR$7,B_FLOTA!$A:$V,16,0), $AF:$AF,"<="&VLOOKUP($F9&BR$7,A_FLOTA!$A:$AH,32,0), $O:$O,">="&VLOOKUP($F9&BR$7,B_FLOTA!$A:$AB,21,0), $G:$G,">="&VLOOKUP($F9&BR$7,B_FLOTA!$A:$V,9,0), $CX:$CX,">="&VLOOKUP($F9&BR$7,B_FLOTA!$A:$V,10,0), $R:$R,IF(MARCO="SI","SI","<>"&""))), $F9&BR$7,"") ->  | BS9: =IF( $AF9=( _xlfn.MINIFS($AF:$AF, $F:$F,$F9, $J:$J,">="&VLOOKUP($F9&BS$7,B_FLOTA!$A:$V,15,0), $K:$K,">="&VLOOKUP($F9&BS$7,B_FLOTA!$A:$V,16,0), $AF:$AF,"<="&VLOOKUP($F9&BS$7,A_FLOTA!$A:$AH,32,0), $O:$O,">="&VLOOKUP($F9&BS$7,B_FLOTA!$A:$AB,21,0), $G:$G,">="&VLOOKUP($F9&BS$7,B_FLOTA!$A:$V,9,0), $CX:$CX,">="&VLOOKUP($F9&BS$7,B_FLOTA!$A:$V,10,0), $R:$R,IF(MARCO="SI","SI","<>"&""))), $F9&BS$7,"") ->  | BT9: =IF( $AF9=( _xlfn.MINIFS($AF:$AF, $F:$F,$F9, $J:$J,">="&VLOOKUP($F9&BT$7,B_FLOTA!$A:$V,15,0), $K:$K,">="&VLOOKUP($F9&BT$7,B_FLOTA!$A:$V,16,0), $AF:$AF,"<="&VLOOKUP($F9&BT$7,A_FLOTA!$A:$AH,32,0), $O:$O,">="&VLOOKUP($F9&BT$7,B_FLOTA!$A:$AB,21,0), $G:$G,">="&VLOOKUP($F9&BT$7,B_FLOTA!$A:$V,9,0), $CX:$CX,">="&VLOOKUP($F9&BT$7,B_FLOTA!$A:$V,10,0), $R:$R,IF(MARCO="SI","SI","<>"&""))), $F9&BT$7,"") ->  | BU9: =IF( $AF9=( _xlfn.MINIFS($AF:$AF, $F:$F,$F9, $J:$J,">="&VLOOKUP($F9&BU$7,B_FLOTA!$A:$V,15,0), $K:$K,">="&VLOOKUP($F9&BU$7,B_FLOTA!$A:$V,16,0), $AF:$AF,"<="&VLOOKUP($F9&BU$7,A_FLOTA!$A:$AH,32,0), $O:$O,">="&VLOOKUP($F9&BU$7,B_FLOTA!$A:$AB,21,0), $G:$G,">="&VLOOKUP($F9&BU$7,B_FLOTA!$A:$V,9,0), $CX:$CX,">="&VLOOKUP($F9&BU$7,B_FLOTA!$A:$V,10,0), $R:$R,IF(MARCO="SI","SI","<>"&""))), $F9&BU$7,"") ->  | BV9: =IF( $AF9=( _xlfn.MINIFS($AF:$AF, $F:$F,$F9, $J:$J,">="&VLOOKUP($F9&BV$7,B_FLOTA!$A:$V,15,0), $K:$K,">="&VLOOKUP($F9&BV$7,B_FLOTA!$A:$V,16,0), $AF:$AF,"<="&VLOOKUP($F9&BV$7,A_FLOTA!$A:$AH,32,0), $O:$O,">="&VLOOKUP($F9&BV$7,B_FLOTA!$A:$AB,21,0), $G:$G,">="&VLOOKUP($F9&BV$7,B_FLOTA!$A:$V,9,0), $CX:$CX,">="&VLOOKUP($F9&BV$7,B_FLOTA!$A:$V,10,0), $R:$R,IF(MARCO="SI","SI","<>"&""))), $F9&BV$7,"") ->  | BW9: =IF( $AF9=( _xlfn.MINIFS($AF:$AF, $F:$F,$F9, $J:$J,">="&VLOOKUP($F9&BW$7,B_FLOTA!$A:$V,15,0), $K:$K,">="&VLOOKUP($F9&BW$7,B_FLOTA!$A:$V,16,0), $AF:$AF,"<="&VLOOKUP($F9&BW$7,A_FLOTA!$A:$AH,32,0), $O:$O,">="&VLOOKUP($F9&BW$7,B_FLOTA!$A:$AB,21,0), $G:$G,">="&VLOOKUP($F9&BW$7,B_FLOTA!$A:$V,9,0), $CX:$CX,">="&VLOOKUP($F9&BW$7,B_FLOTA!$A:$V,10,0), $R:$R,IF(MARCO="SI","SI","<>"&""))), $F9&BW$7,"") ->  | BX9: =IF( $AF9=( _xlfn.MINIFS($AF:$AF, $F:$F,$F9, $J:$J,">="&VLOOKUP($F9&BX$7,B_FLOTA!$A:$V,15,0), $K:$K,">="&VLOOKUP($F9&BX$7,B_FLOTA!$A:$V,16,0), $AF:$AF,"<="&VLOOKUP($F9&BX$7,A_FLOTA!$A:$AH,32,0), $O:$O,">="&VLOOKUP($F9&BX$7,B_FLOTA!$A:$AB,21,0), $G:$G,">="&VLOOKUP($F9&BX$7,B_FLOTA!$A:$V,9,0), $CX:$CX,">="&VLOOKUP($F9&BX$7,B_FLOTA!$A:$V,10,0), $R:$R,IF(MARCO="SI","SI","<>"&""))), $F9&BX$7,"") ->  | BY9: =IF( $AF9=( _xlfn.MINIFS($AF:$AF, $F:$F,$F9, $J:$J,">="&VLOOKUP($F9&BY$7,B_FLOTA!$A:$V,15,0), $K:$K,">="&VLOOKUP($F9&BY$7,B_FLOTA!$A:$V,16,0), $AF:$AF,"<="&VLOOKUP($F9&BY$7,A_FLOTA!$A:$AH,32,0), $O:$O,">="&VLOOKUP($F9&BY$7,B_FLOTA!$A:$AB,21,0), $G:$G,">="&VLOOKUP($F9&BY$7,B_FLOTA!$A:$V,9,0), $CX:$CX,">="&VLOOKUP($F9&BY$7,B_FLOTA!$A:$V,10,0), $R:$R,IF(MARCO="SI","SI","<>"&""))), $F9&BY$7,"") ->  | BZ9: =IF( $AF9=( _xlfn.MINIFS($AF:$AF, $F:$F,$F9, $J:$J,">="&VLOOKUP($F9&BZ$7,B_FLOTA!$A:$V,15,0), $K:$K,">="&VLOOKUP($F9&BZ$7,B_FLOTA!$A:$V,16,0), $AF:$AF,"<="&VLOOKUP($F9&BZ$7,A_FLOTA!$A:$AH,32,0), $O:$O,">="&VLOOKUP($F9&BZ$7,B_FLOTA!$A:$AB,21,0), $G:$G,">="&VLOOKUP($F9&BZ$7,B_FLOTA!$A:$V,9,0), $CX:$CX,">="&VLOOKUP($F9&BZ$7,B_FLOTA!$A:$V,10,0), $R:$R,IF(MARCO="SI","SI","<>"&""))), $F9&BZ$7,"") ->  | CA9: =IF( $AF9=( _xlfn.MINIFS($AF:$AF, $F:$F,$F9, $J:$J,">="&VLOOKUP($F9&CA$7,B_FLOTA!$A:$V,15,0), $K:$K,">="&VLOOKUP($F9&CA$7,B_FLOTA!$A:$V,16,0), $AF:$AF,"<="&VLOOKUP($F9&CA$7,A_FLOTA!$A:$AH,32,0), $O:$O,">="&VLOOKUP($F9&CA$7,B_FLOTA!$A:$AB,21,0), $G:$G,">="&VLOOKUP($F9&CA$7,B_FLOTA!$A:$V,9,0), $CX:$CX,">="&VLOOKUP($F9&CA$7,B_FLOTA!$A:$V,10,0), $R:$R,IF(MARCO="SI","SI","<>"&""))), $F9&CA$7,"") ->  | CB9: =IF( $AF9=( _xlfn.MINIFS($AF:$AF, $F:$F,$F9, $J:$J,">="&VLOOKUP($F9&CB$7,B_FLOTA!$A:$V,15,0), $K:$K,">="&VLOOKUP($F9&CB$7,B_FLOTA!$A:$V,16,0), $AF:$AF,"<="&VLOOKUP($F9&CB$7,A_FLOTA!$A:$AH,32,0), $O:$O,">="&VLOOKUP($F9&CB$7,B_FLOTA!$A:$AB,21,0), $G:$G,">="&VLOOKUP($F9&CB$7,B_FLOTA!$A:$V,9,0), $CX:$CX,">="&VLOOKUP($F9&CB$7,B_FLOTA!$A:$V,10,0), $R:$R,IF(MARCO="SI","SI","<>"&""))), $F9&CB$7,"") ->  | CC9: =IF( $AF9=( _xlfn.MINIFS($AF:$AF, $F:$F,$F9, $J:$J,">="&VLOOKUP($F9&CC$7,B_FLOTA!$A:$V,15,0), $K:$K,">="&VLOOKUP($F9&CC$7,B_FLOTA!$A:$V,16,0), $AF:$AF,"<="&VLOOKUP($F9&CC$7,A_FLOTA!$A:$AH,32,0), $O:$O,">="&VLOOKUP($F9&CC$7,B_FLOTA!$A:$AB,21,0), $G:$G,">="&VLOOKUP($F9&CC$7,B_FLOTA!$A:$V,9,0), $CX:$CX,">="&VLOOKUP($F9&CC$7,B_FLOTA!$A:$V,10,0), $R:$R,IF(MARCO="SI","SI","<>"&""))), $F9&CC$7,"") ->  | CD9: =IF( $AF9=( _xlfn.MINIFS($AF:$AF, $F:$F,$F9, $J:$J,">="&VLOOKUP($F9&CD$7,B_FLOTA!$A:$V,15,0), $K:$K,">="&VLOOKUP($F9&CD$7,B_FLOTA!$A:$V,16,0), $AF:$AF,"<="&VLOOKUP($F9&CD$7,A_FLOTA!$A:$AH,32,0), $O:$O,">="&VLOOKUP($F9&CD$7,B_FLOTA!$A:$AB,21,0), $G:$G,">="&VLOOKUP($F9&CD$7,B_FLOTA!$A:$V,9,0), $CX:$CX,">="&VLOOKUP($F9&CD$7,B_FLOTA!$A:$V,10,0), $R:$R,IF(MARCO="SI","SI","<>"&""))), $F9&CD$7,"") ->  | CE9: =IF( $AF9=( _xlfn.MINIFS($AF:$AF, $F:$F,$F9, $J:$J,">="&VLOOKUP($F9&CE$7,B_FLOTA!$A:$V,15,0), $K:$K,">="&VLOOKUP($F9&CE$7,B_FLOTA!$A:$V,16,0), $AF:$AF,"<="&VLOOKUP($F9&CE$7,A_FLOTA!$A:$AH,32,0), $O:$O,">="&VLOOKUP($F9&CE$7,B_FLOTA!$A:$AB,21,0), $G:$G,">="&VLOOKUP($F9&CE$7,B_FLOTA!$A:$V,9,0), $CX:$CX,">="&VLOOKUP($F9&CE$7,B_FLOTA!$A:$V,10,0), $R:$R,IF(MARCO="SI","SI","<>"&""))), $F9&CE$7,"") ->  | CG9: kWh/km | CH9: =IFERROR(VLOOKUP(E9,VALORES!$B$1:$E$8,3,0),"") -> KWH | CJ9: =IF(OR($E9="BEV",$E9="FCEV"),_xlfn.MINIFS('BD3(GEI & Cont)'!$E:$E,'BD3(GEI & Cont)'!$B:$B,$F9,'BD3(GEI & Cont)'!$C:$C,$E9,'BD3(GEI & Cont)'!$E:$E,">="&VALUE($H9))*IFERROR(VLOOKUP($F9,A_FLOTA!$F:$BS,64,0),0)*IFERROR(VLOOKUP($F9,A_FLOTA!$F:$BS,65,0),0)*W9,_xlfn.MINIFS('BD3(GEI & Cont)'!$L:$L,'BD3(GEI & Cont)'!A:A,"",'BD3(GEI & Cont)'!$B:$B,$F9,'BD3(GEI & Cont)'!$C:$C,$E9,'BD3(GEI & Cont)'!$E:$E,">="&VALUE($H9),'BD3(GEI & Cont)'!$D:$D,$I9)*IFERROR(VLOOKUP($F9,A_FLOTA!$F:$BS,64,0),0)*IFERROR(VLOOKUP($F9,A_FLOTA!$F:$BS,65,0),0)*W9) -> 0 | CK9: =IF(OR($E9="BEV",$E9="FCEV"),_xlfn.MINIFS('BD3(GEI & Cont)'!$F:$F,'BD3(GEI & Cont)'!$B:$B,$F9,'BD3(GEI & Cont)'!$C:$C,$E9,'BD3(GEI & Cont)'!$E:$E,">="&VALUE($H9))*IFERROR(VLOOKUP($F9,A_FLOTA!$F:$BS,64,0),0)*IFERROR(VLOOKUP($F9,A_FLOTA!$F:$BS,65,0),0)*W9,_xlfn.MINIFS('BD3(GEI & Cont)'!$M:$M,'BD3(GEI & Cont)'!A:A,"",'BD3(GEI & Cont)'!$B:$B,$F9,'BD3(GEI & Cont)'!$C:$C,$E9,'BD3(GEI & Cont)'!$E:$E,">="&VALUE($H9),'BD3(GEI & Cont)'!$D:$D,$I9)*IFERROR(VLOOKUP($F9,A_FLOTA!$F:$BS,64,0),0)*IFERROR(VLOOKUP($F9,A_FLOTA!$F:$BS,65,0),0)*W9) -> 0 | CL9: =IF(OR($E9="BEV",$E9="FCEV"),0,_xlfn.MINIFS('BD3(GEI & Cont)'!$I:$I,'BD3(GEI & Cont)'!A:A,"",'BD3(GEI & Cont)'!$B:$B,$F9,'BD3(GEI & Cont)'!$C:$C,$E9,'BD3(GEI & Cont)'!$E:$E,">="&VALUE($H9),'BD3(GEI & Cont)'!$D:$D,$I9)*IFERROR(VLOOKUP($F9,A_FLOTA!$F:$BS,64,0),0)*IFERROR(VLOOKUP($F9,A_FLOTA!$F:$BS,65,0),0)*W9) -> 0 | CM9: =IF(OR($E9="BEV",$E9="FCEV"),0,_xlfn.MINIFS('BD3(GEI & Cont)'!F:F,'BD3(GEI & Cont)'!$A:$A,EURO,'BD3(GEI & Cont)'!$B:$B,$F9,'BD3(GEI & Cont)'!$C:$C,$E9,'BD3(GEI & Cont)'!$E:$E,">="&VALUE($H9),'BD3(GEI & Cont)'!$D:$D,$I9)*IFERROR(VLOOKUP($F9,A_FLOTA!$F:$BS,64,0),0)*IFERROR(VLOOKUP($F9,A_FLOTA!$F:$BS,65,0),0)*W9) -> 0 | CN9: =IF(OR($E9="BEV",$E9="FCEV"),0,_xlfn.MINIFS('BD3(GEI & Cont)'!G:G,'BD3(GEI & Cont)'!$A:$A,EURO,'BD3(GEI & Cont)'!$B:$B,$F9,'BD3(GEI & Cont)'!$C:$C,$E9,'BD3(GEI & Cont)'!$E:$E,">="&VALUE($H9),'BD3(GEI & Cont)'!$D:$D,$I9)*IFERROR(VLOOKUP($F9,A_FLOTA!$F:$BS,64,0),0)*IFERROR(VLOOKUP($F9,A_FLOTA!$F:$BS,65,0),0)*W9) -> 0 | CO9: =IF(OR($E9="BEV",$E9="FCEV"),0,_xlfn.MINIFS('BD3(GEI & Cont)'!H:H,'BD3(GEI & Cont)'!$A:$A,EURO,'BD3(GEI & Cont)'!$B:$B,$F9,'BD3(GEI & Cont)'!$C:$C,$E9,'BD3(GEI & Cont)'!$E:$E,">="&VALUE($H9),'BD3(GEI & Cont)'!$D:$D,$I9)*IFERROR(VLOOKUP($F9,A_FLOTA!$F:$BS,64,0),0)*IFERROR(VLOOKUP($F9,A_FLOTA!$F:$BS,65,0),0)*W9) -> 0 | CP9: =IF(OR($E9="BEV",$E9="FCEV"),0,_xlfn.MINIFS('BD3(GEI & Cont)'!I:I,'BD3(GEI & Cont)'!$A:$A,EURO,'BD3(GEI & Cont)'!$B:$B,$F9,'BD3(GEI & Cont)'!$C:$C,$E9,'BD3(GEI & Cont)'!$E:$E,">="&VALUE($H9),'BD3(GEI & Cont)'!$D:$D,$I9)*IFERROR(VLOOKUP($F9,A_FLOTA!$F:$BS,64,0),0)*IFERROR(VLOOKUP($F9,A_FLOTA!$F:$BS,65,0),0)*W9) -> 0 | CQ9: =IF(OR($E9="BEV",$E9="FCEV"),0,_xlfn.MINIFS('BD3(GEI & Cont)'!M:M,'BD3(GEI & Cont)'!$A:$A,EURO,'BD3(GEI & Cont)'!$B:$B,$F9,'BD3(GEI & Cont)'!$C:$C,$E9,'BD3(GEI & Cont)'!$E:$E,">="&VALUE($H9),'BD3(GEI & Cont)'!$D:$D,$I9)*IFERROR(VLOOKUP($F9,A_FLOTA!$F:$BS,64,0),0)*IFERROR(VLOOKUP($F9,A_FLOTA!$F:$BS,65,0),0)*W9) -> 0 | CR9: =IF(OR($E9="BEV",$E9="FCEV"),'BD3(GEI & Cont)'!$D$44*IFERROR(VLOOKUP($F9,A_FLOTA!$F:$BS,64,0),0)*IFERROR(VLOOKUP($F9,A_FLOTA!$F:$BS,65,0),0)*W9*IF($E9="BEV",$M9,1),_xlfn.MINIFS('BD3(GEI & Cont)'!$K:$K,'BD3(GEI & Cont)'!A:A,"",'BD3(GEI & Cont)'!$B:$B,$F9,'BD3(GEI & Cont)'!$C:$C,$E9,'BD3(GEI & Cont)'!$E:$E,">="&VALUE($H9),'BD3(GEI & Cont)'!$D:$D,$I9)*IFERROR(VLOOKUP($F9,A_FLOTA!$F:$BS,64,0),0)*IFERROR(VLOOKUP($F9,A_FLOTA!$F:$BS,65,0),0)*W9*IF($E9="BEV",$M9,1)) -> 0 | CS9: =+CQ9+CR9 -> 0 | CT9: =+CQ9+CR9+CJ9+CK9 -> 0 | CV9: =IFERROR(W9*IFERROR(VLOOKUP(F9,A_FLOTA!$F:$BS,64,0),0)*IFERROR(VLOOKUP(F9,A_FLOTA!$F:$BS,65,0),"")*AF9,"") ->  | CW9: =+IFERROR(VLOOKUP(F9,A_FLOTA!$F:$BS,64,0),0)*IFERROR(VLOOKUP(F9,A_FLOTA!$F:$BS,65,0),0)*W9*M9 -> 0 | CX9: =VALUE(H9) -> 0 | CY9: =VALUE(G9) -> 2 | DA9: 0.40625 | DB9: =+IFERROR(S9*DA9,0) -> 1828125 | DC9: 4230000 | DD9: =+IFERROR(DC9-DB9,0) -> 2401875 | DE9: 40031.25 | DF9: 61792.875 | DG9: =+IFERROR(DE9+DF9,0) -> 101824.125 | DH9: 6109447.5 | DI9: =+IFERROR(DH9-DC9,0) -> 1879447.5
A10: 3 | B10: Niu | C10: N | D10: 2020 | E10: BEV | F10: Motocicleta | G10: 2 | H10: 0 | I10: Electricidad | J10: 2.6 | K10: 100 | L10: kWh/km | M10: 0.0348 | O10: 50 | P10: 50 | Q10: 7890000 | R10: NO | S10: =IFERROR($Q10*(1-(-INDIRECT("CAPEX_"&E10)))^(AÑO_OBJETIVO-$D10),0) -> 7890000 | T10: =+IFERROR(S10/(1+INDIRECT("I_"&E10)+INDIRECT("A_"&E10)),0) -> 7514285.714 | U10: =IFERROR(T10*INDIRECT("I_"&E10),0) -> 375714.2857 | V10: =IFERROR(T10*INDIRECT("A_"&E10),0) -> 0 | W10: =IFERROR(INDIRECT("V_"&E10),0) -> 8 | X10: 7495500 | Y10: =IF(VLOOKUP(VALORES!$R$5,VALORES!$Q$1:$R$4,2,0)<>"PARTICULAR",R_OFIC_PUBL,INDIRECT("R_"&VLOOKUP(F10,VALORES!$G:$H,2,0)&"_"&VLOOKUP(Q10,AUTO_VALOR,3,1))) -> 0.005 | Z10: 146951.25 | AA10: =IFERROR(IF(VLOOKUP(VALORES!$R$5,VALORES!$Q$1:$R$4,2,0)<>"PARTICULAR",VLOOKUP(N10,INDIRECT("SOAT_OFICIALES"),3,1)*W10,(VLOOKUP(IF(OR(F10="Camión",F10="TRACTOMULA"),H10,N10),INDIRECT("SOAT_"&VLOOKUP(F10,VALORES!$G$1:$H$9,2,0)&"_1"),3,1)*IF(W10>9,9,W10))+VLOOKUP(IF(OR(F10="Camión",F10="TRACTOMULA"),H10,N10),INDIRECT("SOAT_"&VLOOKUP(F10,VALORES!$G$1:$H$9,2,0)&"_2"),3,1)*IF((W10-9)<0,0,(W10-9))),0) -> 5730000 | AB10: 3295297.95 | AC10: =IF(E10="ICE",INDIRECT("CM_"&E10&"_"&LEFT(F10,4))*IFERROR(VLOOKUP(F10,A_FLOTA!$F:$BS,64,0),0)*IFERROR(VLOOKUP(F10,A_FLOTA!$F:$BS,65,0),0)*W10,IFERROR((INDIRECT("CM_"&E10&"_"&LEFT(F10,4)))*IFERROR(VLOOKUP(F10,A_FLOTA!$F:$BS,64,0),0)*IFERROR(VLOOKUP(F10,A_FLOTA!$F:$BS,65,0),0)*(1-(1-INDIRECT("REDUC_CM_"&E10))^(W10))/(1-(1-INDIRECT("REDUC_CM_"&E10))),0)) -> 0 | AD10: =IFERROR((IFERROR(M10*IFERROR(VLOOKUP(F10,A_FLOTA!$F:$BS,64,0),0)*IFERROR(VLOOKUP(F10,A_FLOTA!$F:$BS,65,0),0)*W10*AVERAGEIFS( INDIRECT(E10&"_"&LEFT(I10,3)&"_"&I_ESCENARIOS!$E$7), 'BD2 (Costos)'!B:B,">="&DATE(AÑO_OBJETIVO,1,1), 'BD2 (Costos)'!B:B,"<="&DATE(AÑO_OBJETIVO+W10,12,31))/AVERAGEIFS(VALORES!$E$1:$E$10,VALORES!$C$1:$C$10,CG10,VALORES!$D$1:$D$10,CH10),0))*(O10/(O10+P10))+(IFERROR(M10*IFERROR(VLOOKUP(F10,A_FLOTA!$F:$BS,64,0),0)*IFERROR(VLOOKUP(F10,A_FLOTA!$F:$BS,65,0),0)*W10*AVERAGEIFS( INDIRECT("BEV_ELE_"&I_ESCENARIOS!$E$7), 'BD2 (Costos)'!B:B,">="&DATE(AÑO_OBJETIVO,1,1), 'BD2 (Costos)'!B:B,"<="&DATE(AÑO_OBJETIVO+W10,12,31)),0))*(P10/(O10+P10)),0) -> 0 | AE10: =IF(E10="BEV",IF(INDIRECT("VB_"&E10)<W10,IFERROR(INT(W10/INDIRECT("VB_"&E10))*(Q10*(1-(-INDIRECT("CAPEX_"&E10)))^(INDIRECT("VB_"&E10))*INDIRECT("CB_"&E10)),0),0),0) -> 0 | AF10: =IFERROR(SUM(T10:AE10)/(VLOOKUP(F10,A_FLOTA!$F:$BS,64,0)*(VLOOKUP(F10,A_FLOTA!$F:$BS,65,0)*W10)),"N/A") -> N/A | AH10: =IF( $AF10=( _xlfn.MINIFS($AF:$AF, $F:$F,$F10, $J:$J,">="&VLOOKUP($F10&AH$7,B_FLOTA!$A:$V,15,0), $K:$K,">="&VLOOKUP($F10&AH$7,B_FLOTA!$A:$V,16,0), $AF:$AF,"<="&VLOOKUP($F10&AH$7,A_FLOTA!$A:$AH,32,0), $O:$O,">="&VLOOKUP($F10&AH$7,B_FLOTA!$A:$AB,21,0), $G:$G,">="&VLOOKUP($F10&AH$7,B_FLOTA!$A:$V,9,0), $CX:$CX,">="&VLOOKUP($F10&AH$7,B_FLOTA!$A:$V,10,0), $R:$R,IF(MARCO="SI","SI","<>"&""))), $F10&AH$7,"") ->  | AI10: =IF( $AF10=( _xlfn.MINIFS($AF:$AF, $F:$F,$F10, $J:$J,">="&VLOOKUP($F10&AI$7,B_FLOTA!$A:$V,15,0), $K:$K,">="&VLOOKUP($F10&AI$7,B_FLOTA!$A:$V,16,0), $AF:$AF,"<="&VLOOKUP($F10&AI$7,A_FLOTA!$A:$AH,32,0), $O:$O,">="&VLOOKUP($F10&AI$7,B_FLOTA!$A:$AB,21,0), $G:$G,">="&VLOOKUP($F10&AI$7,B_FLOTA!$A:$V,9,0), $CX:$CX,">="&VLOOKUP($F10&AI$7,B_FLOTA!$A:$V,10,0), $R:$R,IF(MARCO="SI","SI","<>"&""))), $F10&AI$7,"") ->  | AJ10: =IF( $AF10=( _xlfn.MINIFS($AF:$AF, $F:$F,$F10, $J:$J,">="&VLOOKUP($F10&AJ$7,B_FLOTA!$A:$V,15,0), $K:$K,">="&VLOOKUP($F10&AJ$7,B_FLOTA!$A:$V,16,0), $AF:$AF,"<="&VLOOKUP($F10&AJ$7,A_FLOTA!$A:$AH,32,0), $O:$O,">="&VLOOKUP($F10&AJ$7,B_FLOTA!$A:$AB,21,0), $G:$G,">="&VLOOKUP($F10&AJ$7,B_FLOTA!$A:$V,9,0), $CX:$CX,">="&VLOOKUP($F10&AJ$7,B_FLOTA!$A:$V,10,0), $R:$R,IF(MARCO="SI","SI","<>"&""))), $F10&AJ$7,"") ->  | AK10: =IF( $AF10=( _xlfn.MINIFS($AF:$AF, $F:$F,$F10, $J:$J,">="&VLOOKUP($F10&AK$7,B_FLOTA!$A:$V,15,0), $K:$K,">="&VLOOKUP($F10&AK$7,B_FLOTA!$A:$V,16,0), $AF:$AF,"<="&VLOOKUP($F10&AK$7,A_FLOTA!$A:$AH,32,0), $O:$O,">="&VLOOKUP($F10&AK$7,B_FLOTA!$A:$AB,21,0), $G:$G,">="&VLOOKUP($F10&AK$7,B_FLOTA!$A:$V,9,0), $CX:$CX,">="&VLOOKUP($F10&AK$7,B_FLOTA!$A:$V,10,0), $R:$R,IF(MARCO="SI","SI","<>"&""))), $F10&AK$7,"") ->  | AL10: =IF( $AF10=( _xlfn.MINIFS($AF:$AF, $F:$F,$F10, $J:$J,">="&VLOOKUP($F10&AL$7,B_FLOTA!$A:$V,15,0), $K:$K,">="&VLOOKUP($F10&AL$7,B_FLOTA!$A:$V,16,0), $AF:$AF,"<="&VLOOKUP($F10&AL$7,A_FLOTA!$A:$AH,32,0), $O:$O,">="&VLOOKUP($F10&AL$7,B_FLOTA!$A:$AB,21,0), $G:$G,">="&VLOOKUP($F10&AL$7,B_FLOTA!$A:$V,9,0), $CX:$CX,">="&VLOOKUP($F10&AL$7,B_FLOTA!$A:$V,10,0), $R:$R,IF(MARCO="SI","SI","<>"&""))), $F10&AL$7,"") ->  | AM10: =IF( $AF10=( _xlfn.MINIFS($AF:$AF, $F:$F,$F10, $J:$J,">="&VLOOKUP($F10&AM$7,B_FLOTA!$A:$V,15,0), $K:$K,">="&VLOOKUP($F10&AM$7,B_FLOTA!$A:$V,16,0), $AF:$AF,"<="&VLOOKUP($F10&AM$7,A_FLOTA!$A:$AH,32,0), $O:$O,">="&VLOOKUP($F10&AM$7,B_FLOTA!$A:$AB,21,0), $G:$G,">="&VLOOKUP($F10&AM$7,B_FLOTA!$A:$V,9,0), $CX:$CX,">="&VLOOKUP($F10&AM$7,B_FLOTA!$A:$V,10,0), $R:$R,IF(MARCO="SI","SI","<>"&""))), $F10&AM$7,"") ->  | AN10: =IF( $AF10=( _xlfn.MINIFS($AF:$AF, $F:$F,$F10, $J:$J,">="&VLOOKUP($F10&AN$7,B_FLOTA!$A:$V,15,0), $K:$K,">="&VLOOKUP($F10&AN$7,B_FLOTA!$A:$V,16,0), $AF:$AF,"<="&VLOOKUP($F10&AN$7,A_FLOTA!$A:$AH,32,0), $O:$O,">="&VLOOKUP($F10&AN$7,B_FLOTA!$A:$AB,21,0), $G:$G,">="&VLOOKUP($F10&AN$7,B_FLOTA!$A:$V,9,0), $CX:$CX,">="&VLOOKUP($F10&AN$7,B_FLOTA!$A:$V,10,0), $R:$R,IF(MARCO="SI","SI","<>"&""))), $F10&AN$7,"") ->  | AO10: =IF( $AF10=( _xlfn.MINIFS($AF:$AF, $F:$F,$F10, $J:$J,">="&VLOOKUP($F10&AO$7,B_FLOTA!$A:$V,15,0), $K:$K,">="&VLOOKUP($F10&AO$7,B_FLOTA!$A:$V,16,0), $AF:$AF,"<="&VLOOKUP($F10&AO$7,A_FLOTA!$A:$AH,32,0), $O:$O,">="&VLOOKUP($F10&AO$7,B_FLOTA!$A:$AB,21,0), $G:$G,">="&VLOOKUP($F10&AO$7,B_FLOTA!$A:$V,9,0), $CX:$CX,">="&VLOOKUP($F10&AO$7,B_FLOTA!$A:$V,10,0), $R:$R,IF(MARCO="SI","SI","<>"&""))), $F10&AO$7,"") ->  | AP10: =IF( $AF10=( _xlfn.MINIFS($AF:$AF, $F:$F,$F10, $J:$J,">="&VLOOKUP($F10&AP$7,B_FLOTA!$A:$V,15,0), $K:$K,">="&VLOOKUP($F10&AP$7,B_FLOTA!$A:$V,16,0), $AF:$AF,"<="&VLOOKUP($F10&AP$7,A_FLOTA!$A:$AH,32,0), $O:$O,">="&VLOOKUP($F10&AP$7,B_FLOTA!$A:$AB,21,0), $G:$G,">="&VLOOKUP($F10&AP$7,B_FLOTA!$A:$V,9,0), $CX:$CX,">="&VLOOKUP($F10&AP$7,B_FLOTA!$A:$V,10,0), $R:$R,IF(MARCO="SI","SI","<>"&""))), $F10&AP$7,"") ->  | AQ10: =IF( $AF10=( _xlfn.MINIFS($AF:$AF, $F:$F,$F10, $J:$J,">="&VLOOKUP($F10&AQ$7,B_FLOTA!$A:$V,15,0), $K:$K,">="&VLOOKUP($F10&AQ$7,B_FLOTA!$A:$V,16,0), $AF:$AF,"<="&VLOOKUP($F10&AQ$7,A_FLOTA!$A:$AH,32,0), $O:$O,">="&VLOOKUP($F10&AQ$7,B_FLOTA!$A:$AB,21,0), $G:$G,">="&VLOOKUP($F10&AQ$7,B_FLOTA!$A:$V,9,0), $CX:$CX,">="&VLOOKUP($F10&AQ$7,B_FLOTA!$A:$V,10,0), $R:$R,IF(MARCO="SI","SI","<>"&""))), $F10&AQ$7,"") ->  | AR10: =IF( $AF10=( _xlfn.MINIFS($AF:$AF, $F:$F,$F10, $J:$J,">="&VLOOKUP($F10&AR$7,B_FLOTA!$A:$V,15,0), $K:$K,">="&VLOOKUP($F10&AR$7,B_FLOTA!$A:$V,16,0), $AF:$AF,"<="&VLOOKUP($F10&AR$7,A_FLOTA!$A:$AH,32,0), $O:$O,">="&VLOOKUP($F10&AR$7,B_FLOTA!$A:$AB,21,0), $G:$G,">="&VLOOKUP($F10&AR$7,B_FLOTA!$A:$V,9,0), $CX:$CX,">="&VLOOKUP($F10&AR$7,B_FLOTA!$A:$V,10,0), $R:$R,IF(MARCO="SI","SI","<>"&""))), $F10&AR$7,"") ->  | AS10: =IF( $AF10=( _xlfn.MINIFS($AF:$AF, $F:$F,$F10, $J:$J,">="&VLOOKUP($F10&AS$7,B_FLOTA!$A:$V,15,0), $K:$K,">="&VLOOKUP($F10&AS$7,B_FLOTA!$A:$V,16,0), $AF:$AF,"<="&VLOOKUP($F10&AS$7,A_FLOTA!$A:$AH,32,0), $O:$O,">="&VLOOKUP($F10&AS$7,B_FLOTA!$A:$AB,21,0), $G:$G,">="&VLOOKUP($F10&AS$7,B_FLOTA!$A:$V,9,0), $CX:$CX,">="&VLOOKUP($F10&AS$7,B_FLOTA!$A:$V,10,0), $R:$R,IF(MARCO="SI","SI","<>"&""))), $F10&AS$7,"") ->  | AT10: =IF( $AF10=( _xlfn.MINIFS($AF:$AF, $F:$F,$F10, $J:$J,">="&VLOOKUP($F10&AT$7,B_FLOTA!$A:$V,15,0), $K:$K,">="&VLOOKUP($F10&AT$7,B_FLOTA!$A:$V,16,0), $AF:$AF,"<="&VLOOKUP($F10&AT$7,A_FLOTA!$A:$AH,32,0), $O:$O,">="&VLOOKUP($F10&AT$7,B_FLOTA!$A:$AB,21,0), $G:$G,">="&VLOOKUP($F10&AT$7,B_FLOTA!$A:$V,9,0), $CX:$CX,">="&VLOOKUP($F10&AT$7,B_FLOTA!$A:$V,10,0), $R:$R,IF(MARCO="SI","SI","<>"&""))), $F10&AT$7,"") ->  | AU10: =IF( $AF10=( _xlfn.MINIFS($AF:$AF, $F:$F,$F10, $J:$J,">="&VLOOKUP($F10&AU$7,B_FLOTA!$A:$V,15,0), $K:$K,">="&VLOOKUP($F10&AU$7,B_FLOTA!$A:$V,16,0), $AF:$AF,"<="&VLOOKUP($F10&AU$7,A_FLOTA!$A:$AH,32,0), $O:$O,">="&VLOOKUP($F10&AU$7,B_FLOTA!$A:$AB,21,0), $G:$G,">="&VLOOKUP($F10&AU$7,B_FLOTA!$A:$V,9,0), $CX:$CX,">="&VLOOKUP($F10&AU$7,B_FLOTA!$A:$V,10,0), $R:$R,IF(MARCO="SI","SI","<>"&""))), $F10&AU$7,"") ->  | AV10: =IF( $AF10=( _xlfn.MINIFS($AF:$AF, $F:$F,$F10, $J:$J,">="&VLOOKUP($F10&AV$7,B_FLOTA!$A:$V,15,0), $K:$K,">="&VLOOKUP($F10&AV$7,B_FLOTA!$A:$V,16,0), $AF:$AF,"<="&VLOOKUP($F10&AV$7,A_FLOTA!$A:$AH,32,0), $O:$O,">="&VLOOKUP($F10&AV$7,B_FLOTA!$A:$AB,21,0), $G:$G,">="&VLOOKUP($F10&AV$7,B_FLOTA!$A:$V,9,0), $CX:$CX,">="&VLOOKUP($F10&AV$7,B_FLOTA!$A:$V,10,0), $R:$R,IF(MARCO="SI","SI","<>"&""))), $F10&AV$7,"") ->  | AW10: =IF( $AF10=( _xlfn.MINIFS($AF:$AF, $F:$F,$F10, $J:$J,">="&VLOOKUP($F10&AW$7,B_FLOTA!$A:$V,15,0), $K:$K,">="&VLOOKUP($F10&AW$7,B_FLOTA!$A:$V,16,0), $AF:$AF,"<="&VLOOKUP($F10&AW$7,A_FLOTA!$A:$AH,32,0), $O:$O,">="&VLOOKUP($F10&AW$7,B_FLOTA!$A:$AB,21,0), $G:$G,">="&VLOOKUP($F10&AW$7,B_FLOTA!$A:$V,9,0), $CX:$CX,">="&VLOOKUP($F10&AW$7,B_FLOTA!$A:$V,10,0), $R:$R,IF(MARCO="SI","SI","<>"&""))), $F10&AW$7,"") ->  | AX10: =IF( $AF10=( _xlfn.MINIFS($AF:$AF, $F:$F,$F10, $J:$J,">="&VLOOKUP($F10&AX$7,B_FLOTA!$A:$V,15,0), $K:$K,">="&VLOOKUP($F10&AX$7,B_FLOTA!$A:$V,16,0), $AF:$AF,"<="&VLOOKUP($F10&AX$7,A_FLOTA!$A:$AH,32,0), $O:$O,">="&VLOOKUP($F10&AX$7,B_FLOTA!$A:$AB,21,0), $G:$G,">="&VLOOKUP($F10&AX$7,B_FLOTA!$A:$V,9,0), $CX:$CX,">="&VLOOKUP($F10&AX$7,B_FLOTA!$A:$V,10,0), $R:$R,IF(MARCO="SI","SI","<>"&""))), $F10&AX$7,"") ->  | AY10: =IF( $AF10=( _xlfn.MINIFS($AF:$AF, $F:$F,$F10, $J:$J,">="&VLOOKUP($F10&AY$7,B_FLOTA!$A:$V,15,0), $K:$K,">="&VLOOKUP($F10&AY$7,B_FLOTA!$A:$V,16,0), $AF:$AF,"<="&VLOOKUP($F10&AY$7,A_FLOTA!$A:$AH,32,0), $O:$O,">="&VLOOKUP($F10&AY$7,B_FLOTA!$A:$AB,21,0), $G:$G,">="&VLOOKUP($F10&AY$7,B_FLOTA!$A:$V,9,0), $CX:$CX,">="&VLOOKUP($F10&AY$7,B_FLOTA!$A:$V,10,0), $R:$R,IF(MARCO="SI","SI","<>"&""))), $F10&AY$7,"") ->  | AZ10: =IF( $AF10=( _xlfn.MINIFS($AF:$AF, $F:$F,$F10, $J:$J,">="&VLOOKUP($F10&AZ$7,B_FLOTA!$A:$V,15,0), $K:$K,">="&VLOOKUP($F10&AZ$7,B_FLOTA!$A:$V,16,0), $AF:$AF,"<="&VLOOKUP($F10&AZ$7,A_FLOTA!$A:$AH,32,0), $O:$O,">="&VLOOKUP($F10&AZ$7,B_FLOTA!$A:$AB,21,0), $G:$G,">="&VLOOKUP($F10&AZ$7,B_FLOTA!$A:$V,9,0), $CX:$CX,">="&VLOOKUP($F10&AZ$7,B_FLOTA!$A:$V,10,0), $R:$R,IF(MARCO="SI","SI","<>"&""))), $F10&AZ$7,"") ->  | BA10: =IF( $AF10=( _xlfn.MINIFS($AF:$AF, $F:$F,$F10, $J:$J,">="&VLOOKUP($F10&BA$7,B_FLOTA!$A:$V,15,0), $K:$K,">="&VLOOKUP($F10&BA$7,B_FLOTA!$A:$V,16,0), $AF:$AF,"<="&VLOOKUP($F10&BA$7,A_FLOTA!$A:$AH,32,0), $O:$O,">="&VLOOKUP($F10&BA$7,B_FLOTA!$A:$AB,21,0), $G:$G,">="&VLOOKUP($F10&BA$7,B_FLOTA!$A:$V,9,0), $CX:$CX,">="&VLOOKUP($F10&BA$7,B_FLOTA!$A:$V,10,0), $R:$R,IF(MARCO="SI","SI","<>"&""))), $F10&BA$7,"") ->  | BB10: =IF( $AF10=( _xlfn.MINIFS($AF:$AF, $F:$F,$F10, $J:$J,">="&VLOOKUP($F10&BB$7,B_FLOTA!$A:$V,15,0), $K:$K,">="&VLOOKUP($F10&BB$7,B_FLOTA!$A:$V,16,0), $AF:$AF,"<="&VLOOKUP($F10&BB$7,A_FLOTA!$A:$AH,32,0), $O:$O,">="&VLOOKUP($F10&BB$7,B_FLOTA!$A:$AB,21,0), $G:$G,">="&VLOOKUP($F10&BB$7,B_FLOTA!$A:$V,9,0), $CX:$CX,">="&VLOOKUP($F10&BB$7,B_FLOTA!$A:$V,10,0), $R:$R,IF(MARCO="SI","SI","<>"&""))), $F10&BB$7,"") ->  | BC10: =IF( $AF10=( _xlfn.MINIFS($AF:$AF, $F:$F,$F10, $J:$J,">="&VLOOKUP($F10&BC$7,B_FLOTA!$A:$V,15,0), $K:$K,">="&VLOOKUP($F10&BC$7,B_FLOTA!$A:$V,16,0), $AF:$AF,"<="&VLOOKUP($F10&BC$7,A_FLOTA!$A:$AH,32,0), $O:$O,">="&VLOOKUP($F10&BC$7,B_FLOTA!$A:$AB,21,0), $G:$G,">="&VLOOKUP($F10&BC$7,B_FLOTA!$A:$V,9,0), $CX:$CX,">="&VLOOKUP($F10&BC$7,B_FLOTA!$A:$V,10,0), $R:$R,IF(MARCO="SI","SI","<>"&""))), $F10&BC$7,"") ->  | BD10: =IF( $AF10=( _xlfn.MINIFS($AF:$AF, $F:$F,$F10, $J:$J,">="&VLOOKUP($F10&BD$7,B_FLOTA!$A:$V,15,0), $K:$K,">="&VLOOKUP($F10&BD$7,B_FLOTA!$A:$V,16,0), $AF:$AF,"<="&VLOOKUP($F10&BD$7,A_FLOTA!$A:$AH,32,0), $O:$O,">="&VLOOKUP($F10&BD$7,B_FLOTA!$A:$AB,21,0), $G:$G,">="&VLOOKUP($F10&BD$7,B_FLOTA!$A:$V,9,0), $CX:$CX,">="&VLOOKUP($F10&BD$7,B_FLOTA!$A:$V,10,0), $R:$R,IF(MARCO="SI","SI","<>"&""))), $F10&BD$7,"") ->  | BE10: =IF( $AF10=( _xlfn.MINIFS($AF:$AF, $F:$F,$F10, $J:$J,">="&VLOOKUP($F10&BE$7,B_FLOTA!$A:$V,15,0), $K:$K,">="&VLOOKUP($F10&BE$7,B_FLOTA!$A:$V,16,0), $AF:$AF,"<="&VLOOKUP($F10&BE$7,A_FLOTA!$A:$AH,32,0), $O:$O,">="&VLOOKUP($F10&BE$7,B_FLOTA!$A:$AB,21,0), $G:$G,">="&VLOOKUP($F10&BE$7,B_FLOTA!$A:$V,9,0), $CX:$CX,">="&VLOOKUP($F10&BE$7,B_FLOTA!$A:$V,10,0), $R:$R,IF(MARCO="SI","SI","<>"&""))), $F10&BE$7,"") ->  | BF10: =IF( $AF10=( _xlfn.MINIFS($AF:$AF, $F:$F,$F10, $J:$J,">="&VLOOKUP($F10&BF$7,B_FLOTA!$A:$V,15,0), $K:$K,">="&VLOOKUP($F10&BF$7,B_FLOTA!$A:$V,16,0), $AF:$AF,"<="&VLOOKUP($F10&BF$7,A_FLOTA!$A:$AH,32,0), $O:$O,">="&VLOOKUP($F10&BF$7,B_FLOTA!$A:$AB,21,0), $G:$G,">="&VLOOKUP($F10&BF$7,B_FLOTA!$A:$V,9,0), $CX:$CX,">="&VLOOKUP($F10&BF$7,B_FLOTA!$A:$V,10,0), $R:$R,IF(MARCO="SI","SI","<>"&""))), $F10&BF$7,"") ->  | BG10: =IF( $AF10=( _xlfn.MINIFS($AF:$AF, $F:$F,$F10, $J:$J,">="&VLOOKUP($F10&BG$7,B_FLOTA!$A:$V,15,0), $K:$K,">="&VLOOKUP($F10&BG$7,B_FLOTA!$A:$V,16,0), $AF:$AF,"<="&VLOOKUP($F10&BG$7,A_FLOTA!$A:$AH,32,0), $O:$O,">="&VLOOKUP($F10&BG$7,B_FLOTA!$A:$AB,21,0), $G:$G,">="&VLOOKUP($F10&BG$7,B_FLOTA!$A:$V,9,0), $CX:$CX,">="&VLOOKUP($F10&BG$7,B_FLOTA!$A:$V,10,0), $R:$R,IF(MARCO="SI","SI","<>"&""))), $F10&BG$7,"") ->  | BH10: =IF( $AF10=( _xlfn.MINIFS($AF:$AF, $F:$F,$F10, $J:$J,">="&VLOOKUP($F10&BH$7,B_FLOTA!$A:$V,15,0), $K:$K,">="&VLOOKUP($F10&BH$7,B_FLOTA!$A:$V,16,0), $AF:$AF,"<="&VLOOKUP($F10&BH$7,A_FLOTA!$A:$AH,32,0), $O:$O,">="&VLOOKUP($F10&BH$7,B_FLOTA!$A:$AB,21,0), $G:$G,">="&VLOOKUP($F10&BH$7,B_FLOTA!$A:$V,9,0), $CX:$CX,">="&VLOOKUP($F10&BH$7,B_FLOTA!$A:$V,10,0), $R:$R,IF(MARCO="SI","SI","<>"&""))), $F10&BH$7,"") ->  | BI10: =IF( $AF10=( _xlfn.MINIFS($AF:$AF, $F:$F,$F10, $J:$J,">="&VLOOKUP($F10&BI$7,B_FLOTA!$A:$V,15,0), $K:$K,">="&VLOOKUP($F10&BI$7,B_FLOTA!$A:$V,16,0), $AF:$AF,"<="&VLOOKUP($F10&BI$7,A_FLOTA!$A:$AH,32,0), $O:$O,">="&VLOOKUP($F10&BI$7,B_FLOTA!$A:$AB,21,0), $G:$G,">="&VLOOKUP($F10&BI$7,B_FLOTA!$A:$V,9,0), $CX:$CX,">="&VLOOKUP($F10&BI$7,B_FLOTA!$A:$V,10,0), $R:$R,IF(MARCO="SI","SI","<>"&""))), $F10&BI$7,"") ->  | BJ10: =IF( $AF10=( _xlfn.MINIFS($AF:$AF, $F:$F,$F10, $J:$J,">="&VLOOKUP($F10&BJ$7,B_FLOTA!$A:$V,15,0), $K:$K,">="&VLOOKUP($F10&BJ$7,B_FLOTA!$A:$V,16,0), $AF:$AF,"<="&VLOOKUP($F10&BJ$7,A_FLOTA!$A:$AH,32,0), $O:$O,">="&VLOOKUP($F10&BJ$7,B_FLOTA!$A:$AB,21,0), $G:$G,">="&VLOOKUP($F10&BJ$7,B_FLOTA!$A:$V,9,0), $CX:$CX,">="&VLOOKUP($F10&BJ$7,B_FLOTA!$A:$V,10,0), $R:$R,IF(MARCO="SI","SI","<>"&""))), $F10&BJ$7,"") ->  | BK10: =IF( $AF10=( _xlfn.MINIFS($AF:$AF, $F:$F,$F10, $J:$J,">="&VLOOKUP($F10&BK$7,B_FLOTA!$A:$V,15,0), $K:$K,">="&VLOOKUP($F10&BK$7,B_FLOTA!$A:$V,16,0), $AF:$AF,"<="&VLOOKUP($F10&BK$7,A_FLOTA!$A:$AH,32,0), $O:$O,">="&VLOOKUP($F10&BK$7,B_FLOTA!$A:$AB,21,0), $G:$G,">="&VLOOKUP($F10&BK$7,B_FLOTA!$A:$V,9,0), $CX:$CX,">="&VLOOKUP($F10&BK$7,B_FLOTA!$A:$V,10,0), $R:$R,IF(MARCO="SI","SI","<>"&""))), $F10&BK$7,"") ->  | BL10: =IF( $AF10=( _xlfn.MINIFS($AF:$AF, $F:$F,$F10, $J:$J,">="&VLOOKUP($F10&BL$7,B_FLOTA!$A:$V,15,0), $K:$K,">="&VLOOKUP($F10&BL$7,B_FLOTA!$A:$V,16,0), $AF:$AF,"<="&VLOOKUP($F10&BL$7,A_FLOTA!$A:$AH,32,0), $O:$O,">="&VLOOKUP($F10&BL$7,B_FLOTA!$A:$AB,21,0), $G:$G,">="&VLOOKUP($F10&BL$7,B_FLOTA!$A:$V,9,0), $CX:$CX,">="&VLOOKUP($F10&BL$7,B_FLOTA!$A:$V,10,0), $R:$R,IF(MARCO="SI","SI","<>"&""))), $F10&BL$7,"") ->  | BM10: =IF( $AF10=( _xlfn.MINIFS($AF:$AF, $F:$F,$F10, $J:$J,">="&VLOOKUP($F10&BM$7,B_FLOTA!$A:$V,15,0), $K:$K,">="&VLOOKUP($F10&BM$7,B_FLOTA!$A:$V,16,0), $AF:$AF,"<="&VLOOKUP($F10&BM$7,A_FLOTA!$A:$AH,32,0), $O:$O,">="&VLOOKUP($F10&BM$7,B_FLOTA!$A:$AB,21,0), $G:$G,">="&VLOOKUP($F10&BM$7,B_FLOTA!$A:$V,9,0), $CX:$CX,">="&VLOOKUP($F10&BM$7,B_FLOTA!$A:$V,10,0), $R:$R,IF(MARCO="SI","SI","<>"&""))), $F10&BM$7,"") ->  | BN10: =IF( $AF10=( _xlfn.MINIFS($AF:$AF, $F:$F,$F10, $J:$J,">="&VLOOKUP($F10&BN$7,B_FLOTA!$A:$V,15,0), $K:$K,">="&VLOOKUP($F10&BN$7,B_FLOTA!$A:$V,16,0), $AF:$AF,"<="&VLOOKUP($F10&BN$7,A_FLOTA!$A:$AH,32,0), $O:$O,">="&VLOOKUP($F10&BN$7,B_FLOTA!$A:$AB,21,0), $G:$G,">="&VLOOKUP($F10&BN$7,B_FLOTA!$A:$V,9,0), $CX:$CX,">="&VLOOKUP($F10&BN$7,B_FLOTA!$A:$V,10,0), $R:$R,IF(MARCO="SI","SI","<>"&""))), $F10&BN$7,"") ->  | BO10: =IF( $AF10=( _xlfn.MINIFS($AF:$AF, $F:$F,$F10, $J:$J,">="&VLOOKUP($F10&BO$7,B_FLOTA!$A:$V,15,0), $K:$K,">="&VLOOKUP($F10&BO$7,B_FLOTA!$A:$V,16,0), $AF:$AF,"<="&VLOOKUP($F10&BO$7,A_FLOTA!$A:$AH,32,0), $O:$O,">="&VLOOKUP($F10&BO$7,B_FLOTA!$A:$AB,21,0), $G:$G,">="&VLOOKUP($F10&BO$7,B_FLOTA!$A:$V,9,0), $CX:$CX,">="&VLOOKUP($F10&BO$7,B_FLOTA!$A:$V,10,0), $R:$R,IF(MARCO="SI","SI","<>"&""))), $F10&BO$7,"") ->  | BP10: =IF( $AF10=( _xlfn.MINIFS($AF:$AF, $F:$F,$F10, $J:$J,">="&VLOOKUP($F10&BP$7,B_FLOTA!$A:$V,15,0), $K:$K,">="&VLOOKUP($F10&BP$7,B_FLOTA!$A:$V,16,0), $AF:$AF,"<="&VLOOKUP($F10&BP$7,A_FLOTA!$A:$AH,32,0), $O:$O,">="&VLOOKUP($F10&BP$7,B_FLOTA!$A:$AB,21,0), $G:$G,">="&VLOOKUP($F10&BP$7,B_FLOTA!$A:$V,9,0), $CX:$CX,">="&VLOOKUP($F10&BP$7,B_FLOTA!$A:$V,10,0), $R:$R,IF(MARCO="SI","SI","<>"&""))), $F10&BP$7,"") ->  | BQ10: =IF( $AF10=( _xlfn.MINIFS($AF:$AF, $F:$F,$F10, $J:$J,">="&VLOOKUP($F10&BQ$7,B_FLOTA!$A:$V,15,0), $K:$K,">="&VLOOKUP($F10&BQ$7,B_FLOTA!$A:$V,16,0), $AF:$AF,"<="&VLOOKUP($F10&BQ$7,A_FLOTA!$A:$AH,32,0), $O:$O,">="&VLOOKUP($F10&BQ$7,B_FLOTA!$A:$AB,21,0), $G:$G,">="&VLOOKUP($F10&BQ$7,B_FLOTA!$A:$V,9,0), $CX:$CX,">="&VLOOKUP($F10&BQ$7,B_FLOTA!$A:$V,10,0), $R:$R,IF(MARCO="SI","SI","<>"&""))), $F10&BQ$7,"") ->  | BR10: =IF( $AF10=( _xlfn.MINIFS($AF:$AF, $F:$F,$F10, $J:$J,">="&VLOOKUP($F10&BR$7,B_FLOTA!$A:$V,15,0), $K:$K,">="&VLOOKUP($F10&BR$7,B_FLOTA!$A:$V,16,0), $AF:$AF,"<="&VLOOKUP($F10&BR$7,A_FLOTA!$A:$AH,32,0), $O:$O,">="&VLOOKUP($F10&BR$7,B_FLOTA!$A:$AB,21,0), $G:$G,">="&VLOOKUP($F10&BR$7,B_FLOTA!$A:$V,9,0), $CX:$CX,">="&VLOOKUP($F10&BR$7,B_FLOTA!$A:$V,10,0), $R:$R,IF(MARCO="SI","SI","<>"&""))), $F10&BR$7,"") ->  | BS10: =IF( $AF10=( _xlfn.MINIFS($AF:$AF, $F:$F,$F10, $J:$J,">="&VLOOKUP($F10&BS$7,B_FLOTA!$A:$V,15,0), $K:$K,">="&VLOOKUP($F10&BS$7,B_FLOTA!$A:$V,16,0), $AF:$AF,"<="&VLOOKUP($F10&BS$7,A_FLOTA!$A:$AH,32,0), $O:$O,">="&VLOOKUP($F10&BS$7,B_FLOTA!$A:$AB,21,0), $G:$G,">="&VLOOKUP($F10&BS$7,B_FLOTA!$A:$V,9,0), $CX:$CX,">="&VLOOKUP($F10&BS$7,B_FLOTA!$A:$V,10,0), $R:$R,IF(MARCO="SI","SI","<>"&""))), $F10&BS$7,"") ->  | BT10: =IF( $AF10=( _xlfn.MINIFS($AF:$AF, $F:$F,$F10, $J:$J,">="&VLOOKUP($F10&BT$7,B_FLOTA!$A:$V,15,0), $K:$K,">="&VLOOKUP($F10&BT$7,B_FLOTA!$A:$V,16,0), $AF:$AF,"<="&VLOOKUP($F10&BT$7,A_FLOTA!$A:$AH,32,0), $O:$O,">="&VLOOKUP($F10&BT$7,B_FLOTA!$A:$AB,21,0), $G:$G,">="&VLOOKUP($F10&BT$7,B_FLOTA!$A:$V,9,0), $CX:$CX,">="&VLOOKUP($F10&BT$7,B_FLOTA!$A:$V,10,0), $R:$R,IF(MARCO="SI","SI","<>"&""))), $F10&BT$7,"") ->  | BU10: =IF( $AF10=( _xlfn.MINIFS($AF:$AF, $F:$F,$F10, $J:$J,">="&VLOOKUP($F10&BU$7,B_FLOTA!$A:$V,15,0), $K:$K,">="&VLOOKUP($F10&BU$7,B_FLOTA!$A:$V,16,0), $AF:$AF,"<="&VLOOKUP($F10&BU$7,A_FLOTA!$A:$AH,32,0), $O:$O,">="&VLOOKUP($F10&BU$7,B_FLOTA!$A:$AB,21,0), $G:$G,">="&VLOOKUP($F10&BU$7,B_FLOTA!$A:$V,9,0), $CX:$CX,">="&VLOOKUP($F10&BU$7,B_FLOTA!$A:$V,10,0), $R:$R,IF(MARCO="SI","SI","<>"&""))), $F10&BU$7,"") ->  | BV10: =IF( $AF10=( _xlfn.MINIFS($AF:$AF, $F:$F,$F10, $J:$J,">="&VLOOKUP($F10&BV$7,B_FLOTA!$A:$V,15,0), $K:$K,">="&VLOOKUP($F10&BV$7,B_FLOTA!$A:$V,16,0), $AF:$AF,"<="&VLOOKUP($F10&BV$7,A_FLOTA!$A:$AH,32,0), $O:$O,">="&VLOOKUP($F10&BV$7,B_FLOTA!$A:$AB,21,0), $G:$G,">="&VLOOKUP($F10&BV$7,B_FLOTA!$A:$V,9,0), $CX:$CX,">="&VLOOKUP($F10&BV$7,B_FLOTA!$A:$V,10,0), $R:$R,IF(MARCO="SI","SI","<>"&""))), $F10&BV$7,"") ->  | BW10: =IF( $AF10=( _xlfn.MINIFS($AF:$AF, $F:$F,$F10, $J:$J,">="&VLOOKUP($F10&BW$7,B_FLOTA!$A:$V,15,0), $K:$K,">="&VLOOKUP($F10&BW$7,B_FLOTA!$A:$V,16,0), $AF:$AF,"<="&VLOOKUP($F10&BW$7,A_FLOTA!$A:$AH,32,0), $O:$O,">="&VLOOKUP($F10&BW$7,B_FLOTA!$A:$AB,21,0), $G:$G,">="&VLOOKUP($F10&BW$7,B_FLOTA!$A:$V,9,0), $CX:$CX,">="&VLOOKUP($F10&BW$7,B_FLOTA!$A:$V,10,0), $R:$R,IF(MARCO="SI","SI","<>"&""))), $F10&BW$7,"") ->  | BX10: =IF( $AF10=( _xlfn.MINIFS($AF:$AF, $F:$F,$F10, $J:$J,">="&VLOOKUP($F10&BX$7,B_FLOTA!$A:$V,15,0), $K:$K,">="&VLOOKUP($F10&BX$7,B_FLOTA!$A:$V,16,0), $AF:$AF,"<="&VLOOKUP($F10&BX$7,A_FLOTA!$A:$AH,32,0), $O:$O,">="&VLOOKUP($F10&BX$7,B_FLOTA!$A:$AB,21,0), $G:$G,">="&VLOOKUP($F10&BX$7,B_FLOTA!$A:$V,9,0), $CX:$CX,">="&VLOOKUP($F10&BX$7,B_FLOTA!$A:$V,10,0), $R:$R,IF(MARCO="SI","SI","<>"&""))), $F10&BX$7,"") ->  | BY10: =IF( $AF10=( _xlfn.MINIFS($AF:$AF, $F:$F,$F10, $J:$J,">="&VLOOKUP($F10&BY$7,B_FLOTA!$A:$V,15,0), $K:$K,">="&VLOOKUP($F10&BY$7,B_FLOTA!$A:$V,16,0), $AF:$AF,"<="&VLOOKUP($F10&BY$7,A_FLOTA!$A:$AH,32,0), $O:$O,">="&VLOOKUP($F10&BY$7,B_FLOTA!$A:$AB,21,0), $G:$G,">="&VLOOKUP($F10&BY$7,B_FLOTA!$A:$V,9,0), $CX:$CX,">="&VLOOKUP($F10&BY$7,B_FLOTA!$A:$V,10,0), $R:$R,IF(MARCO="SI","SI","<>"&""))), $F10&BY$7,"") ->  | BZ10: =IF( $AF10=( _xlfn.MINIFS($AF:$AF, $F:$F,$F10, $J:$J,">="&VLOOKUP($F10&BZ$7,B_FLOTA!$A:$V,15,0), $K:$K,">="&VLOOKUP($F10&BZ$7,B_FLOTA!$A:$V,16,0), $AF:$AF,"<="&VLOOKUP($F10&BZ$7,A_FLOTA!$A:$AH,32,0), $O:$O,">="&VLOOKUP($F10&BZ$7,B_FLOTA!$A:$AB,21,0), $G:$G,">="&VLOOKUP($F10&BZ$7,B_FLOTA!$A:$V,9,0), $CX:$CX,">="&VLOOKUP($F10&BZ$7,B_FLOTA!$A:$V,10,0), $R:$R,IF(MARCO="SI","SI","<>"&""))), $F10&BZ$7,"") ->  | CA10: =IF( $AF10=( _xlfn.MINIFS($AF:$AF, $F:$F,$F10, $J:$J,">="&VLOOKUP($F10&CA$7,B_FLOTA!$A:$V,15,0), $K:$K,">="&VLOOKUP($F10&CA$7,B_FLOTA!$A:$V,16,0), $AF:$AF,"<="&VLOOKUP($F10&CA$7,A_FLOTA!$A:$AH,32,0), $O:$O,">="&VLOOKUP($F10&CA$7,B_FLOTA!$A:$AB,21,0), $G:$G,">="&VLOOKUP($F10&CA$7,B_FLOTA!$A:$V,9,0), $CX:$CX,">="&VLOOKUP($F10&CA$7,B_FLOTA!$A:$V,10,0), $R:$R,IF(MARCO="SI","SI","<>"&""))), $F10&CA$7,"") ->  | CB10: =IF( $AF10=( _xlfn.MINIFS($AF:$AF, $F:$F,$F10, $J:$J,">="&VLOOKUP($F10&CB$7,B_FLOTA!$A:$V,15,0), $K:$K,">="&VLOOKUP($F10&CB$7,B_FLOTA!$A:$V,16,0), $AF:$AF,"<="&VLOOKUP($F10&CB$7,A_FLOTA!$A:$AH,32,0), $O:$O,">="&VLOOKUP($F10&CB$7,B_FLOTA!$A:$AB,21,0), $G:$G,">="&VLOOKUP($F10&CB$7,B_FLOTA!$A:$V,9,0), $CX:$CX,">="&VLOOKUP($F10&CB$7,B_FLOTA!$A:$V,10,0), $R:$R,IF(MARCO="SI","SI","<>"&""))), $F10&CB$7,"") ->  | CC10: =IF( $AF10=( _xlfn.MINIFS($AF:$AF, $F:$F,$F10, $J:$J,">="&VLOOKUP($F10&CC$7,B_FLOTA!$A:$V,15,0), $K:$K,">="&VLOOKUP($F10&CC$7,B_FLOTA!$A:$V,16,0), $AF:$AF,"<="&VLOOKUP($F10&CC$7,A_FLOTA!$A:$AH,32,0), $O:$O,">="&VLOOKUP($F10&CC$7,B_FLOTA!$A:$AB,21,0), $G:$G,">="&VLOOKUP($F10&CC$7,B_FLOTA!$A:$V,9,0), $CX:$CX,">="&VLOOKUP($F10&CC$7,B_FLOTA!$A:$V,10,0), $R:$R,IF(MARCO="SI","SI","<>"&""))), $F10&CC$7,"") ->  | CD10: =IF( $AF10=( _xlfn.MINIFS($AF:$AF, $F:$F,$F10, $J:$J,">="&VLOOKUP($F10&CD$7,B_FLOTA!$A:$V,15,0), $K:$K,">="&VLOOKUP($F10&CD$7,B_FLOTA!$A:$V,16,0), $AF:$AF,"<="&VLOOKUP($F10&CD$7,A_FLOTA!$A:$AH,32,0), $O:$O,">="&VLOOKUP($F10&CD$7,B_FLOTA!$A:$AB,21,0), $G:$G,">="&VLOOKUP($F10&CD$7,B_FLOTA!$A:$V,9,0), $CX:$CX,">="&VLOOKUP($F10&CD$7,B_FLOTA!$A:$V,10,0), $R:$R,IF(MARCO="SI","SI","<>"&""))), $F10&CD$7,"") ->  | CE10: =IF( $AF10=( _xlfn.MINIFS($AF:$AF, $F:$F,$F10, $J:$J,">="&VLOOKUP($F10&CE$7,B_FLOTA!$A:$V,15,0), $K:$K,">="&VLOOKUP($F10&CE$7,B_FLOTA!$A:$V,16,0), $AF:$AF,"<="&VLOOKUP($F10&CE$7,A_FLOTA!$A:$AH,32,0), $O:$O,">="&VLOOKUP($F10&CE$7,B_FLOTA!$A:$AB,21,0), $G:$G,">="&VLOOKUP($F10&CE$7,B_FLOTA!$A:$V,9,0), $CX:$CX,">="&VLOOKUP($F10&CE$7,B_FLOTA!$A:$V,10,0), $R:$R,IF(MARCO="SI","SI","<>"&""))), $F10&CE$7,"") ->  | CG10: kWh/km | CH10: =IFERROR(VLOOKUP(E10,VALORES!$B$1:$E$8,3,0),"") -> KWH | CJ10: =IF(OR($E10="BEV",$E10="FCEV"),_xlfn.MINIFS('BD3(GEI & Cont)'!$E:$E,'BD3(GEI & Cont)'!$B:$B,$F10,'BD3(GEI & Cont)'!$C:$C,$E10,'BD3(GEI & Cont)'!$E:$E,">="&VALUE($H10))*IFERROR(VLOOKUP($F10,A_FLOTA!$F:$BS,64,0),0)*IFERROR(VLOOKUP($F10,A_FLOTA!$F:$BS,65,0),0)*W10,_xlfn.MINIFS('BD3(GEI & Cont)'!$L:$L,'BD3(GEI & Cont)'!A:A,"",'BD3(GEI & Cont)'!$B:$B,$F10,'BD3(GEI & Cont)'!$C:$C,$E10,'BD3(GEI & Cont)'!$E:$E,">="&VALUE($H10),'BD3(GEI & Cont)'!$D:$D,$I10)*IFERROR(VLOOKUP($F10,A_FLOTA!$F:$BS,64,0),0)*IFERROR(VLOOKUP($F10,A_FLOTA!$F:$BS,65,0),0)*W10) -> 0 | CK10: =IF(OR($E10="BEV",$E10="FCEV"),_xlfn.MINIFS('BD3(GEI & Cont)'!$F:$F,'BD3(GEI & Cont)'!$B:$B,$F10,'BD3(GEI & Cont)'!$C:$C,$E10,'BD3(GEI & Cont)'!$E:$E,">="&VALUE($H10))*IFERROR(VLOOKUP($F10,A_FLOTA!$F:$BS,64,0),0)*IFERROR(VLOOKUP($F10,A_FLOTA!$F:$BS,65,0),0)*W10,_xlfn.MINIFS('BD3(GEI & Cont)'!$M:$M,'BD3(GEI & Cont)'!A:A,"",'BD3(GEI & Cont)'!$B:$B,$F10,'BD3(GEI & Cont)'!$C:$C,$E10,'BD3(GEI & Cont)'!$E:$E,">="&VALUE($H10),'BD3(GEI & Cont)'!$D:$D,$I10)*IFERROR(VLOOKUP($F10,A_FLOTA!$F:$BS,64,0),0)*IFERROR(VLOOKUP($F10,A_FLOTA!$F:$BS,65,0),0)*W10) -> 0 | CL10: =IF(OR($E10="BEV",$E10="FCEV"),0,_xlfn.MINIFS('BD3(GEI & Cont)'!$I:$I,'BD3(GEI & Cont)'!A:A,"",'BD3(GEI & Cont)'!$B:$B,$F10,'BD3(GEI & Cont)'!$C:$C,$E10,'BD3(GEI & Cont)'!$E:$E,">="&VALUE($H10),'BD3(GEI & Cont)'!$D:$D,$I10)*IFERROR(VLOOKUP($F10,A_FLOTA!$F:$BS,64,0),0)*IFERROR(VLOOKUP($F10,A_FLOTA!$F:$BS,65,0),0)*W10) -> 0 | CM10: =IF(OR($E10="BEV",$E10="FCEV"),0,_xlfn.MINIFS('BD3(GEI & Cont)'!F:F,'BD3(GEI & Cont)'!$A:$A,EURO,'BD3(GEI & Cont)'!$B:$B,$F10,'BD3(GEI & Cont)'!$C:$C,$E10,'BD3(GEI & Cont)'!$E:$E,">="&VALUE($H10),'BD3(GEI & Cont)'!$D:$D,$I10)*IFERROR(VLOOKUP($F10,A_FLOTA!$F:$BS,64,0),0)*IFERROR(VLOOKUP($F10,A_FLOTA!$F:$BS,65,0),0)*W10) -> 0 | CN10: =IF(OR($E10="BEV",$E10="FCEV"),0,_xlfn.MINIFS('BD3(GEI & Cont)'!G:G,'BD3(GEI & Cont)'!$A:$A,EURO,'BD3(GEI & Cont)'!$B:$B,$F10,'BD3(GEI & Cont)'!$C:$C,$E10,'BD3(GEI & Cont)'!$E:$E,">="&VALUE($H10),'BD3(GEI & Cont)'!$D:$D,$I10)*IFERROR(VLOOKUP($F10,A_FLOTA!$F:$BS,64,0),0)*IFERROR(VLOOKUP($F10,A_FLOTA!$F:$BS,65,0),0)*W10) -> 0 | CO10: =IF(OR($E10="BEV",$E10="FCEV"),0,_xlfn.MINIFS('BD3(GEI & Cont)'!H:H,'BD3(GEI & Cont)'!$A:$A,EURO,'BD3(GEI & Cont)'!$B:$B,$F10,'BD3(GEI & Cont)'!$C:$C,$E10,'BD3(GEI & Cont)'!$E:$E,">="&VALUE($H10),'BD3(GEI & Cont)'!$D:$D,$I10)*IFERROR(VLOOKUP($F10,A_FLOTA!$F:$BS,64,0),0)*IFERROR(VLOOKUP($F10,A_FLOTA!$F:$BS,65,0),0)*W10) -> 0 | CP10: =IF(OR($E10="BEV",$E10="FCEV"),0,_xlfn.MINIFS('BD3(GEI & Cont)'!I:I,'BD3(GEI & Cont)'!$A:$A,EURO,'BD3(GEI & Cont)'!$B:$B,$F10,'BD3(GEI & Cont)'!$C:$C,$E10,'BD3(GEI & Cont)'!$E:$E,">="&VALUE($H10),'BD3(GEI & Cont)'!$D:$D,$I10)*IFERROR(VLOOKUP($F10,A_FLOTA!$F:$BS,64,0),0)*IFERROR(VLOOKUP($F10,A_FLOTA!$F:$BS,65,0),0)*W10) -> 0 | CQ10: =IF(OR($E10="BEV",$E10="FCEV"),0,_xlfn.MINIFS('BD3(GEI & Cont)'!M:M,'BD3(GEI & Cont)'!$A:$A,EURO,'BD3(GEI & Cont)'!$B:$B,$F10,'BD3(GEI & Cont)'!$C:$C,$E10,'BD3(GEI & Cont)'!$E:$E,">="&VALUE($H10),'BD3(GEI & Cont)'!$D:$D,$I10)*IFERROR(VLOOKUP($F10,A_FLOTA!$F:$BS,64,0),0)*IFERROR(VLOOKUP($F10,A_FLOTA!$F:$BS,65,0),0)*W10) -> 0 | CR10: =IF(OR($E10="BEV",$E10="FCEV"),'BD3(GEI & Cont)'!$D$44*IFERROR(VLOOKUP($F10,A_FLOTA!$F:$BS,64,0),0)*IFERROR(VLOOKUP($F10,A_FLOTA!$F:$BS,65,0),0)*W10*IF($E10="BEV",$M10,1),_xlfn.MINIFS('BD3(GEI & Cont)'!$K:$K,'BD3(GEI & Cont)'!A:A,"",'BD3(GEI & Cont)'!$B:$B,$F10,'BD3(GEI & Cont)'!$C:$C,$E10,'BD3(GEI & Cont)'!$E:$E,">="&VALUE($H10),'BD3(GEI & Cont)'!$D:$D,$I10)*IFERROR(VLOOKUP($F10,A_FLOTA!$F:$BS,64,0),0)*IFERROR(VLOOKUP($F10,A_FLOTA!$F:$BS,65,0),0)*W10*IF($E10="BEV",$M10,1)) -> 0 | CS10: 0 | CT10: 0 | CV10: =IFERROR(W10*IFERROR(VLOOKUP(F10,A_FLOTA!$F:$BS,64,0),0)*IFERROR(VLOOKUP(F10,A_FLOTA!$F:$BS,65,0),"")*AF10,"") ->  | CW10: =+IFERROR(VLOOKUP(F10,A_FLOTA!$F:$BS,64,0),0)*IFERROR(VLOOKUP(F10,A_FLOTA!$F:$BS,65,0),0)*W10*M10 -> 0 | CX10: 0 | CY10: 2 | DA10: 0.40625 | DB10: 3205312.5 | DC10: 7416600 | DD10: 4211287.5 | DE10: 70188.125 | DF10: 108343.5075 | DG10: 178531.6325 | DH10: 10711897.95 | DI10: 3295297.95
A11: 4 | B11: Starker | C11: Thunder | D11: 2020 | E11: BEV | F11: Motocicleta | G11: 2 | H11: 0 | I11: Electricidad | J11: 2 | K11: 200 | L11: kWh/km | M11: 0.03116666667 | O11: 60 | P11: 60 | Q11: 7990000 | R11: NO | S11: =IFERROR($Q11*(1-(-INDIRECT("CAPEX_"&E11)))^(AÑO_OBJETIVO-$D11),0) -> 7990000 | T11: =+IFERROR(S11/(1+INDIRECT("I_"&E11)+INDIRECT("A_"&E11)),0) -> 7609523.81 | U11: =IFERROR(T11*INDIRECT("I_"&E11),0) -> 380476.1905 | V11: =IFERROR(T11*INDIRECT("A_"&E11),0) -> 0 | W11: =IFERROR(INDIRECT("V_"&E11),0) -> 8 | X11: 7590500 | Y11: =IF(VLOOKUP(VALORES!$R$5,VALORES!$Q$1:$R$4,2,0)<>"PARTICULAR",R_OFIC_PUBL,INDIRECT("R_"&VLOOKUP(F11,VALORES!$G:$H,2,0)&"_"&VLOOKUP(Q11,AUTO_VALOR,3,1))) -> 0.005 | Z11: 148813.75 | AA11: =IFERROR(IF(VLOOKUP(VALORES!$R$5,VALORES!$Q$1:$R$4,2,0)<>"PARTICULAR",VLOOKUP(N11,INDIRECT("SOAT_OFICIALES"),3,1)*W11,(VLOOKUP(IF(OR(F11="Camión",F11="TRACTOMULA"),H11,N11),INDIRECT("SOAT_"&VLOOKUP(F11,VALORES!$G$1:$H$9,2,0)&"_1"),3,1)*IF(W11>9,9,W11))+VLOOKUP(IF(OR(F11="Camión",F11="TRACTOMULA"),H11,N11),INDIRECT("SOAT_"&VLOOKUP(F11,VALORES!$G$1:$H$9,2,0)&"_2"),3,1)*IF((W11-9)<0,0,(W11-9))),0) -> 5730000 | AB11: 3337063.45 | AC11: =IF(E11="ICE",INDIRECT("CM_"&E11&"_"&LEFT(F11,4))*IFERROR(VLOOKUP(F11,A_FLOTA!$F:$BS,64,0),0)*IFERROR(VLOOKUP(F11,A_FLOTA!$F:$BS,65,0),0)*W11,IFERROR((INDIRECT("CM_"&E11&"_"&LEFT(F11,4)))*IFERROR(VLOOKUP(F11,A_FLOTA!$F:$BS,64,0),0)*IFERROR(VLOOKUP(F11,A_FLOTA!$F:$BS,65,0),0)*(1-(1-INDIRECT("REDUC_CM_"&E11))^(W11))/(1-(1-INDIRECT("REDUC_CM_"&E11))),0)) -> 0 | AD11: =IFERROR((IFERROR(M11*IFERROR(VLOOKUP(F11,A_FLOTA!$F:$BS,64,0),0)*IFERROR(VLOOKUP(F11,A_FLOTA!$F:$BS,65,0),0)*W11*AVERAGEIFS( INDIRECT(E11&"_"&LEFT(I11,3)&"_"&I_ESCENARIOS!$E$7), 'BD2 (Costos)'!B:B,">="&DATE(AÑO_OBJETIVO,1,1), 'BD2 (Costos)'!B:B,"<="&DATE(AÑO_OBJETIVO+W11,12,31))/AVERAGEIFS(VALORES!$E$1:$E$10,VALORES!$C$1:$C$10,CG11,VALORES!$D$1:$D$10,CH11),0))*(O11/(O11+P11))+(IFERROR(M11*IFERROR(VLOOKUP(F11,A_FLOTA!$F:$BS,64,0),0)*IFERROR(VLOOKUP(F11,A_FLOTA!$F:$BS,65,0),0)*W11*AVERAGEIFS( INDIRECT("BEV_ELE_"&I_ESCENARIOS!$E$7), 'BD2 (Costos)'!B:B,">="&DATE(AÑO_OBJETIVO,1,1), 'BD2 (Costos)'!B:B,"<="&DATE(AÑO_OBJETIVO+W11,12,31)),0))*(P11/(O11+P11)),0) -> 0 | AE11: =IF(E11="BEV",IF(INDIRECT("VB_"&E11)<W11,IFERROR(INT(W11/INDIRECT("VB_"&E11))*(Q11*(1-(-INDIRECT("CAPEX_"&E11)))^(INDIRECT("VB_"&E11))*INDIRECT("CB_"&E11)),0),0),0) -> 0 | AF11: =IFERROR(SUM(T11:AE11)/(VLOOKUP(F11,A_FLOTA!$F:$BS,64,0)*(VLOOKUP(F11,A_FLOTA!$F:$BS,65,0)*W11)),"N/A") -> N/A | AH11: =IF( $AF11=( _xlfn.MINIFS($AF:$AF, $F:$F,$F11, $J:$J,">="&VLOOKUP($F11&AH$7,B_FLOTA!$A:$V,15,0), $K:$K,">="&VLOOKUP($F11&AH$7,B_FLOTA!$A:$V,16,0), $AF:$AF,"<="&VLOOKUP($F11&AH$7,A_FLOTA!$A:$AH,32,0), $O:$O,">="&VLOOKUP($F11&AH$7,B_FLOTA!$A:$AB,21,0), $G:$G,">="&VLOOKUP($F11&AH$7,B_FLOTA!$A:$V,9,0), $CX:$CX,">="&VLOOKUP($F11&AH$7,B_FLOTA!$A:$V,10,0), $R:$R,IF(MARCO="SI","SI","<>"&""))), $F11&AH$7,"") ->  | AI11: =IF( $AF11=( _xlfn.MINIFS($AF:$AF, $F:$F,$F11, $J:$J,">="&VLOOKUP($F11&AI$7,B_FLOTA!$A:$V,15,0), $K:$K,">="&VLOOKUP($F11&AI$7,B_FLOTA!$A:$V,16,0), $AF:$AF,"<="&VLOOKUP($F11&AI$7,A_FLOTA!$A:$AH,32,0), $O:$O,">="&VLOOKUP($F11&AI$7,B_FLOTA!$A:$AB,21,0), $G:$G,">="&VLOOKUP($F11&AI$7,B_FLOTA!$A:$V,9,0), $CX:$CX,">="&VLOOKUP($F11&AI$7,B_FLOTA!$A:$V,10,0), $R:$R,IF(MARCO="SI","SI","<>"&""))), $F11&AI$7,"") ->  | AJ11: =IF( $AF11=( _xlfn.MINIFS($AF:$AF, $F:$F,$F11, $J:$J,">="&VLOOKUP($F11&AJ$7,B_FLOTA!$A:$V,15,0), $K:$K,">="&VLOOKUP($F11&AJ$7,B_FLOTA!$A:$V,16,0), $AF:$AF,"<="&VLOOKUP($F11&AJ$7,A_FLOTA!$A:$AH,32,0), $O:$O,">="&VLOOKUP($F11&AJ$7,B_FLOTA!$A:$AB,21,0), $G:$G,">="&VLOOKUP($F11&AJ$7,B_FLOTA!$A:$V,9,0), $CX:$CX,">="&VLOOKUP($F11&AJ$7,B_FLOTA!$A:$V,10,0), $R:$R,IF(MARCO="SI","SI","<>"&""))), $F11&AJ$7,"") ->  | AK11: =IF( $AF11=( _xlfn.MINIFS($AF:$AF, $F:$F,$F11, $J:$J,">="&VLOOKUP($F11&AK$7,B_FLOTA!$A:$V,15,0), $K:$K,">="&VLOOKUP($F11&AK$7,B_FLOTA!$A:$V,16,0), $AF:$AF,"<="&VLOOKUP($F11&AK$7,A_FLOTA!$A:$AH,32,0), $O:$O,">="&VLOOKUP($F11&AK$7,B_FLOTA!$A:$AB,21,0), $G:$G,">="&VLOOKUP($F11&AK$7,B_FLOTA!$A:$V,9,0), $CX:$CX,">="&VLOOKUP($F11&AK$7,B_FLOTA!$A:$V,10,0), $R:$R,IF(MARCO="SI","SI","<>"&""))), $F11&AK$7,"") ->  | AL11: =IF( $AF11=( _xlfn.MINIFS($AF:$AF, $F:$F,$F11, $J:$J,">="&VLOOKUP($F11&AL$7,B_FLOTA!$A:$V,15,0), $K:$K,">="&VLOOKUP($F11&AL$7,B_FLOTA!$A:$V,16,0), $AF:$AF,"<="&VLOOKUP($F11&AL$7,A_FLOTA!$A:$AH,32,0), $O:$O,">="&VLOOKUP($F11&AL$7,B_FLOTA!$A:$AB,21,0), $G:$G,">="&VLOOKUP($F11&AL$7,B_FLOTA!$A:$V,9,0), $CX:$CX,">="&VLOOKUP($F11&AL$7,B_FLOTA!$A:$V,10,0), $R:$R,IF(MARCO="SI","SI","<>"&""))), $F11&AL$7,"") ->  | AM11: =IF( $AF11=( _xlfn.MINIFS($AF:$AF, $F:$F,$F11, $J:$J,">="&VLOOKUP($F11&AM$7,B_FLOTA!$A:$V,15,0), $K:$K,">="&VLOOKUP($F11&AM$7,B_FLOTA!$A:$V,16,0), $AF:$AF,"<="&VLOOKUP($F11&AM$7,A_FLOTA!$A:$AH,32,0), $O:$O,">="&VLOOKUP($F11&AM$7,B_FLOTA!$A:$AB,21,0), $G:$G,">="&VLOOKUP($F11&AM$7,B_FLOTA!$A:$V,9,0), $CX:$CX,">="&VLOOKUP($F11&AM$7,B_FLOTA!$A:$V,10,0), $R:$R,IF(MARCO="SI","SI","<>"&""))), $F11&AM$7,"") ->  | AN11: =IF( $AF11=( _xlfn.MINIFS($AF:$AF, $F:$F,$F11, $J:$J,">="&VLOOKUP($F11&AN$7,B_FLOTA!$A:$V,15,0), $K:$K,">="&VLOOKUP($F11&AN$7,B_FLOTA!$A:$V,16,0), $AF:$AF,"<="&VLOOKUP($F11&AN$7,A_FLOTA!$A:$AH,32,0), $O:$O,">="&VLOOKUP($F11&AN$7,B_FLOTA!$A:$AB,21,0), $G:$G,">="&VLOOKUP($F11&AN$7,B_FLOTA!$A:$V,9,0), $CX:$CX,">="&VLOOKUP($F11&AN$7,B_FLOTA!$A:$V,10,0), $R:$R,IF(MARCO="SI","SI","<>"&""))), $F11&AN$7,"") ->  | AO11: =IF( $AF11=( _xlfn.MINIFS($AF:$AF, $F:$F,$F11, $J:$J,">="&VLOOKUP($F11&AO$7,B_FLOTA!$A:$V,15,0), $K:$K,">="&VLOOKUP($F11&AO$7,B_FLOTA!$A:$V,16,0), $AF:$AF,"<="&VLOOKUP($F11&AO$7,A_FLOTA!$A:$AH,32,0), $O:$O,">="&VLOOKUP($F11&AO$7,B_FLOTA!$A:$AB,21,0), $G:$G,">="&VLOOKUP($F11&AO$7,B_FLOTA!$A:$V,9,0), $CX:$CX,">="&VLOOKUP($F11&AO$7,B_FLOTA!$A:$V,10,0), $R:$R,IF(MARCO="SI","SI","<>"&""))), $F11&AO$7,"") ->  | AP11: =IF( $AF11=( _xlfn.MINIFS($AF:$AF, $F:$F,$F11, $J:$J,">="&VLOOKUP($F11&AP$7,B_FLOTA!$A:$V,15,0), $K:$K,">="&VLOOKUP($F11&AP$7,B_FLOTA!$A:$V,16,0), $AF:$AF,"<="&VLOOKUP($F11&AP$7,A_FLOTA!$A:$AH,32,0), $O:$O,">="&VLOOKUP($F11&AP$7,B_FLOTA!$A:$AB,21,0), $G:$G,">="&VLOOKUP($F11&AP$7,B_FLOTA!$A:$V,9,0), $CX:$CX,">="&VLOOKUP($F11&AP$7,B_FLOTA!$A:$V,10,0), $R:$R,IF(MARCO="SI","SI","<>"&""))), $F11&AP$7,"") ->  | AQ11: =IF( $AF11=( _xlfn.MINIFS($AF:$AF, $F:$F,$F11, $J:$J,">="&VLOOKUP($F11&AQ$7,B_FLOTA!$A:$V,15,0), $K:$K,">="&VLOOKUP($F11&AQ$7,B_FLOTA!$A:$V,16,0), $AF:$AF,"<="&VLOOKUP($F11&AQ$7,A_FLOTA!$A:$AH,32,0), $O:$O,">="&VLOOKUP($F11&AQ$7,B_FLOTA!$A:$AB,21,0), $G:$G,">="&VLOOKUP($F11&AQ$7,B_FLOTA!$A:$V,9,0), $CX:$CX,">="&VLOOKUP($F11&AQ$7,B_FLOTA!$A:$V,10,0), $R:$R,IF(MARCO="SI","SI","<>"&""))), $F11&AQ$7,"") ->  | AR11: =IF( $AF11=( _xlfn.MINIFS($AF:$AF, $F:$F,$F11, $J:$J,">="&VLOOKUP($F11&AR$7,B_FLOTA!$A:$V,15,0), $K:$K,">="&VLOOKUP($F11&AR$7,B_FLOTA!$A:$V,16,0), $AF:$AF,"<="&VLOOKUP($F11&AR$7,A_FLOTA!$A:$AH,32,0), $O:$O,">="&VLOOKUP($F11&AR$7,B_FLOTA!$A:$AB,21,0), $G:$G,">="&VLOOKUP($F11&AR$7,B_FLOTA!$A:$V,9,0), $CX:$CX,">="&VLOOKUP($F11&AR$7,B_FLOTA!$A:$V,10,0), $R:$R,IF(MARCO="SI","SI","<>"&""))), $F11&AR$7,"") ->  | AS11: =IF( $AF11=( _xlfn.MINIFS($AF:$AF, $F:$F,$F11, $J:$J,">="&VLOOKUP($F11&AS$7,B_FLOTA!$A:$V,15,0), $K:$K,">="&VLOOKUP($F11&AS$7,B_FLOTA!$A:$V,16,0), $AF:$AF,"<="&VLOOKUP($F11&AS$7,A_FLOTA!$A:$AH,32,0), $O:$O,">="&VLOOKUP($F11&AS$7,B_FLOTA!$A:$AB,21,0), $G:$G,">="&VLOOKUP($F11&AS$7,B_FLOTA!$A:$V,9,0), $CX:$CX,">="&VLOOKUP($F11&AS$7,B_FLOTA!$A:$V,10,0), $R:$R,IF(MARCO="SI","SI","<>"&""))), $F11&AS$7,"") ->  | AT11: =IF( $AF11=( _xlfn.MINIFS($AF:$AF, $F:$F,$F11, $J:$J,">="&VLOOKUP($F11&AT$7,B_FLOTA!$A:$V,15,0), $K:$K,">="&VLOOKUP($F11&AT$7,B_FLOTA!$A:$V,16,0), $AF:$AF,"<="&VLOOKUP($F11&AT$7,A_FLOTA!$A:$AH,32,0), $O:$O,">="&VLOOKUP($F11&AT$7,B_FLOTA!$A:$AB,21,0), $G:$G,">="&VLOOKUP($F11&AT$7,B_FLOTA!$A:$V,9,0), $CX:$CX,">="&VLOOKUP($F11&AT$7,B_FLOTA!$A:$V,10,0), $R:$R,IF(MARCO="SI","SI","<>"&""))), $F11&AT$7,"") ->  | AU11: =IF( $AF11=( _xlfn.MINIFS($AF:$AF, $F:$F,$F11, $J:$J,">="&VLOOKUP($F11&AU$7,B_FLOTA!$A:$V,15,0), $K:$K,">="&VLOOKUP($F11&AU$7,B_FLOTA!$A:$V,16,0), $AF:$AF,"<="&VLOOKUP($F11&AU$7,A_FLOTA!$A:$AH,32,0), $O:$O,">="&VLOOKUP($F11&AU$7,B_FLOTA!$A:$AB,21,0), $G:$G,">="&VLOOKUP($F11&AU$7,B_FLOTA!$A:$V,9,0), $CX:$CX,">="&VLOOKUP($F11&AU$7,B_FLOTA!$A:$V,10,0), $R:$R,IF(MARCO="SI","SI","<>"&""))), $F11&AU$7,"") ->  | AV11: =IF( $AF11=( _xlfn.MINIFS($AF:$AF, $F:$F,$F11, $J:$J,">="&VLOOKUP($F11&AV$7,B_FLOTA!$A:$V,15,0), $K:$K,">="&VLOOKUP($F11&AV$7,B_FLOTA!$A:$V,16,0), $AF:$AF,"<="&VLOOKUP($F11&AV$7,A_FLOTA!$A:$AH,32,0), $O:$O,">="&VLOOKUP($F11&AV$7,B_FLOTA!$A:$AB,21,0), $G:$G,">="&VLOOKUP($F11&AV$7,B_FLOTA!$A:$V,9,0), $CX:$CX,">="&VLOOKUP($F11&AV$7,B_FLOTA!$A:$V,10,0), $R:$R,IF(MARCO="SI","SI","<>"&""))), $F11&AV$7,"") ->  | AW11: =IF( $AF11=( _xlfn.MINIFS($AF:$AF, $F:$F,$F11, $J:$J,">="&VLOOKUP($F11&AW$7,B_FLOTA!$A:$V,15,0), $K:$K,">="&VLOOKUP($F11&AW$7,B_FLOTA!$A:$V,16,0), $AF:$AF,"<="&VLOOKUP($F11&AW$7,A_FLOTA!$A:$AH,32,0), $O:$O,">="&VLOOKUP($F11&AW$7,B_FLOTA!$A:$AB,21,0), $G:$G,">="&VLOOKUP($F11&AW$7,B_FLOTA!$A:$V,9,0), $CX:$CX,">="&VLOOKUP($F11&AW$7,B_FLOTA!$A:$V,10,0), $R:$R,IF(MARCO="SI","SI","<>"&""))), $F11&AW$7,"") ->  | AX11: =IF( $AF11=( _xlfn.MINIFS($AF:$AF, $F:$F,$F11, $J:$J,">="&VLOOKUP($F11&AX$7,B_FLOTA!$A:$V,15,0), $K:$K,">="&VLOOKUP($F11&AX$7,B_FLOTA!$A:$V,16,0), $AF:$AF,"<="&VLOOKUP($F11&AX$7,A_FLOTA!$A:$AH,32,0), $O:$O,">="&VLOOKUP($F11&AX$7,B_FLOTA!$A:$AB,21,0), $G:$G,">="&VLOOKUP($F11&AX$7,B_FLOTA!$A:$V,9,0), $CX:$CX,">="&VLOOKUP($F11&AX$7,B_FLOTA!$A:$V,10,0), $R:$R,IF(MARCO="SI","SI","<>"&""))), $F11&AX$7,"") ->  | AY11: =IF( $AF11=( _xlfn.MINIFS($AF:$AF, $F:$F,$F11, $J:$J,">="&VLOOKUP($F11&AY$7,B_FLOTA!$A:$V,15,0), $K:$K,">="&VLOOKUP($F11&AY$7,B_FLOTA!$A:$V,16,0), $AF:$AF,"<="&VLOOKUP($F11&AY$7,A_FLOTA!$A:$AH,32,0), $O:$O,">="&VLOOKUP($F11&AY$7,B_FLOTA!$A:$AB,21,0), $G:$G,">="&VLOOKUP($F11&AY$7,B_FLOTA!$A:$V,9,0), $CX:$CX,">="&VLOOKUP($F11&AY$7,B_FLOTA!$A:$V,10,0), $R:$R,IF(MARCO="SI","SI","<>"&""))), $F11&AY$7,"") ->  | AZ11: =IF( $AF11=( _xlfn.MINIFS($AF:$AF, $F:$F,$F11, $J:$J,">="&VLOOKUP($F11&AZ$7,B_FLOTA!$A:$V,15,0), $K:$K,">="&VLOOKUP($F11&AZ$7,B_FLOTA!$A:$V,16,0), $AF:$AF,"<="&VLOOKUP($F11&AZ$7,A_FLOTA!$A:$AH,32,0), $O:$O,">="&VLOOKUP($F11&AZ$7,B_FLOTA!$A:$AB,21,0), $G:$G,">="&VLOOKUP($F11&AZ$7,B_FLOTA!$A:$V,9,0), $CX:$CX,">="&VLOOKUP($F11&AZ$7,B_FLOTA!$A:$V,10,0), $R:$R,IF(MARCO="SI","SI","<>"&""))), $F11&AZ$7,"") ->  | BA11: =IF( $AF11=( _xlfn.MINIFS($AF:$AF, $F:$F,$F11, $J:$J,">="&VLOOKUP($F11&BA$7,B_FLOTA!$A:$V,15,0), $K:$K,">="&VLOOKUP($F11&BA$7,B_FLOTA!$A:$V,16,0), $AF:$AF,"<="&VLOOKUP($F11&BA$7,A_FLOTA!$A:$AH,32,0), $O:$O,">="&VLOOKUP($F11&BA$7,B_FLOTA!$A:$AB,21,0), $G:$G,">="&VLOOKUP($F11&BA$7,B_FLOTA!$A:$V,9,0), $CX:$CX,">="&VLOOKUP($F11&BA$7,B_FLOTA!$A:$V,10,0), $R:$R,IF(MARCO="SI","SI","<>"&""))), $F11&BA$7,"") ->  | BB11: =IF( $AF11=( _xlfn.MINIFS($AF:$AF, $F:$F,$F11, $J:$J,">="&VLOOKUP($F11&BB$7,B_FLOTA!$A:$V,15,0), $K:$K,">="&VLOOKUP($F11&BB$7,B_FLOTA!$A:$V,16,0), $AF:$AF,"<="&VLOOKUP($F11&BB$7,A_FLOTA!$A:$AH,32,0), $O:$O,">="&VLOOKUP($F11&BB$7,B_FLOTA!$A:$AB,21,0), $G:$G,">="&VLOOKUP($F11&BB$7,B_FLOTA!$A:$V,9,0), $CX:$CX,">="&VLOOKUP($F11&BB$7,B_FLOTA!$A:$V,10,0), $R:$R,IF(MARCO="SI","SI","<>"&""))), $F11&BB$7,"") ->  | BC11: =IF( $AF11=( _xlfn.MINIFS($AF:$AF, $F:$F,$F11, $J:$J,">="&VLOOKUP($F11&BC$7,B_FLOTA!$A:$V,15,0), $K:$K,">="&VLOOKUP($F11&BC$7,B_FLOTA!$A:$V,16,0), $AF:$AF,"<="&VLOOKUP($F11&BC$7,A_FLOTA!$A:$AH,32,0), $O:$O,">="&VLOOKUP($F11&BC$7,B_FLOTA!$A:$AB,21,0), $G:$G,">="&VLOOKUP($F11&BC$7,B_FLOTA!$A:$V,9,0), $CX:$CX,">="&VLOOKUP($F11&BC$7,B_FLOTA!$A:$V,10,0), $R:$R,IF(MARCO="SI","SI","<>"&""))), $F11&BC$7,"") ->  | BD11: =IF( $AF11=( _xlfn.MINIFS($AF:$AF, $F:$F,$F11, $J:$J,">="&VLOOKUP($F11&BD$7,B_FLOTA!$A:$V,15,0), $K:$K,">="&VLOOKUP($F11&BD$7,B_FLOTA!$A:$V,16,0), $AF:$AF,"<="&VLOOKUP($F11&BD$7,A_FLOTA!$A:$AH,32,0), $O:$O,">="&VLOOKUP($F11&BD$7,B_FLOTA!$A:$AB,21,0), $G:$G,">="&VLOOKUP($F11&BD$7,B_FLOTA!$A:$V,9,0), $CX:$CX,">="&VLOOKUP($F11&BD$7,B_FLOTA!$A:$V,10,0), $R:$R,IF(MARCO="SI","SI","<>"&""))), $F11&BD$7,"") ->  | BE11: =IF( $AF11=( _xlfn.MINIFS($AF:$AF, $F:$F,$F11, $J:$J,">="&VLOOKUP($F11&BE$7,B_FLOTA!$A:$V,15,0), $K:$K,">="&VLOOKUP($F11&BE$7,B_FLOTA!$A:$V,16,0), $AF:$AF,"<="&VLOOKUP($F11&BE$7,A_FLOTA!$A:$AH,32,0), $O:$O,">="&VLOOKUP($F11&BE$7,B_FLOTA!$A:$AB,21,0), $G:$G,">="&VLOOKUP($F11&BE$7,B_FLOTA!$A:$V,9,0), $CX:$CX,">="&VLOOKUP($F11&BE$7,B_FLOTA!$A:$V,10,0), $R:$R,IF(MARCO="SI","SI","<>"&""))), $F11&BE$7,"") ->  | BF11: =IF( $AF11=( _xlfn.MINIFS($AF:$AF, $F:$F,$F11, $J:$J,">="&VLOOKUP($F11&BF$7,B_FLOTA!$A:$V,15,0), $K:$K,">="&VLOOKUP($F11&BF$7,B_FLOTA!$A:$V,16,0), $AF:$AF,"<="&VLOOKUP($F11&BF$7,A_FLOTA!$A:$AH,32,0), $O:$O,">="&VLOOKUP($F11&BF$7,B_FLOTA!$A:$AB,21,0), $G:$G,">="&VLOOKUP($F11&BF$7,B_FLOTA!$A:$V,9,0), $CX:$CX,">="&VLOOKUP($F11&BF$7,B_FLOTA!$A:$V,10,0), $R:$R,IF(MARCO="SI","SI","<>"&""))), $F11&BF$7,"") ->  | BG11: =IF( $AF11=( _xlfn.MINIFS($AF:$AF, $F:$F,$F11, $J:$J,">="&VLOOKUP($F11&BG$7,B_FLOTA!$A:$V,15,0), $K:$K,">="&VLOOKUP($F11&BG$7,B_FLOTA!$A:$V,16,0), $AF:$AF,"<="&VLOOKUP($F11&BG$7,A_FLOTA!$A:$AH,32,0), $O:$O,">="&VLOOKUP($F11&BG$7,B_FLOTA!$A:$AB,21,0), $G:$G,">="&VLOOKUP($F11&BG$7,B_FLOTA!$A:$V,9,0), $CX:$CX,">="&VLOOKUP($F11&BG$7,B_FLOTA!$A:$V,10,0), $R:$R,IF(MARCO="SI","SI","<>"&""))), $F11&BG$7,"") ->  | BH11: =IF( $AF11=( _xlfn.MINIFS($AF:$AF, $F:$F,$F11, $J:$J,">="&VLOOKUP($F11&BH$7,B_FLOTA!$A:$V,15,0), $K:$K,">="&VLOOKUP($F11&BH$7,B_FLOTA!$A:$V,16,0), $AF:$AF,"<="&VLOOKUP($F11&BH$7,A_FLOTA!$A:$AH,32,0), $O:$O,">="&VLOOKUP($F11&BH$7,B_FLOTA!$A:$AB,21,0), $G:$G,">="&VLOOKUP($F11&BH$7,B_FLOTA!$A:$V,9,0), $CX:$CX,">="&VLOOKUP($F11&BH$7,B_FLOTA!$A:$V,10,0), $R:$R,IF(MARCO="SI","SI","<>"&""))), $F11&BH$7,"") ->  | BI11: =IF( $AF11=( _xlfn.MINIFS($AF:$AF, $F:$F,$F11, $J:$J,">="&VLOOKUP($F11&BI$7,B_FLOTA!$A:$V,15,0), $K:$K,">="&VLOOKUP($F11&BI$7,B_FLOTA!$A:$V,16,0), $AF:$AF,"<="&VLOOKUP($F11&BI$7,A_FLOTA!$A:$AH,32,0), $O:$O,">="&VLOOKUP($F11&BI$7,B_FLOTA!$A:$AB,21,0), $G:$G,">="&VLOOKUP($F11&BI$7,B_FLOTA!$A:$V,9,0), $CX:$CX,">="&VLOOKUP($F11&BI$7,B_FLOTA!$A:$V,10,0), $R:$R,IF(MARCO="SI","SI","<>"&""))), $F11&BI$7,"") ->  | BJ11: =IF( $AF11=( _xlfn.MINIFS($AF:$AF, $F:$F,$F11, $J:$J,">="&VLOOKUP($F11&BJ$7,B_FLOTA!$A:$V,15,0), $K:$K,">="&VLOOKUP($F11&BJ$7,B_FLOTA!$A:$V,16,0), $AF:$AF,"<="&VLOOKUP($F11&BJ$7,A_FLOTA!$A:$AH,32,0), $O:$O,">="&VLOOKUP($F11&BJ$7,B_FLOTA!$A:$AB,21,0), $G:$G,">="&VLOOKUP($F11&BJ$7,B_FLOTA!$A:$V,9,0), $CX:$CX,">="&VLOOKUP($F11&BJ$7,B_FLOTA!$A:$V,10,0), $R:$R,IF(MARCO="SI","SI","<>"&""))), $F11&BJ$7,"") ->  | BK11: =IF( $AF11=( _xlfn.MINIFS($AF:$AF, $F:$F,$F11, $J:$J,">="&VLOOKUP($F11&BK$7,B_FLOTA!$A:$V,15,0), $K:$K,">="&VLOOKUP($F11&BK$7,B_FLOTA!$A:$V,16,0), $AF:$AF,"<="&VLOOKUP($F11&BK$7,A_FLOTA!$A:$AH,32,0), $O:$O,">="&VLOOKUP($F11&BK$7,B_FLOTA!$A:$AB,21,0), $G:$G,">="&VLOOKUP($F11&BK$7,B_FLOTA!$A:$V,9,0), $CX:$CX,">="&VLOOKUP($F11&BK$7,B_FLOTA!$A:$V,10,0), $R:$R,IF(MARCO="SI","SI","<>"&""))), $F11&BK$7,"") ->  | BL11: =IF( $AF11=( _xlfn.MINIFS($AF:$AF, $F:$F,$F11, $J:$J,">="&VLOOKUP($F11&BL$7,B_FLOTA!$A:$V,15,0), $K:$K,">="&VLOOKUP($F11&BL$7,B_FLOTA!$A:$V,16,0), $AF:$AF,"<="&VLOOKUP($F11&BL$7,A_FLOTA!$A:$AH,32,0), $O:$O,">="&VLOOKUP($F11&BL$7,B_FLOTA!$A:$AB,21,0), $G:$G,">="&VLOOKUP($F11&BL$7,B_FLOTA!$A:$V,9,0), $CX:$CX,">="&VLOOKUP($F11&BL$7,B_FLOTA!$A:$V,10,0), $R:$R,IF(MARCO="SI","SI","<>"&""))), $F11&BL$7,"") ->  | BM11: =IF( $AF11=( _xlfn.MINIFS($AF:$AF, $F:$F,$F11, $J:$J,">="&VLOOKUP($F11&BM$7,B_FLOTA!$A:$V,15,0), $K:$K,">="&VLOOKUP($F11&BM$7,B_FLOTA!$A:$V,16,0), $AF:$AF,"<="&VLOOKUP($F11&BM$7,A_FLOTA!$A:$AH,32,0), $O:$O,">="&VLOOKUP($F11&BM$7,B_FLOTA!$A:$AB,21,0), $G:$G,">="&VLOOKUP($F11&BM$7,B_FLOTA!$A:$V,9,0), $CX:$CX,">="&VLOOKUP($F11&BM$7,B_FLOTA!$A:$V,10,0), $R:$R,IF(MARCO="SI","SI","<>"&""))), $F11&BM$7,"") ->  | BN11: =IF( $AF11=( _xlfn.MINIFS($AF:$AF, $F:$F,$F11, $J:$J,">="&VLOOKUP($F11&BN$7,B_FLOTA!$A:$V,15,0), $K:$K,">="&VLOOKUP($F11&BN$7,B_FLOTA!$A:$V,16,0), $AF:$AF,"<="&VLOOKUP($F11&BN$7,A_FLOTA!$A:$AH,32,0), $O:$O,">="&VLOOKUP($F11&BN$7,B_FLOTA!$A:$AB,21,0), $G:$G,">="&VLOOKUP($F11&BN$7,B_FLOTA!$A:$V,9,0), $CX:$CX,">="&VLOOKUP($F11&BN$7,B_FLOTA!$A:$V,10,0), $R:$R,IF(MARCO="SI","SI","<>"&""))), $F11&BN$7,"") ->  | BO11: =IF( $AF11=( _xlfn.MINIFS($AF:$AF, $F:$F,$F11, $J:$J,">="&VLOOKUP($F11&BO$7,B_FLOTA!$A:$V,15,0), $K:$K,">="&VLOOKUP($F11&BO$7,B_FLOTA!$A:$V,16,0), $AF:$AF,"<="&VLOOKUP($F11&BO$7,A_FLOTA!$A:$AH,32,0), $O:$O,">="&VLOOKUP($F11&BO$7,B_FLOTA!$A:$AB,21,0), $G:$G,">="&VLOOKUP($F11&BO$7,B_FLOTA!$A:$V,9,0), $CX:$CX,">="&VLOOKUP($F11&BO$7,B_FLOTA!$A:$V,10,0), $R:$R,IF(MARCO="SI","SI","<>"&""))), $F11&BO$7,"") ->  | BP11: =IF( $AF11=( _xlfn.MINIFS($AF:$AF, $F:$F,$F11, $J:$J,">="&VLOOKUP($F11&BP$7,B_FLOTA!$A:$V,15,0), $K:$K,">="&VLOOKUP($F11&BP$7,B_FLOTA!$A:$V,16,0), $AF:$AF,"<="&VLOOKUP($F11&BP$7,A_FLOTA!$A:$AH,32,0), $O:$O,">="&VLOOKUP($F11&BP$7,B_FLOTA!$A:$AB,21,0), $G:$G,">="&VLOOKUP($F11&BP$7,B_FLOTA!$A:$V,9,0), $CX:$CX,">="&VLOOKUP($F11&BP$7,B_FLOTA!$A:$V,10,0), $R:$R,IF(MARCO="SI","SI","<>"&""))), $F11&BP$7,"") ->  | BQ11: =IF( $AF11=( _xlfn.MINIFS($AF:$AF, $F:$F,$F11, $J:$J,">="&VLOOKUP($F11&BQ$7,B_FLOTA!$A:$V,15,0), $K:$K,">="&VLOOKUP($F11&BQ$7,B_FLOTA!$A:$V,16,0), $AF:$AF,"<="&VLOOKUP($F11&BQ$7,A_FLOTA!$A:$AH,32,0), $O:$O,">="&VLOOKUP($F11&BQ$7,B_FLOTA!$A:$AB,21,0), $G:$G,">="&VLOOKUP($F11&BQ$7,B_FLOTA!$A:$V,9,0), $CX:$CX,">="&VLOOKUP($F11&BQ$7,B_FLOTA!$A:$V,10,0), $R:$R,IF(MARCO="SI","SI","<>"&""))), $F11&BQ$7,"") ->  | BR11: =IF( $AF11=( _xlfn.MINIFS($AF:$AF, $F:$F,$F11, $J:$J,">="&VLOOKUP($F11&BR$7,B_FLOTA!$A:$V,15,0), $K:$K,">="&VLOOKUP($F11&BR$7,B_FLOTA!$A:$V,16,0), $AF:$AF,"<="&VLOOKUP($F11&BR$7,A_FLOTA!$A:$AH,32,0), $O:$O,">="&VLOOKUP($F11&BR$7,B_FLOTA!$A:$AB,21,0), $G:$G,">="&VLOOKUP($F11&BR$7,B_FLOTA!$A:$V,9,0), $CX:$CX,">="&VLOOKUP($F11&BR$7,B_FLOTA!$A:$V,10,0), $R:$R,IF(MARCO="SI","SI","<>"&""))), $F11&BR$7,"") ->  | BS11: =IF( $AF11=( _xlfn.MINIFS($AF:$AF, $F:$F,$F11, $J:$J,">="&VLOOKUP($F11&BS$7,B_FLOTA!$A:$V,15,0), $K:$K,">="&VLOOKUP($F11&BS$7,B_FLOTA!$A:$V,16,0), $AF:$AF,"<="&VLOOKUP($F11&BS$7,A_FLOTA!$A:$AH,32,0), $O:$O,">="&VLOOKUP($F11&BS$7,B_FLOTA!$A:$AB,21,0), $G:$G,">="&VLOOKUP($F11&BS$7,B_FLOTA!$A:$V,9,0), $CX:$CX,">="&VLOOKUP($F11&BS$7,B_FLOTA!$A:$V,10,0), $R:$R,IF(MARCO="SI","SI","<>"&""))), $F11&BS$7,"") ->  | BT11: =IF( $AF11=( _xlfn.MINIFS($AF:$AF, $F:$F,$F11, $J:$J,">="&VLOOKUP($F11&BT$7,B_FLOTA!$A:$V,15,0), $K:$K,">="&VLOOKUP($F11&BT$7,B_FLOTA!$A:$V,16,0), $AF:$AF,"<="&VLOOKUP($F11&BT$7,A_FLOTA!$A:$AH,32,0), $O:$O,">="&VLOOKUP($F11&BT$7,B_FLOTA!$A:$AB,21,0), $G:$G,">="&VLOOKUP($F11&BT$7,B_FLOTA!$A:$V,9,0), $CX:$CX,">="&VLOOKUP($F11&BT$7,B_FLOTA!$A:$V,10,0), $R:$R,IF(MARCO="SI","SI","<>"&""))), $F11&BT$7,"") ->  | BU11: =IF( $AF11=( _xlfn.MINIFS($AF:$AF, $F:$F,$F11, $J:$J,">="&VLOOKUP($F11&BU$7,B_FLOTA!$A:$V,15,0), $K:$K,">="&VLOOKUP($F11&BU$7,B_FLOTA!$A:$V,16,0), $AF:$AF,"<="&VLOOKUP($F11&BU$7,A_FLOTA!$A:$AH,32,0), $O:$O,">="&VLOOKUP($F11&BU$7,B_FLOTA!$A:$AB,21,0), $G:$G,">="&VLOOKUP($F11&BU$7,B_FLOTA!$A:$V,9,0), $CX:$CX,">="&VLOOKUP($F11&BU$7,B_FLOTA!$A:$V,10,0), $R:$R,IF(MARCO="SI","SI","<>"&""))), $F11&BU$7,"") ->  | BV11: =IF( $AF11=( _xlfn.MINIFS($AF:$AF, $F:$F,$F11, $J:$J,">="&VLOOKUP($F11&BV$7,B_FLOTA!$A:$V,15,0), $K:$K,">="&VLOOKUP($F11&BV$7,B_FLOTA!$A:$V,16,0), $AF:$AF,"<="&VLOOKUP($F11&BV$7,A_FLOTA!$A:$AH,32,0), $O:$O,">="&VLOOKUP($F11&BV$7,B_FLOTA!$A:$AB,21,0), $G:$G,">="&VLOOKUP($F11&BV$7,B_FLOTA!$A:$V,9,0), $CX:$CX,">="&VLOOKUP($F11&BV$7,B_FLOTA!$A:$V,10,0), $R:$R,IF(MARCO="SI","SI","<>"&""))), $F11&BV$7,"") ->  | BW11: =IF( $AF11=( _xlfn.MINIFS($AF:$AF, $F:$F,$F11, $J:$J,">="&VLOOKUP($F11&BW$7,B_FLOTA!$A:$V,15,0), $K:$K,">="&VLOOKUP($F11&BW$7,B_FLOTA!$A:$V,16,0), $AF:$AF,"<="&VLOOKUP($F11&BW$7,A_FLOTA!$A:$AH,32,0), $O:$O,">="&VLOOKUP($F11&BW$7,B_FLOTA!$A:$AB,21,0), $G:$G,">="&VLOOKUP($F11&BW$7,B_FLOTA!$A:$V,9,0), $CX:$CX,">="&VLOOKUP($F11&BW$7,B_FLOTA!$A:$V,10,0), $R:$R,IF(MARCO="SI","SI","<>"&""))), $F11&BW$7,"") ->  | BX11: =IF( $AF11=( _xlfn.MINIFS($AF:$AF, $F:$F,$F11, $J:$J,">="&VLOOKUP($F11&BX$7,B_FLOTA!$A:$V,15,0), $K:$K,">="&VLOOKUP($F11&BX$7,B_FLOTA!$A:$V,16,0), $AF:$AF,"<="&VLOOKUP($F11&BX$7,A_FLOTA!$A:$AH,32,0), $O:$O,">="&VLOOKUP($F11&BX$7,B_FLOTA!$A:$AB,21,0), $G:$G,">="&VLOOKUP($F11&BX$7,B_FLOTA!$A:$V,9,0), $CX:$CX,">="&VLOOKUP($F11&BX$7,B_FLOTA!$A:$V,10,0), $R:$R,IF(MARCO="SI","SI","<>"&""))), $F11&BX$7,"") ->  | BY11: =IF( $AF11=( _xlfn.MINIFS($AF:$AF, $F:$F,$F11, $J:$J,">="&VLOOKUP($F11&BY$7,B_FLOTA!$A:$V,15,0), $K:$K,">="&VLOOKUP($F11&BY$7,B_FLOTA!$A:$V,16,0), $AF:$AF,"<="&VLOOKUP($F11&BY$7,A_FLOTA!$A:$AH,32,0), $O:$O,">="&VLOOKUP($F11&BY$7,B_FLOTA!$A:$AB,21,0), $G:$G,">="&VLOOKUP($F11&BY$7,B_FLOTA!$A:$V,9,0), $CX:$CX,">="&VLOOKUP($F11&BY$7,B_FLOTA!$A:$V,10,0), $R:$R,IF(MARCO="SI","SI","<>"&""))), $F11&BY$7,"") ->  | BZ11: =IF( $AF11=( _xlfn.MINIFS($AF:$AF, $F:$F,$F11, $J:$J,">="&VLOOKUP($F11&BZ$7,B_FLOTA!$A:$V,15,0), $K:$K,">="&VLOOKUP($F11&BZ$7,B_FLOTA!$A:$V,16,0), $AF:$AF,"<="&VLOOKUP($F11&BZ$7,A_FLOTA!$A:$AH,32,0), $O:$O,">="&VLOOKUP($F11&BZ$7,B_FLOTA!$A:$AB,21,0), $G:$G,">="&VLOOKUP($F11&BZ$7,B_FLOTA!$A:$V,9,0), $CX:$CX,">="&VLOOKUP($F11&BZ$7,B_FLOTA!$A:$V,10,0), $R:$R,IF(MARCO="SI","SI","<>"&""))), $F11&BZ$7,"") ->  | CA11: =IF( $AF11=( _xlfn.MINIFS($AF:$AF, $F:$F,$F11, $J:$J,">="&VLOOKUP($F11&CA$7,B_FLOTA!$A:$V,15,0), $K:$K,">="&VLOOKUP($F11&CA$7,B_FLOTA!$A:$V,16,0), $AF:$AF,"<="&VLOOKUP($F11&CA$7,A_FLOTA!$A:$AH,32,0), $O:$O,">="&VLOOKUP($F11&CA$7,B_FLOTA!$A:$AB,21,0), $G:$G,">="&VLOOKUP($F11&CA$7,B_FLOTA!$A:$V,9,0), $CX:$CX,">="&VLOOKUP($F11&CA$7,B_FLOTA!$A:$V,10,0), $R:$R,IF(MARCO="SI","SI","<>"&""))), $F11&CA$7,"") ->  | CB11: =IF( $AF11=( _xlfn.MINIFS($AF:$AF, $F:$F,$F11, $J:$J,">="&VLOOKUP($F11&CB$7,B_FLOTA!$A:$V,15,0), $K:$K,">="&VLOOKUP($F11&CB$7,B_FLOTA!$A:$V,16,0), $AF:$AF,"<="&VLOOKUP($F11&CB$7,A_FLOTA!$A:$AH,32,0), $O:$O,">="&VLOOKUP($F11&CB$7,B_FLOTA!$A:$AB,21,0), $G:$G,">="&VLOOKUP($F11&CB$7,B_FLOTA!$A:$V,9,0), $CX:$CX,">="&VLOOKUP($F11&CB$7,B_FLOTA!$A:$V,10,0), $R:$R,IF(MARCO="SI","SI","<>"&""))), $F11&CB$7,"") ->  | CC11: =IF( $AF11=( _xlfn.MINIFS($AF:$AF, $F:$F,$F11, $J:$J,">="&VLOOKUP($F11&CC$7,B_FLOTA!$A:$V,15,0), $K:$K,">="&VLOOKUP($F11&CC$7,B_FLOTA!$A:$V,16,0), $AF:$AF,"<="&VLOOKUP($F11&CC$7,A_FLOTA!$A:$AH,32,0), $O:$O,">="&VLOOKUP($F11&CC$7,B_FLOTA!$A:$AB,21,0), $G:$G,">="&VLOOKUP($F11&CC$7,B_FLOTA!$A:$V,9,0), $CX:$CX,">="&VLOOKUP($F11&CC$7,B_FLOTA!$A:$V,10,0), $R:$R,IF(MARCO="SI","SI","<>"&""))), $F11&CC$7,"") ->  | CD11: =IF( $AF11=( _xlfn.MINIFS($AF:$AF, $F:$F,$F11, $J:$J,">="&VLOOKUP($F11&CD$7,B_FLOTA!$A:$V,15,0), $K:$K,">="&VLOOKUP($F11&CD$7,B_FLOTA!$A:$V,16,0), $AF:$AF,"<="&VLOOKUP($F11&CD$7,A_FLOTA!$A:$AH,32,0), $O:$O,">="&VLOOKUP($F11&CD$7,B_FLOTA!$A:$AB,21,0), $G:$G,">="&VLOOKUP($F11&CD$7,B_FLOTA!$A:$V,9,0), $CX:$CX,">="&VLOOKUP($F11&CD$7,B_FLOTA!$A:$V,10,0), $R:$R,IF(MARCO="SI","SI","<>"&""))), $F11&CD$7,"") ->  | CE11: =IF( $AF11=( _xlfn.MINIFS($AF:$AF, $F:$F,$F11, $J:$J,">="&VLOOKUP($F11&CE$7,B_FLOTA!$A:$V,15,0), $K:$K,">="&VLOOKUP($F11&CE$7,B_FLOTA!$A:$V,16,0), $AF:$AF,"<="&VLOOKUP($F11&CE$7,A_FLOTA!$A:$AH,32,0), $O:$O,">="&VLOOKUP($F11&CE$7,B_FLOTA!$A:$AB,21,0), $G:$G,">="&VLOOKUP($F11&CE$7,B_FLOTA!$A:$V,9,0), $CX:$CX,">="&VLOOKUP($F11&CE$7,B_FLOTA!$A:$V,10,0), $R:$R,IF(MARCO="SI","SI","<>"&""))), $F11&CE$7,"") ->  | CG11: kWh/km | CH11: =IFERROR(VLOOKUP(E11,VALORES!$B$1:$E$8,3,0),"") -> KWH | CJ11: =IF(OR($E11="BEV",$E11="FCEV"),_xlfn.MINIFS('BD3(GEI & Cont)'!$E:$E,'BD3(GEI & Cont)'!$B:$B,$F11,'BD3(GEI & Cont)'!$C:$C,$E11,'BD3(GEI & Cont)'!$E:$E,">="&VALUE($H11))*IFERROR(VLOOKUP($F11,A_FLOTA!$F:$BS,64,0),0)*IFERROR(VLOOKUP($F11,A_FLOTA!$F:$BS,65,0),0)*W11,_xlfn.MINIFS('BD3(GEI & Cont)'!$L:$L,'BD3(GEI & Cont)'!A:A,"",'BD3(GEI & Cont)'!$B:$B,$F11,'BD3(GEI & Cont)'!$C:$C,$E11,'BD3(GEI & Cont)'!$E:$E,">="&VALUE($H11),'BD3(GEI & Cont)'!$D:$D,$I11)*IFERROR(VLOOKUP($F11,A_FLOTA!$F:$BS,64,0),0)*IFERROR(VLOOKUP($F11,A_FLOTA!$F:$BS,65,0),0)*W11) -> 0 | CK11: =IF(OR($E11="BEV",$E11="FCEV"),_xlfn.MINIFS('BD3(GEI & Cont)'!$F:$F,'BD3(GEI & Cont)'!$B:$B,$F11,'BD3(GEI & Cont)'!$C:$C,$E11,'BD3(GEI & Cont)'!$E:$E,">="&VALUE($H11))*IFERROR(VLOOKUP($F11,A_FLOTA!$F:$BS,64,0),0)*IFERROR(VLOOKUP($F11,A_FLOTA!$F:$BS,65,0),0)*W11,_xlfn.MINIFS('BD3(GEI & Cont)'!$M:$M,'BD3(GEI & Cont)'!A:A,"",'BD3(GEI & Cont)'!$B:$B,$F11,'BD3(GEI & Cont)'!$C:$C,$E11,'BD3(GEI & Cont)'!$E:$E,">="&VALUE($H11),'BD3(GEI & Cont)'!$D:$D,$I11)*IFERROR(VLOOKUP($F11,A_FLOTA!$F:$BS,64,0),0)*IFERROR(VLOOKUP($F11,A_FLOTA!$F:$BS,65,0),0)*W11) -> 0 | CL11: =IF(OR($E11="BEV",$E11="FCEV"),0,_xlfn.MINIFS('BD3(GEI & Cont)'!$I:$I,'BD3(GEI & Cont)'!A:A,"",'BD3(GEI & Cont)'!$B:$B,$F11,'BD3(GEI & Cont)'!$C:$C,$E11,'BD3(GEI & Cont)'!$E:$E,">="&VALUE($H11),'BD3(GEI & Cont)'!$D:$D,$I11)*IFERROR(VLOOKUP($F11,A_FLOTA!$F:$BS,64,0),0)*IFERROR(VLOOKUP($F11,A_FLOTA!$F:$BS,65,0),0)*W11) -> 0 | CM11: =IF(OR($E11="BEV",$E11="FCEV"),0,_xlfn.MINIFS('BD3(GEI & Cont)'!F:F,'BD3(GEI & Cont)'!$A:$A,EURO,'BD3(GEI & Cont)'!$B:$B,$F11,'BD3(GEI & Cont)'!$C:$C,$E11,'BD3(GEI & Cont)'!$E:$E,">="&VALUE($H11),'BD3(GEI & Cont)'!$D:$D,$I11)*IFERROR(VLOOKUP($F11,A_FLOTA!$F:$BS,64,0),0)*IFERROR(VLOOKUP($F11,A_FLOTA!$F:$BS,65,0),0)*W11) -> 0 | CN11: =IF(OR($E11="BEV",$E11="FCEV"),0,_xlfn.MINIFS('BD3(GEI & Cont)'!G:G,'BD3(GEI & Cont)'!$A:$A,EURO,'BD3(GEI & Cont)'!$B:$B,$F11,'BD3(GEI & Cont)'!$C:$C,$E11,'BD3(GEI & Cont)'!$E:$E,">="&VALUE($H11),'BD3(GEI & Cont)'!$D:$D,$I11)*IFERROR(VLOOKUP($F11,A_FLOTA!$F:$BS,64,0),0)*IFERROR(VLOOKUP($F11,A_FLOTA!$F:$BS,65,0),0)*W11) -> 0 | CO11: =IF(OR($E11="BEV",$E11="FCEV"),0,_xlfn.MINIFS('BD3(GEI & Cont)'!H:H,'BD3(GEI & Cont)'!$A:$A,EURO,'BD3(GEI & Cont)'!$B:$B,$F11,'BD3(GEI & Cont)'!$C:$C,$E11,'BD3(GEI & Cont)'!$E:$E,">="&VALUE($H11),'BD3(GEI & Cont)'!$D:$D,$I11)*IFERROR(VLOOKUP($F11,A_FLOTA!$F:$BS,64,0),0)*IFERROR(VLOOKUP($F11,A_FLOTA!$F:$BS,65,0),0)*W11) -> 0 | CP11: =IF(OR($E11="BEV",$E11="FCEV"),0,_xlfn.MINIFS('BD3(GEI & Cont)'!I:I,'BD3(GEI & Cont)'!$A:$A,EURO,'BD3(GEI & Cont)'!$B:$B,$F11,'BD3(GEI & Cont)'!$C:$C,$E11,'BD3(GEI & Cont)'!$E:$E,">="&VALUE($H11),'BD3(GEI & Cont)'!$D:$D,$I11)*IFERROR(VLOOKUP($F11,A_FLOTA!$F:$BS,64,0),0)*IFERROR(VLOOKUP($F11,A_FLOTA!$F:$BS,65,0),0)*W11) -> 0 | CQ11: =IF(OR($E11="BEV",$E11="FCEV"),0,_xlfn.MINIFS('BD3(GEI & Cont)'!M:M,'BD3(GEI & Cont)'!$A:$A,EURO,'BD3(GEI & Cont)'!$B:$B,$F11,'BD3(GEI & Cont)'!$C:$C,$E11,'BD3(GEI & Cont)'!$E:$E,">="&VALUE($H11),'BD3(GEI & Cont)'!$D:$D,$I11)*IFERROR(VLOOKUP($F11,A_FLOTA!$F:$BS,64,0),0)*IFERROR(VLOOKUP($F11,A_FLOTA!$F:$BS,65,0),0)*W11) -> 0 | CR11: =IF(OR($E11="BEV",$E11="FCEV"),'BD3(GEI & Cont)'!$D$44*IFERROR(VLOOKUP($F11,A_FLOTA!$F:$BS,64,0),0)*IFERROR(VLOOKUP($F11,A_FLOTA!$F:$BS,65,0),0)*W11*IF($E11="BEV",$M11,1),_xlfn.MINIFS('BD3(GEI & Cont)'!$K:$K,'BD3(GEI & Cont)'!A:A,"",'BD3(GEI & Cont)'!$B:$B,$F11,'BD3(GEI & Cont)'!$C:$C,$E11,'BD3(GEI & Cont)'!$E:$E,">="&VALUE($H11),'BD3(GEI & Cont)'!$D:$D,$I11)*IFERROR(VLOOKUP($F11,A_FLOTA!$F:$BS,64,0),0)*IFERROR(VLOOKUP($F11,A_FLOTA!$F:$BS,65,0),0)*W11*IF($E11="BEV",$M11,1)) -> 0 | CS11: 0 | CT11: 0 | CV11: =IFERROR(W11*IFERROR(VLOOKUP(F11,A_FLOTA!$F:$BS,64,0),0)*IFERROR(VLOOKUP(F11,A_FLOTA!$F:$BS,65,0),"")*AF11,"") ->  | CW11: =+IFERROR(VLOOKUP(F11,A_FLOTA!$F:$BS,64,0),0)*IFERROR(VLOOKUP(F11,A_FLOTA!$F:$BS,65,0),0)*W11*M11 -> 0 | CX11: 0 | CY11: 2 | DA11: 0.40625 | DB11: 3245937.5 | DC11: 7510600 | DD11: 4264662.5 | DE11: 71077.70833 | DF11: 109716.6825 | DG11: 180794.3908 | DH11: 10847663.45 | DI11: 3337063.45
